{"text_format":"3","workbook":"xlsx","n_sheets":5,"sheets":["Input","List","ICalc01","ICalc02","OutputDiagnosis"],"not_rendered":{"charts":6,"macros":1,"defined_names":42},"read":"whole","date_system":"1900"}

{"sheet":"Input","index":0,"n_rows":251,"n_cols":12,"rows_kept":251,"merged":[[6,2,7,2],[6,3,7,3],[6,5,7,8]]}
["Expected Level of Understanding ",{"$nulls":3},"Perceived Importance",null,"Level of Contact"]
["L4","Analyze, theorize, hypothesize & justify (new) knowledge",null,null,3,"High",3,"High amount of contact"]
["L3","Compare & explain theories ",null,null,2,"Medium",2,"Average amount of contact"]
["L2","Demonstrate comphrehension & application of knowledge",null,null,1,"Low",1,"Minimum amount of contact"]
["L1","Recall knowledge, do simple procedures & calculations",null,null,0,"N/A",0,"No contact"]
[]
[null,null,"Subject/Course",null,{"$f":"IF(F7=\" \",\" \", \"NOTE:\")","v":" "},{"$f":"IF(SUM(L12:L251)>0,CONCATENATE(COUNTIF(L12:L251,\"=\"&1),\" [RED] highlighted item(s) require attention.\",CHAR(10), COUNTIF(L12:L251, \"=\"&3), \" [GREEN] good item(s).\"),\" \")","v":" "}]
[]
[]
[]
["Foundation/ Core/ Specialized","Area","Topic","Description\n(e.g., Key Concepts, Key Messages, Intentions, Outcomes)","Mode of Teaching/ Learning","Skill Set","Expected Level of Understanding","Level of Percieved Importance","Allocated Hours (Per Week)",null,null,"DO NOT DELETE"]
[{"$nulls":11},{"$f":"IF(OR(ISBLANK(G12),ISBLANK(H12),ISBLANK(I12)),0,IF(OR(AND(OR(VALUE(RIGHT(G12))>=3,I12=3),H12<=1),AND(OR(VALUE(RIGHT(G12))=1,I12<=1),H12=3)),1,IF(OR(AND(VALUE(RIGHT(G12))=H12, I12=H12), AND(VALUE(RIGHT(G12))>=3, H12=3, I12=3), AND(VALUE(RIGHT(G12)), H12=0, I12=0)), 3, IF(OR(VALUE(RIGHT(G12))>H12, I12>H12, H12>I12, H12>VALUE(RIGHT(G12))), 2, 0))))","v":0}]
[{"$nulls":11},{"$f":"IF(OR(ISBLANK(G13),ISBLANK(H13),ISBLANK(I13)),0,IF(OR(AND(OR(VALUE(RIGHT(G13))>=3,I13=3),H13<=1),AND(OR(VALUE(RIGHT(G13))=1,I13<=1),H13=3)),1,IF(OR(AND(VALUE(RIGHT(G13))=H13, I13=H13), AND(VALUE(RIGHT(G13))>=3, H13=3, I13=3), AND(VALUE(RIGHT(G13)), H13=0, I13=0)), 3, IF(OR(VALUE(RIGHT(G13))>H13, I13>H13, H13>I13, H13>VALUE(RIGHT(G13))), 2, 0))))","v":0}]
[{"$nulls":11},0]
[{"$nulls":11},0]
[{"$nulls":11},0]
[{"$nulls":11},0]
[{"$nulls":11},0]
[{"$nulls":11},0]
[{"$nulls":11},0]
[{"$nulls":11},0]
[{"$nulls":11},0]
[{"$nulls":11},0]
[{"$nulls":11},0]
[{"$nulls":11},0]
[{"$nulls":11},0]
[{"$nulls":11},0]
[{"$nulls":11},0]
[{"$nulls":11},0]
[{"$nulls":11},0]
[{"$nulls":11},0]
[{"$nulls":11},0]
[{"$nulls":11},0]
[{"$nulls":11},0]
[{"$nulls":11},0]
[{"$nulls":11},0]
[{"$nulls":11},0]
[{"$nulls":11},0]
[{"$nulls":11},0]
[{"$nulls":11},0]
[{"$nulls":11},0]
[{"$nulls":11},0]
[{"$nulls":11},0]
[{"$nulls":11},0]
[{"$nulls":11},0]
[{"$nulls":11},0]
[{"$nulls":11},0]
[{"$nulls":11},0]
[{"$nulls":11},0]
[{"$nulls":11},0]
[{"$nulls":11},0]
[{"$nulls":11},0]
[{"$nulls":11},0]
[{"$nulls":11},0]
[{"$nulls":11},0]
[{"$nulls":11},0]
[{"$nulls":11},0]
[{"$nulls":11},0]
[{"$nulls":11},0]
[{"$nulls":11},0]
[{"$nulls":11},0]
[{"$nulls":11},0]
[{"$nulls":11},0]
[{"$nulls":11},0]
[{"$nulls":11},0]
[{"$nulls":11},0]
[{"$nulls":11},0]
[{"$nulls":11},0]
[{"$nulls":11},0]
[{"$nulls":11},0]
[{"$nulls":11},0]
[{"$nulls":11},0]
[{"$nulls":11},0]
[{"$nulls":11},0]
[{"$nulls":11},0]
[{"$nulls":11},0]
[{"$nulls":11},{"$f":"IF(OR(ISBLANK(G77),ISBLANK(H77),ISBLANK(I77)),0,IF(OR(AND(OR(VALUE(RIGHT(G77))>=3,I77=3),H77<=1),AND(OR(VALUE(RIGHT(G77))=1,I77<=1),H77=3)),1,IF(OR(AND(VALUE(RIGHT(G77))=H77, I77=H77), AND(VALUE(RIGHT(G77))>=3, H77=3, I77=3), AND(VALUE(RIGHT(G77)), H77=0, I77=0)), 3, IF(OR(VALUE(RIGHT(G77))>H77, I77>H77, H77>I77, H77>VALUE(RIGHT(G77))), 2, 0))))","v":0}]
[{"$nulls":11},0]
[{"$nulls":11},0]
[{"$nulls":11},0]
[{"$nulls":11},0]
[{"$nulls":11},0]
[{"$nulls":11},0]
[{"$nulls":11},0]
[{"$nulls":11},0]
[{"$nulls":11},0]
[{"$nulls":11},0]
[{"$nulls":11},0]
[{"$nulls":11},0]
[{"$nulls":11},0]
[{"$nulls":11},0]
[{"$nulls":11},0]
[{"$nulls":11},0]
[{"$nulls":11},0]
[{"$nulls":11},0]
[{"$nulls":11},0]
[{"$nulls":11},0]
[{"$nulls":11},0]
[{"$nulls":11},0]
[{"$nulls":11},0]
[{"$nulls":11},0]
[{"$nulls":11},0]
[{"$nulls":11},0]
[{"$nulls":11},0]
[{"$nulls":11},0]
[{"$nulls":11},0]
[{"$nulls":11},0]
[{"$nulls":11},0]
[{"$nulls":11},0]
[{"$nulls":11},0]
[{"$nulls":11},0]
[{"$nulls":11},0]
[{"$nulls":11},0]
[{"$nulls":11},0]
[{"$nulls":11},0]
[{"$nulls":11},0]
[{"$nulls":11},0]
[{"$nulls":11},0]
[{"$nulls":11},0]
[{"$nulls":11},0]
[{"$nulls":11},0]
[{"$nulls":11},0]
[{"$nulls":11},0]
[{"$nulls":11},0]
[{"$nulls":11},0]
[{"$nulls":11},0]
[{"$nulls":11},0]
[{"$nulls":11},0]
[{"$nulls":11},0]
[{"$nulls":11},0]
[{"$nulls":11},0]
[{"$nulls":11},0]
[{"$nulls":11},0]
[{"$nulls":11},0]
[{"$nulls":11},0]
[{"$nulls":11},0]
[{"$nulls":11},0]
[{"$nulls":11},0]
[{"$nulls":11},0]
[{"$nulls":11},0]
[{"$nulls":11},{"$f":"IF(OR(ISBLANK(G141),ISBLANK(H141),ISBLANK(I141)),0,IF(OR(AND(OR(VALUE(RIGHT(G141))>=3,I141=3),H141<=1),AND(OR(VALUE(RIGHT(G141))=1,I141<=1),H141=3)),1,IF(OR(AND(VALUE(RIGHT(G141))=H141, I141=H141), AND(VALUE(RIGHT(G141))>=3, H141=3, I141=3), AND(VALUE(RIGHT(G141)), H141=0, I141=0)), 3, IF(OR(VALUE(RIGHT(G141))>H141, I141>H141, H141>I141, H141>VALUE(RIGHT(G141))), 2, 0))))","v":0}]
[{"$nulls":11},0]
[{"$nulls":11},0]
[{"$nulls":11},0]
[{"$nulls":11},0]
[{"$nulls":11},0]
[{"$nulls":11},0]
[{"$nulls":11},0]
[{"$nulls":11},0]
[{"$nulls":11},0]
[{"$nulls":11},0]
[{"$nulls":11},0]
[{"$nulls":11},0]
[{"$nulls":11},0]
[{"$nulls":11},0]
[{"$nulls":11},0]
[{"$nulls":11},0]
[{"$nulls":11},0]
[{"$nulls":11},0]
[{"$nulls":11},0]
[{"$nulls":11},0]
[{"$nulls":11},0]
[{"$nulls":11},0]
[{"$nulls":11},0]
[{"$nulls":11},0]
[{"$nulls":11},0]
[{"$nulls":11},0]
[{"$nulls":11},0]
[{"$nulls":11},0]
[{"$nulls":11},0]
[{"$nulls":11},0]
[{"$nulls":11},0]
[{"$nulls":11},0]
[{"$nulls":11},0]
[{"$nulls":11},0]
[{"$nulls":11},0]
[{"$nulls":11},0]
[{"$nulls":11},0]
[{"$nulls":11},0]
[{"$nulls":11},0]
[{"$nulls":11},0]
[{"$nulls":11},0]
[{"$nulls":11},0]
[{"$nulls":11},0]
[{"$nulls":11},0]
[{"$nulls":11},0]
[{"$nulls":11},0]
[{"$nulls":11},0]
[{"$nulls":11},0]
[{"$nulls":11},0]
[{"$nulls":11},0]
[{"$nulls":11},0]
[{"$nulls":11},0]
[{"$nulls":11},0]
[{"$nulls":11},0]
[{"$nulls":11},0]
[{"$nulls":11},0]
[{"$nulls":11},0]
[{"$nulls":11},0]
[{"$nulls":11},0]
[{"$nulls":11},0]
[{"$nulls":11},0]
[{"$nulls":11},0]
[{"$nulls":11},0]
[{"$nulls":11},{"$f":"IF(OR(ISBLANK(G205),ISBLANK(H205),ISBLANK(I205)),0,IF(OR(AND(OR(VALUE(RIGHT(G205))>=3,I205=3),H205<=1),AND(OR(VALUE(RIGHT(G205))=1,I205<=1),H205=3)),1,IF(OR(AND(VALUE(RIGHT(G205))=H205, I205=H205), AND(VALUE(RIGHT(G205))>=3, H205=3, I205=3), AND(VALUE(RIGHT(G205)), H205=0, I205=0)), 3, IF(OR(VALUE(RIGHT(G205))>H205, I205>H205, H205>I205, H205>VALUE(RIGHT(G205))), 2, 0))))","v":0}]
[{"$nulls":11},0]
[{"$nulls":11},0]
[{"$nulls":11},0]
[{"$nulls":11},0]
[{"$nulls":11},0]
[{"$nulls":11},0]
[{"$nulls":11},0]
[{"$nulls":11},0]
[{"$nulls":11},0]
[{"$nulls":11},0]
[{"$nulls":11},0]
[{"$nulls":11},0]
[{"$nulls":11},0]
[{"$nulls":11},0]
[{"$nulls":11},0]
[{"$nulls":11},0]
[{"$nulls":11},0]
[{"$nulls":11},0]
[{"$nulls":11},0]
[{"$nulls":11},0]
[{"$nulls":11},0]
[{"$nulls":11},0]
[{"$nulls":11},0]
[{"$nulls":11},0]
[{"$nulls":11},0]
[{"$nulls":11},0]
[{"$nulls":11},0]
[{"$nulls":11},0]
[{"$nulls":11},0]
[{"$nulls":11},0]
[{"$nulls":11},0]
[{"$nulls":11},0]
[{"$nulls":11},0]
[{"$nulls":11},0]
[{"$nulls":11},0]
[{"$nulls":11},0]
[{"$nulls":11},0]
[{"$nulls":11},0]
[{"$nulls":11},0]
[{"$nulls":11},0]
[{"$nulls":11},0]
[{"$nulls":11},0]
[{"$nulls":11},0]
[{"$nulls":11},0]
[{"$nulls":11},0]
[{"$nulls":11},0]

{"sheet":"List","index":1,"n_rows":19,"n_cols":25,"rows_kept":19,"hidden":true}
["Rank","Foundation","Core","Specialised","Earth","CoordinateSystems","OurPlace","MapReading","Database","Math","Physics","Geography","DataAcquisitionConcepts","DataUse","Geographical Data Structure","SpatialAnalysis","GeospatialToolbox","DataVisualization","MapMaking","General Application","Professionalism","DataAcquisitionMethods","Programming","ProjectManagement","AdvancedApplications"]
["Foundation","Earth","DataAcquisitionConcepts","DataAcquisitionMethods","Physical","Direction","Geographical Features","Map Comprehension","Data Format & Type","Geometry","Electromagnetic Wave","Climate/ Meteorology","Gathering Data","Data Adjustment","Geographical Database","Spatial Relationships","GIS","Cartography","2D & 3D Maps","Environmental Applications","Industry & Institutional Standards","Land Surveying","Program Structure","Risk Management","Geography & Geographical Analysis"]
["Core","CoordinateSystems","DataUse","Programming","Model","Unit","Demographics","Map Interpretation","Data Structure","Algebra","Wave Propagation, Characteristics & Properties","Geomorphology","Quality of Data","Data Management","Spatial Data Representation","Spatial Data Topology","CAD","Computer Visualization/ Display","Perception Theory","Social Applications","Morals & Ethics","Remote Sensing","Systems Design","Programme Management","Social Science & Demographical Analysis"]
["Specialised","OurPlace","GeographicalDataStructure","ProjectManagement","Others","Scale","Rural & Urban Geography","Others","Data Models & Database","Trigonometry","Optics/Propertis of Light","Landscape Ecology","Data Manipulation","Numerical Analysis","Map Indexing","Spatial Data Modelling","Program Customization","Others","Mapping Techniques","Urban Applications","Legal & Social Responsibilities","Photogrammetry","Systems Development","Business Management","Humanities (Arts & History Visualization)"]
[null,"MapReading","SpatialAnalysis","AdvancedApplications",null,"Transformation","Others",null,"Others","Statistics","Astronomy/Astrometry","Human Geography","Collected Data Types","Others","Others","Spatial Interaction","Geospatial Technology & Hardware",null,"Others","Others","Inter-relationships","GNSS/GPS","CASE Tools","Resource Management","Economics & Economical Modelling"]
[null,"Database","GeospatialToolbox",null,null,"Others",{"$nulls":3},"Numbers, Functions & Operations","Acoustics","Others","Others",null,null,"Others","Others",{"$nulls":3},"Decision Making & Support","Underground Surveying","Others","Team Management","Earth Science & Geological Analysis"]
[null,"Math","DataVisualization",{"$nulls":6},"Calculus & Differential Equations","Geophysics",{"$nulls":9},"Communication","Hydrography",null,"Change Management","Lesgislative & Policies Applications"]
[null,"Physics","MapMaking",{"$nulls":6},"Set Theory","Communication Systems",{"$nulls":9},"Entrepreneurship","Others",null,"Others","Construction & Infrastructure Development"]
[null,"Geography","GeneralApplications",{"$nulls":6},"Others","Others",{"$nulls":9},"Professional Certification & Qualification",{"$nulls":3},"Others"]
[null,null,"Professionalism",{"$nulls":17},"Others"]
[]
[]
["Mode of Teaching",null,null,"Skills Set"]
["Independent Learning/ Research",null,null,"Data Gathering & Manipulation Skills"]
["Interactive Learning/ Social Interaction",null,null,"Imaging, Mapping & Visualization Skills"]
["Instructive Teaching",null,null,"Professional, Collaboration & Cooperation Skills"]
["Field/ Hands-on Experience",null,null,"Spatial Skills"]
["Online Learning/ Case Studies",null,null,"Technical & Practical (Hands-on) Skills"]
["Others",null,null,"Others"]

{"sheet":"ICalc01","index":2,"n_rows":136,"n_cols":60,"rows_kept":136,"hidden":true,"merged":[[0,0,1,0],[0,1,1,1],[0,2,1,2],[0,6,0,11],[0,12,0,17],[0,18,0,21],[0,22,0,25],[0,26,0,31],[0,32,1,32],[0,33,1,33],[0,34,1,34],[0,35,1,35],[0,36,0,41],[0,42,0,47],[0,48,0,53],[0,54,0,57],[0,58,1,58],[0,59,1,59],[2,3,4,3],[2,36,41,36],[2,37,41,37],[2,38,41,38],[2,39,41,39],[2,40,41,40],[2,41,41,41],[2,42,41,42],[2,43,41,43],[2,44,41,44],[2,45,41,45],[2,46,41,46],[2,47,41,47],[2,48,41,48],[2,49,41,49],[2,50,41,50],[2,51,41,51],[2,52,41,52],[2,53,41,53],[2,54,41,54],[2,55,41,55],[2,56,41,56],[2,57,41,57],[2,58,41,58],[2,59,41,59],[5,3,9,3],[10,3,13,3],[14,3,16,3],[17,3,20,3],[21,3,28,3],[29,3,36,3],[37,3,41,3],[42,3,46,3],[42,36,84,36],[42,37,84,37],[42,38,84,38],[42,39,84,39],[42,40,84,40],[42,41,84,41],[42,42,84,42],[42,43,84,43],[42,44,84,44],[42,45,84,45],[42,46,84,46],[42,47,84,47],[42,48,84,48],[42,49,84,49],[42,50,84,50],[42,51,84,51],[42,52,84,52],[42,53,84,53],[42,54,84,54],[42,55,84,55],[42,56,84,56],[42,57,84,57],[42,58,84,58],[42,59,84,59],[47,3,50,3],[51,3,54,3],[55,3,59,3],[60,3,64,3],[65,3,67,3],[68,3,71,3],[72,3,75,3],[76,3,84,3],[85,3,91,3],[85,36,111,36],[85,37,111,37],[85,38,111,38],[85,39,111,39],[85,40,111,40],[85,41,111,41],[85,42,111,42],[85,43,111,43],[85,44,111,44],[85,45,111,45],[85,46,111,46],[85,47,111,47],[85,48,111,48],[85,49,111,49],[85,50,111,50],[85,51,111,51],[85,52,111,52],[85,53,111,53],[85,54,111,54],[85,55,111,55],[85,56,111,56],[85,57,111,57],[85,58,111,58],[85,59,111,59],[92,3,96,3],[97,3,103,3],[104,3,111,3],[113,3,113,5]]}
["F/ C/ S","T/U","Geo / Gen",{"$nulls":3},"Taught Count Frequency",{"$nulls":5},"Taught Hours",{"$nulls":5},"Perceived Level Frequency",{"$nulls":3},"Importance Count",{"$nulls":3},"Skill Set Count",{"$nulls":5},"Sum Taught Count","Sum Taught Hrs","Avg Importance Rate","Avg Taught Hrs ","Rank Taught Frequency",{"$nulls":5},"Rank Taught Hrs",{"$nulls":5},"Area Skills Frequency",{"$nulls":9},"Rank Taught Frequency Total","Rank Taught Hrs Total"]
[{"$nulls":3},"Rank","Area","Topic","Independent Learning/ Research","Interactive Learning/ Social Interaction","Instructive Teaching","Field/ Hands-on Experience","Online Learning/ Case Studies","Others","Independent Learning/ Research","Interactive Learning/ Social Interaction","Instructive Teaching","Field/ Hands-on Experience","Online Learning/ Case Studies","Others","L1","L2","L3","L4",0,1,2,3,"Data Gathering & Manipulation Skills","Imaging, Mapping & Visualization Skills","Professional, Collaboration & Cooperation Skills","Spatial Skills","Technical & Practical (Hands-on) Skills","Others",{"$nulls":4},"Independent Learning/ Research","Interactive Learning/ Social Interaction","Instructive Teaching","Field/ Hands-on Experience","Online Learning/ Case Studies","Others","Independent Learning/ Research","Interactive Learning/ Social Interaction","Instructive Teaching","Field/ Hands-on Experience","Online Learning/ Case Studies","Others","Data Gathering & Manipulation Skills","Imaging, Mapping & Visualization Skills","Professional, Collaboration & Cooperation Skills","Spatial Skills","Technical & Practical (Hands-on) Skills","Others","L1","L2","L3","L4"]
["F","T U","Geo","FOUNDATION","Earth","Physical",{"$f":"COUNTIFS(InputArea,\"=\"&List!$B$2,InputTopic,\"=\"&List!$E2,InputMode,\"=\"&List!$A$14)","v":0},{"$f":"COUNTIFS(InputArea,\"=\"&List!$B$2,InputTopic,\"=\"&List!$E2,InputMode,\"=\"&List!$A$15)","v":0},{"$f":"COUNTIFS(InputArea,\"=\"&List!$B$2,InputTopic,\"=\"&List!$E2,InputMode,\"=\"&List!$A$16)","v":0},{"$f":"COUNTIFS(InputArea,\"=\"&List!$B$2,InputTopic,\"=\"&List!$E2,InputMode,\"=\"&List!$A$17)","v":0},{"$f":"COUNTIFS(InputArea,\"=\"&List!$B$2,InputTopic,\"=\"&List!$E2,InputMode,\"=\"&List!$A$18)","v":0},{"$f":"COUNTIFS(InputArea,\"=\"&List!$B$2,InputTopic,\"=\"&List!$E2,InputMode,\"=\"&List!$A$19)","v":0},{"$f":"SUMIFS(InputHours,InputArea,\"=\"&List!$B$2,InputTopic,\"=\"&List!$E2,InputMode,\"=\"&List!$A$14)","v":0},{"$f":"SUMIFS(InputHours,InputArea,\"=\"&List!$B$2,InputTopic,\"=\"&List!$E2,InputMode,\"=\"&List!$A$15)","v":0},{"$f":"SUMIFS(InputHours,InputArea,\"=\"&List!$B$2,InputTopic,\"=\"&List!$E2,InputMode,\"=\"&List!$A$16)","v":0},{"$f":"SUMIFS(InputHours,InputArea,\"=\"&List!$B$2,InputTopic,\"=\"&List!$E2,InputMode,\"=\"&List!$A$17)","v":0},{"$f":"SUMIFS(InputHours,InputArea,\"=\"&List!$B$2,InputTopic,\"=\"&List!$E2,InputMode,\"=\"&List!$A$18)","v":0},{"$f":"SUMIFS(InputHours,InputArea,\"=\"&List!$B$2,InputTopic,\"=\"&List!$E2,InputMode,\"=\"&List!$A$19)","v":0},{"$f":"COUNTIFS(InputArea,\"=\"&List!$B$2,InputTopic,\"=\"&List!$E2,InputLevel,\"=\"&Input!$A$5)","v":0},{"$f":"COUNTIFS(InputArea,\"=\"&List!$B$2,InputTopic,\"=\"&List!$E2,InputLevel,\"=\"&Input!$A$4)","v":0},{"$f":"COUNTIFS(InputArea,\"=\"&List!$B$2,InputTopic,\"=\"&List!$E2,InputLevel,\"=\"&Input!$A$3)","v":0},{"$f":"COUNTIFS(InputArea,\"=\"&List!$B$2,InputTopic,\"=\"&List!$E2,InputLevel,\"=\"&Input!$A$2)","v":0},{"$f":"COUNTIFS(InputArea,\"=\"&List!$B$2,InputTopic,\"=\"&List!$E2,InputImportance,\"=\"&Input!$E$5)","v":0},{"$f":"COUNTIFS(InputArea,\"=\"&List!$B$2,InputTopic,\"=\"&List!$E2,InputImportance,\"=\"&Input!$E$4)","v":0},{"$f":"COUNTIFS(InputArea,\"=\"&List!$B$2,InputTopic,\"=\"&List!$E2,InputImportance,\"=\"&Input!$E$3)","v":0},{"$f":"COUNTIFS(InputArea,\"=\"&List!$B$2,InputTopic,\"=\"&List!$E2,InputImportance,\"=\"&Input!$E$2)","v":0},{"$f":"COUNTIFS(InputArea,\"=\"&List!$B$2,InputTopic,\"=\"&List!$E2,InputSkill,\"=\"&List!$D$14)","v":0},{"$f":"COUNTIFS(InputArea,\"=\"&List!$B$2,InputTopic,\"=\"&List!$E2,InputSkill,\"=\"&List!$D$15)","v":0},{"$f":"COUNTIFS(InputArea,\"=\"&List!$B$2,InputTopic,\"=\"&List!$E2,InputSkill,\"=\"&List!$D$16)","v":0},{"$f":"COUNTIFS(InputArea,\"=\"&List!$B$2,InputTopic,\"=\"&List!$E2,InputSkill,\"=\"&List!$D$17)","v":0},{"$f":"COUNTIFS(InputArea,\"=\"&List!$B$2,InputTopic,\"=\"&List!$E2,InputSkill,\"=\"&List!$D$18)","v":0},{"$f":"COUNTIFS(InputArea,\"=\"&List!$B$2,InputTopic,\"=\"&List!$E2,InputSkill,\"=\"&List!$D$19)","v":0},{"$f":"SUM(G3:L3)","v":0},{"$f":"SUM(M3:R3)","v":0},{"$f":"IFERROR(((W3*$W$2)+(X3*$X$2)+(Y3*$Y$2)+(Z3*$Z$2))/AG3,0)","v":{"v":0,"d":"0.00"}},{"$f":"IFERROR(AH3/AG3,0)","v":{"v":0,"d":"0.0"}},{"$f":"SUM(G3:G42)","v":0},{"$f":"SUM(H3:H42)","v":0},0,0,0,0,0,0,0,0,0,0,{"$f":"SUM(AA3:AA42)","v":0},{"$f":"SUM(AB3:AB42)","v":0},0,0,0,0,{"$f":"SUM(S3:S42)","v":0},{"$f":"SUM(T3:T42)","v":0},0,0,{"$f":"SUM(AK3:AP42)","v":0},{"$f":"SUM(AQ3:AV42)","v":0}]
["F","T","Geo",null,"Earth","Model",{"$f":"COUNTIFS(InputArea,\"=\"&List!$B$2,InputTopic,\"=\"&List!$E3,InputMode,\"=\"&List!$A$14)","v":0},{"$f":"COUNTIFS(InputArea,\"=\"&List!$B$2,InputTopic,\"=\"&List!$E3,InputMode,\"=\"&List!$A$15)","v":0},{"$f":"COUNTIFS(InputArea,\"=\"&List!$B$2,InputTopic,\"=\"&List!$E3,InputMode,\"=\"&List!$A$16)","v":0},{"$f":"COUNTIFS(InputArea,\"=\"&List!$B$2,InputTopic,\"=\"&List!$E3,InputMode,\"=\"&List!$A$17)","v":0},{"$f":"COUNTIFS(InputArea,\"=\"&List!$B$2,InputTopic,\"=\"&List!$E3,InputMode,\"=\"&List!$A$18)","v":0},{"$f":"COUNTIFS(InputArea,\"=\"&List!$B$2,InputTopic,\"=\"&List!$E3,InputMode,\"=\"&List!$A$19)","v":0},{"$f":"SUMIFS(InputHours,InputArea,\"=\"&List!$B$2,InputTopic,\"=\"&List!$E3,InputMode,\"=\"&List!$A$14)","v":0},{"$f":"SUMIFS(InputHours,InputArea,\"=\"&List!$B$2,InputTopic,\"=\"&List!$E3,InputMode,\"=\"&List!$A$15)","v":0},{"$f":"SUMIFS(InputHours,InputArea,\"=\"&List!$B$2,InputTopic,\"=\"&List!$E3,InputMode,\"=\"&List!$A$16)","v":0},{"$f":"SUMIFS(InputHours,InputArea,\"=\"&List!$B$2,InputTopic,\"=\"&List!$E3,InputMode,\"=\"&List!$A$17)","v":0},{"$f":"SUMIFS(InputHours,InputArea,\"=\"&List!$B$2,InputTopic,\"=\"&List!$E3,InputMode,\"=\"&List!$A$18)","v":0},{"$f":"SUMIFS(InputHours,InputArea,\"=\"&List!$B$2,InputTopic,\"=\"&List!$E3,InputMode,\"=\"&List!$A$19)","v":0},{"$f":"COUNTIFS(InputArea,\"=\"&List!$B$2,InputTopic,\"=\"&List!$E3,InputLevel,\"=\"&Input!$A$5)","v":0},{"$f":"COUNTIFS(InputArea,\"=\"&List!$B$2,InputTopic,\"=\"&List!$E3,InputLevel,\"=\"&Input!$A$4)","v":0},{"$f":"COUNTIFS(InputArea,\"=\"&List!$B$2,InputTopic,\"=\"&List!$E3,InputLevel,\"=\"&Input!$A$3)","v":0},{"$f":"COUNTIFS(InputArea,\"=\"&List!$B$2,InputTopic,\"=\"&List!$E3,InputLevel,\"=\"&Input!$A$2)","v":0},{"$f":"COUNTIFS(InputArea,\"=\"&List!$B$2,InputTopic,\"=\"&List!$E3,InputImportance,\"=\"&Input!$E$5)","v":0},{"$f":"COUNTIFS(InputArea,\"=\"&List!$B$2,InputTopic,\"=\"&List!$E3,InputImportance,\"=\"&Input!$E$4)","v":0},{"$f":"COUNTIFS(InputArea,\"=\"&List!$B$2,InputTopic,\"=\"&List!$E3,InputImportance,\"=\"&Input!$E$3)","v":0},{"$f":"COUNTIFS(InputArea,\"=\"&List!$B$2,InputTopic,\"=\"&List!$E3,InputImportance,\"=\"&Input!$E$2)","v":0},{"$f":"COUNTIFS(InputArea,\"=\"&List!$B$2,InputTopic,\"=\"&List!$E3,InputSkill,\"=\"&List!$D$14)","v":0},{"$f":"COUNTIFS(InputArea,\"=\"&List!$B$2,InputTopic,\"=\"&List!$E3,InputSkill,\"=\"&List!$D$15)","v":0},{"$f":"COUNTIFS(InputArea,\"=\"&List!$B$2,InputTopic,\"=\"&List!$E3,InputSkill,\"=\"&List!$D$16)","v":0},{"$f":"COUNTIFS(InputArea,\"=\"&List!$B$2,InputTopic,\"=\"&List!$E3,InputSkill,\"=\"&List!$D$17)","v":0},{"$f":"COUNTIFS(InputArea,\"=\"&List!$B$2,InputTopic,\"=\"&List!$E3,InputSkill,\"=\"&List!$D$18)","v":0},{"$f":"COUNTIFS(InputArea,\"=\"&List!$B$2,InputTopic,\"=\"&List!$E3,InputSkill,\"=\"&List!$D$19)","v":0},{"$f":"SUM(G4:L4)","v":0},{"$f":"SUM(M4:R4)","v":0},{"$f":"IFERROR(((W4*$W$2)+(X4*$X$2)+(Y4*$Y$2)+(Z4*$Z$2))/AG4,0)","v":{"v":0,"d":"0.00"}},{"$f":"IFERROR(AH4/AG4,0)","v":{"v":0,"d":"0.0"}}]
["F","T","Geo",null,"Earth","Others",{"$f":"COUNTIFS(InputArea,\"=\"&List!$B$2,InputTopic,\"=\"&List!$E4,InputMode,\"=\"&List!$A$14)","v":0},{"$f":"COUNTIFS(InputArea,\"=\"&List!$B$2,InputTopic,\"=\"&List!$E4,InputMode,\"=\"&List!$A$15)","v":0},{"$f":"COUNTIFS(InputArea,\"=\"&List!$B$2,InputTopic,\"=\"&List!$E4,InputMode,\"=\"&List!$A$16)","v":0},{"$f":"COUNTIFS(InputArea,\"=\"&List!$B$2,InputTopic,\"=\"&List!$E4,InputMode,\"=\"&List!$A$17)","v":0},{"$f":"COUNTIFS(InputArea,\"=\"&List!$B$2,InputTopic,\"=\"&List!$E4,InputMode,\"=\"&List!$A$18)","v":0},{"$f":"COUNTIFS(InputArea,\"=\"&List!$B$2,InputTopic,\"=\"&List!$E4,InputMode,\"=\"&List!$A$19)","v":0},{"$f":"SUMIFS(InputHours,InputArea,\"=\"&List!$B$2,InputTopic,\"=\"&List!$E4,InputMode,\"=\"&List!$A$14)","v":0},{"$f":"SUMIFS(InputHours,InputArea,\"=\"&List!$B$2,InputTopic,\"=\"&List!$E4,InputMode,\"=\"&List!$A$15)","v":0},{"$f":"SUMIFS(InputHours,InputArea,\"=\"&List!$B$2,InputTopic,\"=\"&List!$E4,InputMode,\"=\"&List!$A$16)","v":0},{"$f":"SUMIFS(InputHours,InputArea,\"=\"&List!$B$2,InputTopic,\"=\"&List!$E4,InputMode,\"=\"&List!$A$17)","v":0},{"$f":"SUMIFS(InputHours,InputArea,\"=\"&List!$B$2,InputTopic,\"=\"&List!$E4,InputMode,\"=\"&List!$A$18)","v":0},{"$f":"SUMIFS(InputHours,InputArea,\"=\"&List!$B$2,InputTopic,\"=\"&List!$E4,InputMode,\"=\"&List!$A$19)","v":0},{"$f":"COUNTIFS(InputArea,\"=\"&List!$B$2,InputTopic,\"=\"&List!$E4,InputLevel,\"=\"&Input!$A$5)","v":0},{"$f":"COUNTIFS(InputArea,\"=\"&List!$B$2,InputTopic,\"=\"&List!$E4,InputLevel,\"=\"&Input!$A$4)","v":0},{"$f":"COUNTIFS(InputArea,\"=\"&List!$B$2,InputTopic,\"=\"&List!$E4,InputLevel,\"=\"&Input!$A$3)","v":0},{"$f":"COUNTIFS(InputArea,\"=\"&List!$B$2,InputTopic,\"=\"&List!$E4,InputLevel,\"=\"&Input!$A$2)","v":0},{"$f":"COUNTIFS(InputArea,\"=\"&List!$B$2,InputTopic,\"=\"&List!$E4,InputImportance,\"=\"&Input!$E$5)","v":0},{"$f":"COUNTIFS(InputArea,\"=\"&List!$B$2,InputTopic,\"=\"&List!$E4,InputImportance,\"=\"&Input!$E$4)","v":0},{"$f":"COUNTIFS(InputArea,\"=\"&List!$B$2,InputTopic,\"=\"&List!$E4,InputImportance,\"=\"&Input!$E$3)","v":0},{"$f":"COUNTIFS(InputArea,\"=\"&List!$B$2,InputTopic,\"=\"&List!$E4,InputImportance,\"=\"&Input!$E$2)","v":0},{"$f":"COUNTIFS(InputArea,\"=\"&List!$B$2,InputTopic,\"=\"&List!$E4,InputSkill,\"=\"&List!$D$14)","v":0},{"$f":"COUNTIFS(InputArea,\"=\"&List!$B$2,InputTopic,\"=\"&List!$E4,InputSkill,\"=\"&List!$D$15)","v":0},{"$f":"COUNTIFS(InputArea,\"=\"&List!$B$2,InputTopic,\"=\"&List!$E4,InputSkill,\"=\"&List!$D$16)","v":0},{"$f":"COUNTIFS(InputArea,\"=\"&List!$B$2,InputTopic,\"=\"&List!$E4,InputSkill,\"=\"&List!$D$17)","v":0},{"$f":"COUNTIFS(InputArea,\"=\"&List!$B$2,InputTopic,\"=\"&List!$E4,InputSkill,\"=\"&List!$D$18)","v":0},{"$f":"COUNTIFS(InputArea,\"=\"&List!$B$2,InputTopic,\"=\"&List!$E4,InputSkill,\"=\"&List!$D$19)","v":0},0,0,{"v":0,"d":"0.00"},{"v":0,"d":"0.0"}]
["F","T U","Geo","FOUNDATION","CoordinateSystems","Direction",{"$f":"COUNTIFS(InputArea,\"=\"&List!$B$3,InputTopic,\"=\"&List!$F2,InputMode,\"=\"&List!$A$14)","v":0},{"$f":"COUNTIFS(InputArea,\"=\"&List!$B$3,InputTopic,\"=\"&List!$F2,InputMode,\"=\"&List!$A$15)","v":0},{"$f":"COUNTIFS(InputArea,\"=\"&List!$B$3,InputTopic,\"=\"&List!$F2,InputMode,\"=\"&List!$A$16)","v":0},{"$f":"COUNTIFS(InputArea,\"=\"&List!$B$3,InputTopic,\"=\"&List!$F2,InputMode,\"=\"&List!$A$17)","v":0},{"$f":"COUNTIFS(InputArea,\"=\"&List!$B$3,InputTopic,\"=\"&List!$F2,InputMode,\"=\"&List!$A$18)","v":0},{"$f":"COUNTIFS(InputArea,\"=\"&List!$B$3,InputTopic,\"=\"&List!$F2,InputMode,\"=\"&List!$A$19)","v":0},{"$f":"SUMIFS(InputHours,InputArea,\"=\"&List!$B$3,InputTopic,\"=\"&List!$F2,InputMode,\"=\"&List!$A$14)","v":0},{"$f":"SUMIFS(InputHours,InputArea,\"=\"&List!$B$3,InputTopic,\"=\"&List!$F2,InputMode,\"=\"&List!$A$15)","v":0},{"$f":"SUMIFS(InputHours,InputArea,\"=\"&List!$B$3,InputTopic,\"=\"&List!$F2,InputMode,\"=\"&List!$A$16)","v":0},{"$f":"SUMIFS(InputHours,InputArea,\"=\"&List!$B$3,InputTopic,\"=\"&List!$F2,InputMode,\"=\"&List!$A$17)","v":0},{"$f":"SUMIFS(InputHours,InputArea,\"=\"&List!$B$3,InputTopic,\"=\"&List!$F2,InputMode,\"=\"&List!$A$18)","v":0},{"$f":"SUMIFS(InputHours,InputArea,\"=\"&List!$B$3,InputTopic,\"=\"&List!$F2,InputMode,\"=\"&List!$A$19)","v":0},{"$f":"COUNTIFS(InputArea,\"=\"&List!$B$3,InputTopic,\"=\"&List!$F2,InputLevel,\"=\"&Input!$A$5)","v":0},{"$f":"COUNTIFS(InputArea,\"=\"&List!$B$3,InputTopic,\"=\"&List!$F2,InputLevel,\"=\"&Input!$A$4)","v":0},{"$f":"COUNTIFS(InputArea,\"=\"&List!$B$3,InputTopic,\"=\"&List!$F2,InputLevel,\"=\"&Input!$A$3)","v":0},{"$f":"COUNTIFS(InputArea,\"=\"&List!$B$3,InputTopic,\"=\"&List!$F2,InputLevel,\"=\"&Input!$A$2)","v":0},{"$f":"COUNTIFS(InputArea,\"=\"&List!$B$3,InputTopic,\"=\"&List!$F2,InputImportance,\"=\"&Input!$E$5)","v":0},{"$f":"COUNTIFS(InputArea,\"=\"&List!$B$3,InputTopic,\"=\"&List!$F2,InputImportance,\"=\"&Input!$E$4)","v":0},{"$f":"COUNTIFS(InputArea,\"=\"&List!$B$3,InputTopic,\"=\"&List!$F2,InputImportance,\"=\"&Input!$E$3)","v":0},{"$f":"COUNTIFS(InputArea,\"=\"&List!$B$3,InputTopic,\"=\"&List!$F2,InputImportance,\"=\"&Input!$E$2)","v":0},{"$f":"COUNTIFS(InputArea,\"=\"&List!$B$3,InputTopic,\"=\"&List!$F2,InputSkill,\"=\"&List!$D$14)","v":0},{"$f":"COUNTIFS(InputArea,\"=\"&List!$B$3,InputTopic,\"=\"&List!$F2,InputSkill,\"=\"&List!$D$15)","v":0},{"$f":"COUNTIFS(InputArea,\"=\"&List!$B$3,InputTopic,\"=\"&List!$F2,InputSkill,\"=\"&List!$D$16)","v":0},{"$f":"COUNTIFS(InputArea,\"=\"&List!$B$3,InputTopic,\"=\"&List!$F2,InputSkill,\"=\"&List!$D$17)","v":0},{"$f":"COUNTIFS(InputArea,\"=\"&List!$B$3,InputTopic,\"=\"&List!$F2,InputSkill,\"=\"&List!$D$18)","v":0},{"$f":"COUNTIFS(InputArea,\"=\"&List!$B$3,InputTopic,\"=\"&List!$F2,InputSkill,\"=\"&List!$D$19)","v":0},{"$f":"SUM(G6:L6)","v":0},{"$f":"SUM(M6:R6)","v":0},{"v":0,"d":"0.00"},{"v":0,"d":"0.0"}]
["F","T U","Geo",null,"CoordinateSystems","Unit",{"$f":"COUNTIFS(InputArea,\"=\"&List!$B$3,InputTopic,\"=\"&List!$F3,InputMode,\"=\"&List!$A$14)","v":0},{"$f":"COUNTIFS(InputArea,\"=\"&List!$B$3,InputTopic,\"=\"&List!$F3,InputMode,\"=\"&List!$A$15)","v":0},{"$f":"COUNTIFS(InputArea,\"=\"&List!$B$3,InputTopic,\"=\"&List!$F3,InputMode,\"=\"&List!$A$16)","v":0},{"$f":"COUNTIFS(InputArea,\"=\"&List!$B$3,InputTopic,\"=\"&List!$F3,InputMode,\"=\"&List!$A$17)","v":0},{"$f":"COUNTIFS(InputArea,\"=\"&List!$B$3,InputTopic,\"=\"&List!$F3,InputMode,\"=\"&List!$A$18)","v":0},{"$f":"COUNTIFS(InputArea,\"=\"&List!$B$3,InputTopic,\"=\"&List!$F3,InputMode,\"=\"&List!$A$19)","v":0},{"$f":"SUMIFS(InputHours,InputArea,\"=\"&List!$B$3,InputTopic,\"=\"&List!$F3,InputMode,\"=\"&List!$A$14)","v":0},{"$f":"SUMIFS(InputHours,InputArea,\"=\"&List!$B$3,InputTopic,\"=\"&List!$F3,InputMode,\"=\"&List!$A$15)","v":0},{"$f":"SUMIFS(InputHours,InputArea,\"=\"&List!$B$3,InputTopic,\"=\"&List!$F3,InputMode,\"=\"&List!$A$16)","v":0},{"$f":"SUMIFS(InputHours,InputArea,\"=\"&List!$B$3,InputTopic,\"=\"&List!$F3,InputMode,\"=\"&List!$A$17)","v":0},{"$f":"SUMIFS(InputHours,InputArea,\"=\"&List!$B$3,InputTopic,\"=\"&List!$F3,InputMode,\"=\"&List!$A$18)","v":0},{"$f":"SUMIFS(InputHours,InputArea,\"=\"&List!$B$3,InputTopic,\"=\"&List!$F3,InputMode,\"=\"&List!$A$19)","v":0},{"$f":"COUNTIFS(InputArea,\"=\"&List!$B$3,InputTopic,\"=\"&List!$F3,InputLevel,\"=\"&Input!$A$5)","v":0},{"$f":"COUNTIFS(InputArea,\"=\"&List!$B$3,InputTopic,\"=\"&List!$F3,InputLevel,\"=\"&Input!$A$4)","v":0},{"$f":"COUNTIFS(InputArea,\"=\"&List!$B$3,InputTopic,\"=\"&List!$F3,InputLevel,\"=\"&Input!$A$3)","v":0},{"$f":"COUNTIFS(InputArea,\"=\"&List!$B$3,InputTopic,\"=\"&List!$F3,InputLevel,\"=\"&Input!$A$2)","v":0},{"$f":"COUNTIFS(InputArea,\"=\"&List!$B$3,InputTopic,\"=\"&List!$F3,InputImportance,\"=\"&Input!$E$5)","v":0},{"$f":"COUNTIFS(InputArea,\"=\"&List!$B$3,InputTopic,\"=\"&List!$F3,InputImportance,\"=\"&Input!$E$4)","v":0},{"$f":"COUNTIFS(InputArea,\"=\"&List!$B$3,InputTopic,\"=\"&List!$F3,InputImportance,\"=\"&Input!$E$3)","v":0},{"$f":"COUNTIFS(InputArea,\"=\"&List!$B$3,InputTopic,\"=\"&List!$F3,InputImportance,\"=\"&Input!$E$2)","v":0},{"$f":"COUNTIFS(InputArea,\"=\"&List!$B$3,InputTopic,\"=\"&List!$F3,InputSkill,\"=\"&List!$D$14)","v":0},{"$f":"COUNTIFS(InputArea,\"=\"&List!$B$3,InputTopic,\"=\"&List!$F3,InputSkill,\"=\"&List!$D$15)","v":0},{"$f":"COUNTIFS(InputArea,\"=\"&List!$B$3,InputTopic,\"=\"&List!$F3,InputSkill,\"=\"&List!$D$16)","v":0},{"$f":"COUNTIFS(InputArea,\"=\"&List!$B$3,InputTopic,\"=\"&List!$F3,InputSkill,\"=\"&List!$D$17)","v":0},{"$f":"COUNTIFS(InputArea,\"=\"&List!$B$3,InputTopic,\"=\"&List!$F3,InputSkill,\"=\"&List!$D$18)","v":0},{"$f":"COUNTIFS(InputArea,\"=\"&List!$B$3,InputTopic,\"=\"&List!$F3,InputSkill,\"=\"&List!$D$19)","v":0},{"$f":"SUM(G7:L7)","v":0},{"$f":"SUM(M7:R7)","v":0},{"$f":"IFERROR(((W7*$W$2)+(X7*$X$2)+(Y7*$Y$2)+(Z7*$Z$2))/AG7,0)","v":{"v":0,"d":"0.00"}},{"v":0,"d":"0.0"}]
["F","T U","Geo",null,"CoordinateSystems","Scale",{"$f":"COUNTIFS(InputArea,\"=\"&List!$B$3,InputTopic,\"=\"&List!$F4,InputMode,\"=\"&List!$A$14)","v":0},{"$f":"COUNTIFS(InputArea,\"=\"&List!$B$3,InputTopic,\"=\"&List!$F4,InputMode,\"=\"&List!$A$15)","v":0},{"$f":"COUNTIFS(InputArea,\"=\"&List!$B$3,InputTopic,\"=\"&List!$F4,InputMode,\"=\"&List!$A$16)","v":0},{"$f":"COUNTIFS(InputArea,\"=\"&List!$B$3,InputTopic,\"=\"&List!$F4,InputMode,\"=\"&List!$A$17)","v":0},{"$f":"COUNTIFS(InputArea,\"=\"&List!$B$3,InputTopic,\"=\"&List!$F4,InputMode,\"=\"&List!$A$18)","v":0},{"$f":"COUNTIFS(InputArea,\"=\"&List!$B$3,InputTopic,\"=\"&List!$F4,InputMode,\"=\"&List!$A$19)","v":0},{"$f":"SUMIFS(InputHours,InputArea,\"=\"&List!$B$3,InputTopic,\"=\"&List!$F4,InputMode,\"=\"&List!$A$14)","v":0},{"$f":"SUMIFS(InputHours,InputArea,\"=\"&List!$B$3,InputTopic,\"=\"&List!$F4,InputMode,\"=\"&List!$A$15)","v":0},{"$f":"SUMIFS(InputHours,InputArea,\"=\"&List!$B$3,InputTopic,\"=\"&List!$F4,InputMode,\"=\"&List!$A$16)","v":0},{"$f":"SUMIFS(InputHours,InputArea,\"=\"&List!$B$3,InputTopic,\"=\"&List!$F4,InputMode,\"=\"&List!$A$17)","v":0},{"$f":"SUMIFS(InputHours,InputArea,\"=\"&List!$B$3,InputTopic,\"=\"&List!$F4,InputMode,\"=\"&List!$A$18)","v":0},{"$f":"SUMIFS(InputHours,InputArea,\"=\"&List!$B$3,InputTopic,\"=\"&List!$F4,InputMode,\"=\"&List!$A$19)","v":0},{"$f":"COUNTIFS(InputArea,\"=\"&List!$B$3,InputTopic,\"=\"&List!$F4,InputLevel,\"=\"&Input!$A$5)","v":0},{"$f":"COUNTIFS(InputArea,\"=\"&List!$B$3,InputTopic,\"=\"&List!$F4,InputLevel,\"=\"&Input!$A$4)","v":0},{"$f":"COUNTIFS(InputArea,\"=\"&List!$B$3,InputTopic,\"=\"&List!$F4,InputLevel,\"=\"&Input!$A$3)","v":0},{"$f":"COUNTIFS(InputArea,\"=\"&List!$B$3,InputTopic,\"=\"&List!$F4,InputLevel,\"=\"&Input!$A$2)","v":0},{"$f":"COUNTIFS(InputArea,\"=\"&List!$B$3,InputTopic,\"=\"&List!$F4,InputImportance,\"=\"&Input!$E$5)","v":0},{"$f":"COUNTIFS(InputArea,\"=\"&List!$B$3,InputTopic,\"=\"&List!$F4,InputImportance,\"=\"&Input!$E$4)","v":0},{"$f":"COUNTIFS(InputArea,\"=\"&List!$B$3,InputTopic,\"=\"&List!$F4,InputImportance,\"=\"&Input!$E$3)","v":0},{"$f":"COUNTIFS(InputArea,\"=\"&List!$B$3,InputTopic,\"=\"&List!$F4,InputImportance,\"=\"&Input!$E$2)","v":0},{"$f":"COUNTIFS(InputArea,\"=\"&List!$B$3,InputTopic,\"=\"&List!$F4,InputSkill,\"=\"&List!$D$14)","v":0},{"$f":"COUNTIFS(InputArea,\"=\"&List!$B$3,InputTopic,\"=\"&List!$F4,InputSkill,\"=\"&List!$D$15)","v":0},{"$f":"COUNTIFS(InputArea,\"=\"&List!$B$3,InputTopic,\"=\"&List!$F4,InputSkill,\"=\"&List!$D$16)","v":0},{"$f":"COUNTIFS(InputArea,\"=\"&List!$B$3,InputTopic,\"=\"&List!$F4,InputSkill,\"=\"&List!$D$17)","v":0},{"$f":"COUNTIFS(InputArea,\"=\"&List!$B$3,InputTopic,\"=\"&List!$F4,InputSkill,\"=\"&List!$D$18)","v":0},{"$f":"COUNTIFS(InputArea,\"=\"&List!$B$3,InputTopic,\"=\"&List!$F4,InputSkill,\"=\"&List!$D$19)","v":0},0,0,{"v":0,"d":"0.00"},{"v":0,"d":"0.0"}]
["F","T U","Geo",null,"CoordinateSystems","Transformation",{"$f":"COUNTIFS(InputArea,\"=\"&List!$B$3,InputTopic,\"=\"&List!$F5,InputMode,\"=\"&List!$A$14)","v":0},{"$f":"COUNTIFS(InputArea,\"=\"&List!$B$3,InputTopic,\"=\"&List!$F5,InputMode,\"=\"&List!$A$15)","v":0},{"$f":"COUNTIFS(InputArea,\"=\"&List!$B$3,InputTopic,\"=\"&List!$F5,InputMode,\"=\"&List!$A$16)","v":0},{"$f":"COUNTIFS(InputArea,\"=\"&List!$B$3,InputTopic,\"=\"&List!$F5,InputMode,\"=\"&List!$A$17)","v":0},{"$f":"COUNTIFS(InputArea,\"=\"&List!$B$3,InputTopic,\"=\"&List!$F5,InputMode,\"=\"&List!$A$18)","v":0},{"$f":"COUNTIFS(InputArea,\"=\"&List!$B$3,InputTopic,\"=\"&List!$F5,InputMode,\"=\"&List!$A$19)","v":0},{"$f":"SUMIFS(InputHours,InputArea,\"=\"&List!$B$3,InputTopic,\"=\"&List!$F5,InputMode,\"=\"&List!$A$14)","v":0},{"$f":"SUMIFS(InputHours,InputArea,\"=\"&List!$B$3,InputTopic,\"=\"&List!$F5,InputMode,\"=\"&List!$A$15)","v":0},{"$f":"SUMIFS(InputHours,InputArea,\"=\"&List!$B$3,InputTopic,\"=\"&List!$F5,InputMode,\"=\"&List!$A$16)","v":0},{"$f":"SUMIFS(InputHours,InputArea,\"=\"&List!$B$3,InputTopic,\"=\"&List!$F5,InputMode,\"=\"&List!$A$17)","v":0},{"$f":"SUMIFS(InputHours,InputArea,\"=\"&List!$B$3,InputTopic,\"=\"&List!$F5,InputMode,\"=\"&List!$A$18)","v":0},{"$f":"SUMIFS(InputHours,InputArea,\"=\"&List!$B$3,InputTopic,\"=\"&List!$F5,InputMode,\"=\"&List!$A$19)","v":0},{"$f":"COUNTIFS(InputArea,\"=\"&List!$B$3,InputTopic,\"=\"&List!$F5,InputLevel,\"=\"&Input!$A$5)","v":0},{"$f":"COUNTIFS(InputArea,\"=\"&List!$B$3,InputTopic,\"=\"&List!$F5,InputLevel,\"=\"&Input!$A$4)","v":0},{"$f":"COUNTIFS(InputArea,\"=\"&List!$B$3,InputTopic,\"=\"&List!$F5,InputLevel,\"=\"&Input!$A$3)","v":0},{"$f":"COUNTIFS(InputArea,\"=\"&List!$B$3,InputTopic,\"=\"&List!$F5,InputLevel,\"=\"&Input!$A$2)","v":0},{"$f":"COUNTIFS(InputArea,\"=\"&List!$B$3,InputTopic,\"=\"&List!$F5,InputImportance,\"=\"&Input!$E$5)","v":0},{"$f":"COUNTIFS(InputArea,\"=\"&List!$B$3,InputTopic,\"=\"&List!$F5,InputImportance,\"=\"&Input!$E$4)","v":0},{"$f":"COUNTIFS(InputArea,\"=\"&List!$B$3,InputTopic,\"=\"&List!$F5,InputImportance,\"=\"&Input!$E$3)","v":0},{"$f":"COUNTIFS(InputArea,\"=\"&List!$B$3,InputTopic,\"=\"&List!$F5,InputImportance,\"=\"&Input!$E$2)","v":0},{"$f":"COUNTIFS(InputArea,\"=\"&List!$B$3,InputTopic,\"=\"&List!$F5,InputSkill,\"=\"&List!$D$14)","v":0},{"$f":"COUNTIFS(InputArea,\"=\"&List!$B$3,InputTopic,\"=\"&List!$F5,InputSkill,\"=\"&List!$D$15)","v":0},{"$f":"COUNTIFS(InputArea,\"=\"&List!$B$3,InputTopic,\"=\"&List!$F5,InputSkill,\"=\"&List!$D$16)","v":0},{"$f":"COUNTIFS(InputArea,\"=\"&List!$B$3,InputTopic,\"=\"&List!$F5,InputSkill,\"=\"&List!$D$17)","v":0},{"$f":"COUNTIFS(InputArea,\"=\"&List!$B$3,InputTopic,\"=\"&List!$F5,InputSkill,\"=\"&List!$D$18)","v":0},{"$f":"COUNTIFS(InputArea,\"=\"&List!$B$3,InputTopic,\"=\"&List!$F5,InputSkill,\"=\"&List!$D$19)","v":0},0,0,{"v":0,"d":"0.00"},{"v":0,"d":"0.0"}]
["F","T U","Geo",null,"CoordinateSystems","Others",{"$f":"COUNTIFS(InputArea,\"=\"&List!$B$3,InputTopic,\"=\"&List!$F6,InputMode,\"=\"&List!$A$14)","v":0},{"$f":"COUNTIFS(InputArea,\"=\"&List!$B$3,InputTopic,\"=\"&List!$F6,InputMode,\"=\"&List!$A$15)","v":0},{"$f":"COUNTIFS(InputArea,\"=\"&List!$B$3,InputTopic,\"=\"&List!$F6,InputMode,\"=\"&List!$A$16)","v":0},{"$f":"COUNTIFS(InputArea,\"=\"&List!$B$3,InputTopic,\"=\"&List!$F6,InputMode,\"=\"&List!$A$17)","v":0},{"$f":"COUNTIFS(InputArea,\"=\"&List!$B$3,InputTopic,\"=\"&List!$F6,InputMode,\"=\"&List!$A$18)","v":0},{"$f":"COUNTIFS(InputArea,\"=\"&List!$B$3,InputTopic,\"=\"&List!$F6,InputMode,\"=\"&List!$A$19)","v":0},{"$f":"SUMIFS(InputHours,InputArea,\"=\"&List!$B$3,InputTopic,\"=\"&List!$F6,InputMode,\"=\"&List!$A$14)","v":0},{"$f":"SUMIFS(InputHours,InputArea,\"=\"&List!$B$3,InputTopic,\"=\"&List!$F6,InputMode,\"=\"&List!$A$15)","v":0},{"$f":"SUMIFS(InputHours,InputArea,\"=\"&List!$B$3,InputTopic,\"=\"&List!$F6,InputMode,\"=\"&List!$A$16)","v":0},{"$f":"SUMIFS(InputHours,InputArea,\"=\"&List!$B$3,InputTopic,\"=\"&List!$F6,InputMode,\"=\"&List!$A$17)","v":0},{"$f":"SUMIFS(InputHours,InputArea,\"=\"&List!$B$3,InputTopic,\"=\"&List!$F6,InputMode,\"=\"&List!$A$18)","v":0},{"$f":"SUMIFS(InputHours,InputArea,\"=\"&List!$B$3,InputTopic,\"=\"&List!$F6,InputMode,\"=\"&List!$A$19)","v":0},{"$f":"COUNTIFS(InputArea,\"=\"&List!$B$3,InputTopic,\"=\"&List!$F6,InputLevel,\"=\"&Input!$A$5)","v":0},{"$f":"COUNTIFS(InputArea,\"=\"&List!$B$3,InputTopic,\"=\"&List!$F6,InputLevel,\"=\"&Input!$A$4)","v":0},{"$f":"COUNTIFS(InputArea,\"=\"&List!$B$3,InputTopic,\"=\"&List!$F6,InputLevel,\"=\"&Input!$A$3)","v":0},{"$f":"COUNTIFS(InputArea,\"=\"&List!$B$3,InputTopic,\"=\"&List!$F6,InputLevel,\"=\"&Input!$A$2)","v":0},{"$f":"COUNTIFS(InputArea,\"=\"&List!$B$3,InputTopic,\"=\"&List!$F6,InputImportance,\"=\"&Input!$E$5)","v":0},{"$f":"COUNTIFS(InputArea,\"=\"&List!$B$3,InputTopic,\"=\"&List!$F6,InputImportance,\"=\"&Input!$E$4)","v":0},{"$f":"COUNTIFS(InputArea,\"=\"&List!$B$3,InputTopic,\"=\"&List!$F6,InputImportance,\"=\"&Input!$E$3)","v":0},{"$f":"COUNTIFS(InputArea,\"=\"&List!$B$3,InputTopic,\"=\"&List!$F6,InputImportance,\"=\"&Input!$E$2)","v":0},{"$f":"COUNTIFS(InputArea,\"=\"&List!$B$3,InputTopic,\"=\"&List!$F6,InputSkill,\"=\"&List!$D$14)","v":0},{"$f":"COUNTIFS(InputArea,\"=\"&List!$B$3,InputTopic,\"=\"&List!$F6,InputSkill,\"=\"&List!$D$15)","v":0},{"$f":"COUNTIFS(InputArea,\"=\"&List!$B$3,InputTopic,\"=\"&List!$F6,InputSkill,\"=\"&List!$D$16)","v":0},{"$f":"COUNTIFS(InputArea,\"=\"&List!$B$3,InputTopic,\"=\"&List!$F6,InputSkill,\"=\"&List!$D$17)","v":0},{"$f":"COUNTIFS(InputArea,\"=\"&List!$B$3,InputTopic,\"=\"&List!$F6,InputSkill,\"=\"&List!$D$18)","v":0},{"$f":"COUNTIFS(InputArea,\"=\"&List!$B$3,InputTopic,\"=\"&List!$F6,InputSkill,\"=\"&List!$D$19)","v":0},0,0,{"v":0,"d":"0.00"},{"v":0,"d":"0.0"}]
["F","T U","Geo","FOUNDATION","OurPlace","Geographical Features",{"$f":"COUNTIFS(InputArea,\"=\"&List!$B$4,InputTopic,\"=\"&List!$G2,InputMode,\"=\"&List!$A$14)","v":0},{"$f":"COUNTIFS(InputArea,\"=\"&List!$B$4,InputTopic,\"=\"&List!$G2,InputMode,\"=\"&List!$A$15)","v":0},{"$f":"COUNTIFS(InputArea,\"=\"&List!$B$4,InputTopic,\"=\"&List!$G2,InputMode,\"=\"&List!$A$16)","v":0},{"$f":"COUNTIFS(InputArea,\"=\"&List!$B$4,InputTopic,\"=\"&List!$G2,InputMode,\"=\"&List!$A$17)","v":0},{"$f":"COUNTIFS(InputArea,\"=\"&List!$B$4,InputTopic,\"=\"&List!$G2,InputMode,\"=\"&List!$A$18)","v":0},{"$f":"COUNTIFS(InputArea,\"=\"&List!$B$4,InputTopic,\"=\"&List!$G2,InputMode,\"=\"&List!$A$19)","v":0},{"$f":"SUMIFS(InputHours,InputArea,\"=\"&List!$B$4,InputTopic,\"=\"&List!$G2,InputMode,\"=\"&List!$A$14)","v":0},{"$f":"SUMIFS(InputHours,InputArea,\"=\"&List!$B$4,InputTopic,\"=\"&List!$G2,InputMode,\"=\"&List!$A$15)","v":0},{"$f":"SUMIFS(InputHours,InputArea,\"=\"&List!$B$4,InputTopic,\"=\"&List!$G2,InputMode,\"=\"&List!$A$16)","v":0},{"$f":"SUMIFS(InputHours,InputArea,\"=\"&List!$B$4,InputTopic,\"=\"&List!$G2,InputMode,\"=\"&List!$A$17)","v":0},{"$f":"SUMIFS(InputHours,InputArea,\"=\"&List!$B$4,InputTopic,\"=\"&List!$G2,InputMode,\"=\"&List!$A$18)","v":0},{"$f":"SUMIFS(InputHours,InputArea,\"=\"&List!$B$4,InputTopic,\"=\"&List!$G2,InputMode,\"=\"&List!$A$19)","v":0},{"$f":"COUNTIFS(InputArea,\"=\"&List!$B$4,InputTopic,\"=\"&List!$G2,InputLevel,\"=\"&Input!$A$5)","v":0},{"$f":"COUNTIFS(InputArea,\"=\"&List!$B$4,InputTopic,\"=\"&List!$G2,InputLevel,\"=\"&Input!$A$4)","v":0},{"$f":"COUNTIFS(InputArea,\"=\"&List!$B$4,InputTopic,\"=\"&List!$G2,InputLevel,\"=\"&Input!$A$3)","v":0},{"$f":"COUNTIFS(InputArea,\"=\"&List!$B$4,InputTopic,\"=\"&List!$G2,InputLevel,\"=\"&Input!$A$2)","v":0},{"$f":"COUNTIFS(InputArea,\"=\"&List!$B$4,InputTopic,\"=\"&List!$G2,InputImportance,\"=\"&Input!$E$5)","v":0},{"$f":"COUNTIFS(InputArea,\"=\"&List!$B$4,InputTopic,\"=\"&List!$G2,InputImportance,\"=\"&Input!$E$4)","v":0},{"$f":"COUNTIFS(InputArea,\"=\"&List!$B$4,InputTopic,\"=\"&List!$G2,InputImportance,\"=\"&Input!$E$3)","v":0},{"$f":"COUNTIFS(InputArea,\"=\"&List!$B$4,InputTopic,\"=\"&List!$G2,InputImportance,\"=\"&Input!$E$2)","v":0},{"$f":"COUNTIFS(InputArea,\"=\"&List!$B$4,InputTopic,\"=\"&List!$G2,InputSkill,\"=\"&List!$D$14)","v":0},{"$f":"COUNTIFS(InputArea,\"=\"&List!$B$4,InputTopic,\"=\"&List!$G2,InputSkill,\"=\"&List!$D$15)","v":0},{"$f":"COUNTIFS(InputArea,\"=\"&List!$B$4,InputTopic,\"=\"&List!$G2,InputSkill,\"=\"&List!$D$16)","v":0},{"$f":"COUNTIFS(InputArea,\"=\"&List!$B$4,InputTopic,\"=\"&List!$G2,InputSkill,\"=\"&List!$D$17)","v":0},{"$f":"COUNTIFS(InputArea,\"=\"&List!$B$4,InputTopic,\"=\"&List!$G2,InputSkill,\"=\"&List!$D$18)","v":0},{"$f":"COUNTIFS(InputArea,\"=\"&List!$B$4,InputTopic,\"=\"&List!$G2,InputSkill,\"=\"&List!$D$19)","v":0},{"$f":"SUM(G11:L11)","v":0},{"$f":"SUM(M11:R11)","v":0},{"$f":"IFERROR(((W11*$W$2)+(X11*$X$2)+(Y11*$Y$2)+(Z11*$Z$2))/AG11,0)","v":{"v":0,"d":"0.00"}},{"v":0,"d":"0.0"}]
["F","U","Geo",null,"OurPlace","Demographics",{"$f":"COUNTIFS(InputArea,\"=\"&List!$B$4,InputTopic,\"=\"&List!$G3,InputMode,\"=\"&List!$A$14)","v":0},{"$f":"COUNTIFS(InputArea,\"=\"&List!$B$4,InputTopic,\"=\"&List!$G3,InputMode,\"=\"&List!$A$15)","v":0},{"$f":"COUNTIFS(InputArea,\"=\"&List!$B$4,InputTopic,\"=\"&List!$G3,InputMode,\"=\"&List!$A$16)","v":0},{"$f":"COUNTIFS(InputArea,\"=\"&List!$B$4,InputTopic,\"=\"&List!$G3,InputMode,\"=\"&List!$A$17)","v":0},{"$f":"COUNTIFS(InputArea,\"=\"&List!$B$4,InputTopic,\"=\"&List!$G3,InputMode,\"=\"&List!$A$18)","v":0},{"$f":"COUNTIFS(InputArea,\"=\"&List!$B$4,InputTopic,\"=\"&List!$G3,InputMode,\"=\"&List!$A$19)","v":0},{"$f":"SUMIFS(InputHours,InputArea,\"=\"&List!$B$4,InputTopic,\"=\"&List!$G3,InputMode,\"=\"&List!$A$14)","v":0},{"$f":"SUMIFS(InputHours,InputArea,\"=\"&List!$B$4,InputTopic,\"=\"&List!$G3,InputMode,\"=\"&List!$A$15)","v":0},{"$f":"SUMIFS(InputHours,InputArea,\"=\"&List!$B$4,InputTopic,\"=\"&List!$G3,InputMode,\"=\"&List!$A$16)","v":0},{"$f":"SUMIFS(InputHours,InputArea,\"=\"&List!$B$4,InputTopic,\"=\"&List!$G3,InputMode,\"=\"&List!$A$17)","v":0},{"$f":"SUMIFS(InputHours,InputArea,\"=\"&List!$B$4,InputTopic,\"=\"&List!$G3,InputMode,\"=\"&List!$A$18)","v":0},{"$f":"SUMIFS(InputHours,InputArea,\"=\"&List!$B$4,InputTopic,\"=\"&List!$G3,InputMode,\"=\"&List!$A$19)","v":0},{"$f":"COUNTIFS(InputArea,\"=\"&List!$B$4,InputTopic,\"=\"&List!$G3,InputLevel,\"=\"&Input!$A$5)","v":0},{"$f":"COUNTIFS(InputArea,\"=\"&List!$B$4,InputTopic,\"=\"&List!$G3,InputLevel,\"=\"&Input!$A$4)","v":0},{"$f":"COUNTIFS(InputArea,\"=\"&List!$B$4,InputTopic,\"=\"&List!$G3,InputLevel,\"=\"&Input!$A$3)","v":0},{"$f":"COUNTIFS(InputArea,\"=\"&List!$B$4,InputTopic,\"=\"&List!$G3,InputLevel,\"=\"&Input!$A$2)","v":0},{"$f":"COUNTIFS(InputArea,\"=\"&List!$B$4,InputTopic,\"=\"&List!$G3,InputImportance,\"=\"&Input!$E$5)","v":0},{"$f":"COUNTIFS(InputArea,\"=\"&List!$B$4,InputTopic,\"=\"&List!$G3,InputImportance,\"=\"&Input!$E$4)","v":0},{"$f":"COUNTIFS(InputArea,\"=\"&List!$B$4,InputTopic,\"=\"&List!$G3,InputImportance,\"=\"&Input!$E$3)","v":0},{"$f":"COUNTIFS(InputArea,\"=\"&List!$B$4,InputTopic,\"=\"&List!$G3,InputImportance,\"=\"&Input!$E$2)","v":0},{"$f":"COUNTIFS(InputArea,\"=\"&List!$B$4,InputTopic,\"=\"&List!$G3,InputSkill,\"=\"&List!$D$14)","v":0},{"$f":"COUNTIFS(InputArea,\"=\"&List!$B$4,InputTopic,\"=\"&List!$G3,InputSkill,\"=\"&List!$D$15)","v":0},{"$f":"COUNTIFS(InputArea,\"=\"&List!$B$4,InputTopic,\"=\"&List!$G3,InputSkill,\"=\"&List!$D$16)","v":0},{"$f":"COUNTIFS(InputArea,\"=\"&List!$B$4,InputTopic,\"=\"&List!$G3,InputSkill,\"=\"&List!$D$17)","v":0},{"$f":"COUNTIFS(InputArea,\"=\"&List!$B$4,InputTopic,\"=\"&List!$G3,InputSkill,\"=\"&List!$D$18)","v":0},{"$f":"COUNTIFS(InputArea,\"=\"&List!$B$4,InputTopic,\"=\"&List!$G3,InputSkill,\"=\"&List!$D$19)","v":0},0,0,{"v":0,"d":"0.00"},{"v":0,"d":"0.0"}]
["F","U","Geo",null,"OurPlace","Rural & Urban Geography",{"$f":"COUNTIFS(InputArea,\"=\"&List!$B$4,InputTopic,\"=\"&List!$G4,InputMode,\"=\"&List!$A$14)","v":0},{"$f":"COUNTIFS(InputArea,\"=\"&List!$B$4,InputTopic,\"=\"&List!$G4,InputMode,\"=\"&List!$A$15)","v":0},{"$f":"COUNTIFS(InputArea,\"=\"&List!$B$4,InputTopic,\"=\"&List!$G4,InputMode,\"=\"&List!$A$16)","v":0},{"$f":"COUNTIFS(InputArea,\"=\"&List!$B$4,InputTopic,\"=\"&List!$G4,InputMode,\"=\"&List!$A$17)","v":0},{"$f":"COUNTIFS(InputArea,\"=\"&List!$B$4,InputTopic,\"=\"&List!$G4,InputMode,\"=\"&List!$A$18)","v":0},{"$f":"COUNTIFS(InputArea,\"=\"&List!$B$4,InputTopic,\"=\"&List!$G4,InputMode,\"=\"&List!$A$19)","v":0},{"$f":"SUMIFS(InputHours,InputArea,\"=\"&List!$B$4,InputTopic,\"=\"&List!$G4,InputMode,\"=\"&List!$A$14)","v":0},{"$f":"SUMIFS(InputHours,InputArea,\"=\"&List!$B$4,InputTopic,\"=\"&List!$G4,InputMode,\"=\"&List!$A$15)","v":0},{"$f":"SUMIFS(InputHours,InputArea,\"=\"&List!$B$4,InputTopic,\"=\"&List!$G4,InputMode,\"=\"&List!$A$16)","v":0},{"$f":"SUMIFS(InputHours,InputArea,\"=\"&List!$B$4,InputTopic,\"=\"&List!$G4,InputMode,\"=\"&List!$A$17)","v":0},{"$f":"SUMIFS(InputHours,InputArea,\"=\"&List!$B$4,InputTopic,\"=\"&List!$G4,InputMode,\"=\"&List!$A$18)","v":0},{"$f":"SUMIFS(InputHours,InputArea,\"=\"&List!$B$4,InputTopic,\"=\"&List!$G4,InputMode,\"=\"&List!$A$19)","v":0},{"$f":"COUNTIFS(InputArea,\"=\"&List!$B$4,InputTopic,\"=\"&List!$G4,InputLevel,\"=\"&Input!$A$5)","v":0},{"$f":"COUNTIFS(InputArea,\"=\"&List!$B$4,InputTopic,\"=\"&List!$G4,InputLevel,\"=\"&Input!$A$4)","v":0},{"$f":"COUNTIFS(InputArea,\"=\"&List!$B$4,InputTopic,\"=\"&List!$G4,InputLevel,\"=\"&Input!$A$3)","v":0},{"$f":"COUNTIFS(InputArea,\"=\"&List!$B$4,InputTopic,\"=\"&List!$G4,InputLevel,\"=\"&Input!$A$2)","v":0},{"$f":"COUNTIFS(InputArea,\"=\"&List!$B$4,InputTopic,\"=\"&List!$G4,InputImportance,\"=\"&Input!$E$5)","v":0},{"$f":"COUNTIFS(InputArea,\"=\"&List!$B$4,InputTopic,\"=\"&List!$G4,InputImportance,\"=\"&Input!$E$4)","v":0},{"$f":"COUNTIFS(InputArea,\"=\"&List!$B$4,InputTopic,\"=\"&List!$G4,InputImportance,\"=\"&Input!$E$3)","v":0},{"$f":"COUNTIFS(InputArea,\"=\"&List!$B$4,InputTopic,\"=\"&List!$G4,InputImportance,\"=\"&Input!$E$2)","v":0},{"$f":"COUNTIFS(InputArea,\"=\"&List!$B$4,InputTopic,\"=\"&List!$G4,InputSkill,\"=\"&List!$D$14)","v":0},{"$f":"COUNTIFS(InputArea,\"=\"&List!$B$4,InputTopic,\"=\"&List!$G4,InputSkill,\"=\"&List!$D$15)","v":0},{"$f":"COUNTIFS(InputArea,\"=\"&List!$B$4,InputTopic,\"=\"&List!$G4,InputSkill,\"=\"&List!$D$16)","v":0},{"$f":"COUNTIFS(InputArea,\"=\"&List!$B$4,InputTopic,\"=\"&List!$G4,InputSkill,\"=\"&List!$D$17)","v":0},{"$f":"COUNTIFS(InputArea,\"=\"&List!$B$4,InputTopic,\"=\"&List!$G4,InputSkill,\"=\"&List!$D$18)","v":0},{"$f":"COUNTIFS(InputArea,\"=\"&List!$B$4,InputTopic,\"=\"&List!$G4,InputSkill,\"=\"&List!$D$19)","v":0},0,0,{"v":0,"d":"0.00"},{"v":0,"d":"0.0"}]
["F","U","Geo",null,"OurPlace","Others",{"$f":"COUNTIFS(InputArea,\"=\"&List!$B$4,InputTopic,\"=\"&List!$G5,InputMode,\"=\"&List!$A$14)","v":0},{"$f":"COUNTIFS(InputArea,\"=\"&List!$B$4,InputTopic,\"=\"&List!$G5,InputMode,\"=\"&List!$A$15)","v":0},{"$f":"COUNTIFS(InputArea,\"=\"&List!$B$4,InputTopic,\"=\"&List!$G5,InputMode,\"=\"&List!$A$16)","v":0},{"$f":"COUNTIFS(InputArea,\"=\"&List!$B$4,InputTopic,\"=\"&List!$G5,InputMode,\"=\"&List!$A$17)","v":0},{"$f":"COUNTIFS(InputArea,\"=\"&List!$B$4,InputTopic,\"=\"&List!$G5,InputMode,\"=\"&List!$A$18)","v":0},{"$f":"COUNTIFS(InputArea,\"=\"&List!$B$4,InputTopic,\"=\"&List!$G5,InputMode,\"=\"&List!$A$19)","v":0},{"$f":"SUMIFS(InputHours,InputArea,\"=\"&List!$B$4,InputTopic,\"=\"&List!$G5,InputMode,\"=\"&List!$A$14)","v":0},{"$f":"SUMIFS(InputHours,InputArea,\"=\"&List!$B$4,InputTopic,\"=\"&List!$G5,InputMode,\"=\"&List!$A$15)","v":0},{"$f":"SUMIFS(InputHours,InputArea,\"=\"&List!$B$4,InputTopic,\"=\"&List!$G5,InputMode,\"=\"&List!$A$16)","v":0},{"$f":"SUMIFS(InputHours,InputArea,\"=\"&List!$B$4,InputTopic,\"=\"&List!$G5,InputMode,\"=\"&List!$A$17)","v":0},{"$f":"SUMIFS(InputHours,InputArea,\"=\"&List!$B$4,InputTopic,\"=\"&List!$G5,InputMode,\"=\"&List!$A$18)","v":0},{"$f":"SUMIFS(InputHours,InputArea,\"=\"&List!$B$4,InputTopic,\"=\"&List!$G5,InputMode,\"=\"&List!$A$19)","v":0},{"$f":"COUNTIFS(InputArea,\"=\"&List!$B$4,InputTopic,\"=\"&List!$G5,InputLevel,\"=\"&Input!$A$5)","v":0},{"$f":"COUNTIFS(InputArea,\"=\"&List!$B$4,InputTopic,\"=\"&List!$G5,InputLevel,\"=\"&Input!$A$4)","v":0},{"$f":"COUNTIFS(InputArea,\"=\"&List!$B$4,InputTopic,\"=\"&List!$G5,InputLevel,\"=\"&Input!$A$3)","v":0},{"$f":"COUNTIFS(InputArea,\"=\"&List!$B$4,InputTopic,\"=\"&List!$G5,InputLevel,\"=\"&Input!$A$2)","v":0},{"$f":"COUNTIFS(InputArea,\"=\"&List!$B$4,InputTopic,\"=\"&List!$G5,InputImportance,\"=\"&Input!$E$5)","v":0},{"$f":"COUNTIFS(InputArea,\"=\"&List!$B$4,InputTopic,\"=\"&List!$G5,InputImportance,\"=\"&Input!$E$4)","v":0},{"$f":"COUNTIFS(InputArea,\"=\"&List!$B$4,InputTopic,\"=\"&List!$G5,InputImportance,\"=\"&Input!$E$3)","v":0},{"$f":"COUNTIFS(InputArea,\"=\"&List!$B$4,InputTopic,\"=\"&List!$G5,InputImportance,\"=\"&Input!$E$2)","v":0},{"$f":"COUNTIFS(InputArea,\"=\"&List!$B$4,InputTopic,\"=\"&List!$G5,InputSkill,\"=\"&List!$D$14)","v":0},{"$f":"COUNTIFS(InputArea,\"=\"&List!$B$4,InputTopic,\"=\"&List!$G5,InputSkill,\"=\"&List!$D$15)","v":0},{"$f":"COUNTIFS(InputArea,\"=\"&List!$B$4,InputTopic,\"=\"&List!$G5,InputSkill,\"=\"&List!$D$16)","v":0},{"$f":"COUNTIFS(InputArea,\"=\"&List!$B$4,InputTopic,\"=\"&List!$G5,InputSkill,\"=\"&List!$D$17)","v":0},{"$f":"COUNTIFS(InputArea,\"=\"&List!$B$4,InputTopic,\"=\"&List!$G5,InputSkill,\"=\"&List!$D$18)","v":0},{"$f":"COUNTIFS(InputArea,\"=\"&List!$B$4,InputTopic,\"=\"&List!$G5,InputSkill,\"=\"&List!$D$19)","v":0},0,0,{"v":0,"d":"0.00"},{"v":0,"d":"0.0"}]
["F","U","Geo","FOUNDATION","MapReading","Map Comprehension",{"$f":"COUNTIFS(InputArea,\"=\"&List!$B$5,InputTopic,\"=\"&List!$H2,InputMode,\"=\"&List!$A$14)","v":0},{"$f":"COUNTIFS(InputArea,\"=\"&List!$B$5,InputTopic,\"=\"&List!$H2,InputMode,\"=\"&List!$A$15)","v":0},{"$f":"COUNTIFS(InputArea,\"=\"&List!$B$5,InputTopic,\"=\"&List!$H2,InputMode,\"=\"&List!$A$16)","v":0},{"$f":"COUNTIFS(InputArea,\"=\"&List!$B$5,InputTopic,\"=\"&List!$H2,InputMode,\"=\"&List!$A$17)","v":0},{"$f":"COUNTIFS(InputArea,\"=\"&List!$B$5,InputTopic,\"=\"&List!$H2,InputMode,\"=\"&List!$A$18)","v":0},{"$f":"COUNTIFS(InputArea,\"=\"&List!$B$5,InputTopic,\"=\"&List!$H2,InputMode,\"=\"&List!$A$19)","v":0},{"$f":"SUMIFS(InputHours,InputArea,\"=\"&List!$B$5,InputTopic,\"=\"&List!$H2,InputMode,\"=\"&List!$A$14)","v":0},{"$f":"SUMIFS(InputHours,InputArea,\"=\"&List!$B$5,InputTopic,\"=\"&List!$H2,InputMode,\"=\"&List!$A$15)","v":0},{"$f":"SUMIFS(InputHours,InputArea,\"=\"&List!$B$5,InputTopic,\"=\"&List!$H2,InputMode,\"=\"&List!$A$16)","v":0},{"$f":"SUMIFS(InputHours,InputArea,\"=\"&List!$B$5,InputTopic,\"=\"&List!$H2,InputMode,\"=\"&List!$A$17)","v":0},{"$f":"SUMIFS(InputHours,InputArea,\"=\"&List!$B$5,InputTopic,\"=\"&List!$H2,InputMode,\"=\"&List!$A$18)","v":0},{"$f":"SUMIFS(InputHours,InputArea,\"=\"&List!$B$5,InputTopic,\"=\"&List!$H2,InputMode,\"=\"&List!$A$19)","v":0},{"$f":"COUNTIFS(InputArea,\"=\"&List!$B$5,InputTopic,\"=\"&List!$H2,InputLevel,\"=\"&Input!$A$5)","v":0},{"$f":"COUNTIFS(InputArea,\"=\"&List!$B$5,InputTopic,\"=\"&List!$H2,InputLevel,\"=\"&Input!$A$4)","v":0},{"$f":"COUNTIFS(InputArea,\"=\"&List!$B$5,InputTopic,\"=\"&List!$H2,InputLevel,\"=\"&Input!$A$3)","v":0},{"$f":"COUNTIFS(InputArea,\"=\"&List!$B$5,InputTopic,\"=\"&List!$H2,InputLevel,\"=\"&Input!$A$2)","v":0},{"$f":"COUNTIFS(InputArea,\"=\"&List!$B$5,InputTopic,\"=\"&List!$H2,InputImportance,\"=\"&Input!$E$5)","v":0},{"$f":"COUNTIFS(InputArea,\"=\"&List!$B$5,InputTopic,\"=\"&List!$H2,InputImportance,\"=\"&Input!$E$4)","v":0},{"$f":"COUNTIFS(InputArea,\"=\"&List!$B$5,InputTopic,\"=\"&List!$H2,InputImportance,\"=\"&Input!$E$3)","v":0},{"$f":"COUNTIFS(InputArea,\"=\"&List!$B$5,InputTopic,\"=\"&List!$H2,InputImportance,\"=\"&Input!$E$2)","v":0},{"$f":"COUNTIFS(InputArea,\"=\"&List!$B$5,InputTopic,\"=\"&List!$H2,InputSkill,\"=\"&List!$D$14)","v":0},{"$f":"COUNTIFS(InputArea,\"=\"&List!$B$5,InputTopic,\"=\"&List!$H2,InputSkill,\"=\"&List!$D$15)","v":0},{"$f":"COUNTIFS(InputArea,\"=\"&List!$B$5,InputTopic,\"=\"&List!$H2,InputSkill,\"=\"&List!$D$16)","v":0},{"$f":"COUNTIFS(InputArea,\"=\"&List!$B$5,InputTopic,\"=\"&List!$H2,InputSkill,\"=\"&List!$D$17)","v":0},{"$f":"COUNTIFS(InputArea,\"=\"&List!$B$5,InputTopic,\"=\"&List!$H2,InputSkill,\"=\"&List!$D$18)","v":0},{"$f":"COUNTIFS(InputArea,\"=\"&List!$B$5,InputTopic,\"=\"&List!$H2,InputSkill,\"=\"&List!$D$19)","v":0},{"$f":"SUM(G15:L15)","v":0},{"$f":"SUM(M15:R15)","v":0},{"$f":"IFERROR(((W15*$W$2)+(X15*$X$2)+(Y15*$Y$2)+(Z15*$Z$2))/AG15,0)","v":{"v":0,"d":"0.00"}},{"v":0,"d":"0.0"}]
["F","T U","Geo",null,"MapReading","Map Interpretation",{"$f":"COUNTIFS(InputArea,\"=\"&List!$B$5,InputTopic,\"=\"&List!$H3,InputMode,\"=\"&List!$A$14)","v":0},{"$f":"COUNTIFS(InputArea,\"=\"&List!$B$5,InputTopic,\"=\"&List!$H3,InputMode,\"=\"&List!$A$15)","v":0},{"$f":"COUNTIFS(InputArea,\"=\"&List!$B$5,InputTopic,\"=\"&List!$H3,InputMode,\"=\"&List!$A$16)","v":0},{"$f":"COUNTIFS(InputArea,\"=\"&List!$B$5,InputTopic,\"=\"&List!$H3,InputMode,\"=\"&List!$A$17)","v":0},{"$f":"COUNTIFS(InputArea,\"=\"&List!$B$5,InputTopic,\"=\"&List!$H3,InputMode,\"=\"&List!$A$18)","v":0},{"$f":"COUNTIFS(InputArea,\"=\"&List!$B$5,InputTopic,\"=\"&List!$H3,InputMode,\"=\"&List!$A$19)","v":0},{"$f":"SUMIFS(InputHours,InputArea,\"=\"&List!$B$5,InputTopic,\"=\"&List!$H3,InputMode,\"=\"&List!$A$14)","v":0},{"$f":"SUMIFS(InputHours,InputArea,\"=\"&List!$B$5,InputTopic,\"=\"&List!$H3,InputMode,\"=\"&List!$A$15)","v":0},{"$f":"SUMIFS(InputHours,InputArea,\"=\"&List!$B$5,InputTopic,\"=\"&List!$H3,InputMode,\"=\"&List!$A$16)","v":0},{"$f":"SUMIFS(InputHours,InputArea,\"=\"&List!$B$5,InputTopic,\"=\"&List!$H3,InputMode,\"=\"&List!$A$17)","v":0},{"$f":"SUMIFS(InputHours,InputArea,\"=\"&List!$B$5,InputTopic,\"=\"&List!$H3,InputMode,\"=\"&List!$A$18)","v":0},{"$f":"SUMIFS(InputHours,InputArea,\"=\"&List!$B$5,InputTopic,\"=\"&List!$H3,InputMode,\"=\"&List!$A$19)","v":0},{"$f":"COUNTIFS(InputArea,\"=\"&List!$B$5,InputTopic,\"=\"&List!$H3,InputLevel,\"=\"&Input!$A$5)","v":0},{"$f":"COUNTIFS(InputArea,\"=\"&List!$B$5,InputTopic,\"=\"&List!$H3,InputLevel,\"=\"&Input!$A$4)","v":0},{"$f":"COUNTIFS(InputArea,\"=\"&List!$B$5,InputTopic,\"=\"&List!$H3,InputLevel,\"=\"&Input!$A$3)","v":0},{"$f":"COUNTIFS(InputArea,\"=\"&List!$B$5,InputTopic,\"=\"&List!$H3,InputLevel,\"=\"&Input!$A$2)","v":0},{"$f":"COUNTIFS(InputArea,\"=\"&List!$B$5,InputTopic,\"=\"&List!$H3,InputImportance,\"=\"&Input!$E$5)","v":0},{"$f":"COUNTIFS(InputArea,\"=\"&List!$B$5,InputTopic,\"=\"&List!$H3,InputImportance,\"=\"&Input!$E$4)","v":0},{"$f":"COUNTIFS(InputArea,\"=\"&List!$B$5,InputTopic,\"=\"&List!$H3,InputImportance,\"=\"&Input!$E$3)","v":0},{"$f":"COUNTIFS(InputArea,\"=\"&List!$B$5,InputTopic,\"=\"&List!$H3,InputImportance,\"=\"&Input!$E$2)","v":0},{"$f":"COUNTIFS(InputArea,\"=\"&List!$B$5,InputTopic,\"=\"&List!$H3,InputSkill,\"=\"&List!$D$14)","v":0},{"$f":"COUNTIFS(InputArea,\"=\"&List!$B$5,InputTopic,\"=\"&List!$H3,InputSkill,\"=\"&List!$D$15)","v":0},{"$f":"COUNTIFS(InputArea,\"=\"&List!$B$5,InputTopic,\"=\"&List!$H3,InputSkill,\"=\"&List!$D$16)","v":0},{"$f":"COUNTIFS(InputArea,\"=\"&List!$B$5,InputTopic,\"=\"&List!$H3,InputSkill,\"=\"&List!$D$17)","v":0},{"$f":"COUNTIFS(InputArea,\"=\"&List!$B$5,InputTopic,\"=\"&List!$H3,InputSkill,\"=\"&List!$D$18)","v":0},{"$f":"COUNTIFS(InputArea,\"=\"&List!$B$5,InputTopic,\"=\"&List!$H3,InputSkill,\"=\"&List!$D$19)","v":0},0,0,{"v":0,"d":"0.00"},{"v":0,"d":"0.0"}]
["F","T U","Geo",null,"MapReading","Others",{"$f":"COUNTIFS(InputArea,\"=\"&List!$B$5,InputTopic,\"=\"&List!$H4,InputMode,\"=\"&List!$A$14)","v":0},{"$f":"COUNTIFS(InputArea,\"=\"&List!$B$5,InputTopic,\"=\"&List!$H4,InputMode,\"=\"&List!$A$15)","v":0},{"$f":"COUNTIFS(InputArea,\"=\"&List!$B$5,InputTopic,\"=\"&List!$H4,InputMode,\"=\"&List!$A$16)","v":0},{"$f":"COUNTIFS(InputArea,\"=\"&List!$B$5,InputTopic,\"=\"&List!$H4,InputMode,\"=\"&List!$A$17)","v":0},{"$f":"COUNTIFS(InputArea,\"=\"&List!$B$5,InputTopic,\"=\"&List!$H4,InputMode,\"=\"&List!$A$18)","v":0},{"$f":"COUNTIFS(InputArea,\"=\"&List!$B$5,InputTopic,\"=\"&List!$H4,InputMode,\"=\"&List!$A$19)","v":0},{"$f":"SUMIFS(InputHours,InputArea,\"=\"&List!$B$5,InputTopic,\"=\"&List!$H4,InputMode,\"=\"&List!$A$14)","v":0},{"$f":"SUMIFS(InputHours,InputArea,\"=\"&List!$B$5,InputTopic,\"=\"&List!$H4,InputMode,\"=\"&List!$A$15)","v":0},{"$f":"SUMIFS(InputHours,InputArea,\"=\"&List!$B$5,InputTopic,\"=\"&List!$H4,InputMode,\"=\"&List!$A$16)","v":0},{"$f":"SUMIFS(InputHours,InputArea,\"=\"&List!$B$5,InputTopic,\"=\"&List!$H4,InputMode,\"=\"&List!$A$17)","v":0},{"$f":"SUMIFS(InputHours,InputArea,\"=\"&List!$B$5,InputTopic,\"=\"&List!$H4,InputMode,\"=\"&List!$A$18)","v":0},{"$f":"SUMIFS(InputHours,InputArea,\"=\"&List!$B$5,InputTopic,\"=\"&List!$H4,InputMode,\"=\"&List!$A$19)","v":0},{"$f":"COUNTIFS(InputArea,\"=\"&List!$B$5,InputTopic,\"=\"&List!$H4,InputLevel,\"=\"&Input!$A$5)","v":0},{"$f":"COUNTIFS(InputArea,\"=\"&List!$B$5,InputTopic,\"=\"&List!$H4,InputLevel,\"=\"&Input!$A$4)","v":0},{"$f":"COUNTIFS(InputArea,\"=\"&List!$B$5,InputTopic,\"=\"&List!$H4,InputLevel,\"=\"&Input!$A$3)","v":0},{"$f":"COUNTIFS(InputArea,\"=\"&List!$B$5,InputTopic,\"=\"&List!$H4,InputLevel,\"=\"&Input!$A$2)","v":0},{"$f":"COUNTIFS(InputArea,\"=\"&List!$B$5,InputTopic,\"=\"&List!$H4,InputImportance,\"=\"&Input!$E$5)","v":0},{"$f":"COUNTIFS(InputArea,\"=\"&List!$B$5,InputTopic,\"=\"&List!$H4,InputImportance,\"=\"&Input!$E$4)","v":0},{"$f":"COUNTIFS(InputArea,\"=\"&List!$B$5,InputTopic,\"=\"&List!$H4,InputImportance,\"=\"&Input!$E$3)","v":0},{"$f":"COUNTIFS(InputArea,\"=\"&List!$B$5,InputTopic,\"=\"&List!$H4,InputImportance,\"=\"&Input!$E$2)","v":0},{"$f":"COUNTIFS(InputArea,\"=\"&List!$B$5,InputTopic,\"=\"&List!$H4,InputSkill,\"=\"&List!$D$14)","v":0},{"$f":"COUNTIFS(InputArea,\"=\"&List!$B$5,InputTopic,\"=\"&List!$H4,InputSkill,\"=\"&List!$D$15)","v":0},{"$f":"COUNTIFS(InputArea,\"=\"&List!$B$5,InputTopic,\"=\"&List!$H4,InputSkill,\"=\"&List!$D$16)","v":0},{"$f":"COUNTIFS(InputArea,\"=\"&List!$B$5,InputTopic,\"=\"&List!$H4,InputSkill,\"=\"&List!$D$17)","v":0},{"$f":"COUNTIFS(InputArea,\"=\"&List!$B$5,InputTopic,\"=\"&List!$H4,InputSkill,\"=\"&List!$D$18)","v":0},{"$f":"COUNTIFS(InputArea,\"=\"&List!$B$5,InputTopic,\"=\"&List!$H4,InputSkill,\"=\"&List!$D$19)","v":0},0,0,{"v":0,"d":"0.00"},{"v":0,"d":"0.0"}]
["F","T","Geo","FOUNDATION","Database","Data Format & Type",{"$f":"COUNTIFS(InputArea,\"=\"&List!$B$6,InputTopic,\"=\"&List!$I2,InputMode,\"=\"&List!$A$14)","v":0},{"$f":"COUNTIFS(InputArea,\"=\"&List!$B$6,InputTopic,\"=\"&List!$I2,InputMode,\"=\"&List!$A$15)","v":0},{"$f":"COUNTIFS(InputArea,\"=\"&List!$B$6,InputTopic,\"=\"&List!$I2,InputMode,\"=\"&List!$A$16)","v":0},{"$f":"COUNTIFS(InputArea,\"=\"&List!$B$6,InputTopic,\"=\"&List!$I2,InputMode,\"=\"&List!$A$17)","v":0},{"$f":"COUNTIFS(InputArea,\"=\"&List!$B$6,InputTopic,\"=\"&List!$I2,InputMode,\"=\"&List!$A$18)","v":0},{"$f":"COUNTIFS(InputArea,\"=\"&List!$B$6,InputTopic,\"=\"&List!$I2,InputMode,\"=\"&List!$A$19)","v":0},{"$f":"SUMIFS(InputHours,InputArea,\"=\"&List!$B$6,InputTopic,\"=\"&List!$I2,InputMode,\"=\"&List!$A$14)","v":0},{"$f":"SUMIFS(InputHours,InputArea,\"=\"&List!$B$6,InputTopic,\"=\"&List!$I2,InputMode,\"=\"&List!$A$15)","v":0},{"$f":"SUMIFS(InputHours,InputArea,\"=\"&List!$B$6,InputTopic,\"=\"&List!$I2,InputMode,\"=\"&List!$A$16)","v":0},{"$f":"SUMIFS(InputHours,InputArea,\"=\"&List!$B$6,InputTopic,\"=\"&List!$I2,InputMode,\"=\"&List!$A$17)","v":0},{"$f":"SUMIFS(InputHours,InputArea,\"=\"&List!$B$6,InputTopic,\"=\"&List!$I2,InputMode,\"=\"&List!$A$18)","v":0},{"$f":"SUMIFS(InputHours,InputArea,\"=\"&List!$B$6,InputTopic,\"=\"&List!$I2,InputMode,\"=\"&List!$A$19)","v":0},{"$f":"COUNTIFS(InputArea,\"=\"&List!$B$6,InputTopic,\"=\"&List!$I2,InputLevel,\"=\"&Input!$A$5)","v":0},{"$f":"COUNTIFS(InputArea,\"=\"&List!$B$6,InputTopic,\"=\"&List!$I2,InputLevel,\"=\"&Input!$A$4)","v":0},{"$f":"COUNTIFS(InputArea,\"=\"&List!$B$6,InputTopic,\"=\"&List!$I2,InputLevel,\"=\"&Input!$A$3)","v":0},{"$f":"COUNTIFS(InputArea,\"=\"&List!$B$6,InputTopic,\"=\"&List!$I2,InputLevel,\"=\"&Input!$A$2)","v":0},{"$f":"COUNTIFS(InputArea,\"=\"&List!$B$6,InputTopic,\"=\"&List!$I2,InputImportance,\"=\"&Input!$E$5)","v":0},{"$f":"COUNTIFS(InputArea,\"=\"&List!$B$6,InputTopic,\"=\"&List!$I2,InputImportance,\"=\"&Input!$E$4)","v":0},{"$f":"COUNTIFS(InputArea,\"=\"&List!$B$6,InputTopic,\"=\"&List!$I2,InputImportance,\"=\"&Input!$E$3)","v":0},{"$f":"COUNTIFS(InputArea,\"=\"&List!$B$6,InputTopic,\"=\"&List!$I2,InputImportance,\"=\"&Input!$E$2)","v":0},{"$f":"COUNTIFS(InputArea,\"=\"&List!$B$6,InputTopic,\"=\"&List!$I2,InputSkill,\"=\"&List!$D$14)","v":0},{"$f":"COUNTIFS(InputArea,\"=\"&List!$B$6,InputTopic,\"=\"&List!$I2,InputSkill,\"=\"&List!$D$15)","v":0},{"$f":"COUNTIFS(InputArea,\"=\"&List!$B$6,InputTopic,\"=\"&List!$I2,InputSkill,\"=\"&List!$D$16)","v":0},{"$f":"COUNTIFS(InputArea,\"=\"&List!$B$6,InputTopic,\"=\"&List!$I2,InputSkill,\"=\"&List!$D$17)","v":0},{"$f":"COUNTIFS(InputArea,\"=\"&List!$B$6,InputTopic,\"=\"&List!$I2,InputSkill,\"=\"&List!$D$18)","v":0},{"$f":"COUNTIFS(InputArea,\"=\"&List!$B$6,InputTopic,\"=\"&List!$I2,InputSkill,\"=\"&List!$D$19)","v":0},{"$f":"SUM(G18:L18)","v":0},{"$f":"SUM(M18:R18)","v":0},{"$f":"IFERROR(((W18*$W$2)+(X18*$X$2)+(Y18*$Y$2)+(Z18*$Z$2))/AG18,0)","v":{"v":0,"d":"0.00"}},{"v":0,"d":"0.0"}]
["F","T","Geo",null,"Database","Data Structure",{"$f":"COUNTIFS(InputArea,\"=\"&List!$B$6,InputTopic,\"=\"&List!$I3,InputMode,\"=\"&List!$A$14)","v":0},{"$f":"COUNTIFS(InputArea,\"=\"&List!$B$6,InputTopic,\"=\"&List!$I3,InputMode,\"=\"&List!$A$15)","v":0},{"$f":"COUNTIFS(InputArea,\"=\"&List!$B$6,InputTopic,\"=\"&List!$I3,InputMode,\"=\"&List!$A$16)","v":0},{"$f":"COUNTIFS(InputArea,\"=\"&List!$B$6,InputTopic,\"=\"&List!$I3,InputMode,\"=\"&List!$A$17)","v":0},{"$f":"COUNTIFS(InputArea,\"=\"&List!$B$6,InputTopic,\"=\"&List!$I3,InputMode,\"=\"&List!$A$18)","v":0},{"$f":"COUNTIFS(InputArea,\"=\"&List!$B$6,InputTopic,\"=\"&List!$I3,InputMode,\"=\"&List!$A$19)","v":0},{"$f":"SUMIFS(InputHours,InputArea,\"=\"&List!$B$6,InputTopic,\"=\"&List!$I3,InputMode,\"=\"&List!$A$14)","v":0},{"$f":"SUMIFS(InputHours,InputArea,\"=\"&List!$B$6,InputTopic,\"=\"&List!$I3,InputMode,\"=\"&List!$A$15)","v":0},{"$f":"SUMIFS(InputHours,InputArea,\"=\"&List!$B$6,InputTopic,\"=\"&List!$I3,InputMode,\"=\"&List!$A$16)","v":0},{"$f":"SUMIFS(InputHours,InputArea,\"=\"&List!$B$6,InputTopic,\"=\"&List!$I3,InputMode,\"=\"&List!$A$17)","v":0},{"$f":"SUMIFS(InputHours,InputArea,\"=\"&List!$B$6,InputTopic,\"=\"&List!$I3,InputMode,\"=\"&List!$A$18)","v":0},{"$f":"SUMIFS(InputHours,InputArea,\"=\"&List!$B$6,InputTopic,\"=\"&List!$I3,InputMode,\"=\"&List!$A$19)","v":0},{"$f":"COUNTIFS(InputArea,\"=\"&List!$B$6,InputTopic,\"=\"&List!$I3,InputLevel,\"=\"&Input!$A$5)","v":0},{"$f":"COUNTIFS(InputArea,\"=\"&List!$B$6,InputTopic,\"=\"&List!$I3,InputLevel,\"=\"&Input!$A$4)","v":0},{"$f":"COUNTIFS(InputArea,\"=\"&List!$B$6,InputTopic,\"=\"&List!$I3,InputLevel,\"=\"&Input!$A$3)","v":0},{"$f":"COUNTIFS(InputArea,\"=\"&List!$B$6,InputTopic,\"=\"&List!$I3,InputLevel,\"=\"&Input!$A$2)","v":0},{"$f":"COUNTIFS(InputArea,\"=\"&List!$B$6,InputTopic,\"=\"&List!$I3,InputImportance,\"=\"&Input!$E$5)","v":0},{"$f":"COUNTIFS(InputArea,\"=\"&List!$B$6,InputTopic,\"=\"&List!$I3,InputImportance,\"=\"&Input!$E$4)","v":0},{"$f":"COUNTIFS(InputArea,\"=\"&List!$B$6,InputTopic,\"=\"&List!$I3,InputImportance,\"=\"&Input!$E$3)","v":0},{"$f":"COUNTIFS(InputArea,\"=\"&List!$B$6,InputTopic,\"=\"&List!$I3,InputImportance,\"=\"&Input!$E$2)","v":0},{"$f":"COUNTIFS(InputArea,\"=\"&List!$B$6,InputTopic,\"=\"&List!$I3,InputSkill,\"=\"&List!$D$14)","v":0},{"$f":"COUNTIFS(InputArea,\"=\"&List!$B$6,InputTopic,\"=\"&List!$I3,InputSkill,\"=\"&List!$D$15)","v":0},{"$f":"COUNTIFS(InputArea,\"=\"&List!$B$6,InputTopic,\"=\"&List!$I3,InputSkill,\"=\"&List!$D$16)","v":0},{"$f":"COUNTIFS(InputArea,\"=\"&List!$B$6,InputTopic,\"=\"&List!$I3,InputSkill,\"=\"&List!$D$17)","v":0},{"$f":"COUNTIFS(InputArea,\"=\"&List!$B$6,InputTopic,\"=\"&List!$I3,InputSkill,\"=\"&List!$D$18)","v":0},{"$f":"COUNTIFS(InputArea,\"=\"&List!$B$6,InputTopic,\"=\"&List!$I3,InputSkill,\"=\"&List!$D$19)","v":0},{"$f":"SUM(G19:L19)","v":0},{"$f":"SUM(M19:R19)","v":0},{"$f":"IFERROR(((W19*$W$2)+(X19*$X$2)+(Y19*$Y$2)+(Z19*$Z$2))/AG19,0)","v":{"v":0,"d":"0.00"}},{"v":0,"d":"0.0"}]
["F","T","Geo",null,"Database","Data Models & Database",{"$f":"COUNTIFS(InputArea,\"=\"&List!$B$6,InputTopic,\"=\"&List!$I4,InputMode,\"=\"&List!$A$14)","v":0},{"$f":"COUNTIFS(InputArea,\"=\"&List!$B$6,InputTopic,\"=\"&List!$I4,InputMode,\"=\"&List!$A$15)","v":0},{"$f":"COUNTIFS(InputArea,\"=\"&List!$B$6,InputTopic,\"=\"&List!$I4,InputMode,\"=\"&List!$A$16)","v":0},{"$f":"COUNTIFS(InputArea,\"=\"&List!$B$6,InputTopic,\"=\"&List!$I4,InputMode,\"=\"&List!$A$17)","v":0},{"$f":"COUNTIFS(InputArea,\"=\"&List!$B$6,InputTopic,\"=\"&List!$I4,InputMode,\"=\"&List!$A$18)","v":0},{"$f":"COUNTIFS(InputArea,\"=\"&List!$B$6,InputTopic,\"=\"&List!$I4,InputMode,\"=\"&List!$A$19)","v":0},{"$f":"SUMIFS(InputHours,InputArea,\"=\"&List!$B$6,InputTopic,\"=\"&List!$I4,InputMode,\"=\"&List!$A$14)","v":0},{"$f":"SUMIFS(InputHours,InputArea,\"=\"&List!$B$6,InputTopic,\"=\"&List!$I4,InputMode,\"=\"&List!$A$15)","v":0},{"$f":"SUMIFS(InputHours,InputArea,\"=\"&List!$B$6,InputTopic,\"=\"&List!$I4,InputMode,\"=\"&List!$A$16)","v":0},{"$f":"SUMIFS(InputHours,InputArea,\"=\"&List!$B$6,InputTopic,\"=\"&List!$I4,InputMode,\"=\"&List!$A$17)","v":0},{"$f":"SUMIFS(InputHours,InputArea,\"=\"&List!$B$6,InputTopic,\"=\"&List!$I4,InputMode,\"=\"&List!$A$18)","v":0},{"$f":"SUMIFS(InputHours,InputArea,\"=\"&List!$B$6,InputTopic,\"=\"&List!$I4,InputMode,\"=\"&List!$A$19)","v":0},{"$f":"COUNTIFS(InputArea,\"=\"&List!$B$6,InputTopic,\"=\"&List!$I4,InputLevel,\"=\"&Input!$A$5)","v":0},{"$f":"COUNTIFS(InputArea,\"=\"&List!$B$6,InputTopic,\"=\"&List!$I4,InputLevel,\"=\"&Input!$A$4)","v":0},{"$f":"COUNTIFS(InputArea,\"=\"&List!$B$6,InputTopic,\"=\"&List!$I4,InputLevel,\"=\"&Input!$A$3)","v":0},{"$f":"COUNTIFS(InputArea,\"=\"&List!$B$6,InputTopic,\"=\"&List!$I4,InputLevel,\"=\"&Input!$A$2)","v":0},{"$f":"COUNTIFS(InputArea,\"=\"&List!$B$6,InputTopic,\"=\"&List!$I4,InputImportance,\"=\"&Input!$E$5)","v":0},{"$f":"COUNTIFS(InputArea,\"=\"&List!$B$6,InputTopic,\"=\"&List!$I4,InputImportance,\"=\"&Input!$E$4)","v":0},{"$f":"COUNTIFS(InputArea,\"=\"&List!$B$6,InputTopic,\"=\"&List!$I4,InputImportance,\"=\"&Input!$E$3)","v":0},{"$f":"COUNTIFS(InputArea,\"=\"&List!$B$6,InputTopic,\"=\"&List!$I4,InputImportance,\"=\"&Input!$E$2)","v":0},{"$f":"COUNTIFS(InputArea,\"=\"&List!$B$6,InputTopic,\"=\"&List!$I4,InputSkill,\"=\"&List!$D$14)","v":0},{"$f":"COUNTIFS(InputArea,\"=\"&List!$B$6,InputTopic,\"=\"&List!$I4,InputSkill,\"=\"&List!$D$15)","v":0},{"$f":"COUNTIFS(InputArea,\"=\"&List!$B$6,InputTopic,\"=\"&List!$I4,InputSkill,\"=\"&List!$D$16)","v":0},{"$f":"COUNTIFS(InputArea,\"=\"&List!$B$6,InputTopic,\"=\"&List!$I4,InputSkill,\"=\"&List!$D$17)","v":0},{"$f":"COUNTIFS(InputArea,\"=\"&List!$B$6,InputTopic,\"=\"&List!$I4,InputSkill,\"=\"&List!$D$18)","v":0},{"$f":"COUNTIFS(InputArea,\"=\"&List!$B$6,InputTopic,\"=\"&List!$I4,InputSkill,\"=\"&List!$D$19)","v":0},0,0,{"v":0,"d":"0.00"},{"v":0,"d":"0.0"}]
["F","T","Geo",null,"Database","Others",{"$f":"COUNTIFS(InputArea,\"=\"&List!$B$6,InputTopic,\"=\"&List!$I5,InputMode,\"=\"&List!$A$14)","v":0},{"$f":"COUNTIFS(InputArea,\"=\"&List!$B$6,InputTopic,\"=\"&List!$I5,InputMode,\"=\"&List!$A$15)","v":0},{"$f":"COUNTIFS(InputArea,\"=\"&List!$B$6,InputTopic,\"=\"&List!$I5,InputMode,\"=\"&List!$A$16)","v":0},{"$f":"COUNTIFS(InputArea,\"=\"&List!$B$6,InputTopic,\"=\"&List!$I5,InputMode,\"=\"&List!$A$17)","v":0},{"$f":"COUNTIFS(InputArea,\"=\"&List!$B$6,InputTopic,\"=\"&List!$I5,InputMode,\"=\"&List!$A$18)","v":0},{"$f":"COUNTIFS(InputArea,\"=\"&List!$B$6,InputTopic,\"=\"&List!$I5,InputMode,\"=\"&List!$A$19)","v":0},{"$f":"SUMIFS(InputHours,InputArea,\"=\"&List!$B$6,InputTopic,\"=\"&List!$I5,InputMode,\"=\"&List!$A$14)","v":0},{"$f":"SUMIFS(InputHours,InputArea,\"=\"&List!$B$6,InputTopic,\"=\"&List!$I5,InputMode,\"=\"&List!$A$15)","v":0},{"$f":"SUMIFS(InputHours,InputArea,\"=\"&List!$B$6,InputTopic,\"=\"&List!$I5,InputMode,\"=\"&List!$A$16)","v":0},{"$f":"SUMIFS(InputHours,InputArea,\"=\"&List!$B$6,InputTopic,\"=\"&List!$I5,InputMode,\"=\"&List!$A$17)","v":0},{"$f":"SUMIFS(InputHours,InputArea,\"=\"&List!$B$6,InputTopic,\"=\"&List!$I5,InputMode,\"=\"&List!$A$18)","v":0},{"$f":"SUMIFS(InputHours,InputArea,\"=\"&List!$B$6,InputTopic,\"=\"&List!$I5,InputMode,\"=\"&List!$A$19)","v":0},{"$f":"COUNTIFS(InputArea,\"=\"&List!$B$6,InputTopic,\"=\"&List!$I5,InputLevel,\"=\"&Input!$A$5)","v":0},{"$f":"COUNTIFS(InputArea,\"=\"&List!$B$6,InputTopic,\"=\"&List!$I5,InputLevel,\"=\"&Input!$A$4)","v":0},{"$f":"COUNTIFS(InputArea,\"=\"&List!$B$6,InputTopic,\"=\"&List!$I5,InputLevel,\"=\"&Input!$A$3)","v":0},{"$f":"COUNTIFS(InputArea,\"=\"&List!$B$6,InputTopic,\"=\"&List!$I5,InputLevel,\"=\"&Input!$A$2)","v":0},{"$f":"COUNTIFS(InputArea,\"=\"&List!$B$6,InputTopic,\"=\"&List!$I5,InputImportance,\"=\"&Input!$E$5)","v":0},{"$f":"COUNTIFS(InputArea,\"=\"&List!$B$6,InputTopic,\"=\"&List!$I5,InputImportance,\"=\"&Input!$E$4)","v":0},{"$f":"COUNTIFS(InputArea,\"=\"&List!$B$6,InputTopic,\"=\"&List!$I5,InputImportance,\"=\"&Input!$E$3)","v":0},{"$f":"COUNTIFS(InputArea,\"=\"&List!$B$6,InputTopic,\"=\"&List!$I5,InputImportance,\"=\"&Input!$E$2)","v":0},{"$f":"COUNTIFS(InputArea,\"=\"&List!$B$6,InputTopic,\"=\"&List!$I5,InputSkill,\"=\"&List!$D$14)","v":0},{"$f":"COUNTIFS(InputArea,\"=\"&List!$B$6,InputTopic,\"=\"&List!$I5,InputSkill,\"=\"&List!$D$15)","v":0},{"$f":"COUNTIFS(InputArea,\"=\"&List!$B$6,InputTopic,\"=\"&List!$I5,InputSkill,\"=\"&List!$D$16)","v":0},{"$f":"COUNTIFS(InputArea,\"=\"&List!$B$6,InputTopic,\"=\"&List!$I5,InputSkill,\"=\"&List!$D$17)","v":0},{"$f":"COUNTIFS(InputArea,\"=\"&List!$B$6,InputTopic,\"=\"&List!$I5,InputSkill,\"=\"&List!$D$18)","v":0},{"$f":"COUNTIFS(InputArea,\"=\"&List!$B$6,InputTopic,\"=\"&List!$I5,InputSkill,\"=\"&List!$D$19)","v":0},{"$f":"SUM(G21:L21)","v":0},{"$f":"SUM(M21:R21)","v":0},{"$f":"IFERROR(((W21*$W$2)+(X21*$X$2)+(Y21*$Y$2)+(Z21*$Z$2))/AG21,0)","v":{"v":0,"d":"0.00"}},{"v":0,"d":"0.0"}]
["F","T","Gen","FOUNDATION","Math","Geometry",{"$f":"COUNTIFS(InputArea,\"=\"&List!$B$7,InputTopic,\"=\"&List!$J2,InputMode,\"=\"&List!$A$14)","v":0},{"$f":"COUNTIFS(InputArea,\"=\"&List!$B$7,InputTopic,\"=\"&List!$J2,InputMode,\"=\"&List!$A$15)","v":0},{"$f":"COUNTIFS(InputArea,\"=\"&List!$B$7,InputTopic,\"=\"&List!$J2,InputMode,\"=\"&List!$A$16)","v":0},{"$f":"COUNTIFS(InputArea,\"=\"&List!$B$7,InputTopic,\"=\"&List!$J2,InputMode,\"=\"&List!$A$17)","v":0},{"$f":"COUNTIFS(InputArea,\"=\"&List!$B$7,InputTopic,\"=\"&List!$J2,InputMode,\"=\"&List!$A$18)","v":0},{"$f":"COUNTIFS(InputArea,\"=\"&List!$B$7,InputTopic,\"=\"&List!$J2,InputMode,\"=\"&List!$A$19)","v":0},{"$f":"SUMIFS(InputHours,InputArea,\"=\"&List!$B$7,InputTopic,\"=\"&List!$J2,InputMode,\"=\"&List!$A$14)","v":0},{"$f":"SUMIFS(InputHours,InputArea,\"=\"&List!$B$7,InputTopic,\"=\"&List!$J2,InputMode,\"=\"&List!$A$15)","v":0},{"$f":"SUMIFS(InputHours,InputArea,\"=\"&List!$B$7,InputTopic,\"=\"&List!$J2,InputMode,\"=\"&List!$A$16)","v":0},{"$f":"SUMIFS(InputHours,InputArea,\"=\"&List!$B$7,InputTopic,\"=\"&List!$J2,InputMode,\"=\"&List!$A$17)","v":0},{"$f":"SUMIFS(InputHours,InputArea,\"=\"&List!$B$7,InputTopic,\"=\"&List!$J2,InputMode,\"=\"&List!$A$18)","v":0},{"$f":"SUMIFS(InputHours,InputArea,\"=\"&List!$B$7,InputTopic,\"=\"&List!$J2,InputMode,\"=\"&List!$A$19)","v":0},{"$f":"COUNTIFS(InputArea,\"=\"&List!$B$7,InputTopic,\"=\"&List!$J2,InputLevel,\"=\"&Input!$A$5)","v":0},{"$f":"COUNTIFS(InputArea,\"=\"&List!$B$7,InputTopic,\"=\"&List!$J2,InputLevel,\"=\"&Input!$A$4)","v":0},{"$f":"COUNTIFS(InputArea,\"=\"&List!$B$7,InputTopic,\"=\"&List!$J2,InputLevel,\"=\"&Input!$A$3)","v":0},{"$f":"COUNTIFS(InputArea,\"=\"&List!$B$7,InputTopic,\"=\"&List!$J2,InputLevel,\"=\"&Input!$A$2)","v":0},{"$f":"COUNTIFS(InputArea,\"=\"&List!$B$7,InputTopic,\"=\"&List!$J2,InputImportance,\"=\"&Input!$E$5)","v":0},{"$f":"COUNTIFS(InputArea,\"=\"&List!$B$7,InputTopic,\"=\"&List!$J2,InputImportance,\"=\"&Input!$E$4)","v":0},{"$f":"COUNTIFS(InputArea,\"=\"&List!$B$7,InputTopic,\"=\"&List!$J2,InputImportance,\"=\"&Input!$E$3)","v":0},{"$f":"COUNTIFS(InputArea,\"=\"&List!$B$7,InputTopic,\"=\"&List!$J2,InputImportance,\"=\"&Input!$E$2)","v":0},{"$f":"COUNTIFS(InputArea,\"=\"&List!$B$7,InputTopic,\"=\"&List!$J2,InputSkill,\"=\"&List!$D$14)","v":0},{"$f":"COUNTIFS(InputArea,\"=\"&List!$B$7,InputTopic,\"=\"&List!$J2,InputSkill,\"=\"&List!$D$15)","v":0},{"$f":"COUNTIFS(InputArea,\"=\"&List!$B$7,InputTopic,\"=\"&List!$J2,InputSkill,\"=\"&List!$D$16)","v":0},{"$f":"COUNTIFS(InputArea,\"=\"&List!$B$7,InputTopic,\"=\"&List!$J2,InputSkill,\"=\"&List!$D$17)","v":0},{"$f":"COUNTIFS(InputArea,\"=\"&List!$B$7,InputTopic,\"=\"&List!$J2,InputSkill,\"=\"&List!$D$18)","v":0},{"$f":"COUNTIFS(InputArea,\"=\"&List!$B$7,InputTopic,\"=\"&List!$J2,InputSkill,\"=\"&List!$D$19)","v":0},{"$f":"SUM(G22:L22)","v":0},{"$f":"SUM(M22:R22)","v":0},{"$f":"IFERROR(((W22*$W$2)+(X22*$X$2)+(Y22*$Y$2)+(Z22*$Z$2))/AG22,0)","v":{"v":0,"d":"0.00"}},{"v":0,"d":"0.0"}]
["F","T","Gen",null,"Math","Algebra",{"$f":"COUNTIFS(InputArea,\"=\"&List!$B$7,InputTopic,\"=\"&List!$J3,InputMode,\"=\"&List!$A$14)","v":0},{"$f":"COUNTIFS(InputArea,\"=\"&List!$B$7,InputTopic,\"=\"&List!$J3,InputMode,\"=\"&List!$A$15)","v":0},{"$f":"COUNTIFS(InputArea,\"=\"&List!$B$7,InputTopic,\"=\"&List!$J3,InputMode,\"=\"&List!$A$16)","v":0},{"$f":"COUNTIFS(InputArea,\"=\"&List!$B$7,InputTopic,\"=\"&List!$J3,InputMode,\"=\"&List!$A$17)","v":0},{"$f":"COUNTIFS(InputArea,\"=\"&List!$B$7,InputTopic,\"=\"&List!$J3,InputMode,\"=\"&List!$A$18)","v":0},{"$f":"COUNTIFS(InputArea,\"=\"&List!$B$7,InputTopic,\"=\"&List!$J3,InputMode,\"=\"&List!$A$19)","v":0},{"$f":"SUMIFS(InputHours,InputArea,\"=\"&List!$B$7,InputTopic,\"=\"&List!$J3,InputMode,\"=\"&List!$A$14)","v":0},{"$f":"SUMIFS(InputHours,InputArea,\"=\"&List!$B$7,InputTopic,\"=\"&List!$J3,InputMode,\"=\"&List!$A$15)","v":0},{"$f":"SUMIFS(InputHours,InputArea,\"=\"&List!$B$7,InputTopic,\"=\"&List!$J3,InputMode,\"=\"&List!$A$16)","v":0},{"$f":"SUMIFS(InputHours,InputArea,\"=\"&List!$B$7,InputTopic,\"=\"&List!$J3,InputMode,\"=\"&List!$A$17)","v":0},{"$f":"SUMIFS(InputHours,InputArea,\"=\"&List!$B$7,InputTopic,\"=\"&List!$J3,InputMode,\"=\"&List!$A$18)","v":0},{"$f":"SUMIFS(InputHours,InputArea,\"=\"&List!$B$7,InputTopic,\"=\"&List!$J3,InputMode,\"=\"&List!$A$19)","v":0},{"$f":"COUNTIFS(InputArea,\"=\"&List!$B$7,InputTopic,\"=\"&List!$J3,InputLevel,\"=\"&Input!$A$5)","v":0},{"$f":"COUNTIFS(InputArea,\"=\"&List!$B$7,InputTopic,\"=\"&List!$J3,InputLevel,\"=\"&Input!$A$4)","v":0},{"$f":"COUNTIFS(InputArea,\"=\"&List!$B$7,InputTopic,\"=\"&List!$J3,InputLevel,\"=\"&Input!$A$3)","v":0},{"$f":"COUNTIFS(InputArea,\"=\"&List!$B$7,InputTopic,\"=\"&List!$J3,InputLevel,\"=\"&Input!$A$2)","v":0},{"$f":"COUNTIFS(InputArea,\"=\"&List!$B$7,InputTopic,\"=\"&List!$J3,InputImportance,\"=\"&Input!$E$5)","v":0},{"$f":"COUNTIFS(InputArea,\"=\"&List!$B$7,InputTopic,\"=\"&List!$J3,InputImportance,\"=\"&Input!$E$4)","v":0},{"$f":"COUNTIFS(InputArea,\"=\"&List!$B$7,InputTopic,\"=\"&List!$J3,InputImportance,\"=\"&Input!$E$3)","v":0},{"$f":"COUNTIFS(InputArea,\"=\"&List!$B$7,InputTopic,\"=\"&List!$J3,InputImportance,\"=\"&Input!$E$2)","v":0},{"$f":"COUNTIFS(InputArea,\"=\"&List!$B$7,InputTopic,\"=\"&List!$J3,InputSkill,\"=\"&List!$D$14)","v":0},{"$f":"COUNTIFS(InputArea,\"=\"&List!$B$7,InputTopic,\"=\"&List!$J3,InputSkill,\"=\"&List!$D$15)","v":0},{"$f":"COUNTIFS(InputArea,\"=\"&List!$B$7,InputTopic,\"=\"&List!$J3,InputSkill,\"=\"&List!$D$16)","v":0},{"$f":"COUNTIFS(InputArea,\"=\"&List!$B$7,InputTopic,\"=\"&List!$J3,InputSkill,\"=\"&List!$D$17)","v":0},{"$f":"COUNTIFS(InputArea,\"=\"&List!$B$7,InputTopic,\"=\"&List!$J3,InputSkill,\"=\"&List!$D$18)","v":0},{"$f":"COUNTIFS(InputArea,\"=\"&List!$B$7,InputTopic,\"=\"&List!$J3,InputSkill,\"=\"&List!$D$19)","v":0},0,0,{"v":0,"d":"0.00"},{"v":0,"d":"0.0"}]
["F","T","Gen",null,"Math","Trigonometry",{"$f":"COUNTIFS(InputArea,\"=\"&List!$B$7,InputTopic,\"=\"&List!$J4,InputMode,\"=\"&List!$A$14)","v":0},{"$f":"COUNTIFS(InputArea,\"=\"&List!$B$7,InputTopic,\"=\"&List!$J4,InputMode,\"=\"&List!$A$15)","v":0},{"$f":"COUNTIFS(InputArea,\"=\"&List!$B$7,InputTopic,\"=\"&List!$J4,InputMode,\"=\"&List!$A$16)","v":0},{"$f":"COUNTIFS(InputArea,\"=\"&List!$B$7,InputTopic,\"=\"&List!$J4,InputMode,\"=\"&List!$A$17)","v":0},{"$f":"COUNTIFS(InputArea,\"=\"&List!$B$7,InputTopic,\"=\"&List!$J4,InputMode,\"=\"&List!$A$18)","v":0},{"$f":"COUNTIFS(InputArea,\"=\"&List!$B$7,InputTopic,\"=\"&List!$J4,InputMode,\"=\"&List!$A$19)","v":0},{"$f":"SUMIFS(InputHours,InputArea,\"=\"&List!$B$7,InputTopic,\"=\"&List!$J4,InputMode,\"=\"&List!$A$14)","v":0},{"$f":"SUMIFS(InputHours,InputArea,\"=\"&List!$B$7,InputTopic,\"=\"&List!$J4,InputMode,\"=\"&List!$A$15)","v":0},{"$f":"SUMIFS(InputHours,InputArea,\"=\"&List!$B$7,InputTopic,\"=\"&List!$J4,InputMode,\"=\"&List!$A$16)","v":0},{"$f":"SUMIFS(InputHours,InputArea,\"=\"&List!$B$7,InputTopic,\"=\"&List!$J4,InputMode,\"=\"&List!$A$17)","v":0},{"$f":"SUMIFS(InputHours,InputArea,\"=\"&List!$B$7,InputTopic,\"=\"&List!$J4,InputMode,\"=\"&List!$A$18)","v":0},{"$f":"SUMIFS(InputHours,InputArea,\"=\"&List!$B$7,InputTopic,\"=\"&List!$J4,InputMode,\"=\"&List!$A$19)","v":0},{"$f":"COUNTIFS(InputArea,\"=\"&List!$B$7,InputTopic,\"=\"&List!$J4,InputLevel,\"=\"&Input!$A$5)","v":0},{"$f":"COUNTIFS(InputArea,\"=\"&List!$B$7,InputTopic,\"=\"&List!$J4,InputLevel,\"=\"&Input!$A$4)","v":0},{"$f":"COUNTIFS(InputArea,\"=\"&List!$B$7,InputTopic,\"=\"&List!$J4,InputLevel,\"=\"&Input!$A$3)","v":0},{"$f":"COUNTIFS(InputArea,\"=\"&List!$B$7,InputTopic,\"=\"&List!$J4,InputLevel,\"=\"&Input!$A$2)","v":0},{"$f":"COUNTIFS(InputArea,\"=\"&List!$B$7,InputTopic,\"=\"&List!$J4,InputImportance,\"=\"&Input!$E$5)","v":0},{"$f":"COUNTIFS(InputArea,\"=\"&List!$B$7,InputTopic,\"=\"&List!$J4,InputImportance,\"=\"&Input!$E$4)","v":0},{"$f":"COUNTIFS(InputArea,\"=\"&List!$B$7,InputTopic,\"=\"&List!$J4,InputImportance,\"=\"&Input!$E$3)","v":0},{"$f":"COUNTIFS(InputArea,\"=\"&List!$B$7,InputTopic,\"=\"&List!$J4,InputImportance,\"=\"&Input!$E$2)","v":0},{"$f":"COUNTIFS(InputArea,\"=\"&List!$B$7,InputTopic,\"=\"&List!$J4,InputSkill,\"=\"&List!$D$14)","v":0},{"$f":"COUNTIFS(InputArea,\"=\"&List!$B$7,InputTopic,\"=\"&List!$J4,InputSkill,\"=\"&List!$D$15)","v":0},{"$f":"COUNTIFS(InputArea,\"=\"&List!$B$7,InputTopic,\"=\"&List!$J4,InputSkill,\"=\"&List!$D$16)","v":0},{"$f":"COUNTIFS(InputArea,\"=\"&List!$B$7,InputTopic,\"=\"&List!$J4,InputSkill,\"=\"&List!$D$17)","v":0},{"$f":"COUNTIFS(InputArea,\"=\"&List!$B$7,InputTopic,\"=\"&List!$J4,InputSkill,\"=\"&List!$D$18)","v":0},{"$f":"COUNTIFS(InputArea,\"=\"&List!$B$7,InputTopic,\"=\"&List!$J4,InputSkill,\"=\"&List!$D$19)","v":0},0,0,{"v":0,"d":"0.00"},{"v":0,"d":"0.0"}]
["F","T","Gen",null,"Math","Statistics",{"$f":"COUNTIFS(InputArea,\"=\"&List!$B$7,InputTopic,\"=\"&List!$J5,InputMode,\"=\"&List!$A$14)","v":0},{"$f":"COUNTIFS(InputArea,\"=\"&List!$B$7,InputTopic,\"=\"&List!$J5,InputMode,\"=\"&List!$A$15)","v":0},{"$f":"COUNTIFS(InputArea,\"=\"&List!$B$7,InputTopic,\"=\"&List!$J5,InputMode,\"=\"&List!$A$16)","v":0},{"$f":"COUNTIFS(InputArea,\"=\"&List!$B$7,InputTopic,\"=\"&List!$J5,InputMode,\"=\"&List!$A$17)","v":0},{"$f":"COUNTIFS(InputArea,\"=\"&List!$B$7,InputTopic,\"=\"&List!$J5,InputMode,\"=\"&List!$A$18)","v":0},{"$f":"COUNTIFS(InputArea,\"=\"&List!$B$7,InputTopic,\"=\"&List!$J5,InputMode,\"=\"&List!$A$19)","v":0},{"$f":"SUMIFS(InputHours,InputArea,\"=\"&List!$B$7,InputTopic,\"=\"&List!$J5,InputMode,\"=\"&List!$A$14)","v":0},{"$f":"SUMIFS(InputHours,InputArea,\"=\"&List!$B$7,InputTopic,\"=\"&List!$J5,InputMode,\"=\"&List!$A$15)","v":0},{"$f":"SUMIFS(InputHours,InputArea,\"=\"&List!$B$7,InputTopic,\"=\"&List!$J5,InputMode,\"=\"&List!$A$16)","v":0},{"$f":"SUMIFS(InputHours,InputArea,\"=\"&List!$B$7,InputTopic,\"=\"&List!$J5,InputMode,\"=\"&List!$A$17)","v":0},{"$f":"SUMIFS(InputHours,InputArea,\"=\"&List!$B$7,InputTopic,\"=\"&List!$J5,InputMode,\"=\"&List!$A$18)","v":0},{"$f":"SUMIFS(InputHours,InputArea,\"=\"&List!$B$7,InputTopic,\"=\"&List!$J5,InputMode,\"=\"&List!$A$19)","v":0},{"$f":"COUNTIFS(InputArea,\"=\"&List!$B$7,InputTopic,\"=\"&List!$J5,InputLevel,\"=\"&Input!$A$5)","v":0},{"$f":"COUNTIFS(InputArea,\"=\"&List!$B$7,InputTopic,\"=\"&List!$J5,InputLevel,\"=\"&Input!$A$4)","v":0},{"$f":"COUNTIFS(InputArea,\"=\"&List!$B$7,InputTopic,\"=\"&List!$J5,InputLevel,\"=\"&Input!$A$3)","v":0},{"$f":"COUNTIFS(InputArea,\"=\"&List!$B$7,InputTopic,\"=\"&List!$J5,InputLevel,\"=\"&Input!$A$2)","v":0},{"$f":"COUNTIFS(InputArea,\"=\"&List!$B$7,InputTopic,\"=\"&List!$J5,InputImportance,\"=\"&Input!$E$5)","v":0},{"$f":"COUNTIFS(InputArea,\"=\"&List!$B$7,InputTopic,\"=\"&List!$J5,InputImportance,\"=\"&Input!$E$4)","v":0},{"$f":"COUNTIFS(InputArea,\"=\"&List!$B$7,InputTopic,\"=\"&List!$J5,InputImportance,\"=\"&Input!$E$3)","v":0},{"$f":"COUNTIFS(InputArea,\"=\"&List!$B$7,InputTopic,\"=\"&List!$J5,InputImportance,\"=\"&Input!$E$2)","v":0},{"$f":"COUNTIFS(InputArea,\"=\"&List!$B$7,InputTopic,\"=\"&List!$J5,InputSkill,\"=\"&List!$D$14)","v":0},{"$f":"COUNTIFS(InputArea,\"=\"&List!$B$7,InputTopic,\"=\"&List!$J5,InputSkill,\"=\"&List!$D$15)","v":0},{"$f":"COUNTIFS(InputArea,\"=\"&List!$B$7,InputTopic,\"=\"&List!$J5,InputSkill,\"=\"&List!$D$16)","v":0},{"$f":"COUNTIFS(InputArea,\"=\"&List!$B$7,InputTopic,\"=\"&List!$J5,InputSkill,\"=\"&List!$D$17)","v":0},{"$f":"COUNTIFS(InputArea,\"=\"&List!$B$7,InputTopic,\"=\"&List!$J5,InputSkill,\"=\"&List!$D$18)","v":0},{"$f":"COUNTIFS(InputArea,\"=\"&List!$B$7,InputTopic,\"=\"&List!$J5,InputSkill,\"=\"&List!$D$19)","v":0},0,0,{"v":0,"d":"0.00"},{"v":0,"d":"0.0"}]
["F","T","Gen",null,"Math","Numbers, Functions & Operations",{"$f":"COUNTIFS(InputArea,\"=\"&List!$B$7,InputTopic,\"=\"&List!$J6,InputMode,\"=\"&List!$A$14)","v":0},{"$f":"COUNTIFS(InputArea,\"=\"&List!$B$7,InputTopic,\"=\"&List!$J6,InputMode,\"=\"&List!$A$15)","v":0},{"$f":"COUNTIFS(InputArea,\"=\"&List!$B$7,InputTopic,\"=\"&List!$J6,InputMode,\"=\"&List!$A$16)","v":0},{"$f":"COUNTIFS(InputArea,\"=\"&List!$B$7,InputTopic,\"=\"&List!$J6,InputMode,\"=\"&List!$A$17)","v":0},{"$f":"COUNTIFS(InputArea,\"=\"&List!$B$7,InputTopic,\"=\"&List!$J6,InputMode,\"=\"&List!$A$18)","v":0},{"$f":"COUNTIFS(InputArea,\"=\"&List!$B$7,InputTopic,\"=\"&List!$J6,InputMode,\"=\"&List!$A$19)","v":0},{"$f":"SUMIFS(InputHours,InputArea,\"=\"&List!$B$7,InputTopic,\"=\"&List!$J6,InputMode,\"=\"&List!$A$14)","v":0},{"$f":"SUMIFS(InputHours,InputArea,\"=\"&List!$B$7,InputTopic,\"=\"&List!$J6,InputMode,\"=\"&List!$A$15)","v":0},{"$f":"SUMIFS(InputHours,InputArea,\"=\"&List!$B$7,InputTopic,\"=\"&List!$J6,InputMode,\"=\"&List!$A$16)","v":0},{"$f":"SUMIFS(InputHours,InputArea,\"=\"&List!$B$7,InputTopic,\"=\"&List!$J6,InputMode,\"=\"&List!$A$17)","v":0},{"$f":"SUMIFS(InputHours,InputArea,\"=\"&List!$B$7,InputTopic,\"=\"&List!$J6,InputMode,\"=\"&List!$A$18)","v":0},{"$f":"SUMIFS(InputHours,InputArea,\"=\"&List!$B$7,InputTopic,\"=\"&List!$J6,InputMode,\"=\"&List!$A$19)","v":0},{"$f":"COUNTIFS(InputArea,\"=\"&List!$B$7,InputTopic,\"=\"&List!$J6,InputLevel,\"=\"&Input!$A$5)","v":0},{"$f":"COUNTIFS(InputArea,\"=\"&List!$B$7,InputTopic,\"=\"&List!$J6,InputLevel,\"=\"&Input!$A$4)","v":0},{"$f":"COUNTIFS(InputArea,\"=\"&List!$B$7,InputTopic,\"=\"&List!$J6,InputLevel,\"=\"&Input!$A$3)","v":0},{"$f":"COUNTIFS(InputArea,\"=\"&List!$B$7,InputTopic,\"=\"&List!$J6,InputLevel,\"=\"&Input!$A$2)","v":0},{"$f":"COUNTIFS(InputArea,\"=\"&List!$B$7,InputTopic,\"=\"&List!$J6,InputImportance,\"=\"&Input!$E$5)","v":0},{"$f":"COUNTIFS(InputArea,\"=\"&List!$B$7,InputTopic,\"=\"&List!$J6,InputImportance,\"=\"&Input!$E$4)","v":0},{"$f":"COUNTIFS(InputArea,\"=\"&List!$B$7,InputTopic,\"=\"&List!$J6,InputImportance,\"=\"&Input!$E$3)","v":0},{"$f":"COUNTIFS(InputArea,\"=\"&List!$B$7,InputTopic,\"=\"&List!$J6,InputImportance,\"=\"&Input!$E$2)","v":0},{"$f":"COUNTIFS(InputArea,\"=\"&List!$B$7,InputTopic,\"=\"&List!$J6,InputSkill,\"=\"&List!$D$14)","v":0},{"$f":"COUNTIFS(InputArea,\"=\"&List!$B$7,InputTopic,\"=\"&List!$J6,InputSkill,\"=\"&List!$D$15)","v":0},{"$f":"COUNTIFS(InputArea,\"=\"&List!$B$7,InputTopic,\"=\"&List!$J6,InputSkill,\"=\"&List!$D$16)","v":0},{"$f":"COUNTIFS(InputArea,\"=\"&List!$B$7,InputTopic,\"=\"&List!$J6,InputSkill,\"=\"&List!$D$17)","v":0},{"$f":"COUNTIFS(InputArea,\"=\"&List!$B$7,InputTopic,\"=\"&List!$J6,InputSkill,\"=\"&List!$D$18)","v":0},{"$f":"COUNTIFS(InputArea,\"=\"&List!$B$7,InputTopic,\"=\"&List!$J6,InputSkill,\"=\"&List!$D$19)","v":0},0,0,{"v":0,"d":"0.00"},{"v":0,"d":"0.0"}]
["F","T","Gen",null,"Math","Calculus & Differential Equations",{"$f":"COUNTIFS(InputArea,\"=\"&List!$B$7,InputTopic,\"=\"&List!$J7,InputMode,\"=\"&List!$A$14)","v":0},{"$f":"COUNTIFS(InputArea,\"=\"&List!$B$7,InputTopic,\"=\"&List!$J7,InputMode,\"=\"&List!$A$15)","v":0},{"$f":"COUNTIFS(InputArea,\"=\"&List!$B$7,InputTopic,\"=\"&List!$J7,InputMode,\"=\"&List!$A$16)","v":0},{"$f":"COUNTIFS(InputArea,\"=\"&List!$B$7,InputTopic,\"=\"&List!$J7,InputMode,\"=\"&List!$A$17)","v":0},{"$f":"COUNTIFS(InputArea,\"=\"&List!$B$7,InputTopic,\"=\"&List!$J7,InputMode,\"=\"&List!$A$18)","v":0},{"$f":"COUNTIFS(InputArea,\"=\"&List!$B$7,InputTopic,\"=\"&List!$J7,InputMode,\"=\"&List!$A$19)","v":0},{"$f":"SUMIFS(InputHours,InputArea,\"=\"&List!$B$7,InputTopic,\"=\"&List!$J7,InputMode,\"=\"&List!$A$14)","v":0},{"$f":"SUMIFS(InputHours,InputArea,\"=\"&List!$B$7,InputTopic,\"=\"&List!$J7,InputMode,\"=\"&List!$A$15)","v":0},{"$f":"SUMIFS(InputHours,InputArea,\"=\"&List!$B$7,InputTopic,\"=\"&List!$J7,InputMode,\"=\"&List!$A$16)","v":0},{"$f":"SUMIFS(InputHours,InputArea,\"=\"&List!$B$7,InputTopic,\"=\"&List!$J7,InputMode,\"=\"&List!$A$17)","v":0},{"$f":"SUMIFS(InputHours,InputArea,\"=\"&List!$B$7,InputTopic,\"=\"&List!$J7,InputMode,\"=\"&List!$A$18)","v":0},{"$f":"SUMIFS(InputHours,InputArea,\"=\"&List!$B$7,InputTopic,\"=\"&List!$J7,InputMode,\"=\"&List!$A$19)","v":0},{"$f":"COUNTIFS(InputArea,\"=\"&List!$B$7,InputTopic,\"=\"&List!$J7,InputLevel,\"=\"&Input!$A$5)","v":0},{"$f":"COUNTIFS(InputArea,\"=\"&List!$B$7,InputTopic,\"=\"&List!$J7,InputLevel,\"=\"&Input!$A$4)","v":0},{"$f":"COUNTIFS(InputArea,\"=\"&List!$B$7,InputTopic,\"=\"&List!$J7,InputLevel,\"=\"&Input!$A$3)","v":0},{"$f":"COUNTIFS(InputArea,\"=\"&List!$B$7,InputTopic,\"=\"&List!$J7,InputLevel,\"=\"&Input!$A$2)","v":0},{"$f":"COUNTIFS(InputArea,\"=\"&List!$B$7,InputTopic,\"=\"&List!$J7,InputImportance,\"=\"&Input!$E$5)","v":0},{"$f":"COUNTIFS(InputArea,\"=\"&List!$B$7,InputTopic,\"=\"&List!$J7,InputImportance,\"=\"&Input!$E$4)","v":0},{"$f":"COUNTIFS(InputArea,\"=\"&List!$B$7,InputTopic,\"=\"&List!$J7,InputImportance,\"=\"&Input!$E$3)","v":0},{"$f":"COUNTIFS(InputArea,\"=\"&List!$B$7,InputTopic,\"=\"&List!$J7,InputImportance,\"=\"&Input!$E$2)","v":0},{"$f":"COUNTIFS(InputArea,\"=\"&List!$B$7,InputTopic,\"=\"&List!$J7,InputSkill,\"=\"&List!$D$14)","v":0},{"$f":"COUNTIFS(InputArea,\"=\"&List!$B$7,InputTopic,\"=\"&List!$J7,InputSkill,\"=\"&List!$D$15)","v":0},{"$f":"COUNTIFS(InputArea,\"=\"&List!$B$7,InputTopic,\"=\"&List!$J7,InputSkill,\"=\"&List!$D$16)","v":0},{"$f":"COUNTIFS(InputArea,\"=\"&List!$B$7,InputTopic,\"=\"&List!$J7,InputSkill,\"=\"&List!$D$17)","v":0},{"$f":"COUNTIFS(InputArea,\"=\"&List!$B$7,InputTopic,\"=\"&List!$J7,InputSkill,\"=\"&List!$D$18)","v":0},{"$f":"COUNTIFS(InputArea,\"=\"&List!$B$7,InputTopic,\"=\"&List!$J7,InputSkill,\"=\"&List!$D$19)","v":0},0,0,{"v":0,"d":"0.00"},{"v":0,"d":"0.0"}]
["F","T","Gen",null,"Math","Set Theory",{"$f":"COUNTIFS(InputArea,\"=\"&List!$B$7,InputTopic,\"=\"&List!$J8,InputMode,\"=\"&List!$A$14)","v":0},{"$f":"COUNTIFS(InputArea,\"=\"&List!$B$7,InputTopic,\"=\"&List!$J8,InputMode,\"=\"&List!$A$15)","v":0},{"$f":"COUNTIFS(InputArea,\"=\"&List!$B$7,InputTopic,\"=\"&List!$J8,InputMode,\"=\"&List!$A$16)","v":0},{"$f":"COUNTIFS(InputArea,\"=\"&List!$B$7,InputTopic,\"=\"&List!$J8,InputMode,\"=\"&List!$A$17)","v":0},{"$f":"COUNTIFS(InputArea,\"=\"&List!$B$7,InputTopic,\"=\"&List!$J8,InputMode,\"=\"&List!$A$18)","v":0},{"$f":"COUNTIFS(InputArea,\"=\"&List!$B$7,InputTopic,\"=\"&List!$J8,InputMode,\"=\"&List!$A$19)","v":0},{"$f":"SUMIFS(InputHours,InputArea,\"=\"&List!$B$7,InputTopic,\"=\"&List!$J8,InputMode,\"=\"&List!$A$14)","v":0},{"$f":"SUMIFS(InputHours,InputArea,\"=\"&List!$B$7,InputTopic,\"=\"&List!$J8,InputMode,\"=\"&List!$A$15)","v":0},{"$f":"SUMIFS(InputHours,InputArea,\"=\"&List!$B$7,InputTopic,\"=\"&List!$J8,InputMode,\"=\"&List!$A$16)","v":0},{"$f":"SUMIFS(InputHours,InputArea,\"=\"&List!$B$7,InputTopic,\"=\"&List!$J8,InputMode,\"=\"&List!$A$17)","v":0},{"$f":"SUMIFS(InputHours,InputArea,\"=\"&List!$B$7,InputTopic,\"=\"&List!$J8,InputMode,\"=\"&List!$A$18)","v":0},{"$f":"SUMIFS(InputHours,InputArea,\"=\"&List!$B$7,InputTopic,\"=\"&List!$J8,InputMode,\"=\"&List!$A$19)","v":0},{"$f":"COUNTIFS(InputArea,\"=\"&List!$B$7,InputTopic,\"=\"&List!$J8,InputLevel,\"=\"&Input!$A$5)","v":0},{"$f":"COUNTIFS(InputArea,\"=\"&List!$B$7,InputTopic,\"=\"&List!$J8,InputLevel,\"=\"&Input!$A$4)","v":0},{"$f":"COUNTIFS(InputArea,\"=\"&List!$B$7,InputTopic,\"=\"&List!$J8,InputLevel,\"=\"&Input!$A$3)","v":0},{"$f":"COUNTIFS(InputArea,\"=\"&List!$B$7,InputTopic,\"=\"&List!$J8,InputLevel,\"=\"&Input!$A$2)","v":0},{"$f":"COUNTIFS(InputArea,\"=\"&List!$B$7,InputTopic,\"=\"&List!$J8,InputImportance,\"=\"&Input!$E$5)","v":0},{"$f":"COUNTIFS(InputArea,\"=\"&List!$B$7,InputTopic,\"=\"&List!$J8,InputImportance,\"=\"&Input!$E$4)","v":0},{"$f":"COUNTIFS(InputArea,\"=\"&List!$B$7,InputTopic,\"=\"&List!$J8,InputImportance,\"=\"&Input!$E$3)","v":0},{"$f":"COUNTIFS(InputArea,\"=\"&List!$B$7,InputTopic,\"=\"&List!$J8,InputImportance,\"=\"&Input!$E$2)","v":0},{"$f":"COUNTIFS(InputArea,\"=\"&List!$B$7,InputTopic,\"=\"&List!$J8,InputSkill,\"=\"&List!$D$14)","v":0},{"$f":"COUNTIFS(InputArea,\"=\"&List!$B$7,InputTopic,\"=\"&List!$J8,InputSkill,\"=\"&List!$D$15)","v":0},{"$f":"COUNTIFS(InputArea,\"=\"&List!$B$7,InputTopic,\"=\"&List!$J8,InputSkill,\"=\"&List!$D$16)","v":0},{"$f":"COUNTIFS(InputArea,\"=\"&List!$B$7,InputTopic,\"=\"&List!$J8,InputSkill,\"=\"&List!$D$17)","v":0},{"$f":"COUNTIFS(InputArea,\"=\"&List!$B$7,InputTopic,\"=\"&List!$J8,InputSkill,\"=\"&List!$D$18)","v":0},{"$f":"COUNTIFS(InputArea,\"=\"&List!$B$7,InputTopic,\"=\"&List!$J8,InputSkill,\"=\"&List!$D$19)","v":0},0,0,{"v":0,"d":"0.00"},{"v":0,"d":"0.0"}]
["F","T","Gen",null,"Math","Others",{"$f":"COUNTIFS(InputArea,\"=\"&List!$B$7,InputTopic,\"=\"&List!$J9,InputMode,\"=\"&List!$A$14)","v":0},{"$f":"COUNTIFS(InputArea,\"=\"&List!$B$7,InputTopic,\"=\"&List!$J9,InputMode,\"=\"&List!$A$15)","v":0},{"$f":"COUNTIFS(InputArea,\"=\"&List!$B$7,InputTopic,\"=\"&List!$J9,InputMode,\"=\"&List!$A$16)","v":0},{"$f":"COUNTIFS(InputArea,\"=\"&List!$B$7,InputTopic,\"=\"&List!$J9,InputMode,\"=\"&List!$A$17)","v":0},{"$f":"COUNTIFS(InputArea,\"=\"&List!$B$7,InputTopic,\"=\"&List!$J9,InputMode,\"=\"&List!$A$18)","v":0},{"$f":"COUNTIFS(InputArea,\"=\"&List!$B$7,InputTopic,\"=\"&List!$J9,InputMode,\"=\"&List!$A$19)","v":0},{"$f":"SUMIFS(InputHours,InputArea,\"=\"&List!$B$7,InputTopic,\"=\"&List!$J9,InputMode,\"=\"&List!$A$14)","v":0},{"$f":"SUMIFS(InputHours,InputArea,\"=\"&List!$B$7,InputTopic,\"=\"&List!$J9,InputMode,\"=\"&List!$A$15)","v":0},{"$f":"SUMIFS(InputHours,InputArea,\"=\"&List!$B$7,InputTopic,\"=\"&List!$J9,InputMode,\"=\"&List!$A$16)","v":0},{"$f":"SUMIFS(InputHours,InputArea,\"=\"&List!$B$7,InputTopic,\"=\"&List!$J9,InputMode,\"=\"&List!$A$17)","v":0},{"$f":"SUMIFS(InputHours,InputArea,\"=\"&List!$B$7,InputTopic,\"=\"&List!$J9,InputMode,\"=\"&List!$A$18)","v":0},{"$f":"SUMIFS(InputHours,InputArea,\"=\"&List!$B$7,InputTopic,\"=\"&List!$J9,InputMode,\"=\"&List!$A$19)","v":0},{"$f":"COUNTIFS(InputArea,\"=\"&List!$B$7,InputTopic,\"=\"&List!$J9,InputLevel,\"=\"&Input!$A$5)","v":0},{"$f":"COUNTIFS(InputArea,\"=\"&List!$B$7,InputTopic,\"=\"&List!$J9,InputLevel,\"=\"&Input!$A$4)","v":0},{"$f":"COUNTIFS(InputArea,\"=\"&List!$B$7,InputTopic,\"=\"&List!$J9,InputLevel,\"=\"&Input!$A$3)","v":0},{"$f":"COUNTIFS(InputArea,\"=\"&List!$B$7,InputTopic,\"=\"&List!$J9,InputLevel,\"=\"&Input!$A$2)","v":0},{"$f":"COUNTIFS(InputArea,\"=\"&List!$B$7,InputTopic,\"=\"&List!$J9,InputImportance,\"=\"&Input!$E$5)","v":0},{"$f":"COUNTIFS(InputArea,\"=\"&List!$B$7,InputTopic,\"=\"&List!$J9,InputImportance,\"=\"&Input!$E$4)","v":0},{"$f":"COUNTIFS(InputArea,\"=\"&List!$B$7,InputTopic,\"=\"&List!$J9,InputImportance,\"=\"&Input!$E$3)","v":0},{"$f":"COUNTIFS(InputArea,\"=\"&List!$B$7,InputTopic,\"=\"&List!$J9,InputImportance,\"=\"&Input!$E$2)","v":0},{"$f":"COUNTIFS(InputArea,\"=\"&List!$B$7,InputTopic,\"=\"&List!$J9,InputSkill,\"=\"&List!$D$14)","v":0},{"$f":"COUNTIFS(InputArea,\"=\"&List!$B$7,InputTopic,\"=\"&List!$J9,InputSkill,\"=\"&List!$D$15)","v":0},{"$f":"COUNTIFS(InputArea,\"=\"&List!$B$7,InputTopic,\"=\"&List!$J9,InputSkill,\"=\"&List!$D$16)","v":0},{"$f":"COUNTIFS(InputArea,\"=\"&List!$B$7,InputTopic,\"=\"&List!$J9,InputSkill,\"=\"&List!$D$17)","v":0},{"$f":"COUNTIFS(InputArea,\"=\"&List!$B$7,InputTopic,\"=\"&List!$J9,InputSkill,\"=\"&List!$D$18)","v":0},{"$f":"COUNTIFS(InputArea,\"=\"&List!$B$7,InputTopic,\"=\"&List!$J9,InputSkill,\"=\"&List!$D$19)","v":0},0,0,{"v":0,"d":"0.00"},{"v":0,"d":"0.0"}]
["F","T","Gen","FOUNDATION","Physics","Electromagnetic Wave",{"$f":"COUNTIFS(InputArea,\"=\"&List!$B$8,InputTopic,\"=\"&List!$K2,InputMode,\"=\"&List!$A$14)","v":0},{"$f":"COUNTIFS(InputArea,\"=\"&List!$B$8,InputTopic,\"=\"&List!$K2,InputMode,\"=\"&List!$A$15)","v":0},{"$f":"COUNTIFS(InputArea,\"=\"&List!$B$8,InputTopic,\"=\"&List!$K2,InputMode,\"=\"&List!$A$16)","v":0},{"$f":"COUNTIFS(InputArea,\"=\"&List!$B$8,InputTopic,\"=\"&List!$K2,InputMode,\"=\"&List!$A$17)","v":0},{"$f":"COUNTIFS(InputArea,\"=\"&List!$B$8,InputTopic,\"=\"&List!$K2,InputMode,\"=\"&List!$A$18)","v":0},{"$f":"COUNTIFS(InputArea,\"=\"&List!$B$8,InputTopic,\"=\"&List!$K2,InputMode,\"=\"&List!$A$19)","v":0},{"$f":"SUMIFS(InputHours,InputArea,\"=\"&List!$B$8,InputTopic,\"=\"&List!$K2,InputMode,\"=\"&List!$A$14)","v":0},{"$f":"SUMIFS(InputHours,InputArea,\"=\"&List!$B$8,InputTopic,\"=\"&List!$K2,InputMode,\"=\"&List!$A$15)","v":0},{"$f":"SUMIFS(InputHours,InputArea,\"=\"&List!$B$8,InputTopic,\"=\"&List!$K2,InputMode,\"=\"&List!$A$16)","v":0},{"$f":"SUMIFS(InputHours,InputArea,\"=\"&List!$B$8,InputTopic,\"=\"&List!$K2,InputMode,\"=\"&List!$A$17)","v":0},{"$f":"SUMIFS(InputHours,InputArea,\"=\"&List!$B$8,InputTopic,\"=\"&List!$K2,InputMode,\"=\"&List!$A$18)","v":0},{"$f":"SUMIFS(InputHours,InputArea,\"=\"&List!$B$8,InputTopic,\"=\"&List!$K2,InputMode,\"=\"&List!$A$19)","v":0},{"$f":"COUNTIFS(InputArea,\"=\"&List!$B$8,InputTopic,\"=\"&List!$K2,InputLevel,\"=\"&Input!$A$5)","v":0},{"$f":"COUNTIFS(InputArea,\"=\"&List!$B$8,InputTopic,\"=\"&List!$K2,InputLevel,\"=\"&Input!$A$4)","v":0},{"$f":"COUNTIFS(InputArea,\"=\"&List!$B$8,InputTopic,\"=\"&List!$K2,InputLevel,\"=\"&Input!$A$3)","v":0},{"$f":"COUNTIFS(InputArea,\"=\"&List!$B$8,InputTopic,\"=\"&List!$K2,InputLevel,\"=\"&Input!$A$2)","v":0},{"$f":"COUNTIFS(InputArea,\"=\"&List!$B$8,InputTopic,\"=\"&List!$K2,InputImportance,\"=\"&Input!$E$5)","v":0},{"$f":"COUNTIFS(InputArea,\"=\"&List!$B$8,InputTopic,\"=\"&List!$K2,InputImportance,\"=\"&Input!$E$4)","v":0},{"$f":"COUNTIFS(InputArea,\"=\"&List!$B$8,InputTopic,\"=\"&List!$K2,InputImportance,\"=\"&Input!$E$3)","v":0},{"$f":"COUNTIFS(InputArea,\"=\"&List!$B$8,InputTopic,\"=\"&List!$K2,InputImportance,\"=\"&Input!$E$2)","v":0},{"$f":"COUNTIFS(InputArea,\"=\"&List!$B$8,InputTopic,\"=\"&List!$K2,InputSkill,\"=\"&List!$D$14)","v":0},{"$f":"COUNTIFS(InputArea,\"=\"&List!$B$8,InputTopic,\"=\"&List!$K2,InputSkill,\"=\"&List!$D$15)","v":0},{"$f":"COUNTIFS(InputArea,\"=\"&List!$B$8,InputTopic,\"=\"&List!$K2,InputSkill,\"=\"&List!$D$16)","v":0},{"$f":"COUNTIFS(InputArea,\"=\"&List!$B$8,InputTopic,\"=\"&List!$K2,InputSkill,\"=\"&List!$D$17)","v":0},{"$f":"COUNTIFS(InputArea,\"=\"&List!$B$8,InputTopic,\"=\"&List!$K2,InputSkill,\"=\"&List!$D$18)","v":0},{"$f":"COUNTIFS(InputArea,\"=\"&List!$B$8,InputTopic,\"=\"&List!$K2,InputSkill,\"=\"&List!$D$19)","v":0},{"$f":"SUM(G30:L30)","v":0},{"$f":"SUM(M30:R30)","v":0},{"$f":"IFERROR(((W30*$W$2)+(X30*$X$2)+(Y30*$Y$2)+(Z30*$Z$2))/AG30,0)","v":{"v":0,"d":"0.00"}},{"v":0,"d":"0.0"}]
["F","T","Gen",null,"Physics","Wave Propagation, Characteristics & Properties",{"$f":"COUNTIFS(InputArea,\"=\"&List!$B$8,InputTopic,\"=\"&List!$K3,InputMode,\"=\"&List!$A$14)","v":0},{"$f":"COUNTIFS(InputArea,\"=\"&List!$B$8,InputTopic,\"=\"&List!$K3,InputMode,\"=\"&List!$A$15)","v":0},{"$f":"COUNTIFS(InputArea,\"=\"&List!$B$8,InputTopic,\"=\"&List!$K3,InputMode,\"=\"&List!$A$16)","v":0},{"$f":"COUNTIFS(InputArea,\"=\"&List!$B$8,InputTopic,\"=\"&List!$K3,InputMode,\"=\"&List!$A$17)","v":0},{"$f":"COUNTIFS(InputArea,\"=\"&List!$B$8,InputTopic,\"=\"&List!$K3,InputMode,\"=\"&List!$A$18)","v":0},{"$f":"COUNTIFS(InputArea,\"=\"&List!$B$8,InputTopic,\"=\"&List!$K3,InputMode,\"=\"&List!$A$19)","v":0},{"$f":"SUMIFS(InputHours,InputArea,\"=\"&List!$B$8,InputTopic,\"=\"&List!$K3,InputMode,\"=\"&List!$A$14)","v":0},{"$f":"SUMIFS(InputHours,InputArea,\"=\"&List!$B$8,InputTopic,\"=\"&List!$K3,InputMode,\"=\"&List!$A$15)","v":0},{"$f":"SUMIFS(InputHours,InputArea,\"=\"&List!$B$8,InputTopic,\"=\"&List!$K3,InputMode,\"=\"&List!$A$16)","v":0},{"$f":"SUMIFS(InputHours,InputArea,\"=\"&List!$B$8,InputTopic,\"=\"&List!$K3,InputMode,\"=\"&List!$A$17)","v":0},{"$f":"SUMIFS(InputHours,InputArea,\"=\"&List!$B$8,InputTopic,\"=\"&List!$K3,InputMode,\"=\"&List!$A$18)","v":0},{"$f":"SUMIFS(InputHours,InputArea,\"=\"&List!$B$8,InputTopic,\"=\"&List!$K3,InputMode,\"=\"&List!$A$19)","v":0},{"$f":"COUNTIFS(InputArea,\"=\"&List!$B$8,InputTopic,\"=\"&List!$K3,InputLevel,\"=\"&Input!$A$5)","v":0},{"$f":"COUNTIFS(InputArea,\"=\"&List!$B$8,InputTopic,\"=\"&List!$K3,InputLevel,\"=\"&Input!$A$4)","v":0},{"$f":"COUNTIFS(InputArea,\"=\"&List!$B$8,InputTopic,\"=\"&List!$K3,InputLevel,\"=\"&Input!$A$3)","v":0},{"$f":"COUNTIFS(InputArea,\"=\"&List!$B$8,InputTopic,\"=\"&List!$K3,InputLevel,\"=\"&Input!$A$2)","v":0},{"$f":"COUNTIFS(InputArea,\"=\"&List!$B$8,InputTopic,\"=\"&List!$K3,InputImportance,\"=\"&Input!$E$5)","v":0},{"$f":"COUNTIFS(InputArea,\"=\"&List!$B$8,InputTopic,\"=\"&List!$K3,InputImportance,\"=\"&Input!$E$4)","v":0},{"$f":"COUNTIFS(InputArea,\"=\"&List!$B$8,InputTopic,\"=\"&List!$K3,InputImportance,\"=\"&Input!$E$3)","v":0},{"$f":"COUNTIFS(InputArea,\"=\"&List!$B$8,InputTopic,\"=\"&List!$K3,InputImportance,\"=\"&Input!$E$2)","v":0},{"$f":"COUNTIFS(InputArea,\"=\"&List!$B$8,InputTopic,\"=\"&List!$K3,InputSkill,\"=\"&List!$D$14)","v":0},{"$f":"COUNTIFS(InputArea,\"=\"&List!$B$8,InputTopic,\"=\"&List!$K3,InputSkill,\"=\"&List!$D$15)","v":0},{"$f":"COUNTIFS(InputArea,\"=\"&List!$B$8,InputTopic,\"=\"&List!$K3,InputSkill,\"=\"&List!$D$16)","v":0},{"$f":"COUNTIFS(InputArea,\"=\"&List!$B$8,InputTopic,\"=\"&List!$K3,InputSkill,\"=\"&List!$D$17)","v":0},{"$f":"COUNTIFS(InputArea,\"=\"&List!$B$8,InputTopic,\"=\"&List!$K3,InputSkill,\"=\"&List!$D$18)","v":0},{"$f":"COUNTIFS(InputArea,\"=\"&List!$B$8,InputTopic,\"=\"&List!$K3,InputSkill,\"=\"&List!$D$19)","v":0},0,0,{"v":0,"d":"0.00"},{"v":0,"d":"0.0"}]
["F","T","Gen",null,"Physics","Optics/ Properties of Light",{"$f":"COUNTIFS(InputArea,\"=\"&List!$B$8,InputTopic,\"=\"&List!$K4,InputMode,\"=\"&List!$A$14)","v":0},{"$f":"COUNTIFS(InputArea,\"=\"&List!$B$8,InputTopic,\"=\"&List!$K4,InputMode,\"=\"&List!$A$15)","v":0},{"$f":"COUNTIFS(InputArea,\"=\"&List!$B$8,InputTopic,\"=\"&List!$K4,InputMode,\"=\"&List!$A$16)","v":0},{"$f":"COUNTIFS(InputArea,\"=\"&List!$B$8,InputTopic,\"=\"&List!$K4,InputMode,\"=\"&List!$A$17)","v":0},{"$f":"COUNTIFS(InputArea,\"=\"&List!$B$8,InputTopic,\"=\"&List!$K4,InputMode,\"=\"&List!$A$18)","v":0},{"$f":"COUNTIFS(InputArea,\"=\"&List!$B$8,InputTopic,\"=\"&List!$K4,InputMode,\"=\"&List!$A$19)","v":0},{"$f":"SUMIFS(InputHours,InputArea,\"=\"&List!$B$8,InputTopic,\"=\"&List!$K4,InputMode,\"=\"&List!$A$14)","v":0},{"$f":"SUMIFS(InputHours,InputArea,\"=\"&List!$B$8,InputTopic,\"=\"&List!$K4,InputMode,\"=\"&List!$A$15)","v":0},{"$f":"SUMIFS(InputHours,InputArea,\"=\"&List!$B$8,InputTopic,\"=\"&List!$K4,InputMode,\"=\"&List!$A$16)","v":0},{"$f":"SUMIFS(InputHours,InputArea,\"=\"&List!$B$8,InputTopic,\"=\"&List!$K4,InputMode,\"=\"&List!$A$17)","v":0},{"$f":"SUMIFS(InputHours,InputArea,\"=\"&List!$B$8,InputTopic,\"=\"&List!$K4,InputMode,\"=\"&List!$A$18)","v":0},{"$f":"SUMIFS(InputHours,InputArea,\"=\"&List!$B$8,InputTopic,\"=\"&List!$K4,InputMode,\"=\"&List!$A$19)","v":0},{"$f":"COUNTIFS(InputArea,\"=\"&List!$B$8,InputTopic,\"=\"&List!$K4,InputLevel,\"=\"&Input!$A$5)","v":0},{"$f":"COUNTIFS(InputArea,\"=\"&List!$B$8,InputTopic,\"=\"&List!$K4,InputLevel,\"=\"&Input!$A$4)","v":0},{"$f":"COUNTIFS(InputArea,\"=\"&List!$B$8,InputTopic,\"=\"&List!$K4,InputLevel,\"=\"&Input!$A$3)","v":0},{"$f":"COUNTIFS(InputArea,\"=\"&List!$B$8,InputTopic,\"=\"&List!$K4,InputLevel,\"=\"&Input!$A$2)","v":0},{"$f":"COUNTIFS(InputArea,\"=\"&List!$B$8,InputTopic,\"=\"&List!$K4,InputImportance,\"=\"&Input!$E$5)","v":0},{"$f":"COUNTIFS(InputArea,\"=\"&List!$B$8,InputTopic,\"=\"&List!$K4,InputImportance,\"=\"&Input!$E$4)","v":0},{"$f":"COUNTIFS(InputArea,\"=\"&List!$B$8,InputTopic,\"=\"&List!$K4,InputImportance,\"=\"&Input!$E$3)","v":0},{"$f":"COUNTIFS(InputArea,\"=\"&List!$B$8,InputTopic,\"=\"&List!$K4,InputImportance,\"=\"&Input!$E$2)","v":0},{"$f":"COUNTIFS(InputArea,\"=\"&List!$B$8,InputTopic,\"=\"&List!$K4,InputSkill,\"=\"&List!$D$14)","v":0},{"$f":"COUNTIFS(InputArea,\"=\"&List!$B$8,InputTopic,\"=\"&List!$K4,InputSkill,\"=\"&List!$D$15)","v":0},{"$f":"COUNTIFS(InputArea,\"=\"&List!$B$8,InputTopic,\"=\"&List!$K4,InputSkill,\"=\"&List!$D$16)","v":0},{"$f":"COUNTIFS(InputArea,\"=\"&List!$B$8,InputTopic,\"=\"&List!$K4,InputSkill,\"=\"&List!$D$17)","v":0},{"$f":"COUNTIFS(InputArea,\"=\"&List!$B$8,InputTopic,\"=\"&List!$K4,InputSkill,\"=\"&List!$D$18)","v":0},{"$f":"COUNTIFS(InputArea,\"=\"&List!$B$8,InputTopic,\"=\"&List!$K4,InputSkill,\"=\"&List!$D$19)","v":0},0,0,{"v":0,"d":"0.00"},{"v":0,"d":"0.0"}]
["F","T","Gen",null,"Physics","Astronomy/ Astrometry",{"$f":"COUNTIFS(InputArea,\"=\"&List!$B$8,InputTopic,\"=\"&List!$K5,InputMode,\"=\"&List!$A$14)","v":0},{"$f":"COUNTIFS(InputArea,\"=\"&List!$B$8,InputTopic,\"=\"&List!$K5,InputMode,\"=\"&List!$A$15)","v":0},{"$f":"COUNTIFS(InputArea,\"=\"&List!$B$8,InputTopic,\"=\"&List!$K5,InputMode,\"=\"&List!$A$16)","v":0},{"$f":"COUNTIFS(InputArea,\"=\"&List!$B$8,InputTopic,\"=\"&List!$K5,InputMode,\"=\"&List!$A$17)","v":0},{"$f":"COUNTIFS(InputArea,\"=\"&List!$B$8,InputTopic,\"=\"&List!$K5,InputMode,\"=\"&List!$A$18)","v":0},{"$f":"COUNTIFS(InputArea,\"=\"&List!$B$8,InputTopic,\"=\"&List!$K5,InputMode,\"=\"&List!$A$19)","v":0},{"$f":"SUMIFS(InputHours,InputArea,\"=\"&List!$B$8,InputTopic,\"=\"&List!$K5,InputMode,\"=\"&List!$A$14)","v":0},{"$f":"SUMIFS(InputHours,InputArea,\"=\"&List!$B$8,InputTopic,\"=\"&List!$K5,InputMode,\"=\"&List!$A$15)","v":0},{"$f":"SUMIFS(InputHours,InputArea,\"=\"&List!$B$8,InputTopic,\"=\"&List!$K5,InputMode,\"=\"&List!$A$16)","v":0},{"$f":"SUMIFS(InputHours,InputArea,\"=\"&List!$B$8,InputTopic,\"=\"&List!$K5,InputMode,\"=\"&List!$A$17)","v":0},{"$f":"SUMIFS(InputHours,InputArea,\"=\"&List!$B$8,InputTopic,\"=\"&List!$K5,InputMode,\"=\"&List!$A$18)","v":0},{"$f":"SUMIFS(InputHours,InputArea,\"=\"&List!$B$8,InputTopic,\"=\"&List!$K5,InputMode,\"=\"&List!$A$19)","v":0},{"$f":"COUNTIFS(InputArea,\"=\"&List!$B$8,InputTopic,\"=\"&List!$K5,InputLevel,\"=\"&Input!$A$5)","v":0},{"$f":"COUNTIFS(InputArea,\"=\"&List!$B$8,InputTopic,\"=\"&List!$K5,InputLevel,\"=\"&Input!$A$4)","v":0},{"$f":"COUNTIFS(InputArea,\"=\"&List!$B$8,InputTopic,\"=\"&List!$K5,InputLevel,\"=\"&Input!$A$3)","v":0},{"$f":"COUNTIFS(InputArea,\"=\"&List!$B$8,InputTopic,\"=\"&List!$K5,InputLevel,\"=\"&Input!$A$2)","v":0},{"$f":"COUNTIFS(InputArea,\"=\"&List!$B$8,InputTopic,\"=\"&List!$K5,InputImportance,\"=\"&Input!$E$5)","v":0},{"$f":"COUNTIFS(InputArea,\"=\"&List!$B$8,InputTopic,\"=\"&List!$K5,InputImportance,\"=\"&Input!$E$4)","v":0},{"$f":"COUNTIFS(InputArea,\"=\"&List!$B$8,InputTopic,\"=\"&List!$K5,InputImportance,\"=\"&Input!$E$3)","v":0},{"$f":"COUNTIFS(InputArea,\"=\"&List!$B$8,InputTopic,\"=\"&List!$K5,InputImportance,\"=\"&Input!$E$2)","v":0},{"$f":"COUNTIFS(InputArea,\"=\"&List!$B$8,InputTopic,\"=\"&List!$K5,InputSkill,\"=\"&List!$D$14)","v":0},{"$f":"COUNTIFS(InputArea,\"=\"&List!$B$8,InputTopic,\"=\"&List!$K5,InputSkill,\"=\"&List!$D$15)","v":0},{"$f":"COUNTIFS(InputArea,\"=\"&List!$B$8,InputTopic,\"=\"&List!$K5,InputSkill,\"=\"&List!$D$16)","v":0},{"$f":"COUNTIFS(InputArea,\"=\"&List!$B$8,InputTopic,\"=\"&List!$K5,InputSkill,\"=\"&List!$D$17)","v":0},{"$f":"COUNTIFS(InputArea,\"=\"&List!$B$8,InputTopic,\"=\"&List!$K5,InputSkill,\"=\"&List!$D$18)","v":0},{"$f":"COUNTIFS(InputArea,\"=\"&List!$B$8,InputTopic,\"=\"&List!$K5,InputSkill,\"=\"&List!$D$19)","v":0},0,0,{"v":0,"d":"0.00"},{"v":0,"d":"0.0"}]
["F","T","Gen",null,"Physics","Acoustics",{"$f":"COUNTIFS(InputArea,\"=\"&List!$B$8,InputTopic,\"=\"&List!$K6,InputMode,\"=\"&List!$A$14)","v":0},{"$f":"COUNTIFS(InputArea,\"=\"&List!$B$8,InputTopic,\"=\"&List!$K6,InputMode,\"=\"&List!$A$15)","v":0},{"$f":"COUNTIFS(InputArea,\"=\"&List!$B$8,InputTopic,\"=\"&List!$K6,InputMode,\"=\"&List!$A$16)","v":0},{"$f":"COUNTIFS(InputArea,\"=\"&List!$B$8,InputTopic,\"=\"&List!$K6,InputMode,\"=\"&List!$A$17)","v":0},{"$f":"COUNTIFS(InputArea,\"=\"&List!$B$8,InputTopic,\"=\"&List!$K6,InputMode,\"=\"&List!$A$18)","v":0},{"$f":"COUNTIFS(InputArea,\"=\"&List!$B$8,InputTopic,\"=\"&List!$K6,InputMode,\"=\"&List!$A$19)","v":0},{"$f":"SUMIFS(InputHours,InputArea,\"=\"&List!$B$8,InputTopic,\"=\"&List!$K6,InputMode,\"=\"&List!$A$14)","v":0},{"$f":"SUMIFS(InputHours,InputArea,\"=\"&List!$B$8,InputTopic,\"=\"&List!$K6,InputMode,\"=\"&List!$A$15)","v":0},{"$f":"SUMIFS(InputHours,InputArea,\"=\"&List!$B$8,InputTopic,\"=\"&List!$K6,InputMode,\"=\"&List!$A$16)","v":0},{"$f":"SUMIFS(InputHours,InputArea,\"=\"&List!$B$8,InputTopic,\"=\"&List!$K6,InputMode,\"=\"&List!$A$17)","v":0},{"$f":"SUMIFS(InputHours,InputArea,\"=\"&List!$B$8,InputTopic,\"=\"&List!$K6,InputMode,\"=\"&List!$A$18)","v":0},{"$f":"SUMIFS(InputHours,InputArea,\"=\"&List!$B$8,InputTopic,\"=\"&List!$K6,InputMode,\"=\"&List!$A$19)","v":0},{"$f":"COUNTIFS(InputArea,\"=\"&List!$B$8,InputTopic,\"=\"&List!$K6,InputLevel,\"=\"&Input!$A$5)","v":0},{"$f":"COUNTIFS(InputArea,\"=\"&List!$B$8,InputTopic,\"=\"&List!$K6,InputLevel,\"=\"&Input!$A$4)","v":0},{"$f":"COUNTIFS(InputArea,\"=\"&List!$B$8,InputTopic,\"=\"&List!$K6,InputLevel,\"=\"&Input!$A$3)","v":0},{"$f":"COUNTIFS(InputArea,\"=\"&List!$B$8,InputTopic,\"=\"&List!$K6,InputLevel,\"=\"&Input!$A$2)","v":0},{"$f":"COUNTIFS(InputArea,\"=\"&List!$B$8,InputTopic,\"=\"&List!$K6,InputImportance,\"=\"&Input!$E$5)","v":0},{"$f":"COUNTIFS(InputArea,\"=\"&List!$B$8,InputTopic,\"=\"&List!$K6,InputImportance,\"=\"&Input!$E$4)","v":0},{"$f":"COUNTIFS(InputArea,\"=\"&List!$B$8,InputTopic,\"=\"&List!$K6,InputImportance,\"=\"&Input!$E$3)","v":0},{"$f":"COUNTIFS(InputArea,\"=\"&List!$B$8,InputTopic,\"=\"&List!$K6,InputImportance,\"=\"&Input!$E$2)","v":0},{"$f":"COUNTIFS(InputArea,\"=\"&List!$B$8,InputTopic,\"=\"&List!$K6,InputSkill,\"=\"&List!$D$14)","v":0},{"$f":"COUNTIFS(InputArea,\"=\"&List!$B$8,InputTopic,\"=\"&List!$K6,InputSkill,\"=\"&List!$D$15)","v":0},{"$f":"COUNTIFS(InputArea,\"=\"&List!$B$8,InputTopic,\"=\"&List!$K6,InputSkill,\"=\"&List!$D$16)","v":0},{"$f":"COUNTIFS(InputArea,\"=\"&List!$B$8,InputTopic,\"=\"&List!$K6,InputSkill,\"=\"&List!$D$17)","v":0},{"$f":"COUNTIFS(InputArea,\"=\"&List!$B$8,InputTopic,\"=\"&List!$K6,InputSkill,\"=\"&List!$D$18)","v":0},{"$f":"COUNTIFS(InputArea,\"=\"&List!$B$8,InputTopic,\"=\"&List!$K6,InputSkill,\"=\"&List!$D$19)","v":0},0,0,{"v":0,"d":"0.00"},{"v":0,"d":"0.0"}]
["F","T","Gen",null,"Physics","Geophysics",{"$f":"COUNTIFS(InputArea,\"=\"&List!$B$8,InputTopic,\"=\"&List!$K7,InputMode,\"=\"&List!$A$14)","v":0},{"$f":"COUNTIFS(InputArea,\"=\"&List!$B$8,InputTopic,\"=\"&List!$K7,InputMode,\"=\"&List!$A$15)","v":0},{"$f":"COUNTIFS(InputArea,\"=\"&List!$B$8,InputTopic,\"=\"&List!$K7,InputMode,\"=\"&List!$A$16)","v":0},{"$f":"COUNTIFS(InputArea,\"=\"&List!$B$8,InputTopic,\"=\"&List!$K7,InputMode,\"=\"&List!$A$17)","v":0},{"$f":"COUNTIFS(InputArea,\"=\"&List!$B$8,InputTopic,\"=\"&List!$K7,InputMode,\"=\"&List!$A$18)","v":0},{"$f":"COUNTIFS(InputArea,\"=\"&List!$B$8,InputTopic,\"=\"&List!$K7,InputMode,\"=\"&List!$A$19)","v":0},{"$f":"SUMIFS(InputHours,InputArea,\"=\"&List!$B$8,InputTopic,\"=\"&List!$K7,InputMode,\"=\"&List!$A$14)","v":0},{"$f":"SUMIFS(InputHours,InputArea,\"=\"&List!$B$8,InputTopic,\"=\"&List!$K7,InputMode,\"=\"&List!$A$15)","v":0},{"$f":"SUMIFS(InputHours,InputArea,\"=\"&List!$B$8,InputTopic,\"=\"&List!$K7,InputMode,\"=\"&List!$A$16)","v":0},{"$f":"SUMIFS(InputHours,InputArea,\"=\"&List!$B$8,InputTopic,\"=\"&List!$K7,InputMode,\"=\"&List!$A$17)","v":0},{"$f":"SUMIFS(InputHours,InputArea,\"=\"&List!$B$8,InputTopic,\"=\"&List!$K7,InputMode,\"=\"&List!$A$18)","v":0},{"$f":"SUMIFS(InputHours,InputArea,\"=\"&List!$B$8,InputTopic,\"=\"&List!$K7,InputMode,\"=\"&List!$A$19)","v":0},{"$f":"COUNTIFS(InputArea,\"=\"&List!$B$8,InputTopic,\"=\"&List!$K7,InputLevel,\"=\"&Input!$A$5)","v":0},{"$f":"COUNTIFS(InputArea,\"=\"&List!$B$8,InputTopic,\"=\"&List!$K7,InputLevel,\"=\"&Input!$A$4)","v":0},{"$f":"COUNTIFS(InputArea,\"=\"&List!$B$8,InputTopic,\"=\"&List!$K7,InputLevel,\"=\"&Input!$A$3)","v":0},{"$f":"COUNTIFS(InputArea,\"=\"&List!$B$8,InputTopic,\"=\"&List!$K7,InputLevel,\"=\"&Input!$A$2)","v":0},{"$f":"COUNTIFS(InputArea,\"=\"&List!$B$8,InputTopic,\"=\"&List!$K7,InputImportance,\"=\"&Input!$E$5)","v":0},{"$f":"COUNTIFS(InputArea,\"=\"&List!$B$8,InputTopic,\"=\"&List!$K7,InputImportance,\"=\"&Input!$E$4)","v":0},{"$f":"COUNTIFS(InputArea,\"=\"&List!$B$8,InputTopic,\"=\"&List!$K7,InputImportance,\"=\"&Input!$E$3)","v":0},{"$f":"COUNTIFS(InputArea,\"=\"&List!$B$8,InputTopic,\"=\"&List!$K7,InputImportance,\"=\"&Input!$E$2)","v":0},{"$f":"COUNTIFS(InputArea,\"=\"&List!$B$8,InputTopic,\"=\"&List!$K7,InputSkill,\"=\"&List!$D$14)","v":0},{"$f":"COUNTIFS(InputArea,\"=\"&List!$B$8,InputTopic,\"=\"&List!$K7,InputSkill,\"=\"&List!$D$15)","v":0},{"$f":"COUNTIFS(InputArea,\"=\"&List!$B$8,InputTopic,\"=\"&List!$K7,InputSkill,\"=\"&List!$D$16)","v":0},{"$f":"COUNTIFS(InputArea,\"=\"&List!$B$8,InputTopic,\"=\"&List!$K7,InputSkill,\"=\"&List!$D$17)","v":0},{"$f":"COUNTIFS(InputArea,\"=\"&List!$B$8,InputTopic,\"=\"&List!$K7,InputSkill,\"=\"&List!$D$18)","v":0},{"$f":"COUNTIFS(InputArea,\"=\"&List!$B$8,InputTopic,\"=\"&List!$K7,InputSkill,\"=\"&List!$D$19)","v":0},0,0,{"v":0,"d":"0.00"},{"v":0,"d":"0.0"}]
["F","T","Gen",null,"Physics","Communication Systems",{"$f":"COUNTIFS(InputArea,\"=\"&List!$B$8,InputTopic,\"=\"&List!$K8,InputMode,\"=\"&List!$A$14)","v":0},{"$f":"COUNTIFS(InputArea,\"=\"&List!$B$8,InputTopic,\"=\"&List!$K8,InputMode,\"=\"&List!$A$15)","v":0},{"$f":"COUNTIFS(InputArea,\"=\"&List!$B$8,InputTopic,\"=\"&List!$K8,InputMode,\"=\"&List!$A$16)","v":0},{"$f":"COUNTIFS(InputArea,\"=\"&List!$B$8,InputTopic,\"=\"&List!$K8,InputMode,\"=\"&List!$A$17)","v":0},{"$f":"COUNTIFS(InputArea,\"=\"&List!$B$8,InputTopic,\"=\"&List!$K8,InputMode,\"=\"&List!$A$18)","v":0},{"$f":"COUNTIFS(InputArea,\"=\"&List!$B$8,InputTopic,\"=\"&List!$K8,InputMode,\"=\"&List!$A$19)","v":0},{"$f":"SUMIFS(InputHours,InputArea,\"=\"&List!$B$8,InputTopic,\"=\"&List!$K8,InputMode,\"=\"&List!$A$14)","v":0},{"$f":"SUMIFS(InputHours,InputArea,\"=\"&List!$B$8,InputTopic,\"=\"&List!$K8,InputMode,\"=\"&List!$A$15)","v":0},{"$f":"SUMIFS(InputHours,InputArea,\"=\"&List!$B$8,InputTopic,\"=\"&List!$K8,InputMode,\"=\"&List!$A$16)","v":0},{"$f":"SUMIFS(InputHours,InputArea,\"=\"&List!$B$8,InputTopic,\"=\"&List!$K8,InputMode,\"=\"&List!$A$17)","v":0},{"$f":"SUMIFS(InputHours,InputArea,\"=\"&List!$B$8,InputTopic,\"=\"&List!$K8,InputMode,\"=\"&List!$A$18)","v":0},{"$f":"SUMIFS(InputHours,InputArea,\"=\"&List!$B$8,InputTopic,\"=\"&List!$K8,InputMode,\"=\"&List!$A$19)","v":0},{"$f":"COUNTIFS(InputArea,\"=\"&List!$B$8,InputTopic,\"=\"&List!$K8,InputLevel,\"=\"&Input!$A$5)","v":0},{"$f":"COUNTIFS(InputArea,\"=\"&List!$B$8,InputTopic,\"=\"&List!$K8,InputLevel,\"=\"&Input!$A$4)","v":0},{"$f":"COUNTIFS(InputArea,\"=\"&List!$B$8,InputTopic,\"=\"&List!$K8,InputLevel,\"=\"&Input!$A$3)","v":0},{"$f":"COUNTIFS(InputArea,\"=\"&List!$B$8,InputTopic,\"=\"&List!$K8,InputLevel,\"=\"&Input!$A$2)","v":0},{"$f":"COUNTIFS(InputArea,\"=\"&List!$B$8,InputTopic,\"=\"&List!$K8,InputImportance,\"=\"&Input!$E$5)","v":0},{"$f":"COUNTIFS(InputArea,\"=\"&List!$B$8,InputTopic,\"=\"&List!$K8,InputImportance,\"=\"&Input!$E$4)","v":0},{"$f":"COUNTIFS(InputArea,\"=\"&List!$B$8,InputTopic,\"=\"&List!$K8,InputImportance,\"=\"&Input!$E$3)","v":0},{"$f":"COUNTIFS(InputArea,\"=\"&List!$B$8,InputTopic,\"=\"&List!$K8,InputImportance,\"=\"&Input!$E$2)","v":0},{"$f":"COUNTIFS(InputArea,\"=\"&List!$B$8,InputTopic,\"=\"&List!$K8,InputSkill,\"=\"&List!$D$14)","v":0},{"$f":"COUNTIFS(InputArea,\"=\"&List!$B$8,InputTopic,\"=\"&List!$K8,InputSkill,\"=\"&List!$D$15)","v":0},{"$f":"COUNTIFS(InputArea,\"=\"&List!$B$8,InputTopic,\"=\"&List!$K8,InputSkill,\"=\"&List!$D$16)","v":0},{"$f":"COUNTIFS(InputArea,\"=\"&List!$B$8,InputTopic,\"=\"&List!$K8,InputSkill,\"=\"&List!$D$17)","v":0},{"$f":"COUNTIFS(InputArea,\"=\"&List!$B$8,InputTopic,\"=\"&List!$K8,InputSkill,\"=\"&List!$D$18)","v":0},{"$f":"COUNTIFS(InputArea,\"=\"&List!$B$8,InputTopic,\"=\"&List!$K8,InputSkill,\"=\"&List!$D$19)","v":0},0,0,{"v":0,"d":"0.00"},{"v":0,"d":"0.0"}]
["F","T","Gen",null,"Physics","Others",{"$f":"COUNTIFS(InputArea,\"=\"&List!$B$8,InputTopic,\"=\"&List!$K9,InputMode,\"=\"&List!$A$14)","v":0},{"$f":"COUNTIFS(InputArea,\"=\"&List!$B$8,InputTopic,\"=\"&List!$K9,InputMode,\"=\"&List!$A$15)","v":0},{"$f":"COUNTIFS(InputArea,\"=\"&List!$B$8,InputTopic,\"=\"&List!$K9,InputMode,\"=\"&List!$A$16)","v":0},{"$f":"COUNTIFS(InputArea,\"=\"&List!$B$8,InputTopic,\"=\"&List!$K9,InputMode,\"=\"&List!$A$17)","v":0},{"$f":"COUNTIFS(InputArea,\"=\"&List!$B$8,InputTopic,\"=\"&List!$K9,InputMode,\"=\"&List!$A$18)","v":0},{"$f":"COUNTIFS(InputArea,\"=\"&List!$B$8,InputTopic,\"=\"&List!$K9,InputMode,\"=\"&List!$A$19)","v":0},{"$f":"SUMIFS(InputHours,InputArea,\"=\"&List!$B$8,InputTopic,\"=\"&List!$K9,InputMode,\"=\"&List!$A$14)","v":0},{"$f":"SUMIFS(InputHours,InputArea,\"=\"&List!$B$8,InputTopic,\"=\"&List!$K9,InputMode,\"=\"&List!$A$15)","v":0},{"$f":"SUMIFS(InputHours,InputArea,\"=\"&List!$B$8,InputTopic,\"=\"&List!$K9,InputMode,\"=\"&List!$A$16)","v":0},{"$f":"SUMIFS(InputHours,InputArea,\"=\"&List!$B$8,InputTopic,\"=\"&List!$K9,InputMode,\"=\"&List!$A$17)","v":0},{"$f":"SUMIFS(InputHours,InputArea,\"=\"&List!$B$8,InputTopic,\"=\"&List!$K9,InputMode,\"=\"&List!$A$18)","v":0},{"$f":"SUMIFS(InputHours,InputArea,\"=\"&List!$B$8,InputTopic,\"=\"&List!$K9,InputMode,\"=\"&List!$A$19)","v":0},{"$f":"COUNTIFS(InputArea,\"=\"&List!$B$8,InputTopic,\"=\"&List!$K9,InputLevel,\"=\"&Input!$A$5)","v":0},{"$f":"COUNTIFS(InputArea,\"=\"&List!$B$8,InputTopic,\"=\"&List!$K9,InputLevel,\"=\"&Input!$A$4)","v":0},{"$f":"COUNTIFS(InputArea,\"=\"&List!$B$8,InputTopic,\"=\"&List!$K9,InputLevel,\"=\"&Input!$A$3)","v":0},{"$f":"COUNTIFS(InputArea,\"=\"&List!$B$8,InputTopic,\"=\"&List!$K9,InputLevel,\"=\"&Input!$A$2)","v":0},{"$f":"COUNTIFS(InputArea,\"=\"&List!$B$8,InputTopic,\"=\"&List!$K9,InputImportance,\"=\"&Input!$E$5)","v":0},{"$f":"COUNTIFS(InputArea,\"=\"&List!$B$8,InputTopic,\"=\"&List!$K9,InputImportance,\"=\"&Input!$E$4)","v":0},{"$f":"COUNTIFS(InputArea,\"=\"&List!$B$8,InputTopic,\"=\"&List!$K9,InputImportance,\"=\"&Input!$E$3)","v":0},{"$f":"COUNTIFS(InputArea,\"=\"&List!$B$8,InputTopic,\"=\"&List!$K9,InputImportance,\"=\"&Input!$E$2)","v":0},{"$f":"COUNTIFS(InputArea,\"=\"&List!$B$8,InputTopic,\"=\"&List!$K9,InputSkill,\"=\"&List!$D$14)","v":0},{"$f":"COUNTIFS(InputArea,\"=\"&List!$B$8,InputTopic,\"=\"&List!$K9,InputSkill,\"=\"&List!$D$15)","v":0},{"$f":"COUNTIFS(InputArea,\"=\"&List!$B$8,InputTopic,\"=\"&List!$K9,InputSkill,\"=\"&List!$D$16)","v":0},{"$f":"COUNTIFS(InputArea,\"=\"&List!$B$8,InputTopic,\"=\"&List!$K9,InputSkill,\"=\"&List!$D$17)","v":0},{"$f":"COUNTIFS(InputArea,\"=\"&List!$B$8,InputTopic,\"=\"&List!$K9,InputSkill,\"=\"&List!$D$18)","v":0},{"$f":"COUNTIFS(InputArea,\"=\"&List!$B$8,InputTopic,\"=\"&List!$K9,InputSkill,\"=\"&List!$D$19)","v":0},0,0,{"v":0,"d":"0.00"},{"v":0,"d":"0.0"}]
["F","U","Gen","FOUNDATION","Geography","Climate/ Meteorology",{"$f":"COUNTIFS(InputArea,\"=\"&List!$B$9,InputTopic,\"=\"&List!$L2,InputMode,\"=\"&List!$A$14)","v":0},{"$f":"COUNTIFS(InputArea,\"=\"&List!$B$9,InputTopic,\"=\"&List!$L2,InputMode,\"=\"&List!$A$15)","v":0},{"$f":"COUNTIFS(InputArea,\"=\"&List!$B$9,InputTopic,\"=\"&List!$L2,InputMode,\"=\"&List!$A$16)","v":0},{"$f":"COUNTIFS(InputArea,\"=\"&List!$B$9,InputTopic,\"=\"&List!$L2,InputMode,\"=\"&List!$A$17)","v":0},{"$f":"COUNTIFS(InputArea,\"=\"&List!$B$9,InputTopic,\"=\"&List!$L2,InputMode,\"=\"&List!$A$18)","v":0},{"$f":"COUNTIFS(InputArea,\"=\"&List!$B$9,InputTopic,\"=\"&List!$L2,InputMode,\"=\"&List!$A$19)","v":0},{"$f":"SUMIFS(InputHours,InputArea,\"=\"&List!$B$9,InputTopic,\"=\"&List!$L2,InputMode,\"=\"&List!$A$14)","v":0},{"$f":"SUMIFS(InputHours,InputArea,\"=\"&List!$B$9,InputTopic,\"=\"&List!$L2,InputMode,\"=\"&List!$A$15)","v":0},{"$f":"SUMIFS(InputHours,InputArea,\"=\"&List!$B$9,InputTopic,\"=\"&List!$L2,InputMode,\"=\"&List!$A$16)","v":0},{"$f":"SUMIFS(InputHours,InputArea,\"=\"&List!$B$9,InputTopic,\"=\"&List!$L2,InputMode,\"=\"&List!$A$17)","v":0},{"$f":"SUMIFS(InputHours,InputArea,\"=\"&List!$B$9,InputTopic,\"=\"&List!$L2,InputMode,\"=\"&List!$A$18)","v":0},{"$f":"SUMIFS(InputHours,InputArea,\"=\"&List!$B$9,InputTopic,\"=\"&List!$L2,InputMode,\"=\"&List!$A$19)","v":0},{"$f":"COUNTIFS(InputArea,\"=\"&List!$B$9,InputTopic,\"=\"&List!$L2,InputLevel,\"=\"&Input!$A$5)","v":0},{"$f":"COUNTIFS(InputArea,\"=\"&List!$B$9,InputTopic,\"=\"&List!$L2,InputLevel,\"=\"&Input!$A$4)","v":0},{"$f":"COUNTIFS(InputArea,\"=\"&List!$B$9,InputTopic,\"=\"&List!$L2,InputLevel,\"=\"&Input!$A$3)","v":0},{"$f":"COUNTIFS(InputArea,\"=\"&List!$B$9,InputTopic,\"=\"&List!$L2,InputLevel,\"=\"&Input!$A$2)","v":0},{"$f":"COUNTIFS(InputArea,\"=\"&List!$B$9,InputTopic,\"=\"&List!$L2,InputImportance,\"=\"&Input!$E$5)","v":0},{"$f":"COUNTIFS(InputArea,\"=\"&List!$B$9,InputTopic,\"=\"&List!$L2,InputImportance,\"=\"&Input!$E$4)","v":0},{"$f":"COUNTIFS(InputArea,\"=\"&List!$B$9,InputTopic,\"=\"&List!$L2,InputImportance,\"=\"&Input!$E$3)","v":0},{"$f":"COUNTIFS(InputArea,\"=\"&List!$B$9,InputTopic,\"=\"&List!$L2,InputImportance,\"=\"&Input!$E$2)","v":0},{"$f":"COUNTIFS(InputArea,\"=\"&List!$B$9,InputTopic,\"=\"&List!$L2,InputSkill,\"=\"&List!$D$14)","v":0},{"$f":"COUNTIFS(InputArea,\"=\"&List!$B$9,InputTopic,\"=\"&List!$L2,InputSkill,\"=\"&List!$D$15)","v":0},{"$f":"COUNTIFS(InputArea,\"=\"&List!$B$9,InputTopic,\"=\"&List!$L2,InputSkill,\"=\"&List!$D$16)","v":0},{"$f":"COUNTIFS(InputArea,\"=\"&List!$B$9,InputTopic,\"=\"&List!$L2,InputSkill,\"=\"&List!$D$17)","v":0},{"$f":"COUNTIFS(InputArea,\"=\"&List!$B$9,InputTopic,\"=\"&List!$L2,InputSkill,\"=\"&List!$D$18)","v":0},{"$f":"COUNTIFS(InputArea,\"=\"&List!$B$9,InputTopic,\"=\"&List!$L2,InputSkill,\"=\"&List!$D$19)","v":0},{"$f":"SUM(G38:L38)","v":0},{"$f":"SUM(M38:R38)","v":0},{"$f":"IFERROR(((W38*$W$2)+(X38*$X$2)+(Y38*$Y$2)+(Z38*$Z$2))/AG38,0)","v":{"v":0,"d":"0.00"}},{"v":0,"d":"0.0"}]
["F","U","Gen",null,"Geography","Geomorphology",{"$f":"COUNTIFS(InputArea,\"=\"&List!$B$9,InputTopic,\"=\"&List!$L3,InputMode,\"=\"&List!$A$14)","v":0},{"$f":"COUNTIFS(InputArea,\"=\"&List!$B$9,InputTopic,\"=\"&List!$L3,InputMode,\"=\"&List!$A$15)","v":0},{"$f":"COUNTIFS(InputArea,\"=\"&List!$B$9,InputTopic,\"=\"&List!$L3,InputMode,\"=\"&List!$A$16)","v":0},{"$f":"COUNTIFS(InputArea,\"=\"&List!$B$9,InputTopic,\"=\"&List!$L3,InputMode,\"=\"&List!$A$17)","v":0},{"$f":"COUNTIFS(InputArea,\"=\"&List!$B$9,InputTopic,\"=\"&List!$L3,InputMode,\"=\"&List!$A$18)","v":0},{"$f":"COUNTIFS(InputArea,\"=\"&List!$B$9,InputTopic,\"=\"&List!$L3,InputMode,\"=\"&List!$A$19)","v":0},{"$f":"SUMIFS(InputHours,InputArea,\"=\"&List!$B$9,InputTopic,\"=\"&List!$L3,InputMode,\"=\"&List!$A$14)","v":0},{"$f":"SUMIFS(InputHours,InputArea,\"=\"&List!$B$9,InputTopic,\"=\"&List!$L3,InputMode,\"=\"&List!$A$15)","v":0},{"$f":"SUMIFS(InputHours,InputArea,\"=\"&List!$B$9,InputTopic,\"=\"&List!$L3,InputMode,\"=\"&List!$A$16)","v":0},{"$f":"SUMIFS(InputHours,InputArea,\"=\"&List!$B$9,InputTopic,\"=\"&List!$L3,InputMode,\"=\"&List!$A$17)","v":0},{"$f":"SUMIFS(InputHours,InputArea,\"=\"&List!$B$9,InputTopic,\"=\"&List!$L3,InputMode,\"=\"&List!$A$18)","v":0},{"$f":"SUMIFS(InputHours,InputArea,\"=\"&List!$B$9,InputTopic,\"=\"&List!$L3,InputMode,\"=\"&List!$A$19)","v":0},{"$f":"COUNTIFS(InputArea,\"=\"&List!$B$9,InputTopic,\"=\"&List!$L3,InputLevel,\"=\"&Input!$A$5)","v":0},{"$f":"COUNTIFS(InputArea,\"=\"&List!$B$9,InputTopic,\"=\"&List!$L3,InputLevel,\"=\"&Input!$A$4)","v":0},{"$f":"COUNTIFS(InputArea,\"=\"&List!$B$9,InputTopic,\"=\"&List!$L3,InputLevel,\"=\"&Input!$A$3)","v":0},{"$f":"COUNTIFS(InputArea,\"=\"&List!$B$9,InputTopic,\"=\"&List!$L3,InputLevel,\"=\"&Input!$A$2)","v":0},{"$f":"COUNTIFS(InputArea,\"=\"&List!$B$9,InputTopic,\"=\"&List!$L3,InputImportance,\"=\"&Input!$E$5)","v":0},{"$f":"COUNTIFS(InputArea,\"=\"&List!$B$9,InputTopic,\"=\"&List!$L3,InputImportance,\"=\"&Input!$E$4)","v":0},{"$f":"COUNTIFS(InputArea,\"=\"&List!$B$9,InputTopic,\"=\"&List!$L3,InputImportance,\"=\"&Input!$E$3)","v":0},{"$f":"COUNTIFS(InputArea,\"=\"&List!$B$9,InputTopic,\"=\"&List!$L3,InputImportance,\"=\"&Input!$E$2)","v":0},{"$f":"COUNTIFS(InputArea,\"=\"&List!$B$9,InputTopic,\"=\"&List!$L3,InputSkill,\"=\"&List!$D$14)","v":0},{"$f":"COUNTIFS(InputArea,\"=\"&List!$B$9,InputTopic,\"=\"&List!$L3,InputSkill,\"=\"&List!$D$15)","v":0},{"$f":"COUNTIFS(InputArea,\"=\"&List!$B$9,InputTopic,\"=\"&List!$L3,InputSkill,\"=\"&List!$D$16)","v":0},{"$f":"COUNTIFS(InputArea,\"=\"&List!$B$9,InputTopic,\"=\"&List!$L3,InputSkill,\"=\"&List!$D$17)","v":0},{"$f":"COUNTIFS(InputArea,\"=\"&List!$B$9,InputTopic,\"=\"&List!$L3,InputSkill,\"=\"&List!$D$18)","v":0},{"$f":"COUNTIFS(InputArea,\"=\"&List!$B$9,InputTopic,\"=\"&List!$L3,InputSkill,\"=\"&List!$D$19)","v":0},0,0,{"v":0,"d":"0.00"},{"v":0,"d":"0.0"}]
["F","U","Gen",null,"Geography","Landscape Ecology",{"$f":"COUNTIFS(InputArea,\"=\"&List!$B$9,InputTopic,\"=\"&List!$L4,InputMode,\"=\"&List!$A$14)","v":0},{"$f":"COUNTIFS(InputArea,\"=\"&List!$B$9,InputTopic,\"=\"&List!$L4,InputMode,\"=\"&List!$A$15)","v":0},{"$f":"COUNTIFS(InputArea,\"=\"&List!$B$9,InputTopic,\"=\"&List!$L4,InputMode,\"=\"&List!$A$16)","v":0},{"$f":"COUNTIFS(InputArea,\"=\"&List!$B$9,InputTopic,\"=\"&List!$L4,InputMode,\"=\"&List!$A$17)","v":0},{"$f":"COUNTIFS(InputArea,\"=\"&List!$B$9,InputTopic,\"=\"&List!$L4,InputMode,\"=\"&List!$A$18)","v":0},{"$f":"COUNTIFS(InputArea,\"=\"&List!$B$9,InputTopic,\"=\"&List!$L4,InputMode,\"=\"&List!$A$19)","v":0},{"$f":"SUMIFS(InputHours,InputArea,\"=\"&List!$B$9,InputTopic,\"=\"&List!$L4,InputMode,\"=\"&List!$A$14)","v":0},{"$f":"SUMIFS(InputHours,InputArea,\"=\"&List!$B$9,InputTopic,\"=\"&List!$L4,InputMode,\"=\"&List!$A$15)","v":0},{"$f":"SUMIFS(InputHours,InputArea,\"=\"&List!$B$9,InputTopic,\"=\"&List!$L4,InputMode,\"=\"&List!$A$16)","v":0},{"$f":"SUMIFS(InputHours,InputArea,\"=\"&List!$B$9,InputTopic,\"=\"&List!$L4,InputMode,\"=\"&List!$A$17)","v":0},{"$f":"SUMIFS(InputHours,InputArea,\"=\"&List!$B$9,InputTopic,\"=\"&List!$L4,InputMode,\"=\"&List!$A$18)","v":0},{"$f":"SUMIFS(InputHours,InputArea,\"=\"&List!$B$9,InputTopic,\"=\"&List!$L4,InputMode,\"=\"&List!$A$19)","v":0},{"$f":"COUNTIFS(InputArea,\"=\"&List!$B$9,InputTopic,\"=\"&List!$L4,InputLevel,\"=\"&Input!$A$5)","v":0},{"$f":"COUNTIFS(InputArea,\"=\"&List!$B$9,InputTopic,\"=\"&List!$L4,InputLevel,\"=\"&Input!$A$4)","v":0},{"$f":"COUNTIFS(InputArea,\"=\"&List!$B$9,InputTopic,\"=\"&List!$L4,InputLevel,\"=\"&Input!$A$3)","v":0},{"$f":"COUNTIFS(InputArea,\"=\"&List!$B$9,InputTopic,\"=\"&List!$L4,InputLevel,\"=\"&Input!$A$2)","v":0},{"$f":"COUNTIFS(InputArea,\"=\"&List!$B$9,InputTopic,\"=\"&List!$L4,InputImportance,\"=\"&Input!$E$5)","v":0},{"$f":"COUNTIFS(InputArea,\"=\"&List!$B$9,InputTopic,\"=\"&List!$L4,InputImportance,\"=\"&Input!$E$4)","v":0},{"$f":"COUNTIFS(InputArea,\"=\"&List!$B$9,InputTopic,\"=\"&List!$L4,InputImportance,\"=\"&Input!$E$3)","v":0},{"$f":"COUNTIFS(InputArea,\"=\"&List!$B$9,InputTopic,\"=\"&List!$L4,InputImportance,\"=\"&Input!$E$2)","v":0},{"$f":"COUNTIFS(InputArea,\"=\"&List!$B$9,InputTopic,\"=\"&List!$L4,InputSkill,\"=\"&List!$D$14)","v":0},{"$f":"COUNTIFS(InputArea,\"=\"&List!$B$9,InputTopic,\"=\"&List!$L4,InputSkill,\"=\"&List!$D$15)","v":0},{"$f":"COUNTIFS(InputArea,\"=\"&List!$B$9,InputTopic,\"=\"&List!$L4,InputSkill,\"=\"&List!$D$16)","v":0},{"$f":"COUNTIFS(InputArea,\"=\"&List!$B$9,InputTopic,\"=\"&List!$L4,InputSkill,\"=\"&List!$D$17)","v":0},{"$f":"COUNTIFS(InputArea,\"=\"&List!$B$9,InputTopic,\"=\"&List!$L4,InputSkill,\"=\"&List!$D$18)","v":0},{"$f":"COUNTIFS(InputArea,\"=\"&List!$B$9,InputTopic,\"=\"&List!$L4,InputSkill,\"=\"&List!$D$19)","v":0},0,0,{"v":0,"d":"0.00"},{"v":0,"d":"0.0"}]
["F","U","Gen",null,"Geography","Human Geography",{"$f":"COUNTIFS(InputArea,\"=\"&List!$B$9,InputTopic,\"=\"&List!$L5,InputMode,\"=\"&List!$A$14)","v":0},{"$f":"COUNTIFS(InputArea,\"=\"&List!$B$9,InputTopic,\"=\"&List!$L5,InputMode,\"=\"&List!$A$15)","v":0},{"$f":"COUNTIFS(InputArea,\"=\"&List!$B$9,InputTopic,\"=\"&List!$L5,InputMode,\"=\"&List!$A$16)","v":0},{"$f":"COUNTIFS(InputArea,\"=\"&List!$B$9,InputTopic,\"=\"&List!$L5,InputMode,\"=\"&List!$A$17)","v":0},{"$f":"COUNTIFS(InputArea,\"=\"&List!$B$9,InputTopic,\"=\"&List!$L5,InputMode,\"=\"&List!$A$18)","v":0},{"$f":"COUNTIFS(InputArea,\"=\"&List!$B$9,InputTopic,\"=\"&List!$L5,InputMode,\"=\"&List!$A$19)","v":0},{"$f":"SUMIFS(InputHours,InputArea,\"=\"&List!$B$9,InputTopic,\"=\"&List!$L5,InputMode,\"=\"&List!$A$14)","v":0},{"$f":"SUMIFS(InputHours,InputArea,\"=\"&List!$B$9,InputTopic,\"=\"&List!$L5,InputMode,\"=\"&List!$A$15)","v":0},{"$f":"SUMIFS(InputHours,InputArea,\"=\"&List!$B$9,InputTopic,\"=\"&List!$L5,InputMode,\"=\"&List!$A$16)","v":0},{"$f":"SUMIFS(InputHours,InputArea,\"=\"&List!$B$9,InputTopic,\"=\"&List!$L5,InputMode,\"=\"&List!$A$17)","v":0},{"$f":"SUMIFS(InputHours,InputArea,\"=\"&List!$B$9,InputTopic,\"=\"&List!$L5,InputMode,\"=\"&List!$A$18)","v":0},{"$f":"SUMIFS(InputHours,InputArea,\"=\"&List!$B$9,InputTopic,\"=\"&List!$L5,InputMode,\"=\"&List!$A$19)","v":0},{"$f":"COUNTIFS(InputArea,\"=\"&List!$B$9,InputTopic,\"=\"&List!$L5,InputLevel,\"=\"&Input!$A$5)","v":0},{"$f":"COUNTIFS(InputArea,\"=\"&List!$B$9,InputTopic,\"=\"&List!$L5,InputLevel,\"=\"&Input!$A$4)","v":0},{"$f":"COUNTIFS(InputArea,\"=\"&List!$B$9,InputTopic,\"=\"&List!$L5,InputLevel,\"=\"&Input!$A$3)","v":0},{"$f":"COUNTIFS(InputArea,\"=\"&List!$B$9,InputTopic,\"=\"&List!$L5,InputLevel,\"=\"&Input!$A$2)","v":0},{"$f":"COUNTIFS(InputArea,\"=\"&List!$B$9,InputTopic,\"=\"&List!$L5,InputImportance,\"=\"&Input!$E$5)","v":0},{"$f":"COUNTIFS(InputArea,\"=\"&List!$B$9,InputTopic,\"=\"&List!$L5,InputImportance,\"=\"&Input!$E$4)","v":0},{"$f":"COUNTIFS(InputArea,\"=\"&List!$B$9,InputTopic,\"=\"&List!$L5,InputImportance,\"=\"&Input!$E$3)","v":0},{"$f":"COUNTIFS(InputArea,\"=\"&List!$B$9,InputTopic,\"=\"&List!$L5,InputImportance,\"=\"&Input!$E$2)","v":0},{"$f":"COUNTIFS(InputArea,\"=\"&List!$B$9,InputTopic,\"=\"&List!$L5,InputSkill,\"=\"&List!$D$14)","v":0},{"$f":"COUNTIFS(InputArea,\"=\"&List!$B$9,InputTopic,\"=\"&List!$L5,InputSkill,\"=\"&List!$D$15)","v":0},{"$f":"COUNTIFS(InputArea,\"=\"&List!$B$9,InputTopic,\"=\"&List!$L5,InputSkill,\"=\"&List!$D$16)","v":0},{"$f":"COUNTIFS(InputArea,\"=\"&List!$B$9,InputTopic,\"=\"&List!$L5,InputSkill,\"=\"&List!$D$17)","v":0},{"$f":"COUNTIFS(InputArea,\"=\"&List!$B$9,InputTopic,\"=\"&List!$L5,InputSkill,\"=\"&List!$D$18)","v":0},{"$f":"COUNTIFS(InputArea,\"=\"&List!$B$9,InputTopic,\"=\"&List!$L5,InputSkill,\"=\"&List!$D$19)","v":0},0,0,{"v":0,"d":"0.00"},{"v":0,"d":"0.0"}]
["F","U","Gen",null,"Geography","Others",{"$f":"COUNTIFS(InputArea,\"=\"&List!$B$9,InputTopic,\"=\"&List!$L6,InputMode,\"=\"&List!$A$14)","v":0},{"$f":"COUNTIFS(InputArea,\"=\"&List!$B$9,InputTopic,\"=\"&List!$L6,InputMode,\"=\"&List!$A$15)","v":0},{"$f":"COUNTIFS(InputArea,\"=\"&List!$B$9,InputTopic,\"=\"&List!$L6,InputMode,\"=\"&List!$A$16)","v":0},{"$f":"COUNTIFS(InputArea,\"=\"&List!$B$9,InputTopic,\"=\"&List!$L6,InputMode,\"=\"&List!$A$17)","v":0},{"$f":"COUNTIFS(InputArea,\"=\"&List!$B$9,InputTopic,\"=\"&List!$L6,InputMode,\"=\"&List!$A$18)","v":0},{"$f":"COUNTIFS(InputArea,\"=\"&List!$B$9,InputTopic,\"=\"&List!$L6,InputMode,\"=\"&List!$A$19)","v":0},{"$f":"SUMIFS(InputHours,InputArea,\"=\"&List!$B$9,InputTopic,\"=\"&List!$L6,InputMode,\"=\"&List!$A$14)","v":0},{"$f":"SUMIFS(InputHours,InputArea,\"=\"&List!$B$9,InputTopic,\"=\"&List!$L6,InputMode,\"=\"&List!$A$15)","v":0},{"$f":"SUMIFS(InputHours,InputArea,\"=\"&List!$B$9,InputTopic,\"=\"&List!$L6,InputMode,\"=\"&List!$A$16)","v":0},{"$f":"SUMIFS(InputHours,InputArea,\"=\"&List!$B$9,InputTopic,\"=\"&List!$L6,InputMode,\"=\"&List!$A$17)","v":0},{"$f":"SUMIFS(InputHours,InputArea,\"=\"&List!$B$9,InputTopic,\"=\"&List!$L6,InputMode,\"=\"&List!$A$18)","v":0},{"$f":"SUMIFS(InputHours,InputArea,\"=\"&List!$B$9,InputTopic,\"=\"&List!$L6,InputMode,\"=\"&List!$A$19)","v":0},{"$f":"COUNTIFS(InputArea,\"=\"&List!$B$9,InputTopic,\"=\"&List!$L6,InputLevel,\"=\"&Input!$A$5)","v":0},{"$f":"COUNTIFS(InputArea,\"=\"&List!$B$9,InputTopic,\"=\"&List!$L6,InputLevel,\"=\"&Input!$A$4)","v":0},{"$f":"COUNTIFS(InputArea,\"=\"&List!$B$9,InputTopic,\"=\"&List!$L6,InputLevel,\"=\"&Input!$A$3)","v":0},{"$f":"COUNTIFS(InputArea,\"=\"&List!$B$9,InputTopic,\"=\"&List!$L6,InputLevel,\"=\"&Input!$A$2)","v":0},{"$f":"COUNTIFS(InputArea,\"=\"&List!$B$9,InputTopic,\"=\"&List!$L6,InputImportance,\"=\"&Input!$E$5)","v":0},{"$f":"COUNTIFS(InputArea,\"=\"&List!$B$9,InputTopic,\"=\"&List!$L6,InputImportance,\"=\"&Input!$E$4)","v":0},{"$f":"COUNTIFS(InputArea,\"=\"&List!$B$9,InputTopic,\"=\"&List!$L6,InputImportance,\"=\"&Input!$E$3)","v":0},{"$f":"COUNTIFS(InputArea,\"=\"&List!$B$9,InputTopic,\"=\"&List!$L6,InputImportance,\"=\"&Input!$E$2)","v":0},{"$f":"COUNTIFS(InputArea,\"=\"&List!$B$9,InputTopic,\"=\"&List!$L6,InputSkill,\"=\"&List!$D$14)","v":0},{"$f":"COUNTIFS(InputArea,\"=\"&List!$B$9,InputTopic,\"=\"&List!$L6,InputSkill,\"=\"&List!$D$15)","v":0},{"$f":"COUNTIFS(InputArea,\"=\"&List!$B$9,InputTopic,\"=\"&List!$L6,InputSkill,\"=\"&List!$D$16)","v":0},{"$f":"COUNTIFS(InputArea,\"=\"&List!$B$9,InputTopic,\"=\"&List!$L6,InputSkill,\"=\"&List!$D$17)","v":0},{"$f":"COUNTIFS(InputArea,\"=\"&List!$B$9,InputTopic,\"=\"&List!$L6,InputSkill,\"=\"&List!$D$18)","v":0},{"$f":"COUNTIFS(InputArea,\"=\"&List!$B$9,InputTopic,\"=\"&List!$L6,InputSkill,\"=\"&List!$D$19)","v":0},0,0,{"v":0,"d":"0.00"},{"v":0,"d":"0.0"}]
["C","T U","Geo","CORE","DataAcquisitionConcepts","Gathering Data",{"$f":"COUNTIFS(InputArea,\"=\"&List!$C$2,InputTopic,\"=\"&List!$M2,InputMode,\"=\"&List!$A$14)","v":0},{"$f":"COUNTIFS(InputArea,\"=\"&List!$C$2,InputTopic,\"=\"&List!$M2,InputMode,\"=\"&List!$A$15)","v":0},{"$f":"COUNTIFS(InputArea,\"=\"&List!$C$2,InputTopic,\"=\"&List!$M2,InputMode,\"=\"&List!$A$16)","v":0},{"$f":"COUNTIFS(InputArea,\"=\"&List!$C$2,InputTopic,\"=\"&List!$M2,InputMode,\"=\"&List!$A$17)","v":0},{"$f":"COUNTIFS(InputArea,\"=\"&List!$C$2,InputTopic,\"=\"&List!$M2,InputMode,\"=\"&List!$A$18)","v":0},{"$f":"COUNTIFS(InputArea,\"=\"&List!$C$2,InputTopic,\"=\"&List!$M2,InputMode,\"=\"&List!$A$19)","v":0},{"$f":"SUMIFS(InputHours,InputArea,\"=\"&List!$C$2,InputTopic,\"=\"&List!$M2,InputMode,\"=\"&List!$A$14)","v":0},{"$f":"SUMIFS(InputHours,InputArea,\"=\"&List!$C$2,InputTopic,\"=\"&List!$M2,InputMode,\"=\"&List!$A$15)","v":0},{"$f":"SUMIFS(InputHours,InputArea,\"=\"&List!$C$2,InputTopic,\"=\"&List!$M2,InputMode,\"=\"&List!$A$16)","v":0},{"$f":"SUMIFS(InputHours,InputArea,\"=\"&List!$C$2,InputTopic,\"=\"&List!$M2,InputMode,\"=\"&List!$A$17)","v":0},{"$f":"SUMIFS(InputHours,InputArea,\"=\"&List!$C$2,InputTopic,\"=\"&List!$M2,InputMode,\"=\"&List!$A$18)","v":0},{"$f":"SUMIFS(InputHours,InputArea,\"=\"&List!$C$2,InputTopic,\"=\"&List!$M2,InputMode,\"=\"&List!$A$19)","v":0},{"$f":"COUNTIFS(InputArea,\"=\"&List!$C$2,InputTopic,\"=\"&List!$M2,InputLevel,\"=\"&Input!$A$5)","v":0},{"$f":"COUNTIFS(InputArea,\"=\"&List!$C$2,InputTopic,\"=\"&List!$M2,InputLevel,\"=\"&Input!$A$4)","v":0},{"$f":"COUNTIFS(InputArea,\"=\"&List!$C$2,InputTopic,\"=\"&List!$M2,InputLevel,\"=\"&Input!$A$3)","v":0},{"$f":"COUNTIFS(InputArea,\"=\"&List!$C$2,InputTopic,\"=\"&List!$M2,InputLevel,\"=\"&Input!$A$2)","v":0},{"$f":"COUNTIFS(InputArea,\"=\"&List!$C$2,InputTopic,\"=\"&List!$M2,InputImportance,\"=\"&Input!$E$5)","v":0},{"$f":"COUNTIFS(InputArea,\"=\"&List!$C$2,InputTopic,\"=\"&List!$M2,InputImportance,\"=\"&Input!$E$4)","v":0},{"$f":"COUNTIFS(InputArea,\"=\"&List!$C$2,InputTopic,\"=\"&List!$M2,InputImportance,\"=\"&Input!$E$3)","v":0},{"$f":"COUNTIFS(InputArea,\"=\"&List!$C$2,InputTopic,\"=\"&List!$M2,InputImportance,\"=\"&Input!$E$2)","v":0},{"$f":"COUNTIFS(InputArea,\"=\"&List!$C$2,InputTopic,\"=\"&List!$M2,InputSkill,\"=\"&List!$D$14)","v":0},{"$f":"COUNTIFS(InputArea,\"=\"&List!$C$2,InputTopic,\"=\"&List!$M2,InputSkill,\"=\"&List!$D$15)","v":0},{"$f":"COUNTIFS(InputArea,\"=\"&List!$C$2,InputTopic,\"=\"&List!$M2,InputSkill,\"=\"&List!$D$16)","v":0},{"$f":"COUNTIFS(InputArea,\"=\"&List!$C$2,InputTopic,\"=\"&List!$M2,InputSkill,\"=\"&List!$D$17)","v":0},{"$f":"COUNTIFS(InputArea,\"=\"&List!$C$2,InputTopic,\"=\"&List!$M2,InputSkill,\"=\"&List!$D$18)","v":0},{"$f":"COUNTIFS(InputArea,\"=\"&List!$C$2,InputTopic,\"=\"&List!$M2,InputSkill,\"=\"&List!$D$19)","v":0},{"$f":"SUM(G43:L43)","v":0},{"$f":"SUM(M43:R43)","v":0},{"$f":"IFERROR(((W43*$W$2)+(X43*$X$2)+(Y43*$Y$2)+(Z43*$Z$2))/AG43,0)","v":{"v":0,"d":"0.00"}},{"v":0,"d":"0.0"},{"$f":"SUM(G43:G85)","v":0},{"$f":"SUM(H43:H85)","v":0},0,0,0,0,0,0,0,0,0,0,{"$f":"SUM(AA43:AA85)","v":0},{"$f":"SUM(AB43:AB85)","v":0},0,0,0,0,{"$f":"SUM(S43:S85)","v":0},{"$f":"SUM(T43:T85)","v":0},0,0,{"$f":"SUM(AK43:AP85)","v":0},{"$f":"SUM(AQ43:AV85)","v":0}]
["C","T U","Geo",null,"DataAcquisitionConcepts","Quality of Data",{"$f":"COUNTIFS(InputArea,\"=\"&List!$C$2,InputTopic,\"=\"&List!$M3,InputMode,\"=\"&List!$A$14)","v":0},{"$f":"COUNTIFS(InputArea,\"=\"&List!$C$2,InputTopic,\"=\"&List!$M3,InputMode,\"=\"&List!$A$15)","v":0},{"$f":"COUNTIFS(InputArea,\"=\"&List!$C$2,InputTopic,\"=\"&List!$M3,InputMode,\"=\"&List!$A$16)","v":0},{"$f":"COUNTIFS(InputArea,\"=\"&List!$C$2,InputTopic,\"=\"&List!$M3,InputMode,\"=\"&List!$A$17)","v":0},{"$f":"COUNTIFS(InputArea,\"=\"&List!$C$2,InputTopic,\"=\"&List!$M3,InputMode,\"=\"&List!$A$18)","v":0},{"$f":"COUNTIFS(InputArea,\"=\"&List!$C$2,InputTopic,\"=\"&List!$M3,InputMode,\"=\"&List!$A$19)","v":0},{"$f":"SUMIFS(InputHours,InputArea,\"=\"&List!$C$2,InputTopic,\"=\"&List!$M3,InputMode,\"=\"&List!$A$14)","v":0},{"$f":"SUMIFS(InputHours,InputArea,\"=\"&List!$C$2,InputTopic,\"=\"&List!$M3,InputMode,\"=\"&List!$A$15)","v":0},{"$f":"SUMIFS(InputHours,InputArea,\"=\"&List!$C$2,InputTopic,\"=\"&List!$M3,InputMode,\"=\"&List!$A$16)","v":0},{"$f":"SUMIFS(InputHours,InputArea,\"=\"&List!$C$2,InputTopic,\"=\"&List!$M3,InputMode,\"=\"&List!$A$17)","v":0},{"$f":"SUMIFS(InputHours,InputArea,\"=\"&List!$C$2,InputTopic,\"=\"&List!$M3,InputMode,\"=\"&List!$A$18)","v":0},{"$f":"SUMIFS(InputHours,InputArea,\"=\"&List!$C$2,InputTopic,\"=\"&List!$M3,InputMode,\"=\"&List!$A$19)","v":0},{"$f":"COUNTIFS(InputArea,\"=\"&List!$C$2,InputTopic,\"=\"&List!$M3,InputLevel,\"=\"&Input!$A$5)","v":0},{"$f":"COUNTIFS(InputArea,\"=\"&List!$C$2,InputTopic,\"=\"&List!$M3,InputLevel,\"=\"&Input!$A$4)","v":0},{"$f":"COUNTIFS(InputArea,\"=\"&List!$C$2,InputTopic,\"=\"&List!$M3,InputLevel,\"=\"&Input!$A$3)","v":0},{"$f":"COUNTIFS(InputArea,\"=\"&List!$C$2,InputTopic,\"=\"&List!$M3,InputLevel,\"=\"&Input!$A$2)","v":0},{"$f":"COUNTIFS(InputArea,\"=\"&List!$C$2,InputTopic,\"=\"&List!$M3,InputImportance,\"=\"&Input!$E$5)","v":0},{"$f":"COUNTIFS(InputArea,\"=\"&List!$C$2,InputTopic,\"=\"&List!$M3,InputImportance,\"=\"&Input!$E$4)","v":0},{"$f":"COUNTIFS(InputArea,\"=\"&List!$C$2,InputTopic,\"=\"&List!$M3,InputImportance,\"=\"&Input!$E$3)","v":0},{"$f":"COUNTIFS(InputArea,\"=\"&List!$C$2,InputTopic,\"=\"&List!$M3,InputImportance,\"=\"&Input!$E$2)","v":0},{"$f":"COUNTIFS(InputArea,\"=\"&List!$C$2,InputTopic,\"=\"&List!$M3,InputSkill,\"=\"&List!$D$14)","v":0},{"$f":"COUNTIFS(InputArea,\"=\"&List!$C$2,InputTopic,\"=\"&List!$M3,InputSkill,\"=\"&List!$D$15)","v":0},{"$f":"COUNTIFS(InputArea,\"=\"&List!$C$2,InputTopic,\"=\"&List!$M3,InputSkill,\"=\"&List!$D$16)","v":0},{"$f":"COUNTIFS(InputArea,\"=\"&List!$C$2,InputTopic,\"=\"&List!$M3,InputSkill,\"=\"&List!$D$17)","v":0},{"$f":"COUNTIFS(InputArea,\"=\"&List!$C$2,InputTopic,\"=\"&List!$M3,InputSkill,\"=\"&List!$D$18)","v":0},{"$f":"COUNTIFS(InputArea,\"=\"&List!$C$2,InputTopic,\"=\"&List!$M3,InputSkill,\"=\"&List!$D$19)","v":0},0,0,{"v":0,"d":"0.00"},{"v":0,"d":"0.0"}]
["C","T U","Geo",null,"DataAcquisitionConcepts","Data Manipulation",{"$f":"COUNTIFS(InputArea,\"=\"&List!$C$2,InputTopic,\"=\"&List!$M4,InputMode,\"=\"&List!$A$14)","v":0},{"$f":"COUNTIFS(InputArea,\"=\"&List!$C$2,InputTopic,\"=\"&List!$M4,InputMode,\"=\"&List!$A$15)","v":0},{"$f":"COUNTIFS(InputArea,\"=\"&List!$C$2,InputTopic,\"=\"&List!$M4,InputMode,\"=\"&List!$A$16)","v":0},{"$f":"COUNTIFS(InputArea,\"=\"&List!$C$2,InputTopic,\"=\"&List!$M4,InputMode,\"=\"&List!$A$17)","v":0},{"$f":"COUNTIFS(InputArea,\"=\"&List!$C$2,InputTopic,\"=\"&List!$M4,InputMode,\"=\"&List!$A$18)","v":0},{"$f":"COUNTIFS(InputArea,\"=\"&List!$C$2,InputTopic,\"=\"&List!$M4,InputMode,\"=\"&List!$A$19)","v":0},{"$f":"SUMIFS(InputHours,InputArea,\"=\"&List!$C$2,InputTopic,\"=\"&List!$M4,InputMode,\"=\"&List!$A$14)","v":0},{"$f":"SUMIFS(InputHours,InputArea,\"=\"&List!$C$2,InputTopic,\"=\"&List!$M4,InputMode,\"=\"&List!$A$15)","v":0},{"$f":"SUMIFS(InputHours,InputArea,\"=\"&List!$C$2,InputTopic,\"=\"&List!$M4,InputMode,\"=\"&List!$A$16)","v":0},{"$f":"SUMIFS(InputHours,InputArea,\"=\"&List!$C$2,InputTopic,\"=\"&List!$M4,InputMode,\"=\"&List!$A$17)","v":0},{"$f":"SUMIFS(InputHours,InputArea,\"=\"&List!$C$2,InputTopic,\"=\"&List!$M4,InputMode,\"=\"&List!$A$18)","v":0},{"$f":"SUMIFS(InputHours,InputArea,\"=\"&List!$C$2,InputTopic,\"=\"&List!$M4,InputMode,\"=\"&List!$A$19)","v":0},{"$f":"COUNTIFS(InputArea,\"=\"&List!$C$2,InputTopic,\"=\"&List!$M4,InputLevel,\"=\"&Input!$A$5)","v":0},{"$f":"COUNTIFS(InputArea,\"=\"&List!$C$2,InputTopic,\"=\"&List!$M4,InputLevel,\"=\"&Input!$A$4)","v":0},{"$f":"COUNTIFS(InputArea,\"=\"&List!$C$2,InputTopic,\"=\"&List!$M4,InputLevel,\"=\"&Input!$A$3)","v":0},{"$f":"COUNTIFS(InputArea,\"=\"&List!$C$2,InputTopic,\"=\"&List!$M4,InputLevel,\"=\"&Input!$A$2)","v":0},{"$f":"COUNTIFS(InputArea,\"=\"&List!$C$2,InputTopic,\"=\"&List!$M4,InputImportance,\"=\"&Input!$E$5)","v":0},{"$f":"COUNTIFS(InputArea,\"=\"&List!$C$2,InputTopic,\"=\"&List!$M4,InputImportance,\"=\"&Input!$E$4)","v":0},{"$f":"COUNTIFS(InputArea,\"=\"&List!$C$2,InputTopic,\"=\"&List!$M4,InputImportance,\"=\"&Input!$E$3)","v":0},{"$f":"COUNTIFS(InputArea,\"=\"&List!$C$2,InputTopic,\"=\"&List!$M4,InputImportance,\"=\"&Input!$E$2)","v":0},{"$f":"COUNTIFS(InputArea,\"=\"&List!$C$2,InputTopic,\"=\"&List!$M4,InputSkill,\"=\"&List!$D$14)","v":0},{"$f":"COUNTIFS(InputArea,\"=\"&List!$C$2,InputTopic,\"=\"&List!$M4,InputSkill,\"=\"&List!$D$15)","v":0},{"$f":"COUNTIFS(InputArea,\"=\"&List!$C$2,InputTopic,\"=\"&List!$M4,InputSkill,\"=\"&List!$D$16)","v":0},{"$f":"COUNTIFS(InputArea,\"=\"&List!$C$2,InputTopic,\"=\"&List!$M4,InputSkill,\"=\"&List!$D$17)","v":0},{"$f":"COUNTIFS(InputArea,\"=\"&List!$C$2,InputTopic,\"=\"&List!$M4,InputSkill,\"=\"&List!$D$18)","v":0},{"$f":"COUNTIFS(InputArea,\"=\"&List!$C$2,InputTopic,\"=\"&List!$M4,InputSkill,\"=\"&List!$D$19)","v":0},0,0,{"v":0,"d":"0.00"},{"v":0,"d":"0.0"}]
["C","T U","Geo",null,"DataAcquisitionConcepts","Collected Data Types",{"$f":"COUNTIFS(InputArea,\"=\"&List!$C$2,InputTopic,\"=\"&List!$M5,InputMode,\"=\"&List!$A$14)","v":0},{"$f":"COUNTIFS(InputArea,\"=\"&List!$C$2,InputTopic,\"=\"&List!$M5,InputMode,\"=\"&List!$A$15)","v":0},{"$f":"COUNTIFS(InputArea,\"=\"&List!$C$2,InputTopic,\"=\"&List!$M5,InputMode,\"=\"&List!$A$16)","v":0},{"$f":"COUNTIFS(InputArea,\"=\"&List!$C$2,InputTopic,\"=\"&List!$M5,InputMode,\"=\"&List!$A$17)","v":0},{"$f":"COUNTIFS(InputArea,\"=\"&List!$C$2,InputTopic,\"=\"&List!$M5,InputMode,\"=\"&List!$A$18)","v":0},{"$f":"COUNTIFS(InputArea,\"=\"&List!$C$2,InputTopic,\"=\"&List!$M5,InputMode,\"=\"&List!$A$19)","v":0},{"$f":"SUMIFS(InputHours,InputArea,\"=\"&List!$C$2,InputTopic,\"=\"&List!$M5,InputMode,\"=\"&List!$A$14)","v":0},{"$f":"SUMIFS(InputHours,InputArea,\"=\"&List!$C$2,InputTopic,\"=\"&List!$M5,InputMode,\"=\"&List!$A$15)","v":0},{"$f":"SUMIFS(InputHours,InputArea,\"=\"&List!$C$2,InputTopic,\"=\"&List!$M5,InputMode,\"=\"&List!$A$16)","v":0},{"$f":"SUMIFS(InputHours,InputArea,\"=\"&List!$C$2,InputTopic,\"=\"&List!$M5,InputMode,\"=\"&List!$A$17)","v":0},{"$f":"SUMIFS(InputHours,InputArea,\"=\"&List!$C$2,InputTopic,\"=\"&List!$M5,InputMode,\"=\"&List!$A$18)","v":0},{"$f":"SUMIFS(InputHours,InputArea,\"=\"&List!$C$2,InputTopic,\"=\"&List!$M5,InputMode,\"=\"&List!$A$19)","v":0},{"$f":"COUNTIFS(InputArea,\"=\"&List!$C$2,InputTopic,\"=\"&List!$M5,InputLevel,\"=\"&Input!$A$5)","v":0},{"$f":"COUNTIFS(InputArea,\"=\"&List!$C$2,InputTopic,\"=\"&List!$M5,InputLevel,\"=\"&Input!$A$4)","v":0},{"$f":"COUNTIFS(InputArea,\"=\"&List!$C$2,InputTopic,\"=\"&List!$M5,InputLevel,\"=\"&Input!$A$3)","v":0},{"$f":"COUNTIFS(InputArea,\"=\"&List!$C$2,InputTopic,\"=\"&List!$M5,InputLevel,\"=\"&Input!$A$2)","v":0},{"$f":"COUNTIFS(InputArea,\"=\"&List!$C$2,InputTopic,\"=\"&List!$M5,InputImportance,\"=\"&Input!$E$5)","v":0},{"$f":"COUNTIFS(InputArea,\"=\"&List!$C$2,InputTopic,\"=\"&List!$M5,InputImportance,\"=\"&Input!$E$4)","v":0},{"$f":"COUNTIFS(InputArea,\"=\"&List!$C$2,InputTopic,\"=\"&List!$M5,InputImportance,\"=\"&Input!$E$3)","v":0},{"$f":"COUNTIFS(InputArea,\"=\"&List!$C$2,InputTopic,\"=\"&List!$M5,InputImportance,\"=\"&Input!$E$2)","v":0},{"$f":"COUNTIFS(InputArea,\"=\"&List!$C$2,InputTopic,\"=\"&List!$M5,InputSkill,\"=\"&List!$D$14)","v":0},{"$f":"COUNTIFS(InputArea,\"=\"&List!$C$2,InputTopic,\"=\"&List!$M5,InputSkill,\"=\"&List!$D$15)","v":0},{"$f":"COUNTIFS(InputArea,\"=\"&List!$C$2,InputTopic,\"=\"&List!$M5,InputSkill,\"=\"&List!$D$16)","v":0},{"$f":"COUNTIFS(InputArea,\"=\"&List!$C$2,InputTopic,\"=\"&List!$M5,InputSkill,\"=\"&List!$D$17)","v":0},{"$f":"COUNTIFS(InputArea,\"=\"&List!$C$2,InputTopic,\"=\"&List!$M5,InputSkill,\"=\"&List!$D$18)","v":0},{"$f":"COUNTIFS(InputArea,\"=\"&List!$C$2,InputTopic,\"=\"&List!$M5,InputSkill,\"=\"&List!$D$19)","v":0},0,0,{"v":0,"d":"0.00"},{"v":0,"d":"0.0"}]
["C","T","Geo",null,"DataAcquisitionConcepts","Others",{"$f":"COUNTIFS(InputArea,\"=\"&List!$C$2,InputTopic,\"=\"&List!$M6,InputMode,\"=\"&List!$A$14)","v":0},{"$f":"COUNTIFS(InputArea,\"=\"&List!$C$2,InputTopic,\"=\"&List!$M6,InputMode,\"=\"&List!$A$15)","v":0},{"$f":"COUNTIFS(InputArea,\"=\"&List!$C$2,InputTopic,\"=\"&List!$M6,InputMode,\"=\"&List!$A$16)","v":0},{"$f":"COUNTIFS(InputArea,\"=\"&List!$C$2,InputTopic,\"=\"&List!$M6,InputMode,\"=\"&List!$A$17)","v":0},{"$f":"COUNTIFS(InputArea,\"=\"&List!$C$2,InputTopic,\"=\"&List!$M6,InputMode,\"=\"&List!$A$18)","v":0},{"$f":"COUNTIFS(InputArea,\"=\"&List!$C$2,InputTopic,\"=\"&List!$M6,InputMode,\"=\"&List!$A$19)","v":0},{"$f":"SUMIFS(InputHours,InputArea,\"=\"&List!$C$2,InputTopic,\"=\"&List!$M6,InputMode,\"=\"&List!$A$14)","v":0},{"$f":"SUMIFS(InputHours,InputArea,\"=\"&List!$C$2,InputTopic,\"=\"&List!$M6,InputMode,\"=\"&List!$A$15)","v":0},{"$f":"SUMIFS(InputHours,InputArea,\"=\"&List!$C$2,InputTopic,\"=\"&List!$M6,InputMode,\"=\"&List!$A$16)","v":0},{"$f":"SUMIFS(InputHours,InputArea,\"=\"&List!$C$2,InputTopic,\"=\"&List!$M6,InputMode,\"=\"&List!$A$17)","v":0},{"$f":"SUMIFS(InputHours,InputArea,\"=\"&List!$C$2,InputTopic,\"=\"&List!$M6,InputMode,\"=\"&List!$A$18)","v":0},{"$f":"SUMIFS(InputHours,InputArea,\"=\"&List!$C$2,InputTopic,\"=\"&List!$M6,InputMode,\"=\"&List!$A$19)","v":0},{"$f":"COUNTIFS(InputArea,\"=\"&List!$C$2,InputTopic,\"=\"&List!$M6,InputLevel,\"=\"&Input!$A$5)","v":0},{"$f":"COUNTIFS(InputArea,\"=\"&List!$C$2,InputTopic,\"=\"&List!$M6,InputLevel,\"=\"&Input!$A$4)","v":0},{"$f":"COUNTIFS(InputArea,\"=\"&List!$C$2,InputTopic,\"=\"&List!$M6,InputLevel,\"=\"&Input!$A$3)","v":0},{"$f":"COUNTIFS(InputArea,\"=\"&List!$C$2,InputTopic,\"=\"&List!$M6,InputLevel,\"=\"&Input!$A$2)","v":0},{"$f":"COUNTIFS(InputArea,\"=\"&List!$C$2,InputTopic,\"=\"&List!$M6,InputImportance,\"=\"&Input!$E$5)","v":0},{"$f":"COUNTIFS(InputArea,\"=\"&List!$C$2,InputTopic,\"=\"&List!$M6,InputImportance,\"=\"&Input!$E$4)","v":0},{"$f":"COUNTIFS(InputArea,\"=\"&List!$C$2,InputTopic,\"=\"&List!$M6,InputImportance,\"=\"&Input!$E$3)","v":0},{"$f":"COUNTIFS(InputArea,\"=\"&List!$C$2,InputTopic,\"=\"&List!$M6,InputImportance,\"=\"&Input!$E$2)","v":0},{"$f":"COUNTIFS(InputArea,\"=\"&List!$C$2,InputTopic,\"=\"&List!$M6,InputSkill,\"=\"&List!$D$14)","v":0},{"$f":"COUNTIFS(InputArea,\"=\"&List!$C$2,InputTopic,\"=\"&List!$M6,InputSkill,\"=\"&List!$D$15)","v":0},{"$f":"COUNTIFS(InputArea,\"=\"&List!$C$2,InputTopic,\"=\"&List!$M6,InputSkill,\"=\"&List!$D$16)","v":0},{"$f":"COUNTIFS(InputArea,\"=\"&List!$C$2,InputTopic,\"=\"&List!$M6,InputSkill,\"=\"&List!$D$17)","v":0},{"$f":"COUNTIFS(InputArea,\"=\"&List!$C$2,InputTopic,\"=\"&List!$M6,InputSkill,\"=\"&List!$D$18)","v":0},{"$f":"COUNTIFS(InputArea,\"=\"&List!$C$2,InputTopic,\"=\"&List!$M6,InputSkill,\"=\"&List!$D$19)","v":0},0,0,{"v":0,"d":"0.00"},{"v":0,"d":"0.0"}]
["C","T","Geo","CORE","DataUse","Data Adjustment",{"$f":"COUNTIFS(InputArea,\"=\"&List!$C$3,InputTopic,\"=\"&List!$N2,InputMode,\"=\"&List!$A$14)","v":0},{"$f":"COUNTIFS(InputArea,\"=\"&List!$C$3,InputTopic,\"=\"&List!$N2,InputMode,\"=\"&List!$A$15)","v":0},{"$f":"COUNTIFS(InputArea,\"=\"&List!$C$3,InputTopic,\"=\"&List!$N2,InputMode,\"=\"&List!$A$16)","v":0},{"$f":"COUNTIFS(InputArea,\"=\"&List!$C$3,InputTopic,\"=\"&List!$N2,InputMode,\"=\"&List!$A$17)","v":0},{"$f":"COUNTIFS(InputArea,\"=\"&List!$C$3,InputTopic,\"=\"&List!$N2,InputMode,\"=\"&List!$A$18)","v":0},{"$f":"COUNTIFS(InputArea,\"=\"&List!$C$3,InputTopic,\"=\"&List!$N2,InputMode,\"=\"&List!$A$19)","v":0},{"$f":"SUMIFS(InputHours,InputArea,\"=\"&List!$C$3,InputTopic,\"=\"&List!$N2,InputMode,\"=\"&List!$A$14)","v":0},{"$f":"SUMIFS(InputHours,InputArea,\"=\"&List!$C$3,InputTopic,\"=\"&List!$N2,InputMode,\"=\"&List!$A$15)","v":0},{"$f":"SUMIFS(InputHours,InputArea,\"=\"&List!$C$3,InputTopic,\"=\"&List!$N2,InputMode,\"=\"&List!$A$16)","v":0},{"$f":"SUMIFS(InputHours,InputArea,\"=\"&List!$C$3,InputTopic,\"=\"&List!$N2,InputMode,\"=\"&List!$A$17)","v":0},{"$f":"SUMIFS(InputHours,InputArea,\"=\"&List!$C$3,InputTopic,\"=\"&List!$N2,InputMode,\"=\"&List!$A$18)","v":0},{"$f":"SUMIFS(InputHours,InputArea,\"=\"&List!$C$3,InputTopic,\"=\"&List!$N2,InputMode,\"=\"&List!$A$19)","v":0},{"$f":"COUNTIFS(InputArea,\"=\"&List!$C$3,InputTopic,\"=\"&List!$N2,InputLevel,\"=\"&Input!$A$5)","v":0},{"$f":"COUNTIFS(InputArea,\"=\"&List!$C$3,InputTopic,\"=\"&List!$N2,InputLevel,\"=\"&Input!$A$4)","v":0},{"$f":"COUNTIFS(InputArea,\"=\"&List!$C$3,InputTopic,\"=\"&List!$N2,InputLevel,\"=\"&Input!$A$3)","v":0},{"$f":"COUNTIFS(InputArea,\"=\"&List!$C$3,InputTopic,\"=\"&List!$N2,InputLevel,\"=\"&Input!$A$2)","v":0},{"$f":"COUNTIFS(InputArea,\"=\"&List!$C$3,InputTopic,\"=\"&List!$N2,InputImportance,\"=\"&Input!$E$5)","v":0},{"$f":"COUNTIFS(InputArea,\"=\"&List!$C$3,InputTopic,\"=\"&List!$N2,InputImportance,\"=\"&Input!$E$4)","v":0},{"$f":"COUNTIFS(InputArea,\"=\"&List!$C$3,InputTopic,\"=\"&List!$N2,InputImportance,\"=\"&Input!$E$3)","v":0},{"$f":"COUNTIFS(InputArea,\"=\"&List!$C$3,InputTopic,\"=\"&List!$N2,InputImportance,\"=\"&Input!$E$2)","v":0},{"$f":"COUNTIFS(InputArea,\"=\"&List!$C$3,InputTopic,\"=\"&List!$N2,InputSkill,\"=\"&List!$D$14)","v":0},{"$f":"COUNTIFS(InputArea,\"=\"&List!$C$3,InputTopic,\"=\"&List!$N2,InputSkill,\"=\"&List!$D$15)","v":0},{"$f":"COUNTIFS(InputArea,\"=\"&List!$C$3,InputTopic,\"=\"&List!$N2,InputSkill,\"=\"&List!$D$15)","v":0},{"$f":"COUNTIFS(InputArea,\"=\"&List!$C$3,InputTopic,\"=\"&List!$N2,InputSkill,\"=\"&List!$D$16)","v":0},{"$f":"COUNTIFS(InputArea,\"=\"&List!$C$3,InputTopic,\"=\"&List!$N2,InputSkill,\"=\"&List!$D$17)","v":0},{"$f":"COUNTIFS(InputArea,\"=\"&List!$C$3,InputTopic,\"=\"&List!$N2,InputSkill,\"=\"&List!$D$18)","v":0},{"$f":"SUM(G48:L48)","v":0},{"$f":"SUM(M48:R48)","v":0},{"$f":"IFERROR(((W48*$W$2)+(X48*$X$2)+(Y48*$Y$2)+(Z48*$Z$2))/AG48,0)","v":{"v":0,"d":"0.00"}},{"v":0,"d":"0.0"}]
["C","T U","Geo",null,"DataUse","Data Management",{"$f":"COUNTIFS(InputArea,\"=\"&List!$C$3,InputTopic,\"=\"&List!$N3,InputMode,\"=\"&List!$A$14)","v":0},{"$f":"COUNTIFS(InputArea,\"=\"&List!$C$3,InputTopic,\"=\"&List!$N3,InputMode,\"=\"&List!$A$15)","v":0},{"$f":"COUNTIFS(InputArea,\"=\"&List!$C$3,InputTopic,\"=\"&List!$N3,InputMode,\"=\"&List!$A$16)","v":0},{"$f":"COUNTIFS(InputArea,\"=\"&List!$C$3,InputTopic,\"=\"&List!$N3,InputMode,\"=\"&List!$A$17)","v":0},{"$f":"COUNTIFS(InputArea,\"=\"&List!$C$3,InputTopic,\"=\"&List!$N3,InputMode,\"=\"&List!$A$18)","v":0},{"$f":"COUNTIFS(InputArea,\"=\"&List!$C$3,InputTopic,\"=\"&List!$N3,InputMode,\"=\"&List!$A$19)","v":0},{"$f":"SUMIFS(InputHours,InputArea,\"=\"&List!$C$3,InputTopic,\"=\"&List!$N3,InputMode,\"=\"&List!$A$14)","v":0},{"$f":"SUMIFS(InputHours,InputArea,\"=\"&List!$C$3,InputTopic,\"=\"&List!$N3,InputMode,\"=\"&List!$A$15)","v":0},{"$f":"SUMIFS(InputHours,InputArea,\"=\"&List!$C$3,InputTopic,\"=\"&List!$N3,InputMode,\"=\"&List!$A$16)","v":0},{"$f":"SUMIFS(InputHours,InputArea,\"=\"&List!$C$3,InputTopic,\"=\"&List!$N3,InputMode,\"=\"&List!$A$17)","v":0},{"$f":"SUMIFS(InputHours,InputArea,\"=\"&List!$C$3,InputTopic,\"=\"&List!$N3,InputMode,\"=\"&List!$A$18)","v":0},{"$f":"SUMIFS(InputHours,InputArea,\"=\"&List!$C$3,InputTopic,\"=\"&List!$N3,InputMode,\"=\"&List!$A$19)","v":0},{"$f":"COUNTIFS(InputArea,\"=\"&List!$C$3,InputTopic,\"=\"&List!$N3,InputLevel,\"=\"&Input!$A$5)","v":0},{"$f":"COUNTIFS(InputArea,\"=\"&List!$C$3,InputTopic,\"=\"&List!$N3,InputLevel,\"=\"&Input!$A$4)","v":0},{"$f":"COUNTIFS(InputArea,\"=\"&List!$C$3,InputTopic,\"=\"&List!$N3,InputLevel,\"=\"&Input!$A$3)","v":0},{"$f":"COUNTIFS(InputArea,\"=\"&List!$C$3,InputTopic,\"=\"&List!$N3,InputLevel,\"=\"&Input!$A$2)","v":0},{"$f":"COUNTIFS(InputArea,\"=\"&List!$C$3,InputTopic,\"=\"&List!$N3,InputImportance,\"=\"&Input!$E$5)","v":0},{"$f":"COUNTIFS(InputArea,\"=\"&List!$C$3,InputTopic,\"=\"&List!$N3,InputImportance,\"=\"&Input!$E$4)","v":0},{"$f":"COUNTIFS(InputArea,\"=\"&List!$C$3,InputTopic,\"=\"&List!$N3,InputImportance,\"=\"&Input!$E$3)","v":0},{"$f":"COUNTIFS(InputArea,\"=\"&List!$C$3,InputTopic,\"=\"&List!$N3,InputImportance,\"=\"&Input!$E$2)","v":0},{"$f":"COUNTIFS(InputArea,\"=\"&List!$C$3,InputTopic,\"=\"&List!$N3,InputSkill,\"=\"&List!$D$14)","v":0},{"$f":"COUNTIFS(InputArea,\"=\"&List!$C$3,InputTopic,\"=\"&List!$N3,InputSkill,\"=\"&List!$D$15)","v":0},{"$f":"COUNTIFS(InputArea,\"=\"&List!$C$3,InputTopic,\"=\"&List!$N3,InputSkill,\"=\"&List!$D$15)","v":0},{"$f":"COUNTIFS(InputArea,\"=\"&List!$C$3,InputTopic,\"=\"&List!$N3,InputSkill,\"=\"&List!$D$16)","v":0},{"$f":"COUNTIFS(InputArea,\"=\"&List!$C$3,InputTopic,\"=\"&List!$N3,InputSkill,\"=\"&List!$D$17)","v":0},{"$f":"COUNTIFS(InputArea,\"=\"&List!$C$3,InputTopic,\"=\"&List!$N3,InputSkill,\"=\"&List!$D$18)","v":0},0,0,{"v":0,"d":"0.00"},{"v":0,"d":"0.0"}]
["C","T U","Geo",null,"DataUse","Numerical Analysis",{"$f":"COUNTIFS(InputArea,\"=\"&List!$C$3,InputTopic,\"=\"&List!$N4,InputMode,\"=\"&List!$A$14)","v":0},{"$f":"COUNTIFS(InputArea,\"=\"&List!$C$3,InputTopic,\"=\"&List!$N4,InputMode,\"=\"&List!$A$15)","v":0},{"$f":"COUNTIFS(InputArea,\"=\"&List!$C$3,InputTopic,\"=\"&List!$N4,InputMode,\"=\"&List!$A$16)","v":0},{"$f":"COUNTIFS(InputArea,\"=\"&List!$C$3,InputTopic,\"=\"&List!$N4,InputMode,\"=\"&List!$A$17)","v":0},{"$f":"COUNTIFS(InputArea,\"=\"&List!$C$3,InputTopic,\"=\"&List!$N4,InputMode,\"=\"&List!$A$18)","v":0},{"$f":"COUNTIFS(InputArea,\"=\"&List!$C$3,InputTopic,\"=\"&List!$N4,InputMode,\"=\"&List!$A$19)","v":0},{"$f":"SUMIFS(InputHours,InputArea,\"=\"&List!$C$3,InputTopic,\"=\"&List!$N4,InputMode,\"=\"&List!$A$14)","v":0},{"$f":"SUMIFS(InputHours,InputArea,\"=\"&List!$C$3,InputTopic,\"=\"&List!$N4,InputMode,\"=\"&List!$A$15)","v":0},{"$f":"SUMIFS(InputHours,InputArea,\"=\"&List!$C$3,InputTopic,\"=\"&List!$N4,InputMode,\"=\"&List!$A$16)","v":0},{"$f":"SUMIFS(InputHours,InputArea,\"=\"&List!$C$3,InputTopic,\"=\"&List!$N4,InputMode,\"=\"&List!$A$17)","v":0},{"$f":"SUMIFS(InputHours,InputArea,\"=\"&List!$C$3,InputTopic,\"=\"&List!$N4,InputMode,\"=\"&List!$A$18)","v":0},{"$f":"SUMIFS(InputHours,InputArea,\"=\"&List!$C$3,InputTopic,\"=\"&List!$N4,InputMode,\"=\"&List!$A$19)","v":0},{"$f":"COUNTIFS(InputArea,\"=\"&List!$C$3,InputTopic,\"=\"&List!$N4,InputLevel,\"=\"&Input!$A$5)","v":0},{"$f":"COUNTIFS(InputArea,\"=\"&List!$C$3,InputTopic,\"=\"&List!$N4,InputLevel,\"=\"&Input!$A$4)","v":0},{"$f":"COUNTIFS(InputArea,\"=\"&List!$C$3,InputTopic,\"=\"&List!$N4,InputLevel,\"=\"&Input!$A$3)","v":0},{"$f":"COUNTIFS(InputArea,\"=\"&List!$C$3,InputTopic,\"=\"&List!$N4,InputLevel,\"=\"&Input!$A$2)","v":0},{"$f":"COUNTIFS(InputArea,\"=\"&List!$C$3,InputTopic,\"=\"&List!$N4,InputImportance,\"=\"&Input!$E$5)","v":0},{"$f":"COUNTIFS(InputArea,\"=\"&List!$C$3,InputTopic,\"=\"&List!$N4,InputImportance,\"=\"&Input!$E$4)","v":0},{"$f":"COUNTIFS(InputArea,\"=\"&List!$C$3,InputTopic,\"=\"&List!$N4,InputImportance,\"=\"&Input!$E$3)","v":0},{"$f":"COUNTIFS(InputArea,\"=\"&List!$C$3,InputTopic,\"=\"&List!$N4,InputImportance,\"=\"&Input!$E$2)","v":0},{"$f":"COUNTIFS(InputArea,\"=\"&List!$C$3,InputTopic,\"=\"&List!$N4,InputSkill,\"=\"&List!$D$14)","v":0},{"$f":"COUNTIFS(InputArea,\"=\"&List!$C$3,InputTopic,\"=\"&List!$N4,InputSkill,\"=\"&List!$D$15)","v":0},{"$f":"COUNTIFS(InputArea,\"=\"&List!$C$3,InputTopic,\"=\"&List!$N4,InputSkill,\"=\"&List!$D$15)","v":0},{"$f":"COUNTIFS(InputArea,\"=\"&List!$C$3,InputTopic,\"=\"&List!$N4,InputSkill,\"=\"&List!$D$16)","v":0},{"$f":"COUNTIFS(InputArea,\"=\"&List!$C$3,InputTopic,\"=\"&List!$N4,InputSkill,\"=\"&List!$D$17)","v":0},{"$f":"COUNTIFS(InputArea,\"=\"&List!$C$3,InputTopic,\"=\"&List!$N4,InputSkill,\"=\"&List!$D$18)","v":0},0,0,{"v":0,"d":"0.00"},{"v":0,"d":"0.0"}]
["C","T","Geo",null,"DataUse","Others",{"$f":"COUNTIFS(InputArea,\"=\"&List!$C$3,InputTopic,\"=\"&List!$N5,InputMode,\"=\"&List!$A$14)","v":0},{"$f":"COUNTIFS(InputArea,\"=\"&List!$C$3,InputTopic,\"=\"&List!$N5,InputMode,\"=\"&List!$A$15)","v":0},{"$f":"COUNTIFS(InputArea,\"=\"&List!$C$3,InputTopic,\"=\"&List!$N5,InputMode,\"=\"&List!$A$16)","v":0},{"$f":"COUNTIFS(InputArea,\"=\"&List!$C$3,InputTopic,\"=\"&List!$N5,InputMode,\"=\"&List!$A$17)","v":0},{"$f":"COUNTIFS(InputArea,\"=\"&List!$C$3,InputTopic,\"=\"&List!$N5,InputMode,\"=\"&List!$A$18)","v":0},{"$f":"COUNTIFS(InputArea,\"=\"&List!$C$3,InputTopic,\"=\"&List!$N5,InputMode,\"=\"&List!$A$19)","v":0},{"$f":"SUMIFS(InputHours,InputArea,\"=\"&List!$C$3,InputTopic,\"=\"&List!$N5,InputMode,\"=\"&List!$A$14)","v":0},{"$f":"SUMIFS(InputHours,InputArea,\"=\"&List!$C$3,InputTopic,\"=\"&List!$N5,InputMode,\"=\"&List!$A$15)","v":0},{"$f":"SUMIFS(InputHours,InputArea,\"=\"&List!$C$3,InputTopic,\"=\"&List!$N5,InputMode,\"=\"&List!$A$16)","v":0},{"$f":"SUMIFS(InputHours,InputArea,\"=\"&List!$C$3,InputTopic,\"=\"&List!$N5,InputMode,\"=\"&List!$A$17)","v":0},{"$f":"SUMIFS(InputHours,InputArea,\"=\"&List!$C$3,InputTopic,\"=\"&List!$N5,InputMode,\"=\"&List!$A$18)","v":0},{"$f":"SUMIFS(InputHours,InputArea,\"=\"&List!$C$3,InputTopic,\"=\"&List!$N5,InputMode,\"=\"&List!$A$19)","v":0},{"$f":"COUNTIFS(InputArea,\"=\"&List!$C$3,InputTopic,\"=\"&List!$N5,InputLevel,\"=\"&Input!$A$5)","v":0},{"$f":"COUNTIFS(InputArea,\"=\"&List!$C$3,InputTopic,\"=\"&List!$N5,InputLevel,\"=\"&Input!$A$4)","v":0},{"$f":"COUNTIFS(InputArea,\"=\"&List!$C$3,InputTopic,\"=\"&List!$N5,InputLevel,\"=\"&Input!$A$3)","v":0},{"$f":"COUNTIFS(InputArea,\"=\"&List!$C$3,InputTopic,\"=\"&List!$N5,InputLevel,\"=\"&Input!$A$2)","v":0},{"$f":"COUNTIFS(InputArea,\"=\"&List!$C$3,InputTopic,\"=\"&List!$N5,InputImportance,\"=\"&Input!$E$5)","v":0},{"$f":"COUNTIFS(InputArea,\"=\"&List!$C$3,InputTopic,\"=\"&List!$N5,InputImportance,\"=\"&Input!$E$4)","v":0},{"$f":"COUNTIFS(InputArea,\"=\"&List!$C$3,InputTopic,\"=\"&List!$N5,InputImportance,\"=\"&Input!$E$3)","v":0},{"$f":"COUNTIFS(InputArea,\"=\"&List!$C$3,InputTopic,\"=\"&List!$N5,InputImportance,\"=\"&Input!$E$2)","v":0},{"$f":"COUNTIFS(InputArea,\"=\"&List!$C$3,InputTopic,\"=\"&List!$N5,InputSkill,\"=\"&List!$D$14)","v":0},{"$f":"COUNTIFS(InputArea,\"=\"&List!$C$3,InputTopic,\"=\"&List!$N5,InputSkill,\"=\"&List!$D$15)","v":0},{"$f":"COUNTIFS(InputArea,\"=\"&List!$C$3,InputTopic,\"=\"&List!$N5,InputSkill,\"=\"&List!$D$15)","v":0},{"$f":"COUNTIFS(InputArea,\"=\"&List!$C$3,InputTopic,\"=\"&List!$N5,InputSkill,\"=\"&List!$D$16)","v":0},{"$f":"COUNTIFS(InputArea,\"=\"&List!$C$3,InputTopic,\"=\"&List!$N5,InputSkill,\"=\"&List!$D$17)","v":0},{"$f":"COUNTIFS(InputArea,\"=\"&List!$C$3,InputTopic,\"=\"&List!$N5,InputSkill,\"=\"&List!$D$18)","v":0},0,0,{"v":0,"d":"0.00"},{"v":0,"d":"0.0"}]
["C","T U","Geo","CORE","GeographicalDataStructure","Geographical Database",{"$f":"COUNTIFS(InputArea,\"=\"&List!$C$4,InputTopic,\"=\"&List!$O2,InputMode,\"=\"&List!$A$14)","v":0},{"$f":"COUNTIFS(InputArea,\"=\"&List!$C$4,InputTopic,\"=\"&List!$O2,InputMode,\"=\"&List!$A$15)","v":0},{"$f":"COUNTIFS(InputArea,\"=\"&List!$C$4,InputTopic,\"=\"&List!$O2,InputMode,\"=\"&List!$A$16)","v":0},{"$f":"COUNTIFS(InputArea,\"=\"&List!$C$4,InputTopic,\"=\"&List!$O2,InputMode,\"=\"&List!$A$17)","v":0},{"$f":"COUNTIFS(InputArea,\"=\"&List!$C$4,InputTopic,\"=\"&List!$O2,InputMode,\"=\"&List!$A$18)","v":0},{"$f":"COUNTIFS(InputArea,\"=\"&List!$C$4,InputTopic,\"=\"&List!$O2,InputMode,\"=\"&List!$A$19)","v":0},{"$f":"SUMIFS(InputHours,InputArea,\"=\"&List!$C$4,InputTopic,\"=\"&List!$O2,InputMode,\"=\"&List!$A$14)","v":0},{"$f":"SUMIFS(InputHours,InputArea,\"=\"&List!$C$4,InputTopic,\"=\"&List!$O2,InputMode,\"=\"&List!$A$15)","v":0},{"$f":"SUMIFS(InputHours,InputArea,\"=\"&List!$C$4,InputTopic,\"=\"&List!$O2,InputMode,\"=\"&List!$A$16)","v":0},{"$f":"SUMIFS(InputHours,InputArea,\"=\"&List!$C$4,InputTopic,\"=\"&List!$O2,InputMode,\"=\"&List!$A$17)","v":0},{"$f":"SUMIFS(InputHours,InputArea,\"=\"&List!$C$4,InputTopic,\"=\"&List!$O2,InputMode,\"=\"&List!$A$18)","v":0},{"$f":"SUMIFS(InputHours,InputArea,\"=\"&List!$C$4,InputTopic,\"=\"&List!$O2,InputMode,\"=\"&List!$A$19)","v":0},{"$f":"COUNTIFS(InputArea,\"=\"&List!$C$4,InputTopic,\"=\"&List!$O2,InputLevel,\"=\"&Input!$A$5)","v":0},{"$f":"COUNTIFS(InputArea,\"=\"&List!$C$4,InputTopic,\"=\"&List!$O2,InputLevel,\"=\"&Input!$A$4)","v":0},{"$f":"COUNTIFS(InputArea,\"=\"&List!$C$4,InputTopic,\"=\"&List!$O2,InputLevel,\"=\"&Input!$A$3)","v":0},{"$f":"COUNTIFS(InputArea,\"=\"&List!$C$4,InputTopic,\"=\"&List!$O2,InputLevel,\"=\"&Input!$A$2)","v":0},{"$f":"COUNTIFS(InputArea,\"=\"&List!$C$4,InputTopic,\"=\"&List!$O2,InputImportance,\"=\"&Input!$E$5)","v":0},{"$f":"COUNTIFS(InputArea,\"=\"&List!$C$4,InputTopic,\"=\"&List!$O2,InputImportance,\"=\"&Input!$E$4)","v":0},{"$f":"COUNTIFS(InputArea,\"=\"&List!$C$4,InputTopic,\"=\"&List!$O2,InputImportance,\"=\"&Input!$E$3)","v":0},{"$f":"COUNTIFS(InputArea,\"=\"&List!$C$4,InputTopic,\"=\"&List!$O2,InputImportance,\"=\"&Input!$E$2)","v":0},{"$f":"COUNTIFS(InputArea,\"=\"&List!$C$4,InputTopic,\"=\"&List!$O2,InputSkill,\"=\"&List!$D$14)","v":0},{"$f":"COUNTIFS(InputArea,\"=\"&List!$C$4,InputTopic,\"=\"&List!$O2,InputSkill,\"=\"&List!$D$15)","v":0},{"$f":"COUNTIFS(InputArea,\"=\"&List!$C$4,InputTopic,\"=\"&List!$O2,InputSkill,\"=\"&List!$D$16)","v":0},{"$f":"COUNTIFS(InputArea,\"=\"&List!$C$4,InputTopic,\"=\"&List!$O2,InputSkill,\"=\"&List!$D$17)","v":0},{"$f":"COUNTIFS(InputArea,\"=\"&List!$C$4,InputTopic,\"=\"&List!$O2,InputSkill,\"=\"&List!$D$18)","v":0},{"$f":"COUNTIFS(InputArea,\"=\"&List!$C$4,InputTopic,\"=\"&List!$O2,InputSkill,\"=\"&List!$D$19)","v":0},{"$f":"SUM(G52:L52)","v":0},{"$f":"SUM(M52:R52)","v":0},{"$f":"IFERROR(((W52*$W$2)+(X52*$X$2)+(Y52*$Y$2)+(Z52*$Z$2))/AG52,0)","v":{"v":0,"d":"0.00"}},{"v":0,"d":"0.0"}]
["C","T U","Geo",null,"GeographicalDataStructure","Spatial Data Representation",{"$f":"COUNTIFS(InputArea,\"=\"&List!$C$4,InputTopic,\"=\"&List!$O3,InputMode,\"=\"&List!$A$14)","v":0},{"$f":"COUNTIFS(InputArea,\"=\"&List!$C$4,InputTopic,\"=\"&List!$O3,InputMode,\"=\"&List!$A$15)","v":0},{"$f":"COUNTIFS(InputArea,\"=\"&List!$C$4,InputTopic,\"=\"&List!$O3,InputMode,\"=\"&List!$A$16)","v":0},{"$f":"COUNTIFS(InputArea,\"=\"&List!$C$4,InputTopic,\"=\"&List!$O3,InputMode,\"=\"&List!$A$17)","v":0},{"$f":"COUNTIFS(InputArea,\"=\"&List!$C$4,InputTopic,\"=\"&List!$O3,InputMode,\"=\"&List!$A$18)","v":0},{"$f":"COUNTIFS(InputArea,\"=\"&List!$C$4,InputTopic,\"=\"&List!$O3,InputMode,\"=\"&List!$A$19)","v":0},{"$f":"SUMIFS(InputHours,InputArea,\"=\"&List!$C$4,InputTopic,\"=\"&List!$O3,InputMode,\"=\"&List!$A$14)","v":0},{"$f":"SUMIFS(InputHours,InputArea,\"=\"&List!$C$4,InputTopic,\"=\"&List!$O3,InputMode,\"=\"&List!$A$15)","v":0},{"$f":"SUMIFS(InputHours,InputArea,\"=\"&List!$C$4,InputTopic,\"=\"&List!$O3,InputMode,\"=\"&List!$A$16)","v":0},{"$f":"SUMIFS(InputHours,InputArea,\"=\"&List!$C$4,InputTopic,\"=\"&List!$O3,InputMode,\"=\"&List!$A$17)","v":0},{"$f":"SUMIFS(InputHours,InputArea,\"=\"&List!$C$4,InputTopic,\"=\"&List!$O3,InputMode,\"=\"&List!$A$18)","v":0},{"$f":"SUMIFS(InputHours,InputArea,\"=\"&List!$C$4,InputTopic,\"=\"&List!$O3,InputMode,\"=\"&List!$A$19)","v":0},{"$f":"COUNTIFS(InputArea,\"=\"&List!$C$4,InputTopic,\"=\"&List!$O3,InputLevel,\"=\"&Input!$A$5)","v":0},{"$f":"COUNTIFS(InputArea,\"=\"&List!$C$4,InputTopic,\"=\"&List!$O3,InputLevel,\"=\"&Input!$A$4)","v":0},{"$f":"COUNTIFS(InputArea,\"=\"&List!$C$4,InputTopic,\"=\"&List!$O3,InputLevel,\"=\"&Input!$A$3)","v":0},{"$f":"COUNTIFS(InputArea,\"=\"&List!$C$4,InputTopic,\"=\"&List!$O3,InputLevel,\"=\"&Input!$A$2)","v":0},{"$f":"COUNTIFS(InputArea,\"=\"&List!$C$4,InputTopic,\"=\"&List!$O3,InputImportance,\"=\"&Input!$E$5)","v":0},{"$f":"COUNTIFS(InputArea,\"=\"&List!$C$4,InputTopic,\"=\"&List!$O3,InputImportance,\"=\"&Input!$E$4)","v":0},{"$f":"COUNTIFS(InputArea,\"=\"&List!$C$4,InputTopic,\"=\"&List!$O3,InputImportance,\"=\"&Input!$E$3)","v":0},{"$f":"COUNTIFS(InputArea,\"=\"&List!$C$4,InputTopic,\"=\"&List!$O3,InputImportance,\"=\"&Input!$E$2)","v":0},{"$f":"COUNTIFS(InputArea,\"=\"&List!$C$4,InputTopic,\"=\"&List!$O3,InputSkill,\"=\"&List!$D$14)","v":0},{"$f":"COUNTIFS(InputArea,\"=\"&List!$C$4,InputTopic,\"=\"&List!$O3,InputSkill,\"=\"&List!$D$15)","v":0},{"$f":"COUNTIFS(InputArea,\"=\"&List!$C$4,InputTopic,\"=\"&List!$O3,InputSkill,\"=\"&List!$D$16)","v":0},{"$f":"COUNTIFS(InputArea,\"=\"&List!$C$4,InputTopic,\"=\"&List!$O3,InputSkill,\"=\"&List!$D$17)","v":0},{"$f":"COUNTIFS(InputArea,\"=\"&List!$C$4,InputTopic,\"=\"&List!$O3,InputSkill,\"=\"&List!$D$18)","v":0},{"$f":"COUNTIFS(InputArea,\"=\"&List!$C$4,InputTopic,\"=\"&List!$O3,InputSkill,\"=\"&List!$D$19)","v":0},0,0,{"v":0,"d":"0.00"},{"v":0,"d":"0.0"}]
["C","T","Geo",null,"GeographicalDataStructure","Map Indexing",{"$f":"COUNTIFS(InputArea,\"=\"&List!$C$4,InputTopic,\"=\"&List!$O4,InputMode,\"=\"&List!$A$14)","v":0},{"$f":"COUNTIFS(InputArea,\"=\"&List!$C$4,InputTopic,\"=\"&List!$O4,InputMode,\"=\"&List!$A$15)","v":0},{"$f":"COUNTIFS(InputArea,\"=\"&List!$C$4,InputTopic,\"=\"&List!$O4,InputMode,\"=\"&List!$A$16)","v":0},{"$f":"COUNTIFS(InputArea,\"=\"&List!$C$4,InputTopic,\"=\"&List!$O4,InputMode,\"=\"&List!$A$17)","v":0},{"$f":"COUNTIFS(InputArea,\"=\"&List!$C$4,InputTopic,\"=\"&List!$O4,InputMode,\"=\"&List!$A$18)","v":0},{"$f":"COUNTIFS(InputArea,\"=\"&List!$C$4,InputTopic,\"=\"&List!$O4,InputMode,\"=\"&List!$A$19)","v":0},{"$f":"SUMIFS(InputHours,InputArea,\"=\"&List!$C$4,InputTopic,\"=\"&List!$O4,InputMode,\"=\"&List!$A$14)","v":0},{"$f":"SUMIFS(InputHours,InputArea,\"=\"&List!$C$4,InputTopic,\"=\"&List!$O4,InputMode,\"=\"&List!$A$15)","v":0},{"$f":"SUMIFS(InputHours,InputArea,\"=\"&List!$C$4,InputTopic,\"=\"&List!$O4,InputMode,\"=\"&List!$A$16)","v":0},{"$f":"SUMIFS(InputHours,InputArea,\"=\"&List!$C$4,InputTopic,\"=\"&List!$O4,InputMode,\"=\"&List!$A$17)","v":0},{"$f":"SUMIFS(InputHours,InputArea,\"=\"&List!$C$4,InputTopic,\"=\"&List!$O4,InputMode,\"=\"&List!$A$18)","v":0},{"$f":"SUMIFS(InputHours,InputArea,\"=\"&List!$C$4,InputTopic,\"=\"&List!$O4,InputMode,\"=\"&List!$A$19)","v":0},{"$f":"COUNTIFS(InputArea,\"=\"&List!$C$4,InputTopic,\"=\"&List!$O4,InputLevel,\"=\"&Input!$A$5)","v":0},{"$f":"COUNTIFS(InputArea,\"=\"&List!$C$4,InputTopic,\"=\"&List!$O4,InputLevel,\"=\"&Input!$A$4)","v":0},{"$f":"COUNTIFS(InputArea,\"=\"&List!$C$4,InputTopic,\"=\"&List!$O4,InputLevel,\"=\"&Input!$A$3)","v":0},{"$f":"COUNTIFS(InputArea,\"=\"&List!$C$4,InputTopic,\"=\"&List!$O4,InputLevel,\"=\"&Input!$A$2)","v":0},{"$f":"COUNTIFS(InputArea,\"=\"&List!$C$4,InputTopic,\"=\"&List!$O4,InputImportance,\"=\"&Input!$E$5)","v":0},{"$f":"COUNTIFS(InputArea,\"=\"&List!$C$4,InputTopic,\"=\"&List!$O4,InputImportance,\"=\"&Input!$E$4)","v":0},{"$f":"COUNTIFS(InputArea,\"=\"&List!$C$4,InputTopic,\"=\"&List!$O4,InputImportance,\"=\"&Input!$E$3)","v":0},{"$f":"COUNTIFS(InputArea,\"=\"&List!$C$4,InputTopic,\"=\"&List!$O4,InputImportance,\"=\"&Input!$E$2)","v":0},{"$f":"COUNTIFS(InputArea,\"=\"&List!$C$4,InputTopic,\"=\"&List!$O4,InputSkill,\"=\"&List!$D$14)","v":0},{"$f":"COUNTIFS(InputArea,\"=\"&List!$C$4,InputTopic,\"=\"&List!$O4,InputSkill,\"=\"&List!$D$15)","v":0},{"$f":"COUNTIFS(InputArea,\"=\"&List!$C$4,InputTopic,\"=\"&List!$O4,InputSkill,\"=\"&List!$D$16)","v":0},{"$f":"COUNTIFS(InputArea,\"=\"&List!$C$4,InputTopic,\"=\"&List!$O4,InputSkill,\"=\"&List!$D$17)","v":0},{"$f":"COUNTIFS(InputArea,\"=\"&List!$C$4,InputTopic,\"=\"&List!$O4,InputSkill,\"=\"&List!$D$18)","v":0},{"$f":"COUNTIFS(InputArea,\"=\"&List!$C$4,InputTopic,\"=\"&List!$O4,InputSkill,\"=\"&List!$D$19)","v":0},0,0,{"v":0,"d":"0.00"},{"v":0,"d":"0.0"}]
["C","T","Geo",null,"GeographicalDataStructure","Others",{"$f":"COUNTIFS(InputArea,\"=\"&List!$C$4,InputTopic,\"=\"&List!$O5,InputMode,\"=\"&List!$A$14)","v":0},{"$f":"COUNTIFS(InputArea,\"=\"&List!$C$4,InputTopic,\"=\"&List!$O5,InputMode,\"=\"&List!$A$15)","v":0},{"$f":"COUNTIFS(InputArea,\"=\"&List!$C$4,InputTopic,\"=\"&List!$O5,InputMode,\"=\"&List!$A$16)","v":0},{"$f":"COUNTIFS(InputArea,\"=\"&List!$C$4,InputTopic,\"=\"&List!$O5,InputMode,\"=\"&List!$A$17)","v":0},{"$f":"COUNTIFS(InputArea,\"=\"&List!$C$4,InputTopic,\"=\"&List!$O5,InputMode,\"=\"&List!$A$18)","v":0},{"$f":"COUNTIFS(InputArea,\"=\"&List!$C$4,InputTopic,\"=\"&List!$O5,InputMode,\"=\"&List!$A$19)","v":0},{"$f":"SUMIFS(InputHours,InputArea,\"=\"&List!$C$4,InputTopic,\"=\"&List!$O5,InputMode,\"=\"&List!$A$14)","v":0},{"$f":"SUMIFS(InputHours,InputArea,\"=\"&List!$C$4,InputTopic,\"=\"&List!$O5,InputMode,\"=\"&List!$A$15)","v":0},{"$f":"SUMIFS(InputHours,InputArea,\"=\"&List!$C$4,InputTopic,\"=\"&List!$O5,InputMode,\"=\"&List!$A$16)","v":0},{"$f":"SUMIFS(InputHours,InputArea,\"=\"&List!$C$4,InputTopic,\"=\"&List!$O5,InputMode,\"=\"&List!$A$17)","v":0},{"$f":"SUMIFS(InputHours,InputArea,\"=\"&List!$C$4,InputTopic,\"=\"&List!$O5,InputMode,\"=\"&List!$A$18)","v":0},{"$f":"SUMIFS(InputHours,InputArea,\"=\"&List!$C$4,InputTopic,\"=\"&List!$O5,InputMode,\"=\"&List!$A$19)","v":0},{"$f":"COUNTIFS(InputArea,\"=\"&List!$C$4,InputTopic,\"=\"&List!$O5,InputLevel,\"=\"&Input!$A$5)","v":0},{"$f":"COUNTIFS(InputArea,\"=\"&List!$C$4,InputTopic,\"=\"&List!$O5,InputLevel,\"=\"&Input!$A$4)","v":0},{"$f":"COUNTIFS(InputArea,\"=\"&List!$C$4,InputTopic,\"=\"&List!$O5,InputLevel,\"=\"&Input!$A$3)","v":0},{"$f":"COUNTIFS(InputArea,\"=\"&List!$C$4,InputTopic,\"=\"&List!$O5,InputLevel,\"=\"&Input!$A$2)","v":0},{"$f":"COUNTIFS(InputArea,\"=\"&List!$C$4,InputTopic,\"=\"&List!$O5,InputImportance,\"=\"&Input!$E$5)","v":0},{"$f":"COUNTIFS(InputArea,\"=\"&List!$C$4,InputTopic,\"=\"&List!$O5,InputImportance,\"=\"&Input!$E$4)","v":0},{"$f":"COUNTIFS(InputArea,\"=\"&List!$C$4,InputTopic,\"=\"&List!$O5,InputImportance,\"=\"&Input!$E$3)","v":0},{"$f":"COUNTIFS(InputArea,\"=\"&List!$C$4,InputTopic,\"=\"&List!$O5,InputImportance,\"=\"&Input!$E$2)","v":0},{"$f":"COUNTIFS(InputArea,\"=\"&List!$C$4,InputTopic,\"=\"&List!$O5,InputSkill,\"=\"&List!$D$14)","v":0},{"$f":"COUNTIFS(InputArea,\"=\"&List!$C$4,InputTopic,\"=\"&List!$O5,InputSkill,\"=\"&List!$D$15)","v":0},{"$f":"COUNTIFS(InputArea,\"=\"&List!$C$4,InputTopic,\"=\"&List!$O5,InputSkill,\"=\"&List!$D$16)","v":0},{"$f":"COUNTIFS(InputArea,\"=\"&List!$C$4,InputTopic,\"=\"&List!$O5,InputSkill,\"=\"&List!$D$17)","v":0},{"$f":"COUNTIFS(InputArea,\"=\"&List!$C$4,InputTopic,\"=\"&List!$O5,InputSkill,\"=\"&List!$D$18)","v":0},{"$f":"COUNTIFS(InputArea,\"=\"&List!$C$4,InputTopic,\"=\"&List!$O5,InputSkill,\"=\"&List!$D$19)","v":0},0,0,{"v":0,"d":"0.00"},{"v":0,"d":"0.0"}]
["C","T U","Geo","CORE","SpatialAnalysis","Spatial Relationships",{"$f":"COUNTIFS(InputArea,\"=\"&List!$C$5,InputTopic,\"=\"&List!$P2,InputMode,\"=\"&List!$A$14)","v":0},{"$f":"COUNTIFS(InputArea,\"=\"&List!$C$5,InputTopic,\"=\"&List!$P2,InputMode,\"=\"&List!$A$15)","v":0},{"$f":"COUNTIFS(InputArea,\"=\"&List!$C$5,InputTopic,\"=\"&List!$P2,InputMode,\"=\"&List!$A$16)","v":0},{"$f":"COUNTIFS(InputArea,\"=\"&List!$C$5,InputTopic,\"=\"&List!$P2,InputMode,\"=\"&List!$A$17)","v":0},{"$f":"COUNTIFS(InputArea,\"=\"&List!$C$5,InputTopic,\"=\"&List!$P2,InputMode,\"=\"&List!$A$18)","v":0},{"$f":"COUNTIFS(InputArea,\"=\"&List!$C$5,InputTopic,\"=\"&List!$P2,InputMode,\"=\"&List!$A$19)","v":0},{"$f":"SUMIFS(InputHours,InputArea,\"=\"&List!$C$5,InputTopic,\"=\"&List!$P2,InputMode,\"=\"&List!$A$14)","v":0},{"$f":"SUMIFS(InputHours,InputArea,\"=\"&List!$C$5,InputTopic,\"=\"&List!$P2,InputMode,\"=\"&List!$A$15)","v":0},{"$f":"SUMIFS(InputHours,InputArea,\"=\"&List!$C$5,InputTopic,\"=\"&List!$P2,InputMode,\"=\"&List!$A$16)","v":0},{"$f":"SUMIFS(InputHours,InputArea,\"=\"&List!$C$5,InputTopic,\"=\"&List!$P2,InputMode,\"=\"&List!$A$17)","v":0},{"$f":"SUMIFS(InputHours,InputArea,\"=\"&List!$C$5,InputTopic,\"=\"&List!$P2,InputMode,\"=\"&List!$A$18)","v":0},{"$f":"SUMIFS(InputHours,InputArea,\"=\"&List!$C$5,InputTopic,\"=\"&List!$P2,InputMode,\"=\"&List!$A$19)","v":0},{"$f":"COUNTIFS(InputArea,\"=\"&List!$C$5,InputTopic,\"=\"&List!$P2,InputLevel,\"=\"&Input!$A$5)","v":0},{"$f":"COUNTIFS(InputArea,\"=\"&List!$C$5,InputTopic,\"=\"&List!$P2,InputLevel,\"=\"&Input!$A$4)","v":0},{"$f":"COUNTIFS(InputArea,\"=\"&List!$C$5,InputTopic,\"=\"&List!$P2,InputLevel,\"=\"&Input!$A$3)","v":0},{"$f":"COUNTIFS(InputArea,\"=\"&List!$C$5,InputTopic,\"=\"&List!$P2,InputLevel,\"=\"&Input!$A$2)","v":0},{"$f":"COUNTIFS(InputArea,\"=\"&List!$C$4,InputTopic,\"=\"&List!$O2,InputImportance,\"=\"&Input!$E$5)","v":0},{"$f":"COUNTIFS(InputArea,\"=\"&List!$C$5,InputTopic,\"=\"&List!$P2,InputImportance,\"=\"&Input!$E$4)","v":0},{"$f":"COUNTIFS(InputArea,\"=\"&List!$C$5,InputTopic,\"=\"&List!$P2,InputImportance,\"=\"&Input!$E$3)","v":0},{"$f":"COUNTIFS(InputArea,\"=\"&List!$C$5,InputTopic,\"=\"&List!$P2,InputImportance,\"=\"&Input!$E$2)","v":0},{"$f":"COUNTIFS(InputArea,\"=\"&List!$C$5,InputTopic,\"=\"&List!$P2,InputSkill,\"=\"&List!$D$14)","v":0},{"$f":"COUNTIFS(InputArea,\"=\"&List!$C$5,InputTopic,\"=\"&List!$P2,InputSkill,\"=\"&List!$D$15)","v":0},{"$f":"COUNTIFS(InputArea,\"=\"&List!$C$5,InputTopic,\"=\"&List!$P2,InputSkill,\"=\"&List!$D$16)","v":0},{"$f":"COUNTIFS(InputArea,\"=\"&List!$C$5,InputTopic,\"=\"&List!$P2,InputSkill,\"=\"&List!$D$17)","v":0},{"$f":"COUNTIFS(InputArea,\"=\"&List!$C$5,InputTopic,\"=\"&List!$P2,InputSkill,\"=\"&List!$D$18)","v":0},{"$f":"COUNTIFS(InputArea,\"=\"&List!$C$5,InputTopic,\"=\"&List!$P2,InputSkill,\"=\"&List!$D$19)","v":0},{"$f":"SUM(G56:L56)","v":0},{"$f":"SUM(M56:R56)","v":0},{"$f":"IFERROR(((W56*$W$2)+(X56*$X$2)+(Y56*$Y$2)+(Z56*$Z$2))/AG56,0)","v":{"v":0,"d":"0.00"}},{"v":0,"d":"0.0"}]
["C","T","Geo",null,"SpatialAnalysis","Spatial Data Topology",{"$f":"COUNTIFS(InputArea,\"=\"&List!$C$5,InputTopic,\"=\"&List!$P3,InputMode,\"=\"&List!$A$14)","v":0},{"$f":"COUNTIFS(InputArea,\"=\"&List!$C$5,InputTopic,\"=\"&List!$P3,InputMode,\"=\"&List!$A$15)","v":0},{"$f":"COUNTIFS(InputArea,\"=\"&List!$C$5,InputTopic,\"=\"&List!$P3,InputMode,\"=\"&List!$A$16)","v":0},{"$f":"COUNTIFS(InputArea,\"=\"&List!$C$5,InputTopic,\"=\"&List!$P3,InputMode,\"=\"&List!$A$17)","v":0},{"$f":"COUNTIFS(InputArea,\"=\"&List!$C$5,InputTopic,\"=\"&List!$P3,InputMode,\"=\"&List!$A$18)","v":0},{"$f":"COUNTIFS(InputArea,\"=\"&List!$C$5,InputTopic,\"=\"&List!$P3,InputMode,\"=\"&List!$A$19)","v":0},{"$f":"SUMIFS(InputHours,InputArea,\"=\"&List!$C$5,InputTopic,\"=\"&List!$P3,InputMode,\"=\"&List!$A$14)","v":0},{"$f":"SUMIFS(InputHours,InputArea,\"=\"&List!$C$5,InputTopic,\"=\"&List!$P3,InputMode,\"=\"&List!$A$15)","v":0},{"$f":"SUMIFS(InputHours,InputArea,\"=\"&List!$C$5,InputTopic,\"=\"&List!$P3,InputMode,\"=\"&List!$A$16)","v":0},{"$f":"SUMIFS(InputHours,InputArea,\"=\"&List!$C$5,InputTopic,\"=\"&List!$P3,InputMode,\"=\"&List!$A$17)","v":0},{"$f":"SUMIFS(InputHours,InputArea,\"=\"&List!$C$5,InputTopic,\"=\"&List!$P3,InputMode,\"=\"&List!$A$18)","v":0},{"$f":"SUMIFS(InputHours,InputArea,\"=\"&List!$C$5,InputTopic,\"=\"&List!$P3,InputMode,\"=\"&List!$A$19)","v":0},{"$f":"COUNTIFS(InputArea,\"=\"&List!$C$5,InputTopic,\"=\"&List!$P3,InputLevel,\"=\"&Input!$A$5)","v":0},{"$f":"COUNTIFS(InputArea,\"=\"&List!$C$5,InputTopic,\"=\"&List!$P3,InputLevel,\"=\"&Input!$A$4)","v":0},{"$f":"COUNTIFS(InputArea,\"=\"&List!$C$5,InputTopic,\"=\"&List!$P3,InputLevel,\"=\"&Input!$A$3)","v":0},{"$f":"COUNTIFS(InputArea,\"=\"&List!$C$5,InputTopic,\"=\"&List!$P3,InputLevel,\"=\"&Input!$A$2)","v":0},{"$f":"COUNTIFS(InputArea,\"=\"&List!$C$4,InputTopic,\"=\"&List!$O3,InputImportance,\"=\"&Input!$E$5)","v":0},{"$f":"COUNTIFS(InputArea,\"=\"&List!$C$5,InputTopic,\"=\"&List!$P3,InputImportance,\"=\"&Input!$E$4)","v":0},{"$f":"COUNTIFS(InputArea,\"=\"&List!$C$5,InputTopic,\"=\"&List!$P3,InputImportance,\"=\"&Input!$E$3)","v":0},{"$f":"COUNTIFS(InputArea,\"=\"&List!$C$5,InputTopic,\"=\"&List!$P3,InputImportance,\"=\"&Input!$E$2)","v":0},{"$f":"COUNTIFS(InputArea,\"=\"&List!$C$5,InputTopic,\"=\"&List!$P3,InputSkill,\"=\"&List!$D$14)","v":0},{"$f":"COUNTIFS(InputArea,\"=\"&List!$C$5,InputTopic,\"=\"&List!$P3,InputSkill,\"=\"&List!$D$15)","v":0},{"$f":"COUNTIFS(InputArea,\"=\"&List!$C$5,InputTopic,\"=\"&List!$P3,InputSkill,\"=\"&List!$D$16)","v":0},{"$f":"COUNTIFS(InputArea,\"=\"&List!$C$5,InputTopic,\"=\"&List!$P3,InputSkill,\"=\"&List!$D$17)","v":0},{"$f":"COUNTIFS(InputArea,\"=\"&List!$C$5,InputTopic,\"=\"&List!$P3,InputSkill,\"=\"&List!$D$18)","v":0},{"$f":"COUNTIFS(InputArea,\"=\"&List!$C$5,InputTopic,\"=\"&List!$P3,InputSkill,\"=\"&List!$D$19)","v":0},0,0,{"v":0,"d":"0.00"},{"v":0,"d":"0.0"}]
["C","T U","Geo",null,"SpatialAnalysis","Spatial Data Modelling",{"$f":"COUNTIFS(InputArea,\"=\"&List!$C$5,InputTopic,\"=\"&List!$P4,InputMode,\"=\"&List!$A$14)","v":0},{"$f":"COUNTIFS(InputArea,\"=\"&List!$C$5,InputTopic,\"=\"&List!$P4,InputMode,\"=\"&List!$A$15)","v":0},{"$f":"COUNTIFS(InputArea,\"=\"&List!$C$5,InputTopic,\"=\"&List!$P4,InputMode,\"=\"&List!$A$16)","v":0},{"$f":"COUNTIFS(InputArea,\"=\"&List!$C$5,InputTopic,\"=\"&List!$P4,InputMode,\"=\"&List!$A$17)","v":0},{"$f":"COUNTIFS(InputArea,\"=\"&List!$C$5,InputTopic,\"=\"&List!$P4,InputMode,\"=\"&List!$A$18)","v":0},{"$f":"COUNTIFS(InputArea,\"=\"&List!$C$5,InputTopic,\"=\"&List!$P4,InputMode,\"=\"&List!$A$19)","v":0},{"$f":"SUMIFS(InputHours,InputArea,\"=\"&List!$C$5,InputTopic,\"=\"&List!$P4,InputMode,\"=\"&List!$A$14)","v":0},{"$f":"SUMIFS(InputHours,InputArea,\"=\"&List!$C$5,InputTopic,\"=\"&List!$P4,InputMode,\"=\"&List!$A$15)","v":0},{"$f":"SUMIFS(InputHours,InputArea,\"=\"&List!$C$5,InputTopic,\"=\"&List!$P4,InputMode,\"=\"&List!$A$16)","v":0},{"$f":"SUMIFS(InputHours,InputArea,\"=\"&List!$C$5,InputTopic,\"=\"&List!$P4,InputMode,\"=\"&List!$A$17)","v":0},{"$f":"SUMIFS(InputHours,InputArea,\"=\"&List!$C$5,InputTopic,\"=\"&List!$P4,InputMode,\"=\"&List!$A$18)","v":0},{"$f":"SUMIFS(InputHours,InputArea,\"=\"&List!$C$5,InputTopic,\"=\"&List!$P4,InputMode,\"=\"&List!$A$19)","v":0},{"$f":"COUNTIFS(InputArea,\"=\"&List!$C$5,InputTopic,\"=\"&List!$P4,InputLevel,\"=\"&Input!$A$5)","v":0},{"$f":"COUNTIFS(InputArea,\"=\"&List!$C$5,InputTopic,\"=\"&List!$P4,InputLevel,\"=\"&Input!$A$4)","v":0},{"$f":"COUNTIFS(InputArea,\"=\"&List!$C$5,InputTopic,\"=\"&List!$P4,InputLevel,\"=\"&Input!$A$3)","v":0},{"$f":"COUNTIFS(InputArea,\"=\"&List!$C$5,InputTopic,\"=\"&List!$P4,InputLevel,\"=\"&Input!$A$2)","v":0},{"$f":"COUNTIFS(InputArea,\"=\"&List!$C$4,InputTopic,\"=\"&List!$O4,InputImportance,\"=\"&Input!$E$5)","v":0},{"$f":"COUNTIFS(InputArea,\"=\"&List!$C$5,InputTopic,\"=\"&List!$P4,InputImportance,\"=\"&Input!$E$4)","v":0},{"$f":"COUNTIFS(InputArea,\"=\"&List!$C$5,InputTopic,\"=\"&List!$P4,InputImportance,\"=\"&Input!$E$3)","v":0},{"$f":"COUNTIFS(InputArea,\"=\"&List!$C$5,InputTopic,\"=\"&List!$P4,InputImportance,\"=\"&Input!$E$2)","v":0},{"$f":"COUNTIFS(InputArea,\"=\"&List!$C$5,InputTopic,\"=\"&List!$P4,InputSkill,\"=\"&List!$D$14)","v":0},{"$f":"COUNTIFS(InputArea,\"=\"&List!$C$5,InputTopic,\"=\"&List!$P4,InputSkill,\"=\"&List!$D$15)","v":0},{"$f":"COUNTIFS(InputArea,\"=\"&List!$C$5,InputTopic,\"=\"&List!$P4,InputSkill,\"=\"&List!$D$16)","v":0},{"$f":"COUNTIFS(InputArea,\"=\"&List!$C$5,InputTopic,\"=\"&List!$P4,InputSkill,\"=\"&List!$D$17)","v":0},{"$f":"COUNTIFS(InputArea,\"=\"&List!$C$5,InputTopic,\"=\"&List!$P4,InputSkill,\"=\"&List!$D$18)","v":0},{"$f":"COUNTIFS(InputArea,\"=\"&List!$C$5,InputTopic,\"=\"&List!$P4,InputSkill,\"=\"&List!$D$19)","v":0},0,0,{"v":0,"d":"0.00"},{"v":0,"d":"0.0"}]
["C","T","Geo",null,"SpatialAnalysis","Spatial Interaction",{"$f":"COUNTIFS(InputArea,\"=\"&List!$C$5,InputTopic,\"=\"&List!$P5,InputMode,\"=\"&List!$A$14)","v":0},{"$f":"COUNTIFS(InputArea,\"=\"&List!$C$5,InputTopic,\"=\"&List!$P5,InputMode,\"=\"&List!$A$15)","v":0},{"$f":"COUNTIFS(InputArea,\"=\"&List!$C$5,InputTopic,\"=\"&List!$P5,InputMode,\"=\"&List!$A$16)","v":0},{"$f":"COUNTIFS(InputArea,\"=\"&List!$C$5,InputTopic,\"=\"&List!$P5,InputMode,\"=\"&List!$A$17)","v":0},{"$f":"COUNTIFS(InputArea,\"=\"&List!$C$5,InputTopic,\"=\"&List!$P5,InputMode,\"=\"&List!$A$18)","v":0},{"$f":"COUNTIFS(InputArea,\"=\"&List!$C$5,InputTopic,\"=\"&List!$P5,InputMode,\"=\"&List!$A$19)","v":0},{"$f":"SUMIFS(InputHours,InputArea,\"=\"&List!$C$5,InputTopic,\"=\"&List!$P5,InputMode,\"=\"&List!$A$14)","v":0},{"$f":"SUMIFS(InputHours,InputArea,\"=\"&List!$C$5,InputTopic,\"=\"&List!$P5,InputMode,\"=\"&List!$A$15)","v":0},{"$f":"SUMIFS(InputHours,InputArea,\"=\"&List!$C$5,InputTopic,\"=\"&List!$P5,InputMode,\"=\"&List!$A$16)","v":0},{"$f":"SUMIFS(InputHours,InputArea,\"=\"&List!$C$5,InputTopic,\"=\"&List!$P5,InputMode,\"=\"&List!$A$17)","v":0},{"$f":"SUMIFS(InputHours,InputArea,\"=\"&List!$C$5,InputTopic,\"=\"&List!$P5,InputMode,\"=\"&List!$A$18)","v":0},{"$f":"SUMIFS(InputHours,InputArea,\"=\"&List!$C$5,InputTopic,\"=\"&List!$P5,InputMode,\"=\"&List!$A$19)","v":0},{"$f":"COUNTIFS(InputArea,\"=\"&List!$C$5,InputTopic,\"=\"&List!$P5,InputLevel,\"=\"&Input!$A$5)","v":0},{"$f":"COUNTIFS(InputArea,\"=\"&List!$C$5,InputTopic,\"=\"&List!$P5,InputLevel,\"=\"&Input!$A$4)","v":0},{"$f":"COUNTIFS(InputArea,\"=\"&List!$C$5,InputTopic,\"=\"&List!$P5,InputLevel,\"=\"&Input!$A$3)","v":0},{"$f":"COUNTIFS(InputArea,\"=\"&List!$C$5,InputTopic,\"=\"&List!$P5,InputLevel,\"=\"&Input!$A$2)","v":0},{"$f":"COUNTIFS(InputArea,\"=\"&List!$C$4,InputTopic,\"=\"&List!$O5,InputImportance,\"=\"&Input!$E$5)","v":0},{"$f":"COUNTIFS(InputArea,\"=\"&List!$C$5,InputTopic,\"=\"&List!$P5,InputImportance,\"=\"&Input!$E$4)","v":0},{"$f":"COUNTIFS(InputArea,\"=\"&List!$C$5,InputTopic,\"=\"&List!$P5,InputImportance,\"=\"&Input!$E$3)","v":0},{"$f":"COUNTIFS(InputArea,\"=\"&List!$C$5,InputTopic,\"=\"&List!$P5,InputImportance,\"=\"&Input!$E$2)","v":0},{"$f":"COUNTIFS(InputArea,\"=\"&List!$C$5,InputTopic,\"=\"&List!$P5,InputSkill,\"=\"&List!$D$14)","v":0},{"$f":"COUNTIFS(InputArea,\"=\"&List!$C$5,InputTopic,\"=\"&List!$P5,InputSkill,\"=\"&List!$D$15)","v":0},{"$f":"COUNTIFS(InputArea,\"=\"&List!$C$5,InputTopic,\"=\"&List!$P5,InputSkill,\"=\"&List!$D$16)","v":0},{"$f":"COUNTIFS(InputArea,\"=\"&List!$C$5,InputTopic,\"=\"&List!$P5,InputSkill,\"=\"&List!$D$17)","v":0},{"$f":"COUNTIFS(InputArea,\"=\"&List!$C$5,InputTopic,\"=\"&List!$P5,InputSkill,\"=\"&List!$D$18)","v":0},{"$f":"COUNTIFS(InputArea,\"=\"&List!$C$5,InputTopic,\"=\"&List!$P5,InputSkill,\"=\"&List!$D$19)","v":0},0,0,{"v":0,"d":"0.00"},{"v":0,"d":"0.0"}]
["C","T","Geo",null,"SpatialAnalysis","Others",{"$f":"COUNTIFS(InputArea,\"=\"&List!$C$5,InputTopic,\"=\"&List!$P6,InputMode,\"=\"&List!$A$14)","v":0},{"$f":"COUNTIFS(InputArea,\"=\"&List!$C$5,InputTopic,\"=\"&List!$P6,InputMode,\"=\"&List!$A$15)","v":0},{"$f":"COUNTIFS(InputArea,\"=\"&List!$C$5,InputTopic,\"=\"&List!$P6,InputMode,\"=\"&List!$A$16)","v":0},{"$f":"COUNTIFS(InputArea,\"=\"&List!$C$5,InputTopic,\"=\"&List!$P6,InputMode,\"=\"&List!$A$17)","v":0},{"$f":"COUNTIFS(InputArea,\"=\"&List!$C$5,InputTopic,\"=\"&List!$P6,InputMode,\"=\"&List!$A$18)","v":0},{"$f":"COUNTIFS(InputArea,\"=\"&List!$C$5,InputTopic,\"=\"&List!$P6,InputMode,\"=\"&List!$A$19)","v":0},{"$f":"SUMIFS(InputHours,InputArea,\"=\"&List!$C$5,InputTopic,\"=\"&List!$P6,InputMode,\"=\"&List!$A$14)","v":0},{"$f":"SUMIFS(InputHours,InputArea,\"=\"&List!$C$5,InputTopic,\"=\"&List!$P6,InputMode,\"=\"&List!$A$15)","v":0},{"$f":"SUMIFS(InputHours,InputArea,\"=\"&List!$C$5,InputTopic,\"=\"&List!$P6,InputMode,\"=\"&List!$A$16)","v":0},{"$f":"SUMIFS(InputHours,InputArea,\"=\"&List!$C$5,InputTopic,\"=\"&List!$P6,InputMode,\"=\"&List!$A$17)","v":0},{"$f":"SUMIFS(InputHours,InputArea,\"=\"&List!$C$5,InputTopic,\"=\"&List!$P6,InputMode,\"=\"&List!$A$18)","v":0},{"$f":"SUMIFS(InputHours,InputArea,\"=\"&List!$C$5,InputTopic,\"=\"&List!$P6,InputMode,\"=\"&List!$A$19)","v":0},{"$f":"COUNTIFS(InputArea,\"=\"&List!$C$5,InputTopic,\"=\"&List!$P6,InputLevel,\"=\"&Input!$A$5)","v":0},{"$f":"COUNTIFS(InputArea,\"=\"&List!$C$5,InputTopic,\"=\"&List!$P6,InputLevel,\"=\"&Input!$A$4)","v":0},{"$f":"COUNTIFS(InputArea,\"=\"&List!$C$5,InputTopic,\"=\"&List!$P6,InputLevel,\"=\"&Input!$A$3)","v":0},{"$f":"COUNTIFS(InputArea,\"=\"&List!$C$5,InputTopic,\"=\"&List!$P6,InputLevel,\"=\"&Input!$A$2)","v":0},{"$f":"COUNTIFS(InputArea,\"=\"&List!$C$4,InputTopic,\"=\"&List!$O6,InputImportance,\"=\"&Input!$E$5)","v":0},{"$f":"COUNTIFS(InputArea,\"=\"&List!$C$5,InputTopic,\"=\"&List!$P6,InputImportance,\"=\"&Input!$E$4)","v":0},{"$f":"COUNTIFS(InputArea,\"=\"&List!$C$5,InputTopic,\"=\"&List!$P6,InputImportance,\"=\"&Input!$E$3)","v":0},{"$f":"COUNTIFS(InputArea,\"=\"&List!$C$5,InputTopic,\"=\"&List!$P6,InputImportance,\"=\"&Input!$E$2)","v":0},{"$f":"COUNTIFS(InputArea,\"=\"&List!$C$5,InputTopic,\"=\"&List!$P6,InputSkill,\"=\"&List!$D$14)","v":0},{"$f":"COUNTIFS(InputArea,\"=\"&List!$C$5,InputTopic,\"=\"&List!$P6,InputSkill,\"=\"&List!$D$15)","v":0},{"$f":"COUNTIFS(InputArea,\"=\"&List!$C$5,InputTopic,\"=\"&List!$P6,InputSkill,\"=\"&List!$D$16)","v":0},{"$f":"COUNTIFS(InputArea,\"=\"&List!$C$5,InputTopic,\"=\"&List!$P6,InputSkill,\"=\"&List!$D$17)","v":0},{"$f":"COUNTIFS(InputArea,\"=\"&List!$C$5,InputTopic,\"=\"&List!$P6,InputSkill,\"=\"&List!$D$18)","v":0},{"$f":"COUNTIFS(InputArea,\"=\"&List!$C$5,InputTopic,\"=\"&List!$P6,InputSkill,\"=\"&List!$D$19)","v":0},0,0,{"v":0,"d":"0.00"},{"v":0,"d":"0.0"}]
["C","T U","Geo","CORE","GeospatialToolbox","GIS",{"$f":"COUNTIFS(InputArea,\"=\"&List!$C$6,InputTopic,\"=\"&List!$Q2,InputMode,\"=\"&List!$A$14)","v":0},{"$f":"COUNTIFS(InputArea,\"=\"&List!$C$6,InputTopic,\"=\"&List!$Q2,InputMode,\"=\"&List!$A$15)","v":0},{"$f":"COUNTIFS(InputArea,\"=\"&List!$C$6,InputTopic,\"=\"&List!$Q2,InputMode,\"=\"&List!$A$16)","v":0},{"$f":"COUNTIFS(InputArea,\"=\"&List!$C$6,InputTopic,\"=\"&List!$Q2,InputMode,\"=\"&List!$A$17)","v":0},{"$f":"COUNTIFS(InputArea,\"=\"&List!$C$6,InputTopic,\"=\"&List!$Q2,InputMode,\"=\"&List!$A$18)","v":0},{"$f":"COUNTIFS(InputArea,\"=\"&List!$C$6,InputTopic,\"=\"&List!$Q2,InputMode,\"=\"&List!$A$19)","v":0},{"$f":"SUMIFS(InputHours,InputArea,\"=\"&List!$C$6,InputTopic,\"=\"&List!$Q2,InputMode,\"=\"&List!$A$14)","v":0},{"$f":"SUMIFS(InputHours,InputArea,\"=\"&List!$C$6,InputTopic,\"=\"&List!$Q2,InputMode,\"=\"&List!$A$15)","v":0},{"$f":"SUMIFS(InputHours,InputArea,\"=\"&List!$C$6,InputTopic,\"=\"&List!$Q2,InputMode,\"=\"&List!$A$16)","v":0},{"$f":"SUMIFS(InputHours,InputArea,\"=\"&List!$C$6,InputTopic,\"=\"&List!$Q2,InputMode,\"=\"&List!$A$17)","v":0},{"$f":"SUMIFS(InputHours,InputArea,\"=\"&List!$C$6,InputTopic,\"=\"&List!$Q2,InputMode,\"=\"&List!$A$18)","v":0},{"$f":"SUMIFS(InputHours,InputArea,\"=\"&List!$C$6,InputTopic,\"=\"&List!$Q2,InputMode,\"=\"&List!$A$19)","v":0},{"$f":"COUNTIFS(InputArea,\"=\"&List!$C$6,InputTopic,\"=\"&List!$Q2,InputLevel,\"=\"&Input!$A$5)","v":0},{"$f":"COUNTIFS(InputArea,\"=\"&List!$C$6,InputTopic,\"=\"&List!$Q2,InputLevel,\"=\"&Input!$A$4)","v":0},{"$f":"COUNTIFS(InputArea,\"=\"&List!$C$6,InputTopic,\"=\"&List!$Q2,InputLevel,\"=\"&Input!$A$3)","v":0},{"$f":"COUNTIFS(InputArea,\"=\"&List!$C$6,InputTopic,\"=\"&List!$Q2,InputLevel,\"=\"&Input!$A$2)","v":0},{"$f":"COUNTIFS(InputArea,\"=\"&List!$C$6,InputTopic,\"=\"&List!$Q2,InputImportance,\"=\"&Input!$E$5)","v":0},{"$f":"COUNTIFS(InputArea,\"=\"&List!$C$6,InputTopic,\"=\"&List!$Q2,InputImportance,\"=\"&Input!$E$4)","v":0},{"$f":"COUNTIFS(InputArea,\"=\"&List!$C$6,InputTopic,\"=\"&List!$Q2,InputImportance,\"=\"&Input!$E$3)","v":0},{"$f":"COUNTIFS(InputArea,\"=\"&List!$C$6,InputTopic,\"=\"&List!$Q2,InputImportance,\"=\"&Input!$E$2)","v":0},{"$f":"COUNTIFS(InputArea,\"=\"&List!$C$6,InputTopic,\"=\"&List!$Q2,InputSkill,\"=\"&List!$D$14)","v":0},{"$f":"COUNTIFS(InputArea,\"=\"&List!$C$6,InputTopic,\"=\"&List!$Q2,InputSkill,\"=\"&List!$D$15)","v":0},{"$f":"COUNTIFS(InputArea,\"=\"&List!$C$6,InputTopic,\"=\"&List!$Q2,InputSkill,\"=\"&List!$D$16)","v":0},{"$f":"COUNTIFS(InputArea,\"=\"&List!$C$6,InputTopic,\"=\"&List!$Q2,InputSkill,\"=\"&List!$D$17)","v":0},{"$f":"COUNTIFS(InputArea,\"=\"&List!$C$6,InputTopic,\"=\"&List!$Q2,InputSkill,\"=\"&List!$D$18)","v":0},{"$f":"COUNTIFS(InputArea,\"=\"&List!$C$6,InputTopic,\"=\"&List!$Q2,InputSkill,\"=\"&List!$D$19)","v":0},{"$f":"SUM(G61:L61)","v":0},{"$f":"SUM(M61:R61)","v":0},{"$f":"IFERROR(((W61*$W$2)+(X61*$X$2)+(Y61*$Y$2)+(Z61*$Z$2))/AG61,0)","v":{"v":0,"d":"0.00"}},{"v":0,"d":"0.0"}]
["C","T U","Geo",null,"GeospatialToolbox","CAD",{"$f":"COUNTIFS(InputArea,\"=\"&List!$C$6,InputTopic,\"=\"&List!$Q3,InputMode,\"=\"&List!$A$14)","v":0},{"$f":"COUNTIFS(InputArea,\"=\"&List!$C$6,InputTopic,\"=\"&List!$Q3,InputMode,\"=\"&List!$A$15)","v":0},{"$f":"COUNTIFS(InputArea,\"=\"&List!$C$6,InputTopic,\"=\"&List!$Q3,InputMode,\"=\"&List!$A$16)","v":0},{"$f":"COUNTIFS(InputArea,\"=\"&List!$C$6,InputTopic,\"=\"&List!$Q3,InputMode,\"=\"&List!$A$17)","v":0},{"$f":"COUNTIFS(InputArea,\"=\"&List!$C$6,InputTopic,\"=\"&List!$Q3,InputMode,\"=\"&List!$A$18)","v":0},{"$f":"COUNTIFS(InputArea,\"=\"&List!$C$6,InputTopic,\"=\"&List!$Q3,InputMode,\"=\"&List!$A$19)","v":0},{"$f":"SUMIFS(InputHours,InputArea,\"=\"&List!$C$6,InputTopic,\"=\"&List!$Q3,InputMode,\"=\"&List!$A$14)","v":0},{"$f":"SUMIFS(InputHours,InputArea,\"=\"&List!$C$6,InputTopic,\"=\"&List!$Q3,InputMode,\"=\"&List!$A$15)","v":0},{"$f":"SUMIFS(InputHours,InputArea,\"=\"&List!$C$6,InputTopic,\"=\"&List!$Q3,InputMode,\"=\"&List!$A$16)","v":0},{"$f":"SUMIFS(InputHours,InputArea,\"=\"&List!$C$6,InputTopic,\"=\"&List!$Q3,InputMode,\"=\"&List!$A$17)","v":0},{"$f":"SUMIFS(InputHours,InputArea,\"=\"&List!$C$6,InputTopic,\"=\"&List!$Q3,InputMode,\"=\"&List!$A$18)","v":0},{"$f":"SUMIFS(InputHours,InputArea,\"=\"&List!$C$6,InputTopic,\"=\"&List!$Q3,InputMode,\"=\"&List!$A$19)","v":0},{"$f":"COUNTIFS(InputArea,\"=\"&List!$C$6,InputTopic,\"=\"&List!$Q3,InputLevel,\"=\"&Input!$A$5)","v":0},{"$f":"COUNTIFS(InputArea,\"=\"&List!$C$6,InputTopic,\"=\"&List!$Q3,InputLevel,\"=\"&Input!$A$4)","v":0},{"$f":"COUNTIFS(InputArea,\"=\"&List!$C$6,InputTopic,\"=\"&List!$Q3,InputLevel,\"=\"&Input!$A$3)","v":0},{"$f":"COUNTIFS(InputArea,\"=\"&List!$C$6,InputTopic,\"=\"&List!$Q3,InputLevel,\"=\"&Input!$A$2)","v":0},{"$f":"COUNTIFS(InputArea,\"=\"&List!$C$6,InputTopic,\"=\"&List!$Q3,InputImportance,\"=\"&Input!$E$5)","v":0},{"$f":"COUNTIFS(InputArea,\"=\"&List!$C$6,InputTopic,\"=\"&List!$Q3,InputImportance,\"=\"&Input!$E$4)","v":0},{"$f":"COUNTIFS(InputArea,\"=\"&List!$C$6,InputTopic,\"=\"&List!$Q3,InputImportance,\"=\"&Input!$E$3)","v":0},{"$f":"COUNTIFS(InputArea,\"=\"&List!$C$6,InputTopic,\"=\"&List!$Q3,InputImportance,\"=\"&Input!$E$2)","v":0},{"$f":"COUNTIFS(InputArea,\"=\"&List!$C$6,InputTopic,\"=\"&List!$Q3,InputSkill,\"=\"&List!$D$14)","v":0},{"$f":"COUNTIFS(InputArea,\"=\"&List!$C$6,InputTopic,\"=\"&List!$Q3,InputSkill,\"=\"&List!$D$15)","v":0},{"$f":"COUNTIFS(InputArea,\"=\"&List!$C$6,InputTopic,\"=\"&List!$Q3,InputSkill,\"=\"&List!$D$16)","v":0},{"$f":"COUNTIFS(InputArea,\"=\"&List!$C$6,InputTopic,\"=\"&List!$Q3,InputSkill,\"=\"&List!$D$17)","v":0},{"$f":"COUNTIFS(InputArea,\"=\"&List!$C$6,InputTopic,\"=\"&List!$Q3,InputSkill,\"=\"&List!$D$18)","v":0},{"$f":"COUNTIFS(InputArea,\"=\"&List!$C$6,InputTopic,\"=\"&List!$Q3,InputSkill,\"=\"&List!$D$19)","v":0},0,0,{"v":0,"d":"0.00"},{"v":0,"d":"0.0"}]
["C","T U","Geo",null,"GeospatialToolbox","Program Customization",{"$f":"COUNTIFS(InputArea,\"=\"&List!$C$6,InputTopic,\"=\"&List!$Q4,InputMode,\"=\"&List!$A$14)","v":0},{"$f":"COUNTIFS(InputArea,\"=\"&List!$C$6,InputTopic,\"=\"&List!$Q4,InputMode,\"=\"&List!$A$15)","v":0},{"$f":"COUNTIFS(InputArea,\"=\"&List!$C$6,InputTopic,\"=\"&List!$Q4,InputMode,\"=\"&List!$A$16)","v":0},{"$f":"COUNTIFS(InputArea,\"=\"&List!$C$6,InputTopic,\"=\"&List!$Q4,InputMode,\"=\"&List!$A$17)","v":0},{"$f":"COUNTIFS(InputArea,\"=\"&List!$C$6,InputTopic,\"=\"&List!$Q4,InputMode,\"=\"&List!$A$18)","v":0},{"$f":"COUNTIFS(InputArea,\"=\"&List!$C$6,InputTopic,\"=\"&List!$Q4,InputMode,\"=\"&List!$A$19)","v":0},{"$f":"SUMIFS(InputHours,InputArea,\"=\"&List!$C$6,InputTopic,\"=\"&List!$Q4,InputMode,\"=\"&List!$A$14)","v":0},{"$f":"SUMIFS(InputHours,InputArea,\"=\"&List!$C$6,InputTopic,\"=\"&List!$Q4,InputMode,\"=\"&List!$A$15)","v":0},{"$f":"SUMIFS(InputHours,InputArea,\"=\"&List!$C$6,InputTopic,\"=\"&List!$Q4,InputMode,\"=\"&List!$A$16)","v":0},{"$f":"SUMIFS(InputHours,InputArea,\"=\"&List!$C$6,InputTopic,\"=\"&List!$Q4,InputMode,\"=\"&List!$A$17)","v":0},{"$f":"SUMIFS(InputHours,InputArea,\"=\"&List!$C$6,InputTopic,\"=\"&List!$Q4,InputMode,\"=\"&List!$A$18)","v":0},{"$f":"SUMIFS(InputHours,InputArea,\"=\"&List!$C$6,InputTopic,\"=\"&List!$Q4,InputMode,\"=\"&List!$A$19)","v":0},{"$f":"COUNTIFS(InputArea,\"=\"&List!$C$6,InputTopic,\"=\"&List!$Q4,InputLevel,\"=\"&Input!$A$5)","v":0},{"$f":"COUNTIFS(InputArea,\"=\"&List!$C$6,InputTopic,\"=\"&List!$Q4,InputLevel,\"=\"&Input!$A$4)","v":0},{"$f":"COUNTIFS(InputArea,\"=\"&List!$C$6,InputTopic,\"=\"&List!$Q4,InputLevel,\"=\"&Input!$A$3)","v":0},{"$f":"COUNTIFS(InputArea,\"=\"&List!$C$6,InputTopic,\"=\"&List!$Q4,InputLevel,\"=\"&Input!$A$2)","v":0},{"$f":"COUNTIFS(InputArea,\"=\"&List!$C$6,InputTopic,\"=\"&List!$Q4,InputImportance,\"=\"&Input!$E$5)","v":0},{"$f":"COUNTIFS(InputArea,\"=\"&List!$C$6,InputTopic,\"=\"&List!$Q4,InputImportance,\"=\"&Input!$E$4)","v":0},{"$f":"COUNTIFS(InputArea,\"=\"&List!$C$6,InputTopic,\"=\"&List!$Q4,InputImportance,\"=\"&Input!$E$3)","v":0},{"$f":"COUNTIFS(InputArea,\"=\"&List!$C$6,InputTopic,\"=\"&List!$Q4,InputImportance,\"=\"&Input!$E$2)","v":0},{"$f":"COUNTIFS(InputArea,\"=\"&List!$C$6,InputTopic,\"=\"&List!$Q4,InputSkill,\"=\"&List!$D$14)","v":0},{"$f":"COUNTIFS(InputArea,\"=\"&List!$C$6,InputTopic,\"=\"&List!$Q4,InputSkill,\"=\"&List!$D$15)","v":0},{"$f":"COUNTIFS(InputArea,\"=\"&List!$C$6,InputTopic,\"=\"&List!$Q4,InputSkill,\"=\"&List!$D$16)","v":0},{"$f":"COUNTIFS(InputArea,\"=\"&List!$C$6,InputTopic,\"=\"&List!$Q4,InputSkill,\"=\"&List!$D$17)","v":0},{"$f":"COUNTIFS(InputArea,\"=\"&List!$C$6,InputTopic,\"=\"&List!$Q4,InputSkill,\"=\"&List!$D$18)","v":0},{"$f":"COUNTIFS(InputArea,\"=\"&List!$C$6,InputTopic,\"=\"&List!$Q4,InputSkill,\"=\"&List!$D$19)","v":0},0,0,{"v":0,"d":"0.00"},{"v":0,"d":"0.0"}]
["C","T U","Geo",null,"GeospatialToolbox","Geospatial Technology & Hardware",{"$f":"COUNTIFS(InputArea,\"=\"&List!$C$6,InputTopic,\"=\"&List!$Q5,InputMode,\"=\"&List!$A$14)","v":0},{"$f":"COUNTIFS(InputArea,\"=\"&List!$C$6,InputTopic,\"=\"&List!$Q5,InputMode,\"=\"&List!$A$15)","v":0},{"$f":"COUNTIFS(InputArea,\"=\"&List!$C$6,InputTopic,\"=\"&List!$Q5,InputMode,\"=\"&List!$A$16)","v":0},{"$f":"COUNTIFS(InputArea,\"=\"&List!$C$6,InputTopic,\"=\"&List!$Q5,InputMode,\"=\"&List!$A$17)","v":0},{"$f":"COUNTIFS(InputArea,\"=\"&List!$C$6,InputTopic,\"=\"&List!$Q5,InputMode,\"=\"&List!$A$18)","v":0},{"$f":"COUNTIFS(InputArea,\"=\"&List!$C$6,InputTopic,\"=\"&List!$Q5,InputMode,\"=\"&List!$A$19)","v":0},{"$f":"SUMIFS(InputHours,InputArea,\"=\"&List!$C$6,InputTopic,\"=\"&List!$Q5,InputMode,\"=\"&List!$A$14)","v":0},{"$f":"SUMIFS(InputHours,InputArea,\"=\"&List!$C$6,InputTopic,\"=\"&List!$Q5,InputMode,\"=\"&List!$A$15)","v":0},{"$f":"SUMIFS(InputHours,InputArea,\"=\"&List!$C$6,InputTopic,\"=\"&List!$Q5,InputMode,\"=\"&List!$A$16)","v":0},{"$f":"SUMIFS(InputHours,InputArea,\"=\"&List!$C$6,InputTopic,\"=\"&List!$Q5,InputMode,\"=\"&List!$A$17)","v":0},{"$f":"SUMIFS(InputHours,InputArea,\"=\"&List!$C$6,InputTopic,\"=\"&List!$Q5,InputMode,\"=\"&List!$A$18)","v":0},{"$f":"SUMIFS(InputHours,InputArea,\"=\"&List!$C$6,InputTopic,\"=\"&List!$Q5,InputMode,\"=\"&List!$A$19)","v":0},{"$f":"COUNTIFS(InputArea,\"=\"&List!$C$6,InputTopic,\"=\"&List!$Q5,InputLevel,\"=\"&Input!$A$5)","v":0},{"$f":"COUNTIFS(InputArea,\"=\"&List!$C$6,InputTopic,\"=\"&List!$Q5,InputLevel,\"=\"&Input!$A$4)","v":0},{"$f":"COUNTIFS(InputArea,\"=\"&List!$C$6,InputTopic,\"=\"&List!$Q5,InputLevel,\"=\"&Input!$A$3)","v":0},{"$f":"COUNTIFS(InputArea,\"=\"&List!$C$6,InputTopic,\"=\"&List!$Q5,InputLevel,\"=\"&Input!$A$2)","v":0},{"$f":"COUNTIFS(InputArea,\"=\"&List!$C$6,InputTopic,\"=\"&List!$Q5,InputImportance,\"=\"&Input!$E$5)","v":0},{"$f":"COUNTIFS(InputArea,\"=\"&List!$C$6,InputTopic,\"=\"&List!$Q5,InputImportance,\"=\"&Input!$E$4)","v":0},{"$f":"COUNTIFS(InputArea,\"=\"&List!$C$6,InputTopic,\"=\"&List!$Q5,InputImportance,\"=\"&Input!$E$3)","v":0},{"$f":"COUNTIFS(InputArea,\"=\"&List!$C$6,InputTopic,\"=\"&List!$Q5,InputImportance,\"=\"&Input!$E$2)","v":0},{"$f":"COUNTIFS(InputArea,\"=\"&List!$C$6,InputTopic,\"=\"&List!$Q5,InputSkill,\"=\"&List!$D$14)","v":0},{"$f":"COUNTIFS(InputArea,\"=\"&List!$C$6,InputTopic,\"=\"&List!$Q5,InputSkill,\"=\"&List!$D$15)","v":0},{"$f":"COUNTIFS(InputArea,\"=\"&List!$C$6,InputTopic,\"=\"&List!$Q5,InputSkill,\"=\"&List!$D$16)","v":0},{"$f":"COUNTIFS(InputArea,\"=\"&List!$C$6,InputTopic,\"=\"&List!$Q5,InputSkill,\"=\"&List!$D$17)","v":0},{"$f":"COUNTIFS(InputArea,\"=\"&List!$C$6,InputTopic,\"=\"&List!$Q5,InputSkill,\"=\"&List!$D$18)","v":0},{"$f":"COUNTIFS(InputArea,\"=\"&List!$C$6,InputTopic,\"=\"&List!$Q5,InputSkill,\"=\"&List!$D$19)","v":0},0,0,{"v":0,"d":"0.00"},{"v":0,"d":"0.0"}]
["C","T U","Geo",null,"GeospatialToolbox","Others",{"$f":"COUNTIFS(InputArea,\"=\"&List!$C$6,InputTopic,\"=\"&List!$Q6,InputMode,\"=\"&List!$A$14)","v":0},{"$f":"COUNTIFS(InputArea,\"=\"&List!$C$6,InputTopic,\"=\"&List!$Q6,InputMode,\"=\"&List!$A$15)","v":0},{"$f":"COUNTIFS(InputArea,\"=\"&List!$C$6,InputTopic,\"=\"&List!$Q6,InputMode,\"=\"&List!$A$16)","v":0},{"$f":"COUNTIFS(InputArea,\"=\"&List!$C$6,InputTopic,\"=\"&List!$Q6,InputMode,\"=\"&List!$A$17)","v":0},{"$f":"COUNTIFS(InputArea,\"=\"&List!$C$6,InputTopic,\"=\"&List!$Q6,InputMode,\"=\"&List!$A$18)","v":0},{"$f":"COUNTIFS(InputArea,\"=\"&List!$C$6,InputTopic,\"=\"&List!$Q6,InputMode,\"=\"&List!$A$19)","v":0},{"$f":"SUMIFS(InputHours,InputArea,\"=\"&List!$C$6,InputTopic,\"=\"&List!$Q6,InputMode,\"=\"&List!$A$14)","v":0},{"$f":"SUMIFS(InputHours,InputArea,\"=\"&List!$C$6,InputTopic,\"=\"&List!$Q6,InputMode,\"=\"&List!$A$15)","v":0},{"$f":"SUMIFS(InputHours,InputArea,\"=\"&List!$C$6,InputTopic,\"=\"&List!$Q6,InputMode,\"=\"&List!$A$16)","v":0},{"$f":"SUMIFS(InputHours,InputArea,\"=\"&List!$C$6,InputTopic,\"=\"&List!$Q6,InputMode,\"=\"&List!$A$17)","v":0},{"$f":"SUMIFS(InputHours,InputArea,\"=\"&List!$C$6,InputTopic,\"=\"&List!$Q6,InputMode,\"=\"&List!$A$18)","v":0},{"$f":"SUMIFS(InputHours,InputArea,\"=\"&List!$C$6,InputTopic,\"=\"&List!$Q6,InputMode,\"=\"&List!$A$19)","v":0},{"$f":"COUNTIFS(InputArea,\"=\"&List!$C$6,InputTopic,\"=\"&List!$Q6,InputLevel,\"=\"&Input!$A$5)","v":0},{"$f":"COUNTIFS(InputArea,\"=\"&List!$C$6,InputTopic,\"=\"&List!$Q6,InputLevel,\"=\"&Input!$A$4)","v":0},{"$f":"COUNTIFS(InputArea,\"=\"&List!$C$6,InputTopic,\"=\"&List!$Q6,InputLevel,\"=\"&Input!$A$3)","v":0},{"$f":"COUNTIFS(InputArea,\"=\"&List!$C$6,InputTopic,\"=\"&List!$Q6,InputLevel,\"=\"&Input!$A$2)","v":0},{"$f":"COUNTIFS(InputArea,\"=\"&List!$C$6,InputTopic,\"=\"&List!$Q6,InputImportance,\"=\"&Input!$E$5)","v":0},{"$f":"COUNTIFS(InputArea,\"=\"&List!$C$6,InputTopic,\"=\"&List!$Q6,InputImportance,\"=\"&Input!$E$4)","v":0},{"$f":"COUNTIFS(InputArea,\"=\"&List!$C$6,InputTopic,\"=\"&List!$Q6,InputImportance,\"=\"&Input!$E$3)","v":0},{"$f":"COUNTIFS(InputArea,\"=\"&List!$C$6,InputTopic,\"=\"&List!$Q6,InputImportance,\"=\"&Input!$E$2)","v":0},{"$f":"COUNTIFS(InputArea,\"=\"&List!$C$6,InputTopic,\"=\"&List!$Q6,InputSkill,\"=\"&List!$D$14)","v":0},{"$f":"COUNTIFS(InputArea,\"=\"&List!$C$6,InputTopic,\"=\"&List!$Q6,InputSkill,\"=\"&List!$D$15)","v":0},{"$f":"COUNTIFS(InputArea,\"=\"&List!$C$6,InputTopic,\"=\"&List!$Q6,InputSkill,\"=\"&List!$D$16)","v":0},{"$f":"COUNTIFS(InputArea,\"=\"&List!$C$6,InputTopic,\"=\"&List!$Q6,InputSkill,\"=\"&List!$D$17)","v":0},{"$f":"COUNTIFS(InputArea,\"=\"&List!$C$6,InputTopic,\"=\"&List!$Q6,InputSkill,\"=\"&List!$D$18)","v":0},{"$f":"COUNTIFS(InputArea,\"=\"&List!$C$6,InputTopic,\"=\"&List!$Q6,InputSkill,\"=\"&List!$D$19)","v":0},0,0,{"v":0,"d":"0.00"},{"v":0,"d":"0.0"}]
["C","T U","Geo","CORE","DataVisualization","Cartography",{"$f":"COUNTIFS(InputArea,\"=\"&List!$C$7,InputTopic,\"=\"&List!$R2,InputMode,\"=\"&List!$A$14)","v":0},{"$f":"COUNTIFS(InputArea,\"=\"&List!$C$7,InputTopic,\"=\"&List!$R2,InputMode,\"=\"&List!$A$15)","v":0},{"$f":"COUNTIFS(InputArea,\"=\"&List!$C$7,InputTopic,\"=\"&List!$R2,InputMode,\"=\"&List!$A$16)","v":0},{"$f":"COUNTIFS(InputArea,\"=\"&List!$C$7,InputTopic,\"=\"&List!$R2,InputMode,\"=\"&List!$A$17)","v":0},{"$f":"COUNTIFS(InputArea,\"=\"&List!$C$7,InputTopic,\"=\"&List!$R2,InputMode,\"=\"&List!$A$18)","v":0},{"$f":"COUNTIFS(InputArea,\"=\"&List!$C$7,InputTopic,\"=\"&List!$R2,InputMode,\"=\"&List!$A$19)","v":0},{"$f":"SUMIFS(InputHours,InputArea,\"=\"&List!$C$7,InputTopic,\"=\"&List!$R2,InputMode,\"=\"&List!$A$14)","v":0},{"$f":"SUMIFS(InputHours,InputArea,\"=\"&List!$C$7,InputTopic,\"=\"&List!$R2,InputMode,\"=\"&List!$A$15)","v":0},{"$f":"SUMIFS(InputHours,InputArea,\"=\"&List!$C$7,InputTopic,\"=\"&List!$R2,InputMode,\"=\"&List!$A$16)","v":0},{"$f":"SUMIFS(InputHours,InputArea,\"=\"&List!$C$7,InputTopic,\"=\"&List!$R2,InputMode,\"=\"&List!$A$17)","v":0},{"$f":"SUMIFS(InputHours,InputArea,\"=\"&List!$C$7,InputTopic,\"=\"&List!$R2,InputMode,\"=\"&List!$A$18)","v":0},{"$f":"SUMIFS(InputHours,InputArea,\"=\"&List!$C$7,InputTopic,\"=\"&List!$R2,InputMode,\"=\"&List!$A$19)","v":0},{"$f":"COUNTIFS(InputArea,\"=\"&List!$C$7,InputTopic,\"=\"&List!$R2,InputLevel,\"=\"&Input!$A$5)","v":0},{"$f":"COUNTIFS(InputArea,\"=\"&List!$C$7,InputTopic,\"=\"&List!$R2,InputLevel,\"=\"&Input!$A$4)","v":0},{"$f":"COUNTIFS(InputArea,\"=\"&List!$C$7,InputTopic,\"=\"&List!$R2,InputLevel,\"=\"&Input!$A$3)","v":0},{"$f":"COUNTIFS(InputArea,\"=\"&List!$C$7,InputTopic,\"=\"&List!$R2,InputLevel,\"=\"&Input!$A$2)","v":0},{"$f":"COUNTIFS(InputArea,\"=\"&List!$C$7,InputTopic,\"=\"&List!$R2,InputImportance,\"=\"&Input!$E$5)","v":0},{"$f":"COUNTIFS(InputArea,\"=\"&List!$C$7,InputTopic,\"=\"&List!$R2,InputImportance,\"=\"&Input!$E$4)","v":0},{"$f":"COUNTIFS(InputArea,\"=\"&List!$C$7,InputTopic,\"=\"&List!$R2,InputImportance,\"=\"&Input!$E$3)","v":0},{"$f":"COUNTIFS(InputArea,\"=\"&List!$C$7,InputTopic,\"=\"&List!$R2,InputImportance,\"=\"&Input!$E$2)","v":0},{"$f":"COUNTIFS(InputArea,\"=\"&List!$C$7,InputTopic,\"=\"&List!$R2,InputSkill,\"=\"&List!$D$14)","v":0},{"$f":"COUNTIFS(InputArea,\"=\"&List!$C$7,InputTopic,\"=\"&List!$R2,InputSkill,\"=\"&List!$D$15)","v":0},{"$f":"COUNTIFS(InputArea,\"=\"&List!$C$7,InputTopic,\"=\"&List!$R2,InputSkill,\"=\"&List!$D$16)","v":0},{"$f":"COUNTIFS(InputArea,\"=\"&List!$C$7,InputTopic,\"=\"&List!$R2,InputSkill,\"=\"&List!$D$17)","v":0},{"$f":"COUNTIFS(InputArea,\"=\"&List!$C$7,InputTopic,\"=\"&List!$R2,InputSkill,\"=\"&List!$D$18)","v":0},{"$f":"COUNTIFS(InputArea,\"=\"&List!$C$7,InputTopic,\"=\"&List!$R2,InputSkill,\"=\"&List!$D$19)","v":0},{"$f":"SUM(G66:L66)","v":0},{"$f":"SUM(M66:R66)","v":0},{"$f":"IFERROR(((W66*$W$2)+(X66*$X$2)+(Y66*$Y$2)+(Z66*$Z$2))/AG66,0)","v":{"v":0,"d":"0.00"}},{"v":0,"d":"0.0"}]
["C","T U","Geo",null,"DataVisualization","Computer Visualization/ Display",{"$f":"COUNTIFS(InputArea,\"=\"&List!$C$7,InputTopic,\"=\"&List!$R3,InputMode,\"=\"&List!$A$14)","v":0},{"$f":"COUNTIFS(InputArea,\"=\"&List!$C$7,InputTopic,\"=\"&List!$R3,InputMode,\"=\"&List!$A$15)","v":0},{"$f":"COUNTIFS(InputArea,\"=\"&List!$C$7,InputTopic,\"=\"&List!$R3,InputMode,\"=\"&List!$A$16)","v":0},{"$f":"COUNTIFS(InputArea,\"=\"&List!$C$7,InputTopic,\"=\"&List!$R3,InputMode,\"=\"&List!$A$17)","v":0},{"$f":"COUNTIFS(InputArea,\"=\"&List!$C$7,InputTopic,\"=\"&List!$R3,InputMode,\"=\"&List!$A$18)","v":0},{"$f":"COUNTIFS(InputArea,\"=\"&List!$C$7,InputTopic,\"=\"&List!$R3,InputMode,\"=\"&List!$A$19)","v":0},{"$f":"SUMIFS(InputHours,InputArea,\"=\"&List!$C$7,InputTopic,\"=\"&List!$R3,InputMode,\"=\"&List!$A$14)","v":0},{"$f":"SUMIFS(InputHours,InputArea,\"=\"&List!$C$7,InputTopic,\"=\"&List!$R3,InputMode,\"=\"&List!$A$15)","v":0},{"$f":"SUMIFS(InputHours,InputArea,\"=\"&List!$C$7,InputTopic,\"=\"&List!$R3,InputMode,\"=\"&List!$A$16)","v":0},{"$f":"SUMIFS(InputHours,InputArea,\"=\"&List!$C$7,InputTopic,\"=\"&List!$R3,InputMode,\"=\"&List!$A$17)","v":0},{"$f":"SUMIFS(InputHours,InputArea,\"=\"&List!$C$7,InputTopic,\"=\"&List!$R3,InputMode,\"=\"&List!$A$18)","v":0},{"$f":"SUMIFS(InputHours,InputArea,\"=\"&List!$C$7,InputTopic,\"=\"&List!$R3,InputMode,\"=\"&List!$A$19)","v":0},{"$f":"COUNTIFS(InputArea,\"=\"&List!$C$7,InputTopic,\"=\"&List!$R3,InputLevel,\"=\"&Input!$A$5)","v":0},{"$f":"COUNTIFS(InputArea,\"=\"&List!$C$7,InputTopic,\"=\"&List!$R3,InputLevel,\"=\"&Input!$A$4)","v":0},{"$f":"COUNTIFS(InputArea,\"=\"&List!$C$7,InputTopic,\"=\"&List!$R3,InputLevel,\"=\"&Input!$A$3)","v":0},{"$f":"COUNTIFS(InputArea,\"=\"&List!$C$7,InputTopic,\"=\"&List!$R3,InputLevel,\"=\"&Input!$A$2)","v":0},{"$f":"COUNTIFS(InputArea,\"=\"&List!$C$7,InputTopic,\"=\"&List!$R3,InputImportance,\"=\"&Input!$E$5)","v":0},{"$f":"COUNTIFS(InputArea,\"=\"&List!$C$7,InputTopic,\"=\"&List!$R3,InputImportance,\"=\"&Input!$E$4)","v":0},{"$f":"COUNTIFS(InputArea,\"=\"&List!$C$7,InputTopic,\"=\"&List!$R3,InputImportance,\"=\"&Input!$E$3)","v":0},{"$f":"COUNTIFS(InputArea,\"=\"&List!$C$7,InputTopic,\"=\"&List!$R3,InputImportance,\"=\"&Input!$E$2)","v":0},{"$f":"COUNTIFS(InputArea,\"=\"&List!$C$7,InputTopic,\"=\"&List!$R3,InputSkill,\"=\"&List!$D$14)","v":0},{"$f":"COUNTIFS(InputArea,\"=\"&List!$C$7,InputTopic,\"=\"&List!$R3,InputSkill,\"=\"&List!$D$15)","v":0},{"$f":"COUNTIFS(InputArea,\"=\"&List!$C$7,InputTopic,\"=\"&List!$R3,InputSkill,\"=\"&List!$D$16)","v":0},{"$f":"COUNTIFS(InputArea,\"=\"&List!$C$7,InputTopic,\"=\"&List!$R3,InputSkill,\"=\"&List!$D$17)","v":0},{"$f":"COUNTIFS(InputArea,\"=\"&List!$C$7,InputTopic,\"=\"&List!$R3,InputSkill,\"=\"&List!$D$18)","v":0},{"$f":"COUNTIFS(InputArea,\"=\"&List!$C$7,InputTopic,\"=\"&List!$R3,InputSkill,\"=\"&List!$D$19)","v":0},0,0,{"v":0,"d":"0.00"},{"v":0,"d":"0.0"}]
["C","T U","Geo",null,"DataVisualization","Others",{"$f":"COUNTIFS(InputArea,\"=\"&List!$C$7,InputTopic,\"=\"&List!$R4,InputMode,\"=\"&List!$A$14)","v":0},{"$f":"COUNTIFS(InputArea,\"=\"&List!$C$7,InputTopic,\"=\"&List!$R4,InputMode,\"=\"&List!$A$15)","v":0},{"$f":"COUNTIFS(InputArea,\"=\"&List!$C$7,InputTopic,\"=\"&List!$R4,InputMode,\"=\"&List!$A$16)","v":0},{"$f":"COUNTIFS(InputArea,\"=\"&List!$C$7,InputTopic,\"=\"&List!$R4,InputMode,\"=\"&List!$A$17)","v":0},{"$f":"COUNTIFS(InputArea,\"=\"&List!$C$7,InputTopic,\"=\"&List!$R4,InputMode,\"=\"&List!$A$18)","v":0},{"$f":"COUNTIFS(InputArea,\"=\"&List!$C$7,InputTopic,\"=\"&List!$R4,InputMode,\"=\"&List!$A$19)","v":0},{"$f":"SUMIFS(InputHours,InputArea,\"=\"&List!$C$7,InputTopic,\"=\"&List!$R4,InputMode,\"=\"&List!$A$14)","v":0},{"$f":"SUMIFS(InputHours,InputArea,\"=\"&List!$C$7,InputTopic,\"=\"&List!$R4,InputMode,\"=\"&List!$A$15)","v":0},{"$f":"SUMIFS(InputHours,InputArea,\"=\"&List!$C$7,InputTopic,\"=\"&List!$R4,InputMode,\"=\"&List!$A$16)","v":0},{"$f":"SUMIFS(InputHours,InputArea,\"=\"&List!$C$7,InputTopic,\"=\"&List!$R4,InputMode,\"=\"&List!$A$17)","v":0},{"$f":"SUMIFS(InputHours,InputArea,\"=\"&List!$C$7,InputTopic,\"=\"&List!$R4,InputMode,\"=\"&List!$A$18)","v":0},{"$f":"SUMIFS(InputHours,InputArea,\"=\"&List!$C$7,InputTopic,\"=\"&List!$R4,InputMode,\"=\"&List!$A$19)","v":0},{"$f":"COUNTIFS(InputArea,\"=\"&List!$C$7,InputTopic,\"=\"&List!$R4,InputLevel,\"=\"&Input!$A$5)","v":0},{"$f":"COUNTIFS(InputArea,\"=\"&List!$C$7,InputTopic,\"=\"&List!$R4,InputLevel,\"=\"&Input!$A$4)","v":0},{"$f":"COUNTIFS(InputArea,\"=\"&List!$C$7,InputTopic,\"=\"&List!$R4,InputLevel,\"=\"&Input!$A$3)","v":0},{"$f":"COUNTIFS(InputArea,\"=\"&List!$C$7,InputTopic,\"=\"&List!$R4,InputLevel,\"=\"&Input!$A$2)","v":0},{"$f":"COUNTIFS(InputArea,\"=\"&List!$C$7,InputTopic,\"=\"&List!$R4,InputImportance,\"=\"&Input!$E$5)","v":0},{"$f":"COUNTIFS(InputArea,\"=\"&List!$C$7,InputTopic,\"=\"&List!$R4,InputImportance,\"=\"&Input!$E$4)","v":0},{"$f":"COUNTIFS(InputArea,\"=\"&List!$C$7,InputTopic,\"=\"&List!$R4,InputImportance,\"=\"&Input!$E$3)","v":0},{"$f":"COUNTIFS(InputArea,\"=\"&List!$C$7,InputTopic,\"=\"&List!$R4,InputImportance,\"=\"&Input!$E$2)","v":0},{"$f":"COUNTIFS(InputArea,\"=\"&List!$C$7,InputTopic,\"=\"&List!$R4,InputSkill,\"=\"&List!$D$14)","v":0},{"$f":"COUNTIFS(InputArea,\"=\"&List!$C$7,InputTopic,\"=\"&List!$R4,InputSkill,\"=\"&List!$D$15)","v":0},{"$f":"COUNTIFS(InputArea,\"=\"&List!$C$7,InputTopic,\"=\"&List!$R4,InputSkill,\"=\"&List!$D$16)","v":0},{"$f":"COUNTIFS(InputArea,\"=\"&List!$C$7,InputTopic,\"=\"&List!$R4,InputSkill,\"=\"&List!$D$17)","v":0},{"$f":"COUNTIFS(InputArea,\"=\"&List!$C$7,InputTopic,\"=\"&List!$R4,InputSkill,\"=\"&List!$D$18)","v":0},{"$f":"COUNTIFS(InputArea,\"=\"&List!$C$7,InputTopic,\"=\"&List!$R4,InputSkill,\"=\"&List!$D$19)","v":0},0,0,{"v":0,"d":"0.00"},{"$f":"IFERROR(AH68/AG68,0)","v":{"v":0,"d":"0.0"}}]
["C","T","Geo","CORE","MapMaking","2D & 3D Maps",{"$f":"COUNTIFS(InputArea,\"=\"&List!$C$8,InputTopic,\"=\"&List!$S2,InputMode,\"=\"&List!$A$14)","v":0},{"$f":"COUNTIFS(InputArea,\"=\"&List!$C$8,InputTopic,\"=\"&List!$S2,InputMode,\"=\"&List!$A$15)","v":0},{"$f":"COUNTIFS(InputArea,\"=\"&List!$C$8,InputTopic,\"=\"&List!$S2,InputMode,\"=\"&List!$A$16)","v":0},{"$f":"COUNTIFS(InputArea,\"=\"&List!$C$8,InputTopic,\"=\"&List!$S2,InputMode,\"=\"&List!$A$17)","v":0},{"$f":"COUNTIFS(InputArea,\"=\"&List!$C$8,InputTopic,\"=\"&List!$S2,InputMode,\"=\"&List!$A$18)","v":0},{"$f":"COUNTIFS(InputArea,\"=\"&List!$C$8,InputTopic,\"=\"&List!$S2,InputMode,\"=\"&List!$A$19)","v":0},{"$f":"SUMIFS(InputHours,InputArea,\"=\"&List!$C$8,InputTopic,\"=\"&List!$S2,InputMode,\"=\"&List!$A$14)","v":0},{"$f":"SUMIFS(InputHours,InputArea,\"=\"&List!$C$8,InputTopic,\"=\"&List!$S2,InputMode,\"=\"&List!$A$15)","v":0},{"$f":"SUMIFS(InputHours,InputArea,\"=\"&List!$C$8,InputTopic,\"=\"&List!$S2,InputMode,\"=\"&List!$A$16)","v":0},{"$f":"SUMIFS(InputHours,InputArea,\"=\"&List!$C$8,InputTopic,\"=\"&List!$S2,InputMode,\"=\"&List!$A$17)","v":0},{"$f":"SUMIFS(InputHours,InputArea,\"=\"&List!$C$8,InputTopic,\"=\"&List!$S2,InputMode,\"=\"&List!$A$18)","v":0},{"$f":"SUMIFS(InputHours,InputArea,\"=\"&List!$C$8,InputTopic,\"=\"&List!$S2,InputMode,\"=\"&List!$A$19)","v":0},{"$f":"COUNTIFS(InputArea,\"=\"&List!$C$8,InputTopic,\"=\"&List!$S2,InputLevel,\"=\"&Input!$A$5)","v":0},{"$f":"COUNTIFS(InputArea,\"=\"&List!$C$8,InputTopic,\"=\"&List!$S2,InputLevel,\"=\"&Input!$A$4)","v":0},{"$f":"COUNTIFS(InputArea,\"=\"&List!$C$8,InputTopic,\"=\"&List!$S2,InputLevel,\"=\"&Input!$A$3)","v":0},{"$f":"COUNTIFS(InputArea,\"=\"&List!$C$8,InputTopic,\"=\"&List!$S2,InputLevel,\"=\"&Input!$A$2)","v":0},{"$f":"COUNTIFS(InputArea,\"=\"&List!$C$8,InputTopic,\"=\"&List!$S2,InputImportance,\"=\"&Input!$E$5)","v":0},{"$f":"COUNTIFS(InputArea,\"=\"&List!$C$8,InputTopic,\"=\"&List!$S2,InputImportance,\"=\"&Input!$E$4)","v":0},{"$f":"COUNTIFS(InputArea,\"=\"&List!$C$8,InputTopic,\"=\"&List!$S2,InputImportance,\"=\"&Input!$E$3)","v":0},{"$f":"COUNTIFS(InputArea,\"=\"&List!$C$8,InputTopic,\"=\"&List!$S2,InputImportance,\"=\"&Input!$E$2)","v":0},{"$f":"COUNTIFS(InputArea,\"=\"&List!$C$8,InputTopic,\"=\"&List!$S2,InputSkill,\"=\"&List!$D$14)","v":0},{"$f":"COUNTIFS(InputArea,\"=\"&List!$C$8,InputTopic,\"=\"&List!$S2,InputSkill,\"=\"&List!$D$15)","v":0},{"$f":"COUNTIFS(InputArea,\"=\"&List!$C$8,InputTopic,\"=\"&List!$S2,InputSkill,\"=\"&List!$D$16)","v":0},{"$f":"COUNTIFS(InputArea,\"=\"&List!$C$8,InputTopic,\"=\"&List!$S2,InputSkill,\"=\"&List!$D$17)","v":0},{"$f":"COUNTIFS(InputArea,\"=\"&List!$C$8,InputTopic,\"=\"&List!$S2,InputSkill,\"=\"&List!$D$18)","v":0},{"$f":"COUNTIFS(InputArea,\"=\"&List!$C$8,InputTopic,\"=\"&List!$S2,InputSkill,\"=\"&List!$D$19)","v":0},{"$f":"SUM(G69:L69)","v":0},{"$f":"SUM(M69:R69)","v":0},{"$f":"IFERROR(((W69*$W$2)+(X69*$X$2)+(Y69*$Y$2)+(Z69*$Z$2))/AG69,0)","v":{"v":0,"d":"0.00"}},{"v":0,"d":"0.0"}]
["C","T U","Geo",null,"MapMaking","Perception Theory",{"$f":"COUNTIFS(InputArea,\"=\"&List!$C$8,InputTopic,\"=\"&List!$S3,InputMode,\"=\"&List!$A$14)","v":0},{"$f":"COUNTIFS(InputArea,\"=\"&List!$C$8,InputTopic,\"=\"&List!$S3,InputMode,\"=\"&List!$A$15)","v":0},{"$f":"COUNTIFS(InputArea,\"=\"&List!$C$8,InputTopic,\"=\"&List!$S3,InputMode,\"=\"&List!$A$16)","v":0},{"$f":"COUNTIFS(InputArea,\"=\"&List!$C$8,InputTopic,\"=\"&List!$S3,InputMode,\"=\"&List!$A$17)","v":0},{"$f":"COUNTIFS(InputArea,\"=\"&List!$C$8,InputTopic,\"=\"&List!$S3,InputMode,\"=\"&List!$A$18)","v":0},{"$f":"COUNTIFS(InputArea,\"=\"&List!$C$8,InputTopic,\"=\"&List!$S3,InputMode,\"=\"&List!$A$19)","v":0},{"$f":"SUMIFS(InputHours,InputArea,\"=\"&List!$C$8,InputTopic,\"=\"&List!$S3,InputMode,\"=\"&List!$A$14)","v":0},{"$f":"SUMIFS(InputHours,InputArea,\"=\"&List!$C$8,InputTopic,\"=\"&List!$S3,InputMode,\"=\"&List!$A$15)","v":0},{"$f":"SUMIFS(InputHours,InputArea,\"=\"&List!$C$8,InputTopic,\"=\"&List!$S3,InputMode,\"=\"&List!$A$16)","v":0},{"$f":"SUMIFS(InputHours,InputArea,\"=\"&List!$C$8,InputTopic,\"=\"&List!$S3,InputMode,\"=\"&List!$A$17)","v":0},{"$f":"SUMIFS(InputHours,InputArea,\"=\"&List!$C$8,InputTopic,\"=\"&List!$S3,InputMode,\"=\"&List!$A$18)","v":0},{"$f":"SUMIFS(InputHours,InputArea,\"=\"&List!$C$8,InputTopic,\"=\"&List!$S3,InputMode,\"=\"&List!$A$19)","v":0},{"$f":"COUNTIFS(InputArea,\"=\"&List!$C$8,InputTopic,\"=\"&List!$S3,InputLevel,\"=\"&Input!$A$5)","v":0},{"$f":"COUNTIFS(InputArea,\"=\"&List!$C$8,InputTopic,\"=\"&List!$S3,InputLevel,\"=\"&Input!$A$4)","v":0},{"$f":"COUNTIFS(InputArea,\"=\"&List!$C$8,InputTopic,\"=\"&List!$S3,InputLevel,\"=\"&Input!$A$3)","v":0},{"$f":"COUNTIFS(InputArea,\"=\"&List!$C$8,InputTopic,\"=\"&List!$S3,InputLevel,\"=\"&Input!$A$2)","v":0},{"$f":"COUNTIFS(InputArea,\"=\"&List!$C$8,InputTopic,\"=\"&List!$S3,InputImportance,\"=\"&Input!$E$5)","v":0},{"$f":"COUNTIFS(InputArea,\"=\"&List!$C$8,InputTopic,\"=\"&List!$S3,InputImportance,\"=\"&Input!$E$4)","v":0},{"$f":"COUNTIFS(InputArea,\"=\"&List!$C$8,InputTopic,\"=\"&List!$S3,InputImportance,\"=\"&Input!$E$3)","v":0},{"$f":"COUNTIFS(InputArea,\"=\"&List!$C$8,InputTopic,\"=\"&List!$S3,InputImportance,\"=\"&Input!$E$2)","v":0},{"$f":"COUNTIFS(InputArea,\"=\"&List!$C$8,InputTopic,\"=\"&List!$S3,InputSkill,\"=\"&List!$D$14)","v":0},{"$f":"COUNTIFS(InputArea,\"=\"&List!$C$8,InputTopic,\"=\"&List!$S3,InputSkill,\"=\"&List!$D$15)","v":0},{"$f":"COUNTIFS(InputArea,\"=\"&List!$C$8,InputTopic,\"=\"&List!$S3,InputSkill,\"=\"&List!$D$16)","v":0},{"$f":"COUNTIFS(InputArea,\"=\"&List!$C$8,InputTopic,\"=\"&List!$S3,InputSkill,\"=\"&List!$D$17)","v":0},{"$f":"COUNTIFS(InputArea,\"=\"&List!$C$8,InputTopic,\"=\"&List!$S3,InputSkill,\"=\"&List!$D$18)","v":0},{"$f":"COUNTIFS(InputArea,\"=\"&List!$C$8,InputTopic,\"=\"&List!$S3,InputSkill,\"=\"&List!$D$19)","v":0},0,0,{"v":0,"d":"0.00"},{"v":0,"d":"0.0"}]
["C","T U","Geo",null,"MapMaking","Mapping Techniques",{"$f":"COUNTIFS(InputArea,\"=\"&List!$C$8,InputTopic,\"=\"&List!$S4,InputMode,\"=\"&List!$A$14)","v":0},{"$f":"COUNTIFS(InputArea,\"=\"&List!$C$8,InputTopic,\"=\"&List!$S4,InputMode,\"=\"&List!$A$15)","v":0},{"$f":"COUNTIFS(InputArea,\"=\"&List!$C$8,InputTopic,\"=\"&List!$S4,InputMode,\"=\"&List!$A$16)","v":0},{"$f":"COUNTIFS(InputArea,\"=\"&List!$C$8,InputTopic,\"=\"&List!$S4,InputMode,\"=\"&List!$A$17)","v":0},{"$f":"COUNTIFS(InputArea,\"=\"&List!$C$8,InputTopic,\"=\"&List!$S4,InputMode,\"=\"&List!$A$18)","v":0},{"$f":"COUNTIFS(InputArea,\"=\"&List!$C$8,InputTopic,\"=\"&List!$S4,InputMode,\"=\"&List!$A$19)","v":0},{"$f":"SUMIFS(InputHours,InputArea,\"=\"&List!$C$8,InputTopic,\"=\"&List!$S4,InputMode,\"=\"&List!$A$14)","v":0},{"$f":"SUMIFS(InputHours,InputArea,\"=\"&List!$C$8,InputTopic,\"=\"&List!$S4,InputMode,\"=\"&List!$A$15)","v":0},{"$f":"SUMIFS(InputHours,InputArea,\"=\"&List!$C$8,InputTopic,\"=\"&List!$S4,InputMode,\"=\"&List!$A$16)","v":0},{"$f":"SUMIFS(InputHours,InputArea,\"=\"&List!$C$8,InputTopic,\"=\"&List!$S4,InputMode,\"=\"&List!$A$17)","v":0},{"$f":"SUMIFS(InputHours,InputArea,\"=\"&List!$C$8,InputTopic,\"=\"&List!$S4,InputMode,\"=\"&List!$A$18)","v":0},{"$f":"SUMIFS(InputHours,InputArea,\"=\"&List!$C$8,InputTopic,\"=\"&List!$S4,InputMode,\"=\"&List!$A$19)","v":0},{"$f":"COUNTIFS(InputArea,\"=\"&List!$C$8,InputTopic,\"=\"&List!$S4,InputLevel,\"=\"&Input!$A$5)","v":0},{"$f":"COUNTIFS(InputArea,\"=\"&List!$C$8,InputTopic,\"=\"&List!$S4,InputLevel,\"=\"&Input!$A$4)","v":0},{"$f":"COUNTIFS(InputArea,\"=\"&List!$C$8,InputTopic,\"=\"&List!$S4,InputLevel,\"=\"&Input!$A$3)","v":0},{"$f":"COUNTIFS(InputArea,\"=\"&List!$C$8,InputTopic,\"=\"&List!$S4,InputLevel,\"=\"&Input!$A$2)","v":0},{"$f":"COUNTIFS(InputArea,\"=\"&List!$C$8,InputTopic,\"=\"&List!$S4,InputImportance,\"=\"&Input!$E$5)","v":0},{"$f":"COUNTIFS(InputArea,\"=\"&List!$C$8,InputTopic,\"=\"&List!$S4,InputImportance,\"=\"&Input!$E$4)","v":0},{"$f":"COUNTIFS(InputArea,\"=\"&List!$C$8,InputTopic,\"=\"&List!$S4,InputImportance,\"=\"&Input!$E$3)","v":0},{"$f":"COUNTIFS(InputArea,\"=\"&List!$C$8,InputTopic,\"=\"&List!$S4,InputImportance,\"=\"&Input!$E$2)","v":0},{"$f":"COUNTIFS(InputArea,\"=\"&List!$C$8,InputTopic,\"=\"&List!$S4,InputSkill,\"=\"&List!$D$14)","v":0},{"$f":"COUNTIFS(InputArea,\"=\"&List!$C$8,InputTopic,\"=\"&List!$S4,InputSkill,\"=\"&List!$D$15)","v":0},{"$f":"COUNTIFS(InputArea,\"=\"&List!$C$8,InputTopic,\"=\"&List!$S4,InputSkill,\"=\"&List!$D$16)","v":0},{"$f":"COUNTIFS(InputArea,\"=\"&List!$C$8,InputTopic,\"=\"&List!$S4,InputSkill,\"=\"&List!$D$17)","v":0},{"$f":"COUNTIFS(InputArea,\"=\"&List!$C$8,InputTopic,\"=\"&List!$S4,InputSkill,\"=\"&List!$D$18)","v":0},{"$f":"COUNTIFS(InputArea,\"=\"&List!$C$8,InputTopic,\"=\"&List!$S4,InputSkill,\"=\"&List!$D$19)","v":0},0,0,{"v":0,"d":"0.00"},{"v":0,"d":"0.0"}]
["C","T","Geo",null,"MapMaking","Others",{"$f":"COUNTIFS(InputArea,\"=\"&List!$C$8,InputTopic,\"=\"&List!$S5,InputMode,\"=\"&List!$A$14)","v":0},{"$f":"COUNTIFS(InputArea,\"=\"&List!$C$8,InputTopic,\"=\"&List!$S5,InputMode,\"=\"&List!$A$15)","v":0},{"$f":"COUNTIFS(InputArea,\"=\"&List!$C$8,InputTopic,\"=\"&List!$S5,InputMode,\"=\"&List!$A$16)","v":0},{"$f":"COUNTIFS(InputArea,\"=\"&List!$C$8,InputTopic,\"=\"&List!$S5,InputMode,\"=\"&List!$A$17)","v":0},{"$f":"COUNTIFS(InputArea,\"=\"&List!$C$8,InputTopic,\"=\"&List!$S5,InputMode,\"=\"&List!$A$18)","v":0},{"$f":"COUNTIFS(InputArea,\"=\"&List!$C$8,InputTopic,\"=\"&List!$S5,InputMode,\"=\"&List!$A$19)","v":0},{"$f":"SUMIFS(InputHours,InputArea,\"=\"&List!$C$8,InputTopic,\"=\"&List!$S5,InputMode,\"=\"&List!$A$14)","v":0},{"$f":"SUMIFS(InputHours,InputArea,\"=\"&List!$C$8,InputTopic,\"=\"&List!$S5,InputMode,\"=\"&List!$A$15)","v":0},{"$f":"SUMIFS(InputHours,InputArea,\"=\"&List!$C$8,InputTopic,\"=\"&List!$S5,InputMode,\"=\"&List!$A$16)","v":0},{"$f":"SUMIFS(InputHours,InputArea,\"=\"&List!$C$8,InputTopic,\"=\"&List!$S5,InputMode,\"=\"&List!$A$17)","v":0},{"$f":"SUMIFS(InputHours,InputArea,\"=\"&List!$C$8,InputTopic,\"=\"&List!$S5,InputMode,\"=\"&List!$A$18)","v":0},{"$f":"SUMIFS(InputHours,InputArea,\"=\"&List!$C$8,InputTopic,\"=\"&List!$S5,InputMode,\"=\"&List!$A$19)","v":0},{"$f":"COUNTIFS(InputArea,\"=\"&List!$C$8,InputTopic,\"=\"&List!$S5,InputLevel,\"=\"&Input!$A$5)","v":0},{"$f":"COUNTIFS(InputArea,\"=\"&List!$C$8,InputTopic,\"=\"&List!$S5,InputLevel,\"=\"&Input!$A$4)","v":0},{"$f":"COUNTIFS(InputArea,\"=\"&List!$C$8,InputTopic,\"=\"&List!$S5,InputLevel,\"=\"&Input!$A$3)","v":0},{"$f":"COUNTIFS(InputArea,\"=\"&List!$C$8,InputTopic,\"=\"&List!$S5,InputLevel,\"=\"&Input!$A$2)","v":0},{"$f":"COUNTIFS(InputArea,\"=\"&List!$C$8,InputTopic,\"=\"&List!$S5,InputImportance,\"=\"&Input!$E$5)","v":0},{"$f":"COUNTIFS(InputArea,\"=\"&List!$C$8,InputTopic,\"=\"&List!$S5,InputImportance,\"=\"&Input!$E$4)","v":0},{"$f":"COUNTIFS(InputArea,\"=\"&List!$C$8,InputTopic,\"=\"&List!$S5,InputImportance,\"=\"&Input!$E$3)","v":0},{"$f":"COUNTIFS(InputArea,\"=\"&List!$C$8,InputTopic,\"=\"&List!$S5,InputImportance,\"=\"&Input!$E$2)","v":0},{"$f":"COUNTIFS(InputArea,\"=\"&List!$C$8,InputTopic,\"=\"&List!$S5,InputSkill,\"=\"&List!$D$14)","v":0},{"$f":"COUNTIFS(InputArea,\"=\"&List!$C$8,InputTopic,\"=\"&List!$S5,InputSkill,\"=\"&List!$D$15)","v":0},{"$f":"COUNTIFS(InputArea,\"=\"&List!$C$8,InputTopic,\"=\"&List!$S5,InputSkill,\"=\"&List!$D$16)","v":0},{"$f":"COUNTIFS(InputArea,\"=\"&List!$C$8,InputTopic,\"=\"&List!$S5,InputSkill,\"=\"&List!$D$17)","v":0},{"$f":"COUNTIFS(InputArea,\"=\"&List!$C$8,InputTopic,\"=\"&List!$S5,InputSkill,\"=\"&List!$D$18)","v":0},{"$f":"COUNTIFS(InputArea,\"=\"&List!$C$8,InputTopic,\"=\"&List!$S5,InputSkill,\"=\"&List!$D$19)","v":0},0,0,{"v":0,"d":"0.00"},{"v":0,"d":"0.0"}]
["C","U","Geo","CORE","GeneralApplications","Environmental Applications",{"$f":"COUNTIFS(InputArea,\"=\"&List!$C$9,InputTopic,\"=\"&List!$T2,InputMode,\"=\"&List!$A$14)","v":0},{"$f":"COUNTIFS(InputArea,\"=\"&List!$C$9,InputTopic,\"=\"&List!$T2,InputMode,\"=\"&List!$A$15)","v":0},{"$f":"COUNTIFS(InputArea,\"=\"&List!$C$9,InputTopic,\"=\"&List!$T2,InputMode,\"=\"&List!$A$16)","v":0},{"$f":"COUNTIFS(InputArea,\"=\"&List!$C$9,InputTopic,\"=\"&List!$T2,InputMode,\"=\"&List!$A$17)","v":0},{"$f":"COUNTIFS(InputArea,\"=\"&List!$C$9,InputTopic,\"=\"&List!$T2,InputMode,\"=\"&List!$A$18)","v":0},{"$f":"COUNTIFS(InputArea,\"=\"&List!$C$9,InputTopic,\"=\"&List!$T2,InputMode,\"=\"&List!$A$19)","v":0},{"$f":"SUMIFS(InputHours,InputArea,\"=\"&List!$C$9,InputTopic,\"=\"&List!$T2,InputMode,\"=\"&List!$A$14)","v":0},{"$f":"SUMIFS(InputHours,InputArea,\"=\"&List!$C$9,InputTopic,\"=\"&List!$T2,InputMode,\"=\"&List!$A$15)","v":0},{"$f":"SUMIFS(InputHours,InputArea,\"=\"&List!$C$9,InputTopic,\"=\"&List!$T2,InputMode,\"=\"&List!$A$16)","v":0},{"$f":"SUMIFS(InputHours,InputArea,\"=\"&List!$C$9,InputTopic,\"=\"&List!$T2,InputMode,\"=\"&List!$A$17)","v":0},{"$f":"SUMIFS(InputHours,InputArea,\"=\"&List!$C$9,InputTopic,\"=\"&List!$T2,InputMode,\"=\"&List!$A$18)","v":0},{"$f":"SUMIFS(InputHours,InputArea,\"=\"&List!$C$9,InputTopic,\"=\"&List!$T2,InputMode,\"=\"&List!$A$19)","v":0},{"$f":"COUNTIFS(InputArea,\"=\"&List!$C$9,InputTopic,\"=\"&List!$T2,InputLevel,\"=\"&Input!$A$5)","v":0},{"$f":"COUNTIFS(InputArea,\"=\"&List!$C$9,InputTopic,\"=\"&List!$T2,InputLevel,\"=\"&Input!$A$4)","v":0},{"$f":"COUNTIFS(InputArea,\"=\"&List!$C$9,InputTopic,\"=\"&List!$T2,InputLevel,\"=\"&Input!$A$3)","v":0},{"$f":"COUNTIFS(InputArea,\"=\"&List!$C$9,InputTopic,\"=\"&List!$T2,InputLevel,\"=\"&Input!$A$2)","v":0},{"$f":"COUNTIFS(InputArea,\"=\"&List!$C$9,InputTopic,\"=\"&List!$T2,InputImportance,\"=\"&Input!$E$5)","v":0},{"$f":"COUNTIFS(InputArea,\"=\"&List!$C$9,InputTopic,\"=\"&List!$T2,InputImportance,\"=\"&Input!$E$4)","v":0},{"$f":"COUNTIFS(InputArea,\"=\"&List!$C$9,InputTopic,\"=\"&List!$T2,InputImportance,\"=\"&Input!$E$3)","v":0},{"$f":"COUNTIFS(InputArea,\"=\"&List!$C$9,InputTopic,\"=\"&List!$T2,InputImportance,\"=\"&Input!$E$2)","v":0},{"$f":"COUNTIFS(InputArea,\"=\"&List!$C$9,InputTopic,\"=\"&List!$T2,InputSkill,\"=\"&List!$D$14)","v":0},{"$f":"COUNTIFS(InputArea,\"=\"&List!$C$9,InputTopic,\"=\"&List!$T2,InputSkill,\"=\"&List!$D$15)","v":0},{"$f":"COUNTIFS(InputArea,\"=\"&List!$C$9,InputTopic,\"=\"&List!$T2,InputSkill,\"=\"&List!$D$16)","v":0},{"$f":"COUNTIFS(InputArea,\"=\"&List!$C$9,InputTopic,\"=\"&List!$T2,InputSkill,\"=\"&List!$D$17)","v":0},{"$f":"COUNTIFS(InputArea,\"=\"&List!$C$9,InputTopic,\"=\"&List!$T2,InputSkill,\"=\"&List!$D$18)","v":0},{"$f":"COUNTIFS(InputArea,\"=\"&List!$C$9,InputTopic,\"=\"&List!$T2,InputSkill,\"=\"&List!$D$19)","v":0},0,0,{"v":0,"d":"0.00"},{"v":0,"d":"0.0"}]
["C","U","Geo",null,"GeneralApplications","Social Applications",{"$f":"COUNTIFS(InputArea,\"=\"&List!$C$9,InputTopic,\"=\"&List!$T3,InputMode,\"=\"&List!$A$14)","v":0},{"$f":"COUNTIFS(InputArea,\"=\"&List!$C$9,InputTopic,\"=\"&List!$T3,InputMode,\"=\"&List!$A$15)","v":0},{"$f":"COUNTIFS(InputArea,\"=\"&List!$C$9,InputTopic,\"=\"&List!$T3,InputMode,\"=\"&List!$A$16)","v":0},{"$f":"COUNTIFS(InputArea,\"=\"&List!$C$9,InputTopic,\"=\"&List!$T3,InputMode,\"=\"&List!$A$17)","v":0},{"$f":"COUNTIFS(InputArea,\"=\"&List!$C$9,InputTopic,\"=\"&List!$T3,InputMode,\"=\"&List!$A$18)","v":0},{"$f":"COUNTIFS(InputArea,\"=\"&List!$C$9,InputTopic,\"=\"&List!$T3,InputMode,\"=\"&List!$A$19)","v":0},{"$f":"SUMIFS(InputHours,InputArea,\"=\"&List!$C$9,InputTopic,\"=\"&List!$T3,InputMode,\"=\"&List!$A$14)","v":0},{"$f":"SUMIFS(InputHours,InputArea,\"=\"&List!$C$9,InputTopic,\"=\"&List!$T3,InputMode,\"=\"&List!$A$15)","v":0},{"$f":"SUMIFS(InputHours,InputArea,\"=\"&List!$C$9,InputTopic,\"=\"&List!$T3,InputMode,\"=\"&List!$A$16)","v":0},{"$f":"SUMIFS(InputHours,InputArea,\"=\"&List!$C$9,InputTopic,\"=\"&List!$T3,InputMode,\"=\"&List!$A$17)","v":0},{"$f":"SUMIFS(InputHours,InputArea,\"=\"&List!$C$9,InputTopic,\"=\"&List!$T3,InputMode,\"=\"&List!$A$18)","v":0},{"$f":"SUMIFS(InputHours,InputArea,\"=\"&List!$C$9,InputTopic,\"=\"&List!$T3,InputMode,\"=\"&List!$A$19)","v":0},{"$f":"COUNTIFS(InputArea,\"=\"&List!$C$9,InputTopic,\"=\"&List!$T3,InputLevel,\"=\"&Input!$A$5)","v":0},{"$f":"COUNTIFS(InputArea,\"=\"&List!$C$9,InputTopic,\"=\"&List!$T3,InputLevel,\"=\"&Input!$A$4)","v":0},{"$f":"COUNTIFS(InputArea,\"=\"&List!$C$9,InputTopic,\"=\"&List!$T3,InputLevel,\"=\"&Input!$A$3)","v":0},{"$f":"COUNTIFS(InputArea,\"=\"&List!$C$9,InputTopic,\"=\"&List!$T3,InputLevel,\"=\"&Input!$A$2)","v":0},{"$f":"COUNTIFS(InputArea,\"=\"&List!$C$9,InputTopic,\"=\"&List!$T3,InputImportance,\"=\"&Input!$E$5)","v":0},{"$f":"COUNTIFS(InputArea,\"=\"&List!$C$9,InputTopic,\"=\"&List!$T3,InputImportance,\"=\"&Input!$E$4)","v":0},{"$f":"COUNTIFS(InputArea,\"=\"&List!$C$9,InputTopic,\"=\"&List!$T3,InputImportance,\"=\"&Input!$E$3)","v":0},{"$f":"COUNTIFS(InputArea,\"=\"&List!$C$9,InputTopic,\"=\"&List!$T3,InputImportance,\"=\"&Input!$E$2)","v":0},{"$f":"COUNTIFS(InputArea,\"=\"&List!$C$9,InputTopic,\"=\"&List!$T3,InputSkill,\"=\"&List!$D$14)","v":0},{"$f":"COUNTIFS(InputArea,\"=\"&List!$C$9,InputTopic,\"=\"&List!$T3,InputSkill,\"=\"&List!$D$15)","v":0},{"$f":"COUNTIFS(InputArea,\"=\"&List!$C$9,InputTopic,\"=\"&List!$T3,InputSkill,\"=\"&List!$D$16)","v":0},{"$f":"COUNTIFS(InputArea,\"=\"&List!$C$9,InputTopic,\"=\"&List!$T3,InputSkill,\"=\"&List!$D$17)","v":0},{"$f":"COUNTIFS(InputArea,\"=\"&List!$C$9,InputTopic,\"=\"&List!$T3,InputSkill,\"=\"&List!$D$18)","v":0},{"$f":"COUNTIFS(InputArea,\"=\"&List!$C$9,InputTopic,\"=\"&List!$T3,InputSkill,\"=\"&List!$D$19)","v":0},0,0,{"v":0,"d":"0.00"},{"v":0,"d":"0.0"}]
["C","U","Geo",null,"GeneralApplications","Urban Applications",{"$f":"COUNTIFS(InputArea,\"=\"&List!$C$9,InputTopic,\"=\"&List!$T4,InputMode,\"=\"&List!$A$14)","v":0},{"$f":"COUNTIFS(InputArea,\"=\"&List!$C$9,InputTopic,\"=\"&List!$T4,InputMode,\"=\"&List!$A$15)","v":0},{"$f":"COUNTIFS(InputArea,\"=\"&List!$C$9,InputTopic,\"=\"&List!$T4,InputMode,\"=\"&List!$A$16)","v":0},{"$f":"COUNTIFS(InputArea,\"=\"&List!$C$9,InputTopic,\"=\"&List!$T4,InputMode,\"=\"&List!$A$17)","v":0},{"$f":"COUNTIFS(InputArea,\"=\"&List!$C$9,InputTopic,\"=\"&List!$T4,InputMode,\"=\"&List!$A$18)","v":0},{"$f":"COUNTIFS(InputArea,\"=\"&List!$C$9,InputTopic,\"=\"&List!$T4,InputMode,\"=\"&List!$A$19)","v":0},{"$f":"SUMIFS(InputHours,InputArea,\"=\"&List!$C$9,InputTopic,\"=\"&List!$T4,InputMode,\"=\"&List!$A$14)","v":0},{"$f":"SUMIFS(InputHours,InputArea,\"=\"&List!$C$9,InputTopic,\"=\"&List!$T4,InputMode,\"=\"&List!$A$15)","v":0},{"$f":"SUMIFS(InputHours,InputArea,\"=\"&List!$C$9,InputTopic,\"=\"&List!$T4,InputMode,\"=\"&List!$A$16)","v":0},{"$f":"SUMIFS(InputHours,InputArea,\"=\"&List!$C$9,InputTopic,\"=\"&List!$T4,InputMode,\"=\"&List!$A$17)","v":0},{"$f":"SUMIFS(InputHours,InputArea,\"=\"&List!$C$9,InputTopic,\"=\"&List!$T4,InputMode,\"=\"&List!$A$18)","v":0},{"$f":"SUMIFS(InputHours,InputArea,\"=\"&List!$C$9,InputTopic,\"=\"&List!$T4,InputMode,\"=\"&List!$A$19)","v":0},{"$f":"COUNTIFS(InputArea,\"=\"&List!$C$9,InputTopic,\"=\"&List!$T4,InputLevel,\"=\"&Input!$A$5)","v":0},{"$f":"COUNTIFS(InputArea,\"=\"&List!$C$9,InputTopic,\"=\"&List!$T4,InputLevel,\"=\"&Input!$A$4)","v":0},{"$f":"COUNTIFS(InputArea,\"=\"&List!$C$9,InputTopic,\"=\"&List!$T4,InputLevel,\"=\"&Input!$A$3)","v":0},{"$f":"COUNTIFS(InputArea,\"=\"&List!$C$9,InputTopic,\"=\"&List!$T4,InputLevel,\"=\"&Input!$A$2)","v":0},{"$f":"COUNTIFS(InputArea,\"=\"&List!$C$9,InputTopic,\"=\"&List!$T4,InputImportance,\"=\"&Input!$E$5)","v":0},{"$f":"COUNTIFS(InputArea,\"=\"&List!$C$9,InputTopic,\"=\"&List!$T4,InputImportance,\"=\"&Input!$E$4)","v":0},{"$f":"COUNTIFS(InputArea,\"=\"&List!$C$9,InputTopic,\"=\"&List!$T4,InputImportance,\"=\"&Input!$E$3)","v":0},{"$f":"COUNTIFS(InputArea,\"=\"&List!$C$9,InputTopic,\"=\"&List!$T4,InputImportance,\"=\"&Input!$E$2)","v":0},{"$f":"COUNTIFS(InputArea,\"=\"&List!$C$9,InputTopic,\"=\"&List!$T4,InputSkill,\"=\"&List!$D$14)","v":0},{"$f":"COUNTIFS(InputArea,\"=\"&List!$C$9,InputTopic,\"=\"&List!$T4,InputSkill,\"=\"&List!$D$15)","v":0},{"$f":"COUNTIFS(InputArea,\"=\"&List!$C$9,InputTopic,\"=\"&List!$T4,InputSkill,\"=\"&List!$D$16)","v":0},{"$f":"COUNTIFS(InputArea,\"=\"&List!$C$9,InputTopic,\"=\"&List!$T4,InputSkill,\"=\"&List!$D$17)","v":0},{"$f":"COUNTIFS(InputArea,\"=\"&List!$C$9,InputTopic,\"=\"&List!$T4,InputSkill,\"=\"&List!$D$18)","v":0},{"$f":"COUNTIFS(InputArea,\"=\"&List!$C$9,InputTopic,\"=\"&List!$T4,InputSkill,\"=\"&List!$D$19)","v":0},0,0,{"v":0,"d":"0.00"},{"v":0,"d":"0.0"}]
["C","U","Geo",null,"GeneralApplications","Others",{"$f":"COUNTIFS(InputArea,\"=\"&List!$C$9,InputTopic,\"=\"&List!$T5,InputMode,\"=\"&List!$A$14)","v":0},{"$f":"COUNTIFS(InputArea,\"=\"&List!$C$9,InputTopic,\"=\"&List!$T5,InputMode,\"=\"&List!$A$15)","v":0},{"$f":"COUNTIFS(InputArea,\"=\"&List!$C$9,InputTopic,\"=\"&List!$T5,InputMode,\"=\"&List!$A$16)","v":0},{"$f":"COUNTIFS(InputArea,\"=\"&List!$C$9,InputTopic,\"=\"&List!$T5,InputMode,\"=\"&List!$A$17)","v":0},{"$f":"COUNTIFS(InputArea,\"=\"&List!$C$9,InputTopic,\"=\"&List!$T5,InputMode,\"=\"&List!$A$18)","v":0},{"$f":"COUNTIFS(InputArea,\"=\"&List!$C$9,InputTopic,\"=\"&List!$T5,InputMode,\"=\"&List!$A$19)","v":0},{"$f":"SUMIFS(InputHours,InputArea,\"=\"&List!$C$9,InputTopic,\"=\"&List!$T5,InputMode,\"=\"&List!$A$14)","v":0},{"$f":"SUMIFS(InputHours,InputArea,\"=\"&List!$C$9,InputTopic,\"=\"&List!$T5,InputMode,\"=\"&List!$A$15)","v":0},{"$f":"SUMIFS(InputHours,InputArea,\"=\"&List!$C$9,InputTopic,\"=\"&List!$T5,InputMode,\"=\"&List!$A$16)","v":0},{"$f":"SUMIFS(InputHours,InputArea,\"=\"&List!$C$9,InputTopic,\"=\"&List!$T5,InputMode,\"=\"&List!$A$17)","v":0},{"$f":"SUMIFS(InputHours,InputArea,\"=\"&List!$C$9,InputTopic,\"=\"&List!$T5,InputMode,\"=\"&List!$A$18)","v":0},{"$f":"SUMIFS(InputHours,InputArea,\"=\"&List!$C$9,InputTopic,\"=\"&List!$T5,InputMode,\"=\"&List!$A$19)","v":0},{"$f":"COUNTIFS(InputArea,\"=\"&List!$C$9,InputTopic,\"=\"&List!$T5,InputLevel,\"=\"&Input!$A$5)","v":0},{"$f":"COUNTIFS(InputArea,\"=\"&List!$C$9,InputTopic,\"=\"&List!$T5,InputLevel,\"=\"&Input!$A$4)","v":0},{"$f":"COUNTIFS(InputArea,\"=\"&List!$C$9,InputTopic,\"=\"&List!$T5,InputLevel,\"=\"&Input!$A$3)","v":0},{"$f":"COUNTIFS(InputArea,\"=\"&List!$C$9,InputTopic,\"=\"&List!$T5,InputLevel,\"=\"&Input!$A$2)","v":0},{"$f":"COUNTIFS(InputArea,\"=\"&List!$C$9,InputTopic,\"=\"&List!$T5,InputImportance,\"=\"&Input!$E$5)","v":0},{"$f":"COUNTIFS(InputArea,\"=\"&List!$C$9,InputTopic,\"=\"&List!$T5,InputImportance,\"=\"&Input!$E$4)","v":0},{"$f":"COUNTIFS(InputArea,\"=\"&List!$C$9,InputTopic,\"=\"&List!$T5,InputImportance,\"=\"&Input!$E$3)","v":0},{"$f":"COUNTIFS(InputArea,\"=\"&List!$C$9,InputTopic,\"=\"&List!$T5,InputImportance,\"=\"&Input!$E$2)","v":0},{"$f":"COUNTIFS(InputArea,\"=\"&List!$C$9,InputTopic,\"=\"&List!$T5,InputSkill,\"=\"&List!$D$14)","v":0},{"$f":"COUNTIFS(InputArea,\"=\"&List!$C$9,InputTopic,\"=\"&List!$T5,InputSkill,\"=\"&List!$D$15)","v":0},{"$f":"COUNTIFS(InputArea,\"=\"&List!$C$9,InputTopic,\"=\"&List!$T5,InputSkill,\"=\"&List!$D$16)","v":0},{"$f":"COUNTIFS(InputArea,\"=\"&List!$C$9,InputTopic,\"=\"&List!$T5,InputSkill,\"=\"&List!$D$17)","v":0},{"$f":"COUNTIFS(InputArea,\"=\"&List!$C$9,InputTopic,\"=\"&List!$T5,InputSkill,\"=\"&List!$D$18)","v":0},{"$f":"COUNTIFS(InputArea,\"=\"&List!$C$9,InputTopic,\"=\"&List!$T5,InputSkill,\"=\"&List!$D$19)","v":0},0,0,{"v":0,"d":"0.00"},{"v":0,"d":"0.0"}]
["C","T U","Gen","CORE","Professionalism","Industry & Institutional Standards",{"$f":"COUNTIFS(InputArea,\"=\"&List!$C$10,InputTopic,\"=\"&List!$U2,InputMode,\"=\"&List!$A$14)","v":0},{"$f":"COUNTIFS(InputArea,\"=\"&List!$C$10,InputTopic,\"=\"&List!$U2,InputMode,\"=\"&List!$A$15)","v":0},{"$f":"COUNTIFS(InputArea,\"=\"&List!$C$10,InputTopic,\"=\"&List!$U2,InputMode,\"=\"&List!$A$16)","v":0},{"$f":"COUNTIFS(InputArea,\"=\"&List!$C$10,InputTopic,\"=\"&List!$U2,InputMode,\"=\"&List!$A$17)","v":0},{"$f":"COUNTIFS(InputArea,\"=\"&List!$C$10,InputTopic,\"=\"&List!$U2,InputMode,\"=\"&List!$A$18)","v":0},{"$f":"COUNTIFS(InputArea,\"=\"&List!$C$10,InputTopic,\"=\"&List!$U2,InputMode,\"=\"&List!$A$19)","v":0},{"$f":"SUMIFS(InputHours,InputArea,\"=\"&List!$C$10,InputTopic,\"=\"&List!$U2,InputMode,\"=\"&List!$A$14)","v":0},{"$f":"SUMIFS(InputHours,InputArea,\"=\"&List!$C$10,InputTopic,\"=\"&List!$U2,InputMode,\"=\"&List!$A$15)","v":0},{"$f":"SUMIFS(InputHours,InputArea,\"=\"&List!$C$10,InputTopic,\"=\"&List!$U2,InputMode,\"=\"&List!$A$16)","v":0},{"$f":"SUMIFS(InputHours,InputArea,\"=\"&List!$C$10,InputTopic,\"=\"&List!$U2,InputMode,\"=\"&List!$A$17)","v":0},{"$f":"SUMIFS(InputHours,InputArea,\"=\"&List!$C$10,InputTopic,\"=\"&List!$U2,InputMode,\"=\"&List!$A$18)","v":0},{"$f":"SUMIFS(InputHours,InputArea,\"=\"&List!$C$10,InputTopic,\"=\"&List!$U2,InputMode,\"=\"&List!$A$19)","v":0},{"$f":"COUNTIFS(InputArea,\"=\"&List!$C$10,InputTopic,\"=\"&List!$U2,InputLevel,\"=\"&Input!$A$5)","v":0},{"$f":"COUNTIFS(InputArea,\"=\"&List!$C$10,InputTopic,\"=\"&List!$U2,InputLevel,\"=\"&Input!$A$4)","v":0},{"$f":"COUNTIFS(InputArea,\"=\"&List!$C$10,InputTopic,\"=\"&List!$U2,InputLevel,\"=\"&Input!$A$3)","v":0},{"$f":"COUNTIFS(InputArea,\"=\"&List!$C$10,InputTopic,\"=\"&List!$U2,InputLevel,\"=\"&Input!$A$2)","v":0},{"$f":"COUNTIFS(InputArea,\"=\"&List!$C$10,InputTopic,\"=\"&List!$U2,InputImportance,\"=\"&Input!$E$5)","v":0},{"$f":"COUNTIFS(InputArea,\"=\"&List!$C$10,InputTopic,\"=\"&List!$U2,InputImportance,\"=\"&Input!$E$4)","v":0},{"$f":"COUNTIFS(InputArea,\"=\"&List!$C$10,InputTopic,\"=\"&List!$U2,InputImportance,\"=\"&Input!$E$3)","v":0},{"$f":"COUNTIFS(InputArea,\"=\"&List!$C$10,InputTopic,\"=\"&List!$U2,InputImportance,\"=\"&Input!$E$2)","v":0},{"$f":"COUNTIFS(InputArea,\"=\"&List!$C$10,InputTopic,\"=\"&List!$U2,InputSkill,\"=\"&List!$D$14)","v":0},{"$f":"COUNTIFS(InputArea,\"=\"&List!$C$10,InputTopic,\"=\"&List!$U2,InputSkill,\"=\"&List!$D$15)","v":0},{"$f":"COUNTIFS(InputArea,\"=\"&List!$C$10,InputTopic,\"=\"&List!$U2,InputSkill,\"=\"&List!$D$16)","v":0},{"$f":"COUNTIFS(InputArea,\"=\"&List!$C$10,InputTopic,\"=\"&List!$U2,InputSkill,\"=\"&List!$D$17)","v":0},{"$f":"COUNTIFS(InputArea,\"=\"&List!$C$10,InputTopic,\"=\"&List!$U2,InputSkill,\"=\"&List!$D$18)","v":0},{"$f":"COUNTIFS(InputArea,\"=\"&List!$C$10,InputTopic,\"=\"&List!$U2,InputSkill,\"=\"&List!$D$19)","v":0},0,0,{"v":0,"d":"0.00"},{"v":0,"d":"0.0"}]
["C","U","Gen",null,"Professionalism","Morals & Ethics",{"$f":"COUNTIFS(InputArea,\"=\"&List!$C$10,InputTopic,\"=\"&List!$U3,InputMode,\"=\"&List!$A$14)","v":0},{"$f":"COUNTIFS(InputArea,\"=\"&List!$C$10,InputTopic,\"=\"&List!$U3,InputMode,\"=\"&List!$A$15)","v":0},{"$f":"COUNTIFS(InputArea,\"=\"&List!$C$10,InputTopic,\"=\"&List!$U3,InputMode,\"=\"&List!$A$16)","v":0},{"$f":"COUNTIFS(InputArea,\"=\"&List!$C$10,InputTopic,\"=\"&List!$U3,InputMode,\"=\"&List!$A$17)","v":0},{"$f":"COUNTIFS(InputArea,\"=\"&List!$C$10,InputTopic,\"=\"&List!$U3,InputMode,\"=\"&List!$A$18)","v":0},{"$f":"COUNTIFS(InputArea,\"=\"&List!$C$10,InputTopic,\"=\"&List!$U3,InputMode,\"=\"&List!$A$19)","v":0},{"$f":"SUMIFS(InputHours,InputArea,\"=\"&List!$C$10,InputTopic,\"=\"&List!$U3,InputMode,\"=\"&List!$A$14)","v":0},{"$f":"SUMIFS(InputHours,InputArea,\"=\"&List!$C$10,InputTopic,\"=\"&List!$U3,InputMode,\"=\"&List!$A$15)","v":0},{"$f":"SUMIFS(InputHours,InputArea,\"=\"&List!$C$10,InputTopic,\"=\"&List!$U3,InputMode,\"=\"&List!$A$16)","v":0},{"$f":"SUMIFS(InputHours,InputArea,\"=\"&List!$C$10,InputTopic,\"=\"&List!$U3,InputMode,\"=\"&List!$A$17)","v":0},{"$f":"SUMIFS(InputHours,InputArea,\"=\"&List!$C$10,InputTopic,\"=\"&List!$U3,InputMode,\"=\"&List!$A$18)","v":0},{"$f":"SUMIFS(InputHours,InputArea,\"=\"&List!$C$10,InputTopic,\"=\"&List!$U3,InputMode,\"=\"&List!$A$19)","v":0},{"$f":"COUNTIFS(InputArea,\"=\"&List!$C$10,InputTopic,\"=\"&List!$U3,InputLevel,\"=\"&Input!$A$5)","v":0},{"$f":"COUNTIFS(InputArea,\"=\"&List!$C$10,InputTopic,\"=\"&List!$U3,InputLevel,\"=\"&Input!$A$4)","v":0},{"$f":"COUNTIFS(InputArea,\"=\"&List!$C$10,InputTopic,\"=\"&List!$U3,InputLevel,\"=\"&Input!$A$3)","v":0},{"$f":"COUNTIFS(InputArea,\"=\"&List!$C$10,InputTopic,\"=\"&List!$U3,InputLevel,\"=\"&Input!$A$2)","v":0},{"$f":"COUNTIFS(InputArea,\"=\"&List!$C$10,InputTopic,\"=\"&List!$U3,InputImportance,\"=\"&Input!$E$5)","v":0},{"$f":"COUNTIFS(InputArea,\"=\"&List!$C$10,InputTopic,\"=\"&List!$U3,InputImportance,\"=\"&Input!$E$4)","v":0},{"$f":"COUNTIFS(InputArea,\"=\"&List!$C$10,InputTopic,\"=\"&List!$U3,InputImportance,\"=\"&Input!$E$3)","v":0},{"$f":"COUNTIFS(InputArea,\"=\"&List!$C$10,InputTopic,\"=\"&List!$U3,InputImportance,\"=\"&Input!$E$2)","v":0},{"$f":"COUNTIFS(InputArea,\"=\"&List!$C$10,InputTopic,\"=\"&List!$U3,InputSkill,\"=\"&List!$D$14)","v":0},{"$f":"COUNTIFS(InputArea,\"=\"&List!$C$10,InputTopic,\"=\"&List!$U3,InputSkill,\"=\"&List!$D$15)","v":0},{"$f":"COUNTIFS(InputArea,\"=\"&List!$C$10,InputTopic,\"=\"&List!$U3,InputSkill,\"=\"&List!$D$16)","v":0},{"$f":"COUNTIFS(InputArea,\"=\"&List!$C$10,InputTopic,\"=\"&List!$U3,InputSkill,\"=\"&List!$D$17)","v":0},{"$f":"COUNTIFS(InputArea,\"=\"&List!$C$10,InputTopic,\"=\"&List!$U3,InputSkill,\"=\"&List!$D$18)","v":0},{"$f":"COUNTIFS(InputArea,\"=\"&List!$C$10,InputTopic,\"=\"&List!$U3,InputSkill,\"=\"&List!$D$19)","v":0},0,0,{"v":0,"d":"0.00"},{"v":0,"d":"0.0"}]
["C","U","Gen",null,"Professionalism","Legal & Social Responsibilities",{"$f":"COUNTIFS(InputArea,\"=\"&List!$C$10,InputTopic,\"=\"&List!$U4,InputMode,\"=\"&List!$A$14)","v":0},{"$f":"COUNTIFS(InputArea,\"=\"&List!$C$10,InputTopic,\"=\"&List!$U4,InputMode,\"=\"&List!$A$15)","v":0},{"$f":"COUNTIFS(InputArea,\"=\"&List!$C$10,InputTopic,\"=\"&List!$U4,InputMode,\"=\"&List!$A$16)","v":0},{"$f":"COUNTIFS(InputArea,\"=\"&List!$C$10,InputTopic,\"=\"&List!$U4,InputMode,\"=\"&List!$A$17)","v":0},{"$f":"COUNTIFS(InputArea,\"=\"&List!$C$10,InputTopic,\"=\"&List!$U4,InputMode,\"=\"&List!$A$18)","v":0},{"$f":"COUNTIFS(InputArea,\"=\"&List!$C$10,InputTopic,\"=\"&List!$U4,InputMode,\"=\"&List!$A$19)","v":0},{"$f":"SUMIFS(InputHours,InputArea,\"=\"&List!$C$10,InputTopic,\"=\"&List!$U4,InputMode,\"=\"&List!$A$14)","v":0},{"$f":"SUMIFS(InputHours,InputArea,\"=\"&List!$C$10,InputTopic,\"=\"&List!$U4,InputMode,\"=\"&List!$A$15)","v":0},{"$f":"SUMIFS(InputHours,InputArea,\"=\"&List!$C$10,InputTopic,\"=\"&List!$U4,InputMode,\"=\"&List!$A$16)","v":0},{"$f":"SUMIFS(InputHours,InputArea,\"=\"&List!$C$10,InputTopic,\"=\"&List!$U4,InputMode,\"=\"&List!$A$17)","v":0},{"$f":"SUMIFS(InputHours,InputArea,\"=\"&List!$C$10,InputTopic,\"=\"&List!$U4,InputMode,\"=\"&List!$A$18)","v":0},{"$f":"SUMIFS(InputHours,InputArea,\"=\"&List!$C$10,InputTopic,\"=\"&List!$U4,InputMode,\"=\"&List!$A$19)","v":0},{"$f":"COUNTIFS(InputArea,\"=\"&List!$C$10,InputTopic,\"=\"&List!$U4,InputLevel,\"=\"&Input!$A$5)","v":0},{"$f":"COUNTIFS(InputArea,\"=\"&List!$C$10,InputTopic,\"=\"&List!$U4,InputLevel,\"=\"&Input!$A$4)","v":0},{"$f":"COUNTIFS(InputArea,\"=\"&List!$C$10,InputTopic,\"=\"&List!$U4,InputLevel,\"=\"&Input!$A$3)","v":0},{"$f":"COUNTIFS(InputArea,\"=\"&List!$C$10,InputTopic,\"=\"&List!$U4,InputLevel,\"=\"&Input!$A$2)","v":0},{"$f":"COUNTIFS(InputArea,\"=\"&List!$C$10,InputTopic,\"=\"&List!$U4,InputImportance,\"=\"&Input!$E$5)","v":0},{"$f":"COUNTIFS(InputArea,\"=\"&List!$C$10,InputTopic,\"=\"&List!$U4,InputImportance,\"=\"&Input!$E$4)","v":0},{"$f":"COUNTIFS(InputArea,\"=\"&List!$C$10,InputTopic,\"=\"&List!$U4,InputImportance,\"=\"&Input!$E$3)","v":0},{"$f":"COUNTIFS(InputArea,\"=\"&List!$C$10,InputTopic,\"=\"&List!$U4,InputImportance,\"=\"&Input!$E$2)","v":0},{"$f":"COUNTIFS(InputArea,\"=\"&List!$C$10,InputTopic,\"=\"&List!$U4,InputSkill,\"=\"&List!$D$14)","v":0},{"$f":"COUNTIFS(InputArea,\"=\"&List!$C$10,InputTopic,\"=\"&List!$U4,InputSkill,\"=\"&List!$D$15)","v":0},{"$f":"COUNTIFS(InputArea,\"=\"&List!$C$10,InputTopic,\"=\"&List!$U4,InputSkill,\"=\"&List!$D$16)","v":0},{"$f":"COUNTIFS(InputArea,\"=\"&List!$C$10,InputTopic,\"=\"&List!$U4,InputSkill,\"=\"&List!$D$17)","v":0},{"$f":"COUNTIFS(InputArea,\"=\"&List!$C$10,InputTopic,\"=\"&List!$U4,InputSkill,\"=\"&List!$D$18)","v":0},{"$f":"COUNTIFS(InputArea,\"=\"&List!$C$10,InputTopic,\"=\"&List!$U4,InputSkill,\"=\"&List!$D$19)","v":0},0,0,{"v":0,"d":"0.00"},{"v":0,"d":"0.0"}]
["C","U","Gen",null,"Professionalism","Inter-relationships",{"$f":"COUNTIFS(InputArea,\"=\"&List!$C$10,InputTopic,\"=\"&List!$U5,InputMode,\"=\"&List!$A$14)","v":0},{"$f":"COUNTIFS(InputArea,\"=\"&List!$C$10,InputTopic,\"=\"&List!$U5,InputMode,\"=\"&List!$A$15)","v":0},{"$f":"COUNTIFS(InputArea,\"=\"&List!$C$10,InputTopic,\"=\"&List!$U5,InputMode,\"=\"&List!$A$16)","v":0},{"$f":"COUNTIFS(InputArea,\"=\"&List!$C$10,InputTopic,\"=\"&List!$U5,InputMode,\"=\"&List!$A$17)","v":0},{"$f":"COUNTIFS(InputArea,\"=\"&List!$C$10,InputTopic,\"=\"&List!$U5,InputMode,\"=\"&List!$A$18)","v":0},{"$f":"COUNTIFS(InputArea,\"=\"&List!$C$10,InputTopic,\"=\"&List!$U5,InputMode,\"=\"&List!$A$19)","v":0},{"$f":"SUMIFS(InputHours,InputArea,\"=\"&List!$C$10,InputTopic,\"=\"&List!$U5,InputMode,\"=\"&List!$A$14)","v":0},{"$f":"SUMIFS(InputHours,InputArea,\"=\"&List!$C$10,InputTopic,\"=\"&List!$U5,InputMode,\"=\"&List!$A$15)","v":0},{"$f":"SUMIFS(InputHours,InputArea,\"=\"&List!$C$10,InputTopic,\"=\"&List!$U5,InputMode,\"=\"&List!$A$16)","v":0},{"$f":"SUMIFS(InputHours,InputArea,\"=\"&List!$C$10,InputTopic,\"=\"&List!$U5,InputMode,\"=\"&List!$A$17)","v":0},{"$f":"SUMIFS(InputHours,InputArea,\"=\"&List!$C$10,InputTopic,\"=\"&List!$U5,InputMode,\"=\"&List!$A$18)","v":0},{"$f":"SUMIFS(InputHours,InputArea,\"=\"&List!$C$10,InputTopic,\"=\"&List!$U5,InputMode,\"=\"&List!$A$19)","v":0},{"$f":"COUNTIFS(InputArea,\"=\"&List!$C$10,InputTopic,\"=\"&List!$U5,InputLevel,\"=\"&Input!$A$5)","v":0},{"$f":"COUNTIFS(InputArea,\"=\"&List!$C$10,InputTopic,\"=\"&List!$U5,InputLevel,\"=\"&Input!$A$4)","v":0},{"$f":"COUNTIFS(InputArea,\"=\"&List!$C$10,InputTopic,\"=\"&List!$U5,InputLevel,\"=\"&Input!$A$3)","v":0},{"$f":"COUNTIFS(InputArea,\"=\"&List!$C$10,InputTopic,\"=\"&List!$U5,InputLevel,\"=\"&Input!$A$2)","v":0},{"$f":"COUNTIFS(InputArea,\"=\"&List!$C$10,InputTopic,\"=\"&List!$U5,InputImportance,\"=\"&Input!$E$5)","v":0},{"$f":"COUNTIFS(InputArea,\"=\"&List!$C$10,InputTopic,\"=\"&List!$U5,InputImportance,\"=\"&Input!$E$4)","v":0},{"$f":"COUNTIFS(InputArea,\"=\"&List!$C$10,InputTopic,\"=\"&List!$U5,InputImportance,\"=\"&Input!$E$3)","v":0},{"$f":"COUNTIFS(InputArea,\"=\"&List!$C$10,InputTopic,\"=\"&List!$U5,InputImportance,\"=\"&Input!$E$2)","v":0},{"$f":"COUNTIFS(InputArea,\"=\"&List!$C$10,InputTopic,\"=\"&List!$U5,InputSkill,\"=\"&List!$D$14)","v":0},{"$f":"COUNTIFS(InputArea,\"=\"&List!$C$10,InputTopic,\"=\"&List!$U5,InputSkill,\"=\"&List!$D$15)","v":0},{"$f":"COUNTIFS(InputArea,\"=\"&List!$C$10,InputTopic,\"=\"&List!$U5,InputSkill,\"=\"&List!$D$16)","v":0},{"$f":"COUNTIFS(InputArea,\"=\"&List!$C$10,InputTopic,\"=\"&List!$U5,InputSkill,\"=\"&List!$D$17)","v":0},{"$f":"COUNTIFS(InputArea,\"=\"&List!$C$10,InputTopic,\"=\"&List!$U5,InputSkill,\"=\"&List!$D$18)","v":0},{"$f":"COUNTIFS(InputArea,\"=\"&List!$C$10,InputTopic,\"=\"&List!$U5,InputSkill,\"=\"&List!$D$19)","v":0},0,0,{"v":0,"d":"0.00"},{"v":0,"d":"0.0"}]
["C","U","Gen",null,"Professionalism","Decision Making & Support",{"$f":"COUNTIFS(InputArea,\"=\"&List!$C$10,InputTopic,\"=\"&List!$U6,InputMode,\"=\"&List!$A$14)","v":0},{"$f":"COUNTIFS(InputArea,\"=\"&List!$C$10,InputTopic,\"=\"&List!$U6,InputMode,\"=\"&List!$A$15)","v":0},{"$f":"COUNTIFS(InputArea,\"=\"&List!$C$10,InputTopic,\"=\"&List!$U6,InputMode,\"=\"&List!$A$16)","v":0},{"$f":"COUNTIFS(InputArea,\"=\"&List!$C$10,InputTopic,\"=\"&List!$U6,InputMode,\"=\"&List!$A$17)","v":0},{"$f":"COUNTIFS(InputArea,\"=\"&List!$C$10,InputTopic,\"=\"&List!$U6,InputMode,\"=\"&List!$A$18)","v":0},{"$f":"COUNTIFS(InputArea,\"=\"&List!$C$10,InputTopic,\"=\"&List!$U6,InputMode,\"=\"&List!$A$19)","v":0},{"$f":"SUMIFS(InputHours,InputArea,\"=\"&List!$C$10,InputTopic,\"=\"&List!$U6,InputMode,\"=\"&List!$A$14)","v":0},{"$f":"SUMIFS(InputHours,InputArea,\"=\"&List!$C$10,InputTopic,\"=\"&List!$U6,InputMode,\"=\"&List!$A$15)","v":0},{"$f":"SUMIFS(InputHours,InputArea,\"=\"&List!$C$10,InputTopic,\"=\"&List!$U6,InputMode,\"=\"&List!$A$16)","v":0},{"$f":"SUMIFS(InputHours,InputArea,\"=\"&List!$C$10,InputTopic,\"=\"&List!$U6,InputMode,\"=\"&List!$A$17)","v":0},{"$f":"SUMIFS(InputHours,InputArea,\"=\"&List!$C$10,InputTopic,\"=\"&List!$U6,InputMode,\"=\"&List!$A$18)","v":0},{"$f":"SUMIFS(InputHours,InputArea,\"=\"&List!$C$10,InputTopic,\"=\"&List!$U6,InputMode,\"=\"&List!$A$19)","v":0},{"$f":"COUNTIFS(InputArea,\"=\"&List!$C$10,InputTopic,\"=\"&List!$U6,InputLevel,\"=\"&Input!$A$5)","v":0},{"$f":"COUNTIFS(InputArea,\"=\"&List!$C$10,InputTopic,\"=\"&List!$U6,InputLevel,\"=\"&Input!$A$4)","v":0},{"$f":"COUNTIFS(InputArea,\"=\"&List!$C$10,InputTopic,\"=\"&List!$U6,InputLevel,\"=\"&Input!$A$3)","v":0},{"$f":"COUNTIFS(InputArea,\"=\"&List!$C$10,InputTopic,\"=\"&List!$U6,InputLevel,\"=\"&Input!$A$2)","v":0},{"$f":"COUNTIFS(InputArea,\"=\"&List!$C$10,InputTopic,\"=\"&List!$U6,InputImportance,\"=\"&Input!$E$5)","v":0},{"$f":"COUNTIFS(InputArea,\"=\"&List!$C$10,InputTopic,\"=\"&List!$U6,InputImportance,\"=\"&Input!$E$4)","v":0},{"$f":"COUNTIFS(InputArea,\"=\"&List!$C$10,InputTopic,\"=\"&List!$U6,InputImportance,\"=\"&Input!$E$3)","v":0},{"$f":"COUNTIFS(InputArea,\"=\"&List!$C$10,InputTopic,\"=\"&List!$U6,InputImportance,\"=\"&Input!$E$2)","v":0},{"$f":"COUNTIFS(InputArea,\"=\"&List!$C$10,InputTopic,\"=\"&List!$U6,InputSkill,\"=\"&List!$D$14)","v":0},{"$f":"COUNTIFS(InputArea,\"=\"&List!$C$10,InputTopic,\"=\"&List!$U6,InputSkill,\"=\"&List!$D$15)","v":0},{"$f":"COUNTIFS(InputArea,\"=\"&List!$C$10,InputTopic,\"=\"&List!$U6,InputSkill,\"=\"&List!$D$16)","v":0},{"$f":"COUNTIFS(InputArea,\"=\"&List!$C$10,InputTopic,\"=\"&List!$U6,InputSkill,\"=\"&List!$D$17)","v":0},{"$f":"COUNTIFS(InputArea,\"=\"&List!$C$10,InputTopic,\"=\"&List!$U6,InputSkill,\"=\"&List!$D$18)","v":0},{"$f":"COUNTIFS(InputArea,\"=\"&List!$C$10,InputTopic,\"=\"&List!$U6,InputSkill,\"=\"&List!$D$19)","v":0},0,0,{"v":0,"d":"0.00"},{"v":0,"d":"0.0"}]
["C","U","Gen",null,"Professionalism","Communication",{"$f":"COUNTIFS(InputArea,\"=\"&List!$C$10,InputTopic,\"=\"&List!$U7,InputMode,\"=\"&List!$A$14)","v":0},{"$f":"COUNTIFS(InputArea,\"=\"&List!$C$10,InputTopic,\"=\"&List!$U7,InputMode,\"=\"&List!$A$15)","v":0},{"$f":"COUNTIFS(InputArea,\"=\"&List!$C$10,InputTopic,\"=\"&List!$U7,InputMode,\"=\"&List!$A$16)","v":0},{"$f":"COUNTIFS(InputArea,\"=\"&List!$C$10,InputTopic,\"=\"&List!$U7,InputMode,\"=\"&List!$A$17)","v":0},{"$f":"COUNTIFS(InputArea,\"=\"&List!$C$10,InputTopic,\"=\"&List!$U7,InputMode,\"=\"&List!$A$18)","v":0},{"$f":"COUNTIFS(InputArea,\"=\"&List!$C$10,InputTopic,\"=\"&List!$U7,InputMode,\"=\"&List!$A$19)","v":0},{"$f":"SUMIFS(InputHours,InputArea,\"=\"&List!$C$10,InputTopic,\"=\"&List!$U7,InputMode,\"=\"&List!$A$14)","v":0},{"$f":"SUMIFS(InputHours,InputArea,\"=\"&List!$C$10,InputTopic,\"=\"&List!$U7,InputMode,\"=\"&List!$A$15)","v":0},{"$f":"SUMIFS(InputHours,InputArea,\"=\"&List!$C$10,InputTopic,\"=\"&List!$U7,InputMode,\"=\"&List!$A$16)","v":0},{"$f":"SUMIFS(InputHours,InputArea,\"=\"&List!$C$10,InputTopic,\"=\"&List!$U7,InputMode,\"=\"&List!$A$17)","v":0},{"$f":"SUMIFS(InputHours,InputArea,\"=\"&List!$C$10,InputTopic,\"=\"&List!$U7,InputMode,\"=\"&List!$A$18)","v":0},{"$f":"SUMIFS(InputHours,InputArea,\"=\"&List!$C$10,InputTopic,\"=\"&List!$U7,InputMode,\"=\"&List!$A$19)","v":0},{"$f":"COUNTIFS(InputArea,\"=\"&List!$C$10,InputTopic,\"=\"&List!$U7,InputLevel,\"=\"&Input!$A$5)","v":0},{"$f":"COUNTIFS(InputArea,\"=\"&List!$C$10,InputTopic,\"=\"&List!$U7,InputLevel,\"=\"&Input!$A$4)","v":0},{"$f":"COUNTIFS(InputArea,\"=\"&List!$C$10,InputTopic,\"=\"&List!$U7,InputLevel,\"=\"&Input!$A$3)","v":0},{"$f":"COUNTIFS(InputArea,\"=\"&List!$C$10,InputTopic,\"=\"&List!$U7,InputLevel,\"=\"&Input!$A$2)","v":0},{"$f":"COUNTIFS(InputArea,\"=\"&List!$C$10,InputTopic,\"=\"&List!$U7,InputImportance,\"=\"&Input!$E$5)","v":0},{"$f":"COUNTIFS(InputArea,\"=\"&List!$C$10,InputTopic,\"=\"&List!$U7,InputImportance,\"=\"&Input!$E$4)","v":0},{"$f":"COUNTIFS(InputArea,\"=\"&List!$C$10,InputTopic,\"=\"&List!$U7,InputImportance,\"=\"&Input!$E$3)","v":0},{"$f":"COUNTIFS(InputArea,\"=\"&List!$C$10,InputTopic,\"=\"&List!$U7,InputImportance,\"=\"&Input!$E$2)","v":0},{"$f":"COUNTIFS(InputArea,\"=\"&List!$C$10,InputTopic,\"=\"&List!$U7,InputSkill,\"=\"&List!$D$14)","v":0},{"$f":"COUNTIFS(InputArea,\"=\"&List!$C$10,InputTopic,\"=\"&List!$U7,InputSkill,\"=\"&List!$D$15)","v":0},{"$f":"COUNTIFS(InputArea,\"=\"&List!$C$10,InputTopic,\"=\"&List!$U7,InputSkill,\"=\"&List!$D$16)","v":0},{"$f":"COUNTIFS(InputArea,\"=\"&List!$C$10,InputTopic,\"=\"&List!$U7,InputSkill,\"=\"&List!$D$17)","v":0},{"$f":"COUNTIFS(InputArea,\"=\"&List!$C$10,InputTopic,\"=\"&List!$U7,InputSkill,\"=\"&List!$D$18)","v":0},{"$f":"COUNTIFS(InputArea,\"=\"&List!$C$10,InputTopic,\"=\"&List!$U7,InputSkill,\"=\"&List!$D$19)","v":0},0,0,{"v":0,"d":"0.00"},{"v":0,"d":"0.0"}]
["C","U","Gen",null,"Professionalism","Entrepreneurship",{"$f":"COUNTIFS(InputArea,\"=\"&List!$C$10,InputTopic,\"=\"&List!$U8,InputMode,\"=\"&List!$A$14)","v":0},{"$f":"COUNTIFS(InputArea,\"=\"&List!$C$10,InputTopic,\"=\"&List!$U8,InputMode,\"=\"&List!$A$15)","v":0},{"$f":"COUNTIFS(InputArea,\"=\"&List!$C$10,InputTopic,\"=\"&List!$U8,InputMode,\"=\"&List!$A$16)","v":0},{"$f":"COUNTIFS(InputArea,\"=\"&List!$C$10,InputTopic,\"=\"&List!$U8,InputMode,\"=\"&List!$A$17)","v":0},{"$f":"COUNTIFS(InputArea,\"=\"&List!$C$10,InputTopic,\"=\"&List!$U8,InputMode,\"=\"&List!$A$18)","v":0},{"$f":"COUNTIFS(InputArea,\"=\"&List!$C$10,InputTopic,\"=\"&List!$U8,InputMode,\"=\"&List!$A$19)","v":0},{"$f":"SUMIFS(InputHours,InputArea,\"=\"&List!$C$10,InputTopic,\"=\"&List!$U8,InputMode,\"=\"&List!$A$14)","v":0},{"$f":"SUMIFS(InputHours,InputArea,\"=\"&List!$C$10,InputTopic,\"=\"&List!$U8,InputMode,\"=\"&List!$A$15)","v":0},{"$f":"SUMIFS(InputHours,InputArea,\"=\"&List!$C$10,InputTopic,\"=\"&List!$U8,InputMode,\"=\"&List!$A$16)","v":0},{"$f":"SUMIFS(InputHours,InputArea,\"=\"&List!$C$10,InputTopic,\"=\"&List!$U8,InputMode,\"=\"&List!$A$17)","v":0},{"$f":"SUMIFS(InputHours,InputArea,\"=\"&List!$C$10,InputTopic,\"=\"&List!$U8,InputMode,\"=\"&List!$A$18)","v":0},{"$f":"SUMIFS(InputHours,InputArea,\"=\"&List!$C$10,InputTopic,\"=\"&List!$U8,InputMode,\"=\"&List!$A$19)","v":0},{"$f":"COUNTIFS(InputArea,\"=\"&List!$C$10,InputTopic,\"=\"&List!$U8,InputLevel,\"=\"&Input!$A$5)","v":0},{"$f":"COUNTIFS(InputArea,\"=\"&List!$C$10,InputTopic,\"=\"&List!$U8,InputLevel,\"=\"&Input!$A$4)","v":0},{"$f":"COUNTIFS(InputArea,\"=\"&List!$C$10,InputTopic,\"=\"&List!$U8,InputLevel,\"=\"&Input!$A$3)","v":0},{"$f":"COUNTIFS(InputArea,\"=\"&List!$C$10,InputTopic,\"=\"&List!$U8,InputLevel,\"=\"&Input!$A$2)","v":0},{"$f":"COUNTIFS(InputArea,\"=\"&List!$C$10,InputTopic,\"=\"&List!$U8,InputImportance,\"=\"&Input!$E$5)","v":0},{"$f":"COUNTIFS(InputArea,\"=\"&List!$C$10,InputTopic,\"=\"&List!$U8,InputImportance,\"=\"&Input!$E$4)","v":0},{"$f":"COUNTIFS(InputArea,\"=\"&List!$C$10,InputTopic,\"=\"&List!$U8,InputImportance,\"=\"&Input!$E$3)","v":0},{"$f":"COUNTIFS(InputArea,\"=\"&List!$C$10,InputTopic,\"=\"&List!$U8,InputImportance,\"=\"&Input!$E$2)","v":0},{"$f":"COUNTIFS(InputArea,\"=\"&List!$C$10,InputTopic,\"=\"&List!$U8,InputSkill,\"=\"&List!$D$14)","v":0},{"$f":"COUNTIFS(InputArea,\"=\"&List!$C$10,InputTopic,\"=\"&List!$U8,InputSkill,\"=\"&List!$D$15)","v":0},{"$f":"COUNTIFS(InputArea,\"=\"&List!$C$10,InputTopic,\"=\"&List!$U8,InputSkill,\"=\"&List!$D$16)","v":0},{"$f":"COUNTIFS(InputArea,\"=\"&List!$C$10,InputTopic,\"=\"&List!$U8,InputSkill,\"=\"&List!$D$17)","v":0},{"$f":"COUNTIFS(InputArea,\"=\"&List!$C$10,InputTopic,\"=\"&List!$U8,InputSkill,\"=\"&List!$D$18)","v":0},{"$f":"COUNTIFS(InputArea,\"=\"&List!$C$10,InputTopic,\"=\"&List!$U8,InputSkill,\"=\"&List!$D$19)","v":0},0,0,{"v":0,"d":"0.00"},{"v":0,"d":"0.0"}]
["C","T U","Gen",null,"Professionalism","Professional Certification & Qualification",{"$f":"COUNTIFS(InputArea,\"=\"&List!$C$10,InputTopic,\"=\"&List!$U9,InputMode,\"=\"&List!$A$14)","v":0},{"$f":"COUNTIFS(InputArea,\"=\"&List!$C$10,InputTopic,\"=\"&List!$U9,InputMode,\"=\"&List!$A$15)","v":0},{"$f":"COUNTIFS(InputArea,\"=\"&List!$C$10,InputTopic,\"=\"&List!$U9,InputMode,\"=\"&List!$A$16)","v":0},{"$f":"COUNTIFS(InputArea,\"=\"&List!$C$10,InputTopic,\"=\"&List!$U9,InputMode,\"=\"&List!$A$17)","v":0},{"$f":"COUNTIFS(InputArea,\"=\"&List!$C$10,InputTopic,\"=\"&List!$U9,InputMode,\"=\"&List!$A$18)","v":0},{"$f":"COUNTIFS(InputArea,\"=\"&List!$C$10,InputTopic,\"=\"&List!$U9,InputMode,\"=\"&List!$A$19)","v":0},{"$f":"SUMIFS(InputHours,InputArea,\"=\"&List!$C$10,InputTopic,\"=\"&List!$U9,InputMode,\"=\"&List!$A$14)","v":0},{"$f":"SUMIFS(InputHours,InputArea,\"=\"&List!$C$10,InputTopic,\"=\"&List!$U9,InputMode,\"=\"&List!$A$15)","v":0},{"$f":"SUMIFS(InputHours,InputArea,\"=\"&List!$C$10,InputTopic,\"=\"&List!$U9,InputMode,\"=\"&List!$A$16)","v":0},{"$f":"SUMIFS(InputHours,InputArea,\"=\"&List!$C$10,InputTopic,\"=\"&List!$U9,InputMode,\"=\"&List!$A$17)","v":0},{"$f":"SUMIFS(InputHours,InputArea,\"=\"&List!$C$10,InputTopic,\"=\"&List!$U9,InputMode,\"=\"&List!$A$18)","v":0},{"$f":"SUMIFS(InputHours,InputArea,\"=\"&List!$C$10,InputTopic,\"=\"&List!$U9,InputMode,\"=\"&List!$A$19)","v":0},{"$f":"COUNTIFS(InputArea,\"=\"&List!$C$10,InputTopic,\"=\"&List!$U9,InputLevel,\"=\"&Input!$A$5)","v":0},{"$f":"COUNTIFS(InputArea,\"=\"&List!$C$10,InputTopic,\"=\"&List!$U9,InputLevel,\"=\"&Input!$A$4)","v":0},{"$f":"COUNTIFS(InputArea,\"=\"&List!$C$10,InputTopic,\"=\"&List!$U9,InputLevel,\"=\"&Input!$A$3)","v":0},{"$f":"COUNTIFS(InputArea,\"=\"&List!$C$10,InputTopic,\"=\"&List!$U9,InputLevel,\"=\"&Input!$A$2)","v":0},{"$f":"COUNTIFS(InputArea,\"=\"&List!$C$10,InputTopic,\"=\"&List!$U9,InputImportance,\"=\"&Input!$E$5)","v":0},{"$f":"COUNTIFS(InputArea,\"=\"&List!$C$10,InputTopic,\"=\"&List!$U9,InputImportance,\"=\"&Input!$E$4)","v":0},{"$f":"COUNTIFS(InputArea,\"=\"&List!$C$10,InputTopic,\"=\"&List!$U9,InputImportance,\"=\"&Input!$E$3)","v":0},{"$f":"COUNTIFS(InputArea,\"=\"&List!$C$10,InputTopic,\"=\"&List!$U9,InputImportance,\"=\"&Input!$E$2)","v":0},{"$f":"COUNTIFS(InputArea,\"=\"&List!$C$10,InputTopic,\"=\"&List!$U9,InputSkill,\"=\"&List!$D$14)","v":0},{"$f":"COUNTIFS(InputArea,\"=\"&List!$C$10,InputTopic,\"=\"&List!$U9,InputSkill,\"=\"&List!$D$15)","v":0},{"$f":"COUNTIFS(InputArea,\"=\"&List!$C$10,InputTopic,\"=\"&List!$U9,InputSkill,\"=\"&List!$D$16)","v":0},{"$f":"COUNTIFS(InputArea,\"=\"&List!$C$10,InputTopic,\"=\"&List!$U9,InputSkill,\"=\"&List!$D$17)","v":0},{"$f":"COUNTIFS(InputArea,\"=\"&List!$C$10,InputTopic,\"=\"&List!$U9,InputSkill,\"=\"&List!$D$18)","v":0},{"$f":"COUNTIFS(InputArea,\"=\"&List!$C$10,InputTopic,\"=\"&List!$U9,InputSkill,\"=\"&List!$D$19)","v":0},0,0,{"v":0,"d":"0.00"},{"v":0,"d":"0.0"}]
["C","U","Gen",null,"Professionalism","Others",{"$f":"COUNTIFS(InputArea,\"=\"&List!$C$10,InputTopic,\"=\"&List!$U10,InputMode,\"=\"&List!$A$14)","v":0},{"$f":"COUNTIFS(InputArea,\"=\"&List!$C$10,InputTopic,\"=\"&List!$U10,InputMode,\"=\"&List!$A$15)","v":0},{"$f":"COUNTIFS(InputArea,\"=\"&List!$C$10,InputTopic,\"=\"&List!$U10,InputMode,\"=\"&List!$A$16)","v":0},{"$f":"COUNTIFS(InputArea,\"=\"&List!$C$10,InputTopic,\"=\"&List!$U10,InputMode,\"=\"&List!$A$17)","v":0},{"$f":"COUNTIFS(InputArea,\"=\"&List!$C$10,InputTopic,\"=\"&List!$U10,InputMode,\"=\"&List!$A$18)","v":0},{"$f":"COUNTIFS(InputArea,\"=\"&List!$C$10,InputTopic,\"=\"&List!$U10,InputMode,\"=\"&List!$A$19)","v":0},{"$f":"SUMIFS(InputHours,InputArea,\"=\"&List!$C$10,InputTopic,\"=\"&List!$U10,InputMode,\"=\"&List!$A$14)","v":0},{"$f":"SUMIFS(InputHours,InputArea,\"=\"&List!$C$10,InputTopic,\"=\"&List!$U10,InputMode,\"=\"&List!$A$15)","v":0},{"$f":"SUMIFS(InputHours,InputArea,\"=\"&List!$C$10,InputTopic,\"=\"&List!$U10,InputMode,\"=\"&List!$A$16)","v":0},{"$f":"SUMIFS(InputHours,InputArea,\"=\"&List!$C$10,InputTopic,\"=\"&List!$U10,InputMode,\"=\"&List!$A$17)","v":0},{"$f":"SUMIFS(InputHours,InputArea,\"=\"&List!$C$10,InputTopic,\"=\"&List!$U10,InputMode,\"=\"&List!$A$18)","v":0},{"$f":"SUMIFS(InputHours,InputArea,\"=\"&List!$C$10,InputTopic,\"=\"&List!$U10,InputMode,\"=\"&List!$A$19)","v":0},{"$f":"COUNTIFS(InputArea,\"=\"&List!$C$10,InputTopic,\"=\"&List!$U10,InputLevel,\"=\"&Input!$A$5)","v":0},{"$f":"COUNTIFS(InputArea,\"=\"&List!$C$10,InputTopic,\"=\"&List!$U10,InputLevel,\"=\"&Input!$A$4)","v":0},{"$f":"COUNTIFS(InputArea,\"=\"&List!$C$10,InputTopic,\"=\"&List!$U10,InputLevel,\"=\"&Input!$A$3)","v":0},{"$f":"COUNTIFS(InputArea,\"=\"&List!$C$10,InputTopic,\"=\"&List!$U10,InputLevel,\"=\"&Input!$A$2)","v":0},{"$f":"COUNTIFS(InputArea,\"=\"&List!$C$10,InputTopic,\"=\"&List!$U10,InputImportance,\"=\"&Input!$E$5)","v":0},{"$f":"COUNTIFS(InputArea,\"=\"&List!$C$10,InputTopic,\"=\"&List!$U10,InputImportance,\"=\"&Input!$E$4)","v":0},{"$f":"COUNTIFS(InputArea,\"=\"&List!$C$10,InputTopic,\"=\"&List!$U10,InputImportance,\"=\"&Input!$E$3)","v":0},{"$f":"COUNTIFS(InputArea,\"=\"&List!$C$10,InputTopic,\"=\"&List!$U10,InputImportance,\"=\"&Input!$E$2)","v":0},{"$f":"COUNTIFS(InputArea,\"=\"&List!$C$10,InputTopic,\"=\"&List!$U10,InputSkill,\"=\"&List!$D$14)","v":0},{"$f":"COUNTIFS(InputArea,\"=\"&List!$C$10,InputTopic,\"=\"&List!$U10,InputSkill,\"=\"&List!$D$15)","v":0},{"$f":"COUNTIFS(InputArea,\"=\"&List!$C$10,InputTopic,\"=\"&List!$U10,InputSkill,\"=\"&List!$D$16)","v":0},{"$f":"COUNTIFS(InputArea,\"=\"&List!$C$10,InputTopic,\"=\"&List!$U10,InputSkill,\"=\"&List!$D$17)","v":0},{"$f":"COUNTIFS(InputArea,\"=\"&List!$C$10,InputTopic,\"=\"&List!$U10,InputSkill,\"=\"&List!$D$18)","v":0},{"$f":"COUNTIFS(InputArea,\"=\"&List!$C$10,InputTopic,\"=\"&List!$U10,InputSkill,\"=\"&List!$D$19)","v":0},0,0,{"v":0,"d":"0.00"},{"v":0,"d":"0.0"}]
["S","T","Geo","SPECIALIZED","DataAcquisitionMethods","Land Surveying",{"$f":"COUNTIFS(InputArea,\"=\"&List!$D$2,InputTopic,\"=\"&List!$V2,InputMode,\"=\"&List!$A$14)","v":0},{"$f":"COUNTIFS(InputArea,\"=\"&List!$D$2,InputTopic,\"=\"&List!$V2,InputMode,\"=\"&List!$A$15)","v":0},{"$f":"COUNTIFS(InputArea,\"=\"&List!$D$2,InputTopic,\"=\"&List!$V2,InputMode,\"=\"&List!$A$16)","v":0},{"$f":"COUNTIFS(InputArea,\"=\"&List!$D$2,InputTopic,\"=\"&List!$V2,InputMode,\"=\"&List!$A$17)","v":0},{"$f":"COUNTIFS(InputArea,\"=\"&List!$D$2,InputTopic,\"=\"&List!$V2,InputMode,\"=\"&List!$A$18)","v":0},{"$f":"COUNTIFS(InputArea,\"=\"&List!$D$2,InputTopic,\"=\"&List!$V2,InputMode,\"=\"&List!$A$19)","v":0},{"$f":"SUMIFS(InputHours,InputArea,\"=\"&List!$D$2,InputTopic,\"=\"&List!$V2,InputMode,\"=\"&List!$A$14)","v":0},{"$f":"SUMIFS(InputHours,InputArea,\"=\"&List!$D$2,InputTopic,\"=\"&List!$V2,InputMode,\"=\"&List!$A$15)","v":0},{"$f":"SUMIFS(InputHours,InputArea,\"=\"&List!$D$2,InputTopic,\"=\"&List!$V2,InputMode,\"=\"&List!$A$16)","v":0},{"$f":"SUMIFS(InputHours,InputArea,\"=\"&List!$D$2,InputTopic,\"=\"&List!$V2,InputMode,\"=\"&List!$A$17)","v":0},{"$f":"SUMIFS(InputHours,InputArea,\"=\"&List!$D$2,InputTopic,\"=\"&List!$V2,InputMode,\"=\"&List!$A$18)","v":0},{"$f":"SUMIFS(InputHours,InputArea,\"=\"&List!$D$2,InputTopic,\"=\"&List!$V2,InputMode,\"=\"&List!$A$19)","v":0},{"$f":"COUNTIFS(InputArea,\"=\"&List!$D$2,InputTopic,\"=\"&List!$V2,InputLevel,\"=\"&Input!$A$5)","v":0},{"$f":"COUNTIFS(InputArea,\"=\"&List!$D$2,InputTopic,\"=\"&List!$V2,InputLevel,\"=\"&Input!$A$4)","v":0},{"$f":"COUNTIFS(InputArea,\"=\"&List!$D$2,InputTopic,\"=\"&List!$V2,InputLevel,\"=\"&Input!$A$3)","v":0},{"$f":"COUNTIFS(InputArea,\"=\"&List!$D$2,InputTopic,\"=\"&List!$V2,InputLevel,\"=\"&Input!$A$2)","v":0},{"$f":"COUNTIFS(InputArea,\"=\"&List!$D$2,InputTopic,\"=\"&List!$V2,InputImportance,\"=\"&Input!$E$5)","v":0},{"$f":"COUNTIFS(InputArea,\"=\"&List!$D$2,InputTopic,\"=\"&List!$V2,InputImportance,\"=\"&Input!$E$4)","v":0},{"$f":"COUNTIFS(InputArea,\"=\"&List!$D$2,InputTopic,\"=\"&List!$V2,InputImportance,\"=\"&Input!$E$3)","v":0},{"$f":"COUNTIFS(InputArea,\"=\"&List!$D$2,InputTopic,\"=\"&List!$V2,InputImportance,\"=\"&Input!$E$2)","v":0},{"$f":"COUNTIFS(InputArea,\"=\"&List!$D$2,InputTopic,\"=\"&List!$V2,InputSkill,\"=\"&List!$D$14)","v":0},{"$f":"COUNTIFS(InputArea,\"=\"&List!$D$2,InputTopic,\"=\"&List!$V2,InputSkill,\"=\"&List!$D$15)","v":0},{"$f":"COUNTIFS(InputArea,\"=\"&List!$D$2,InputTopic,\"=\"&List!$V2,InputSkill,\"=\"&List!$D$16)","v":0},{"$f":"COUNTIFS(InputArea,\"=\"&List!$D$2,InputTopic,\"=\"&List!$V2,InputSkill,\"=\"&List!$D$17)","v":0},{"$f":"COUNTIFS(InputArea,\"=\"&List!$D$2,InputTopic,\"=\"&List!$V2,InputSkill,\"=\"&List!$D$18)","v":0},{"$f":"COUNTIFS(InputArea,\"=\"&List!$D$2,InputTopic,\"=\"&List!$V2,InputSkill,\"=\"&List!$D$19)","v":0},0,0,{"v":0,"d":"0.00"},{"v":0,"d":"0.0"},{"$f":"SUM(G86:G112)","v":0},{"$f":"SUM(H86:H112)","v":0},0,0,0,0,0,0,0,0,0,0,{"$f":"SUM(AA86:AA112)","v":0},{"$f":"SUM(AB86:AB112)","v":0},0,0,0,0,{"$f":"SUM(S86:S112)","v":0},{"$f":"SUM(T86:T112)","v":0},0,0,{"$f":"SUM(AK86:AP112)","v":0},{"$f":"SUM(AQ86:AV112)","v":0}]
["S","T","Geo",null,"DataAcquisitionMethods","Remote Sensing",{"$f":"COUNTIFS(InputArea,\"=\"&List!$D$2,InputTopic,\"=\"&List!$V3,InputMode,\"=\"&List!$A$14)","v":0},{"$f":"COUNTIFS(InputArea,\"=\"&List!$D$2,InputTopic,\"=\"&List!$V3,InputMode,\"=\"&List!$A$15)","v":0},{"$f":"COUNTIFS(InputArea,\"=\"&List!$D$2,InputTopic,\"=\"&List!$V3,InputMode,\"=\"&List!$A$16)","v":0},{"$f":"COUNTIFS(InputArea,\"=\"&List!$D$2,InputTopic,\"=\"&List!$V3,InputMode,\"=\"&List!$A$17)","v":0},{"$f":"COUNTIFS(InputArea,\"=\"&List!$D$2,InputTopic,\"=\"&List!$V3,InputMode,\"=\"&List!$A$18)","v":0},{"$f":"COUNTIFS(InputArea,\"=\"&List!$D$2,InputTopic,\"=\"&List!$V3,InputMode,\"=\"&List!$A$19)","v":0},{"$f":"SUMIFS(InputHours,InputArea,\"=\"&List!$D$2,InputTopic,\"=\"&List!$V3,InputMode,\"=\"&List!$A$14)","v":0},{"$f":"SUMIFS(InputHours,InputArea,\"=\"&List!$D$2,InputTopic,\"=\"&List!$V3,InputMode,\"=\"&List!$A$15)","v":0},{"$f":"SUMIFS(InputHours,InputArea,\"=\"&List!$D$2,InputTopic,\"=\"&List!$V3,InputMode,\"=\"&List!$A$16)","v":0},{"$f":"SUMIFS(InputHours,InputArea,\"=\"&List!$D$2,InputTopic,\"=\"&List!$V3,InputMode,\"=\"&List!$A$17)","v":0},{"$f":"SUMIFS(InputHours,InputArea,\"=\"&List!$D$2,InputTopic,\"=\"&List!$V3,InputMode,\"=\"&List!$A$18)","v":0},{"$f":"SUMIFS(InputHours,InputArea,\"=\"&List!$D$2,InputTopic,\"=\"&List!$V3,InputMode,\"=\"&List!$A$19)","v":0},{"$f":"COUNTIFS(InputArea,\"=\"&List!$D$2,InputTopic,\"=\"&List!$V3,InputLevel,\"=\"&Input!$A$5)","v":0},{"$f":"COUNTIFS(InputArea,\"=\"&List!$D$2,InputTopic,\"=\"&List!$V3,InputLevel,\"=\"&Input!$A$4)","v":0},{"$f":"COUNTIFS(InputArea,\"=\"&List!$D$2,InputTopic,\"=\"&List!$V3,InputLevel,\"=\"&Input!$A$3)","v":0},{"$f":"COUNTIFS(InputArea,\"=\"&List!$D$2,InputTopic,\"=\"&List!$V3,InputLevel,\"=\"&Input!$A$2)","v":0},{"$f":"COUNTIFS(InputArea,\"=\"&List!$D$2,InputTopic,\"=\"&List!$V3,InputImportance,\"=\"&Input!$E$5)","v":0},{"$f":"COUNTIFS(InputArea,\"=\"&List!$D$2,InputTopic,\"=\"&List!$V3,InputImportance,\"=\"&Input!$E$4)","v":0},{"$f":"COUNTIFS(InputArea,\"=\"&List!$D$2,InputTopic,\"=\"&List!$V3,InputImportance,\"=\"&Input!$E$3)","v":0},{"$f":"COUNTIFS(InputArea,\"=\"&List!$D$2,InputTopic,\"=\"&List!$V3,InputImportance,\"=\"&Input!$E$2)","v":0},{"$f":"COUNTIFS(InputArea,\"=\"&List!$D$2,InputTopic,\"=\"&List!$V3,InputSkill,\"=\"&List!$D$14)","v":0},{"$f":"COUNTIFS(InputArea,\"=\"&List!$D$2,InputTopic,\"=\"&List!$V3,InputSkill,\"=\"&List!$D$15)","v":0},{"$f":"COUNTIFS(InputArea,\"=\"&List!$D$2,InputTopic,\"=\"&List!$V3,InputSkill,\"=\"&List!$D$16)","v":0},{"$f":"COUNTIFS(InputArea,\"=\"&List!$D$2,InputTopic,\"=\"&List!$V3,InputSkill,\"=\"&List!$D$17)","v":0},{"$f":"COUNTIFS(InputArea,\"=\"&List!$D$2,InputTopic,\"=\"&List!$V3,InputSkill,\"=\"&List!$D$18)","v":0},{"$f":"COUNTIFS(InputArea,\"=\"&List!$D$2,InputTopic,\"=\"&List!$V3,InputSkill,\"=\"&List!$D$19)","v":0},0,0,{"v":0,"d":"0.00"},{"v":0,"d":"0.0"}]
["S","T","Geo",null,"DataAcquisitionMethods","Photogrammetry",{"$f":"COUNTIFS(InputArea,\"=\"&List!$D$2,InputTopic,\"=\"&List!$V4,InputMode,\"=\"&List!$A$14)","v":0},{"$f":"COUNTIFS(InputArea,\"=\"&List!$D$2,InputTopic,\"=\"&List!$V4,InputMode,\"=\"&List!$A$15)","v":0},{"$f":"COUNTIFS(InputArea,\"=\"&List!$D$2,InputTopic,\"=\"&List!$V4,InputMode,\"=\"&List!$A$16)","v":0},{"$f":"COUNTIFS(InputArea,\"=\"&List!$D$2,InputTopic,\"=\"&List!$V4,InputMode,\"=\"&List!$A$17)","v":0},{"$f":"COUNTIFS(InputArea,\"=\"&List!$D$2,InputTopic,\"=\"&List!$V4,InputMode,\"=\"&List!$A$18)","v":0},{"$f":"COUNTIFS(InputArea,\"=\"&List!$D$2,InputTopic,\"=\"&List!$V4,InputMode,\"=\"&List!$A$19)","v":0},{"$f":"SUMIFS(InputHours,InputArea,\"=\"&List!$D$2,InputTopic,\"=\"&List!$V4,InputMode,\"=\"&List!$A$14)","v":0},{"$f":"SUMIFS(InputHours,InputArea,\"=\"&List!$D$2,InputTopic,\"=\"&List!$V4,InputMode,\"=\"&List!$A$15)","v":0},{"$f":"SUMIFS(InputHours,InputArea,\"=\"&List!$D$2,InputTopic,\"=\"&List!$V4,InputMode,\"=\"&List!$A$16)","v":0},{"$f":"SUMIFS(InputHours,InputArea,\"=\"&List!$D$2,InputTopic,\"=\"&List!$V4,InputMode,\"=\"&List!$A$17)","v":0},{"$f":"SUMIFS(InputHours,InputArea,\"=\"&List!$D$2,InputTopic,\"=\"&List!$V4,InputMode,\"=\"&List!$A$18)","v":0},{"$f":"SUMIFS(InputHours,InputArea,\"=\"&List!$D$2,InputTopic,\"=\"&List!$V4,InputMode,\"=\"&List!$A$19)","v":0},{"$f":"COUNTIFS(InputArea,\"=\"&List!$D$2,InputTopic,\"=\"&List!$V4,InputLevel,\"=\"&Input!$A$5)","v":0},{"$f":"COUNTIFS(InputArea,\"=\"&List!$D$2,InputTopic,\"=\"&List!$V4,InputLevel,\"=\"&Input!$A$4)","v":0},{"$f":"COUNTIFS(InputArea,\"=\"&List!$D$2,InputTopic,\"=\"&List!$V4,InputLevel,\"=\"&Input!$A$3)","v":0},{"$f":"COUNTIFS(InputArea,\"=\"&List!$D$2,InputTopic,\"=\"&List!$V4,InputLevel,\"=\"&Input!$A$2)","v":0},{"$f":"COUNTIFS(InputArea,\"=\"&List!$D$2,InputTopic,\"=\"&List!$V4,InputImportance,\"=\"&Input!$E$5)","v":0},{"$f":"COUNTIFS(InputArea,\"=\"&List!$D$2,InputTopic,\"=\"&List!$V4,InputImportance,\"=\"&Input!$E$4)","v":0},{"$f":"COUNTIFS(InputArea,\"=\"&List!$D$2,InputTopic,\"=\"&List!$V4,InputImportance,\"=\"&Input!$E$3)","v":0},{"$f":"COUNTIFS(InputArea,\"=\"&List!$D$2,InputTopic,\"=\"&List!$V4,InputImportance,\"=\"&Input!$E$2)","v":0},{"$f":"COUNTIFS(InputArea,\"=\"&List!$D$2,InputTopic,\"=\"&List!$V4,InputSkill,\"=\"&List!$D$14)","v":0},{"$f":"COUNTIFS(InputArea,\"=\"&List!$D$2,InputTopic,\"=\"&List!$V4,InputSkill,\"=\"&List!$D$15)","v":0},{"$f":"COUNTIFS(InputArea,\"=\"&List!$D$2,InputTopic,\"=\"&List!$V4,InputSkill,\"=\"&List!$D$16)","v":0},{"$f":"COUNTIFS(InputArea,\"=\"&List!$D$2,InputTopic,\"=\"&List!$V4,InputSkill,\"=\"&List!$D$17)","v":0},{"$f":"COUNTIFS(InputArea,\"=\"&List!$D$2,InputTopic,\"=\"&List!$V4,InputSkill,\"=\"&List!$D$18)","v":0},{"$f":"COUNTIFS(InputArea,\"=\"&List!$D$2,InputTopic,\"=\"&List!$V4,InputSkill,\"=\"&List!$D$19)","v":0},0,0,{"v":0,"d":"0.00"},{"v":0,"d":"0.0"}]
["S","T","Geo",null,"DataAcquisitionMethods","GNSS/GPS",{"$f":"COUNTIFS(InputArea,\"=\"&List!$D$2,InputTopic,\"=\"&List!$V5,InputMode,\"=\"&List!$A$14)","v":0},{"$f":"COUNTIFS(InputArea,\"=\"&List!$D$2,InputTopic,\"=\"&List!$V5,InputMode,\"=\"&List!$A$15)","v":0},{"$f":"COUNTIFS(InputArea,\"=\"&List!$D$2,InputTopic,\"=\"&List!$V5,InputMode,\"=\"&List!$A$16)","v":0},{"$f":"COUNTIFS(InputArea,\"=\"&List!$D$2,InputTopic,\"=\"&List!$V5,InputMode,\"=\"&List!$A$17)","v":0},{"$f":"COUNTIFS(InputArea,\"=\"&List!$D$2,InputTopic,\"=\"&List!$V5,InputMode,\"=\"&List!$A$18)","v":0},{"$f":"COUNTIFS(InputArea,\"=\"&List!$D$2,InputTopic,\"=\"&List!$V5,InputMode,\"=\"&List!$A$19)","v":0},{"$f":"SUMIFS(InputHours,InputArea,\"=\"&List!$D$2,InputTopic,\"=\"&List!$V5,InputMode,\"=\"&List!$A$14)","v":0},{"$f":"SUMIFS(InputHours,InputArea,\"=\"&List!$D$2,InputTopic,\"=\"&List!$V5,InputMode,\"=\"&List!$A$15)","v":0},{"$f":"SUMIFS(InputHours,InputArea,\"=\"&List!$D$2,InputTopic,\"=\"&List!$V5,InputMode,\"=\"&List!$A$16)","v":0},{"$f":"SUMIFS(InputHours,InputArea,\"=\"&List!$D$2,InputTopic,\"=\"&List!$V5,InputMode,\"=\"&List!$A$17)","v":0},{"$f":"SUMIFS(InputHours,InputArea,\"=\"&List!$D$2,InputTopic,\"=\"&List!$V5,InputMode,\"=\"&List!$A$18)","v":0},{"$f":"SUMIFS(InputHours,InputArea,\"=\"&List!$D$2,InputTopic,\"=\"&List!$V5,InputMode,\"=\"&List!$A$19)","v":0},{"$f":"COUNTIFS(InputArea,\"=\"&List!$D$2,InputTopic,\"=\"&List!$V5,InputLevel,\"=\"&Input!$A$5)","v":0},{"$f":"COUNTIFS(InputArea,\"=\"&List!$D$2,InputTopic,\"=\"&List!$V5,InputLevel,\"=\"&Input!$A$4)","v":0},{"$f":"COUNTIFS(InputArea,\"=\"&List!$D$2,InputTopic,\"=\"&List!$V5,InputLevel,\"=\"&Input!$A$3)","v":0},{"$f":"COUNTIFS(InputArea,\"=\"&List!$D$2,InputTopic,\"=\"&List!$V5,InputLevel,\"=\"&Input!$A$2)","v":0},{"$f":"COUNTIFS(InputArea,\"=\"&List!$D$2,InputTopic,\"=\"&List!$V5,InputImportance,\"=\"&Input!$E$5)","v":0},{"$f":"COUNTIFS(InputArea,\"=\"&List!$D$2,InputTopic,\"=\"&List!$V5,InputImportance,\"=\"&Input!$E$4)","v":0},{"$f":"COUNTIFS(InputArea,\"=\"&List!$D$2,InputTopic,\"=\"&List!$V5,InputImportance,\"=\"&Input!$E$3)","v":0},{"$f":"COUNTIFS(InputArea,\"=\"&List!$D$2,InputTopic,\"=\"&List!$V5,InputImportance,\"=\"&Input!$E$2)","v":0},{"$f":"COUNTIFS(InputArea,\"=\"&List!$D$2,InputTopic,\"=\"&List!$V5,InputSkill,\"=\"&List!$D$14)","v":0},{"$f":"COUNTIFS(InputArea,\"=\"&List!$D$2,InputTopic,\"=\"&List!$V5,InputSkill,\"=\"&List!$D$15)","v":0},{"$f":"COUNTIFS(InputArea,\"=\"&List!$D$2,InputTopic,\"=\"&List!$V5,InputSkill,\"=\"&List!$D$16)","v":0},{"$f":"COUNTIFS(InputArea,\"=\"&List!$D$2,InputTopic,\"=\"&List!$V5,InputSkill,\"=\"&List!$D$17)","v":0},{"$f":"COUNTIFS(InputArea,\"=\"&List!$D$2,InputTopic,\"=\"&List!$V5,InputSkill,\"=\"&List!$D$18)","v":0},{"$f":"COUNTIFS(InputArea,\"=\"&List!$D$2,InputTopic,\"=\"&List!$V5,InputSkill,\"=\"&List!$D$19)","v":0},0,0,{"v":0,"d":"0.00"},{"v":0,"d":"0.0"}]
["S","T","Geo",null,"DataAcquisitionMethods","Underground Surveying",{"$f":"COUNTIFS(InputArea,\"=\"&List!$D$2,InputTopic,\"=\"&List!$V6,InputMode,\"=\"&List!$A$14)","v":0},{"$f":"COUNTIFS(InputArea,\"=\"&List!$D$2,InputTopic,\"=\"&List!$V6,InputMode,\"=\"&List!$A$15)","v":0},{"$f":"COUNTIFS(InputArea,\"=\"&List!$D$2,InputTopic,\"=\"&List!$V6,InputMode,\"=\"&List!$A$16)","v":0},{"$f":"COUNTIFS(InputArea,\"=\"&List!$D$2,InputTopic,\"=\"&List!$V6,InputMode,\"=\"&List!$A$17)","v":0},{"$f":"COUNTIFS(InputArea,\"=\"&List!$D$2,InputTopic,\"=\"&List!$V6,InputMode,\"=\"&List!$A$18)","v":0},{"$f":"COUNTIFS(InputArea,\"=\"&List!$D$2,InputTopic,\"=\"&List!$V6,InputMode,\"=\"&List!$A$19)","v":0},{"$f":"SUMIFS(InputHours,InputArea,\"=\"&List!$D$2,InputTopic,\"=\"&List!$V6,InputMode,\"=\"&List!$A$14)","v":0},{"$f":"SUMIFS(InputHours,InputArea,\"=\"&List!$D$2,InputTopic,\"=\"&List!$V6,InputMode,\"=\"&List!$A$15)","v":0},{"$f":"SUMIFS(InputHours,InputArea,\"=\"&List!$D$2,InputTopic,\"=\"&List!$V6,InputMode,\"=\"&List!$A$16)","v":0},{"$f":"SUMIFS(InputHours,InputArea,\"=\"&List!$D$2,InputTopic,\"=\"&List!$V6,InputMode,\"=\"&List!$A$17)","v":0},{"$f":"SUMIFS(InputHours,InputArea,\"=\"&List!$D$2,InputTopic,\"=\"&List!$V6,InputMode,\"=\"&List!$A$18)","v":0},{"$f":"SUMIFS(InputHours,InputArea,\"=\"&List!$D$2,InputTopic,\"=\"&List!$V6,InputMode,\"=\"&List!$A$19)","v":0},{"$f":"COUNTIFS(InputArea,\"=\"&List!$D$2,InputTopic,\"=\"&List!$V6,InputLevel,\"=\"&Input!$A$5)","v":0},{"$f":"COUNTIFS(InputArea,\"=\"&List!$D$2,InputTopic,\"=\"&List!$V6,InputLevel,\"=\"&Input!$A$4)","v":0},{"$f":"COUNTIFS(InputArea,\"=\"&List!$D$2,InputTopic,\"=\"&List!$V6,InputLevel,\"=\"&Input!$A$3)","v":0},{"$f":"COUNTIFS(InputArea,\"=\"&List!$D$2,InputTopic,\"=\"&List!$V6,InputLevel,\"=\"&Input!$A$2)","v":0},{"$f":"COUNTIFS(InputArea,\"=\"&List!$D$2,InputTopic,\"=\"&List!$V6,InputImportance,\"=\"&Input!$E$5)","v":0},{"$f":"COUNTIFS(InputArea,\"=\"&List!$D$2,InputTopic,\"=\"&List!$V6,InputImportance,\"=\"&Input!$E$4)","v":0},{"$f":"COUNTIFS(InputArea,\"=\"&List!$D$2,InputTopic,\"=\"&List!$V6,InputImportance,\"=\"&Input!$E$3)","v":0},{"$f":"COUNTIFS(InputArea,\"=\"&List!$D$2,InputTopic,\"=\"&List!$V6,InputImportance,\"=\"&Input!$E$2)","v":0},{"$f":"COUNTIFS(InputArea,\"=\"&List!$D$2,InputTopic,\"=\"&List!$V6,InputSkill,\"=\"&List!$D$14)","v":0},{"$f":"COUNTIFS(InputArea,\"=\"&List!$D$2,InputTopic,\"=\"&List!$V6,InputSkill,\"=\"&List!$D$15)","v":0},{"$f":"COUNTIFS(InputArea,\"=\"&List!$D$2,InputTopic,\"=\"&List!$V6,InputSkill,\"=\"&List!$D$16)","v":0},{"$f":"COUNTIFS(InputArea,\"=\"&List!$D$2,InputTopic,\"=\"&List!$V6,InputSkill,\"=\"&List!$D$17)","v":0},{"$f":"COUNTIFS(InputArea,\"=\"&List!$D$2,InputTopic,\"=\"&List!$V6,InputSkill,\"=\"&List!$D$18)","v":0},{"$f":"COUNTIFS(InputArea,\"=\"&List!$D$2,InputTopic,\"=\"&List!$V6,InputSkill,\"=\"&List!$D$19)","v":0},0,0,{"v":0,"d":"0.00"},{"v":0,"d":"0.0"}]
["S","T","Geo",null,"DataAcquisitionMethods","Hydrography",{"$f":"COUNTIFS(InputArea,\"=\"&List!$D$2,InputTopic,\"=\"&List!$V7,InputMode,\"=\"&List!$A$14)","v":0},{"$f":"COUNTIFS(InputArea,\"=\"&List!$D$2,InputTopic,\"=\"&List!$V7,InputMode,\"=\"&List!$A$15)","v":0},{"$f":"COUNTIFS(InputArea,\"=\"&List!$D$2,InputTopic,\"=\"&List!$V7,InputMode,\"=\"&List!$A$16)","v":0},{"$f":"COUNTIFS(InputArea,\"=\"&List!$D$2,InputTopic,\"=\"&List!$V7,InputMode,\"=\"&List!$A$17)","v":0},{"$f":"COUNTIFS(InputArea,\"=\"&List!$D$2,InputTopic,\"=\"&List!$V7,InputMode,\"=\"&List!$A$18)","v":0},{"$f":"COUNTIFS(InputArea,\"=\"&List!$D$2,InputTopic,\"=\"&List!$V7,InputMode,\"=\"&List!$A$19)","v":0},{"$f":"SUMIFS(InputHours,InputArea,\"=\"&List!$D$2,InputTopic,\"=\"&List!$V7,InputMode,\"=\"&List!$A$14)","v":0},{"$f":"SUMIFS(InputHours,InputArea,\"=\"&List!$D$2,InputTopic,\"=\"&List!$V7,InputMode,\"=\"&List!$A$15)","v":0},{"$f":"SUMIFS(InputHours,InputArea,\"=\"&List!$D$2,InputTopic,\"=\"&List!$V7,InputMode,\"=\"&List!$A$16)","v":0},{"$f":"SUMIFS(InputHours,InputArea,\"=\"&List!$D$2,InputTopic,\"=\"&List!$V7,InputMode,\"=\"&List!$A$17)","v":0},{"$f":"SUMIFS(InputHours,InputArea,\"=\"&List!$D$2,InputTopic,\"=\"&List!$V7,InputMode,\"=\"&List!$A$18)","v":0},{"$f":"SUMIFS(InputHours,InputArea,\"=\"&List!$D$2,InputTopic,\"=\"&List!$V7,InputMode,\"=\"&List!$A$19)","v":0},{"$f":"COUNTIFS(InputArea,\"=\"&List!$D$2,InputTopic,\"=\"&List!$V7,InputLevel,\"=\"&Input!$A$5)","v":0},{"$f":"COUNTIFS(InputArea,\"=\"&List!$D$2,InputTopic,\"=\"&List!$V7,InputLevel,\"=\"&Input!$A$4)","v":0},{"$f":"COUNTIFS(InputArea,\"=\"&List!$D$2,InputTopic,\"=\"&List!$V7,InputLevel,\"=\"&Input!$A$3)","v":0},{"$f":"COUNTIFS(InputArea,\"=\"&List!$D$2,InputTopic,\"=\"&List!$V7,InputLevel,\"=\"&Input!$A$2)","v":0},{"$f":"COUNTIFS(InputArea,\"=\"&List!$D$2,InputTopic,\"=\"&List!$V7,InputImportance,\"=\"&Input!$E$5)","v":0},{"$f":"COUNTIFS(InputArea,\"=\"&List!$D$2,InputTopic,\"=\"&List!$V7,InputImportance,\"=\"&Input!$E$4)","v":0},{"$f":"COUNTIFS(InputArea,\"=\"&List!$D$2,InputTopic,\"=\"&List!$V7,InputImportance,\"=\"&Input!$E$3)","v":0},{"$f":"COUNTIFS(InputArea,\"=\"&List!$D$2,InputTopic,\"=\"&List!$V7,InputImportance,\"=\"&Input!$E$2)","v":0},{"$f":"COUNTIFS(InputArea,\"=\"&List!$D$2,InputTopic,\"=\"&List!$V7,InputSkill,\"=\"&List!$D$14)","v":0},{"$f":"COUNTIFS(InputArea,\"=\"&List!$D$2,InputTopic,\"=\"&List!$V7,InputSkill,\"=\"&List!$D$15)","v":0},{"$f":"COUNTIFS(InputArea,\"=\"&List!$D$2,InputTopic,\"=\"&List!$V7,InputSkill,\"=\"&List!$D$16)","v":0},{"$f":"COUNTIFS(InputArea,\"=\"&List!$D$2,InputTopic,\"=\"&List!$V7,InputSkill,\"=\"&List!$D$17)","v":0},{"$f":"COUNTIFS(InputArea,\"=\"&List!$D$2,InputTopic,\"=\"&List!$V7,InputSkill,\"=\"&List!$D$18)","v":0},{"$f":"COUNTIFS(InputArea,\"=\"&List!$D$2,InputTopic,\"=\"&List!$V7,InputSkill,\"=\"&List!$D$19)","v":0},0,0,{"v":0,"d":"0.00"},{"v":0,"d":"0.0"}]
["S","T","Geo",null,"DataAcquisitionMethods","Others",{"$f":"COUNTIFS(InputArea,\"=\"&List!$D$2,InputTopic,\"=\"&List!$V8,InputMode,\"=\"&List!$A$14)","v":0},{"$f":"COUNTIFS(InputArea,\"=\"&List!$D$2,InputTopic,\"=\"&List!$V8,InputMode,\"=\"&List!$A$15)","v":0},{"$f":"COUNTIFS(InputArea,\"=\"&List!$D$2,InputTopic,\"=\"&List!$V8,InputMode,\"=\"&List!$A$16)","v":0},{"$f":"COUNTIFS(InputArea,\"=\"&List!$D$2,InputTopic,\"=\"&List!$V8,InputMode,\"=\"&List!$A$17)","v":0},{"$f":"COUNTIFS(InputArea,\"=\"&List!$D$2,InputTopic,\"=\"&List!$V8,InputMode,\"=\"&List!$A$18)","v":0},{"$f":"COUNTIFS(InputArea,\"=\"&List!$D$2,InputTopic,\"=\"&List!$V8,InputMode,\"=\"&List!$A$19)","v":0},{"$f":"SUMIFS(InputHours,InputArea,\"=\"&List!$D$2,InputTopic,\"=\"&List!$V8,InputMode,\"=\"&List!$A$14)","v":0},{"$f":"SUMIFS(InputHours,InputArea,\"=\"&List!$D$2,InputTopic,\"=\"&List!$V8,InputMode,\"=\"&List!$A$15)","v":0},{"$f":"SUMIFS(InputHours,InputArea,\"=\"&List!$D$2,InputTopic,\"=\"&List!$V8,InputMode,\"=\"&List!$A$16)","v":0},{"$f":"SUMIFS(InputHours,InputArea,\"=\"&List!$D$2,InputTopic,\"=\"&List!$V8,InputMode,\"=\"&List!$A$17)","v":0},{"$f":"SUMIFS(InputHours,InputArea,\"=\"&List!$D$2,InputTopic,\"=\"&List!$V8,InputMode,\"=\"&List!$A$18)","v":0},{"$f":"SUMIFS(InputHours,InputArea,\"=\"&List!$D$2,InputTopic,\"=\"&List!$V8,InputMode,\"=\"&List!$A$19)","v":0},{"$f":"COUNTIFS(InputArea,\"=\"&List!$D$2,InputTopic,\"=\"&List!$V8,InputLevel,\"=\"&Input!$A$5)","v":0},{"$f":"COUNTIFS(InputArea,\"=\"&List!$D$2,InputTopic,\"=\"&List!$V8,InputLevel,\"=\"&Input!$A$4)","v":0},{"$f":"COUNTIFS(InputArea,\"=\"&List!$D$2,InputTopic,\"=\"&List!$V8,InputLevel,\"=\"&Input!$A$3)","v":0},{"$f":"COUNTIFS(InputArea,\"=\"&List!$D$2,InputTopic,\"=\"&List!$V8,InputLevel,\"=\"&Input!$A$2)","v":0},{"$f":"COUNTIFS(InputArea,\"=\"&List!$D$2,InputTopic,\"=\"&List!$V8,InputImportance,\"=\"&Input!$E$5)","v":0},{"$f":"COUNTIFS(InputArea,\"=\"&List!$D$2,InputTopic,\"=\"&List!$V8,InputImportance,\"=\"&Input!$E$4)","v":0},{"$f":"COUNTIFS(InputArea,\"=\"&List!$D$2,InputTopic,\"=\"&List!$V8,InputImportance,\"=\"&Input!$E$3)","v":0},{"$f":"COUNTIFS(InputArea,\"=\"&List!$D$2,InputTopic,\"=\"&List!$V8,InputImportance,\"=\"&Input!$E$2)","v":0},{"$f":"COUNTIFS(InputArea,\"=\"&List!$D$2,InputTopic,\"=\"&List!$V8,InputSkill,\"=\"&List!$D$14)","v":0},{"$f":"COUNTIFS(InputArea,\"=\"&List!$D$2,InputTopic,\"=\"&List!$V8,InputSkill,\"=\"&List!$D$15)","v":0},{"$f":"COUNTIFS(InputArea,\"=\"&List!$D$2,InputTopic,\"=\"&List!$V8,InputSkill,\"=\"&List!$D$16)","v":0},{"$f":"COUNTIFS(InputArea,\"=\"&List!$D$2,InputTopic,\"=\"&List!$V8,InputSkill,\"=\"&List!$D$17)","v":0},{"$f":"COUNTIFS(InputArea,\"=\"&List!$D$2,InputTopic,\"=\"&List!$V8,InputSkill,\"=\"&List!$D$18)","v":0},{"$f":"COUNTIFS(InputArea,\"=\"&List!$D$2,InputTopic,\"=\"&List!$V8,InputSkill,\"=\"&List!$D$19)","v":0},0,0,{"v":0,"d":"0.00"},{"v":0,"d":"0.0"}]
["S","T","Geo","SPECIALIZED","Programming","Program Structure",{"$f":"COUNTIFS(InputArea,\"=\"&List!$D$3,InputTopic,\"=\"&List!$W2,InputMode,\"=\"&List!$A$14)","v":0},{"$f":"COUNTIFS(InputArea,\"=\"&List!$D$3,InputTopic,\"=\"&List!$W2,InputMode,\"=\"&List!$A$15)","v":0},{"$f":"COUNTIFS(InputArea,\"=\"&List!$D$3,InputTopic,\"=\"&List!$W2,InputMode,\"=\"&List!$A$16)","v":0},{"$f":"COUNTIFS(InputArea,\"=\"&List!$D$3,InputTopic,\"=\"&List!$W2,InputMode,\"=\"&List!$A$17)","v":0},{"$f":"COUNTIFS(InputArea,\"=\"&List!$D$3,InputTopic,\"=\"&List!$W2,InputMode,\"=\"&List!$A$18)","v":0},{"$f":"COUNTIFS(InputArea,\"=\"&List!$D$3,InputTopic,\"=\"&List!$W2,InputMode,\"=\"&List!$A$19)","v":0},{"$f":"SUMIFS(InputHours,InputArea,\"=\"&List!$D$3,InputTopic,\"=\"&List!$W2,InputMode,\"=\"&List!$A$14)","v":0},{"$f":"SUMIFS(InputHours,InputArea,\"=\"&List!$D$3,InputTopic,\"=\"&List!$W2,InputMode,\"=\"&List!$A$15)","v":0},{"$f":"SUMIFS(InputHours,InputArea,\"=\"&List!$D$3,InputTopic,\"=\"&List!$W2,InputMode,\"=\"&List!$A$16)","v":0},{"$f":"SUMIFS(InputHours,InputArea,\"=\"&List!$D$3,InputTopic,\"=\"&List!$W2,InputMode,\"=\"&List!$A$17)","v":0},{"$f":"SUMIFS(InputHours,InputArea,\"=\"&List!$D$3,InputTopic,\"=\"&List!$W2,InputMode,\"=\"&List!$A$18)","v":0},{"$f":"SUMIFS(InputHours,InputArea,\"=\"&List!$D$3,InputTopic,\"=\"&List!$W2,InputMode,\"=\"&List!$A$19)","v":0},{"$f":"COUNTIFS(InputArea,\"=\"&List!$D$3,InputTopic,\"=\"&List!$W2,InputLevel,\"=\"&Input!$A$5)","v":0},{"$f":"COUNTIFS(InputArea,\"=\"&List!$D$3,InputTopic,\"=\"&List!$W2,InputLevel,\"=\"&Input!$A$4)","v":0},{"$f":"COUNTIFS(InputArea,\"=\"&List!$D$3,InputTopic,\"=\"&List!$W2,InputLevel,\"=\"&Input!$A$3)","v":0},{"$f":"COUNTIFS(InputArea,\"=\"&List!$D$3,InputTopic,\"=\"&List!$W2,InputLevel,\"=\"&Input!$A$2)","v":0},{"$f":"COUNTIFS(InputArea,\"=\"&List!$D$3,InputTopic,\"=\"&List!$W2,InputImportance,\"=\"&Input!$E$5)","v":0},{"$f":"COUNTIFS(InputArea,\"=\"&List!$D$3,InputTopic,\"=\"&List!$W2,InputImportance,\"=\"&Input!$E$4)","v":0},{"$f":"COUNTIFS(InputArea,\"=\"&List!$D$3,InputTopic,\"=\"&List!$W2,InputImportance,\"=\"&Input!$E$3)","v":0},{"$f":"COUNTIFS(InputArea,\"=\"&List!$D$3,InputTopic,\"=\"&List!$W2,InputImportance,\"=\"&Input!$E$2)","v":0},{"$f":"COUNTIFS(InputArea,\"=\"&List!$D$3,InputTopic,\"=\"&List!$W2,InputSkill,\"=\"&List!$D$14)","v":0},{"$f":"COUNTIFS(InputArea,\"=\"&List!$D$3,InputTopic,\"=\"&List!$W2,InputSkill,\"=\"&List!$D$15)","v":0},{"$f":"COUNTIFS(InputArea,\"=\"&List!$D$3,InputTopic,\"=\"&List!$W2,InputSkill,\"=\"&List!$D$16)","v":0},{"$f":"COUNTIFS(InputArea,\"=\"&List!$D$3,InputTopic,\"=\"&List!$W2,InputSkill,\"=\"&List!$D$17)","v":0},{"$f":"COUNTIFS(InputArea,\"=\"&List!$D$3,InputTopic,\"=\"&List!$W2,InputSkill,\"=\"&List!$D$18)","v":0},{"$f":"COUNTIFS(InputArea,\"=\"&List!$D$3,InputTopic,\"=\"&List!$W2,InputSkill,\"=\"&List!$D$19)","v":0},0,0,{"v":0,"d":"0.00"},{"v":0,"d":"0.0"}]
["S","T","Geo",null,"Programming","Systems Design",{"$f":"COUNTIFS(InputArea,\"=\"&List!$D$3,InputTopic,\"=\"&List!$W3,InputMode,\"=\"&List!$A$14)","v":0},{"$f":"COUNTIFS(InputArea,\"=\"&List!$D$3,InputTopic,\"=\"&List!$W3,InputMode,\"=\"&List!$A$15)","v":0},{"$f":"COUNTIFS(InputArea,\"=\"&List!$D$3,InputTopic,\"=\"&List!$W3,InputMode,\"=\"&List!$A$16)","v":0},{"$f":"COUNTIFS(InputArea,\"=\"&List!$D$3,InputTopic,\"=\"&List!$W3,InputMode,\"=\"&List!$A$17)","v":0},{"$f":"COUNTIFS(InputArea,\"=\"&List!$D$3,InputTopic,\"=\"&List!$W3,InputMode,\"=\"&List!$A$18)","v":0},{"$f":"COUNTIFS(InputArea,\"=\"&List!$D$3,InputTopic,\"=\"&List!$W3,InputMode,\"=\"&List!$A$19)","v":0},{"$f":"SUMIFS(InputHours,InputArea,\"=\"&List!$D$3,InputTopic,\"=\"&List!$W3,InputMode,\"=\"&List!$A$14)","v":0},{"$f":"SUMIFS(InputHours,InputArea,\"=\"&List!$D$3,InputTopic,\"=\"&List!$W3,InputMode,\"=\"&List!$A$15)","v":0},{"$f":"SUMIFS(InputHours,InputArea,\"=\"&List!$D$3,InputTopic,\"=\"&List!$W3,InputMode,\"=\"&List!$A$16)","v":0},{"$f":"SUMIFS(InputHours,InputArea,\"=\"&List!$D$3,InputTopic,\"=\"&List!$W3,InputMode,\"=\"&List!$A$17)","v":0},{"$f":"SUMIFS(InputHours,InputArea,\"=\"&List!$D$3,InputTopic,\"=\"&List!$W3,InputMode,\"=\"&List!$A$18)","v":0},{"$f":"SUMIFS(InputHours,InputArea,\"=\"&List!$D$3,InputTopic,\"=\"&List!$W3,InputMode,\"=\"&List!$A$19)","v":0},{"$f":"COUNTIFS(InputArea,\"=\"&List!$D$3,InputTopic,\"=\"&List!$W3,InputLevel,\"=\"&Input!$A$5)","v":0},{"$f":"COUNTIFS(InputArea,\"=\"&List!$D$3,InputTopic,\"=\"&List!$W3,InputLevel,\"=\"&Input!$A$4)","v":0},{"$f":"COUNTIFS(InputArea,\"=\"&List!$D$3,InputTopic,\"=\"&List!$W3,InputLevel,\"=\"&Input!$A$3)","v":0},{"$f":"COUNTIFS(InputArea,\"=\"&List!$D$3,InputTopic,\"=\"&List!$W3,InputLevel,\"=\"&Input!$A$2)","v":0},{"$f":"COUNTIFS(InputArea,\"=\"&List!$D$3,InputTopic,\"=\"&List!$W3,InputImportance,\"=\"&Input!$E$5)","v":0},{"$f":"COUNTIFS(InputArea,\"=\"&List!$D$3,InputTopic,\"=\"&List!$W3,InputImportance,\"=\"&Input!$E$4)","v":0},{"$f":"COUNTIFS(InputArea,\"=\"&List!$D$3,InputTopic,\"=\"&List!$W3,InputImportance,\"=\"&Input!$E$3)","v":0},{"$f":"COUNTIFS(InputArea,\"=\"&List!$D$3,InputTopic,\"=\"&List!$W3,InputImportance,\"=\"&Input!$E$2)","v":0},{"$f":"COUNTIFS(InputArea,\"=\"&List!$D$3,InputTopic,\"=\"&List!$W3,InputSkill,\"=\"&List!$D$14)","v":0},{"$f":"COUNTIFS(InputArea,\"=\"&List!$D$3,InputTopic,\"=\"&List!$W3,InputSkill,\"=\"&List!$D$15)","v":0},{"$f":"COUNTIFS(InputArea,\"=\"&List!$D$3,InputTopic,\"=\"&List!$W3,InputSkill,\"=\"&List!$D$16)","v":0},{"$f":"COUNTIFS(InputArea,\"=\"&List!$D$3,InputTopic,\"=\"&List!$W3,InputSkill,\"=\"&List!$D$17)","v":0},{"$f":"COUNTIFS(InputArea,\"=\"&List!$D$3,InputTopic,\"=\"&List!$W3,InputSkill,\"=\"&List!$D$18)","v":0},{"$f":"COUNTIFS(InputArea,\"=\"&List!$D$3,InputTopic,\"=\"&List!$W3,InputSkill,\"=\"&List!$D$19)","v":0},0,0,{"v":0,"d":"0.00"},{"v":0,"d":"0.0"}]
["S","T","Geo",null,"Programming","Systems Development",{"$f":"COUNTIFS(InputArea,\"=\"&List!$D$3,InputTopic,\"=\"&List!$W4,InputMode,\"=\"&List!$A$14)","v":0},{"$f":"COUNTIFS(InputArea,\"=\"&List!$D$3,InputTopic,\"=\"&List!$W4,InputMode,\"=\"&List!$A$15)","v":0},{"$f":"COUNTIFS(InputArea,\"=\"&List!$D$3,InputTopic,\"=\"&List!$W4,InputMode,\"=\"&List!$A$16)","v":0},{"$f":"COUNTIFS(InputArea,\"=\"&List!$D$3,InputTopic,\"=\"&List!$W4,InputMode,\"=\"&List!$A$17)","v":0},{"$f":"COUNTIFS(InputArea,\"=\"&List!$D$3,InputTopic,\"=\"&List!$W4,InputMode,\"=\"&List!$A$18)","v":0},{"$f":"COUNTIFS(InputArea,\"=\"&List!$D$3,InputTopic,\"=\"&List!$W4,InputMode,\"=\"&List!$A$19)","v":0},{"$f":"SUMIFS(InputHours,InputArea,\"=\"&List!$D$3,InputTopic,\"=\"&List!$W4,InputMode,\"=\"&List!$A$14)","v":0},{"$f":"SUMIFS(InputHours,InputArea,\"=\"&List!$D$3,InputTopic,\"=\"&List!$W4,InputMode,\"=\"&List!$A$15)","v":0},{"$f":"SUMIFS(InputHours,InputArea,\"=\"&List!$D$3,InputTopic,\"=\"&List!$W4,InputMode,\"=\"&List!$A$16)","v":0},{"$f":"SUMIFS(InputHours,InputArea,\"=\"&List!$D$3,InputTopic,\"=\"&List!$W4,InputMode,\"=\"&List!$A$17)","v":0},{"$f":"SUMIFS(InputHours,InputArea,\"=\"&List!$D$3,InputTopic,\"=\"&List!$W4,InputMode,\"=\"&List!$A$18)","v":0},{"$f":"SUMIFS(InputHours,InputArea,\"=\"&List!$D$3,InputTopic,\"=\"&List!$W4,InputMode,\"=\"&List!$A$19)","v":0},{"$f":"COUNTIFS(InputArea,\"=\"&List!$D$3,InputTopic,\"=\"&List!$W4,InputLevel,\"=\"&Input!$A$5)","v":0},{"$f":"COUNTIFS(InputArea,\"=\"&List!$D$3,InputTopic,\"=\"&List!$W4,InputLevel,\"=\"&Input!$A$4)","v":0},{"$f":"COUNTIFS(InputArea,\"=\"&List!$D$3,InputTopic,\"=\"&List!$W4,InputLevel,\"=\"&Input!$A$3)","v":0},{"$f":"COUNTIFS(InputArea,\"=\"&List!$D$3,InputTopic,\"=\"&List!$W4,InputLevel,\"=\"&Input!$A$2)","v":0},{"$f":"COUNTIFS(InputArea,\"=\"&List!$D$3,InputTopic,\"=\"&List!$W4,InputImportance,\"=\"&Input!$E$5)","v":0},{"$f":"COUNTIFS(InputArea,\"=\"&List!$D$3,InputTopic,\"=\"&List!$W4,InputImportance,\"=\"&Input!$E$4)","v":0},{"$f":"COUNTIFS(InputArea,\"=\"&List!$D$3,InputTopic,\"=\"&List!$W4,InputImportance,\"=\"&Input!$E$3)","v":0},{"$f":"COUNTIFS(InputArea,\"=\"&List!$D$3,InputTopic,\"=\"&List!$W4,InputImportance,\"=\"&Input!$E$2)","v":0},{"$f":"COUNTIFS(InputArea,\"=\"&List!$D$3,InputTopic,\"=\"&List!$W4,InputSkill,\"=\"&List!$D$14)","v":0},{"$f":"COUNTIFS(InputArea,\"=\"&List!$D$3,InputTopic,\"=\"&List!$W4,InputSkill,\"=\"&List!$D$15)","v":0},{"$f":"COUNTIFS(InputArea,\"=\"&List!$D$3,InputTopic,\"=\"&List!$W4,InputSkill,\"=\"&List!$D$16)","v":0},{"$f":"COUNTIFS(InputArea,\"=\"&List!$D$3,InputTopic,\"=\"&List!$W4,InputSkill,\"=\"&List!$D$17)","v":0},{"$f":"COUNTIFS(InputArea,\"=\"&List!$D$3,InputTopic,\"=\"&List!$W4,InputSkill,\"=\"&List!$D$18)","v":0},{"$f":"COUNTIFS(InputArea,\"=\"&List!$D$3,InputTopic,\"=\"&List!$W4,InputSkill,\"=\"&List!$D$19)","v":0},0,0,{"v":0,"d":"0.00"},{"v":0,"d":"0.0"}]
["S","T","Geo",null,"Programming","CASE Tools",{"$f":"COUNTIFS(InputArea,\"=\"&List!$D$3,InputTopic,\"=\"&List!$W5,InputMode,\"=\"&List!$A$14)","v":0},{"$f":"COUNTIFS(InputArea,\"=\"&List!$D$3,InputTopic,\"=\"&List!$W5,InputMode,\"=\"&List!$A$15)","v":0},{"$f":"COUNTIFS(InputArea,\"=\"&List!$D$3,InputTopic,\"=\"&List!$W5,InputMode,\"=\"&List!$A$16)","v":0},{"$f":"COUNTIFS(InputArea,\"=\"&List!$D$3,InputTopic,\"=\"&List!$W5,InputMode,\"=\"&List!$A$17)","v":0},{"$f":"COUNTIFS(InputArea,\"=\"&List!$D$3,InputTopic,\"=\"&List!$W5,InputMode,\"=\"&List!$A$18)","v":0},{"$f":"COUNTIFS(InputArea,\"=\"&List!$D$3,InputTopic,\"=\"&List!$W5,InputMode,\"=\"&List!$A$19)","v":0},{"$f":"SUMIFS(InputHours,InputArea,\"=\"&List!$D$3,InputTopic,\"=\"&List!$W5,InputMode,\"=\"&List!$A$14)","v":0},{"$f":"SUMIFS(InputHours,InputArea,\"=\"&List!$D$3,InputTopic,\"=\"&List!$W5,InputMode,\"=\"&List!$A$15)","v":0},{"$f":"SUMIFS(InputHours,InputArea,\"=\"&List!$D$3,InputTopic,\"=\"&List!$W5,InputMode,\"=\"&List!$A$16)","v":0},{"$f":"SUMIFS(InputHours,InputArea,\"=\"&List!$D$3,InputTopic,\"=\"&List!$W5,InputMode,\"=\"&List!$A$17)","v":0},{"$f":"SUMIFS(InputHours,InputArea,\"=\"&List!$D$3,InputTopic,\"=\"&List!$W5,InputMode,\"=\"&List!$A$18)","v":0},{"$f":"SUMIFS(InputHours,InputArea,\"=\"&List!$D$3,InputTopic,\"=\"&List!$W5,InputMode,\"=\"&List!$A$19)","v":0},{"$f":"COUNTIFS(InputArea,\"=\"&List!$D$3,InputTopic,\"=\"&List!$W5,InputLevel,\"=\"&Input!$A$5)","v":0},{"$f":"COUNTIFS(InputArea,\"=\"&List!$D$3,InputTopic,\"=\"&List!$W5,InputLevel,\"=\"&Input!$A$4)","v":0},{"$f":"COUNTIFS(InputArea,\"=\"&List!$D$3,InputTopic,\"=\"&List!$W5,InputLevel,\"=\"&Input!$A$3)","v":0},{"$f":"COUNTIFS(InputArea,\"=\"&List!$D$3,InputTopic,\"=\"&List!$W5,InputLevel,\"=\"&Input!$A$2)","v":0},{"$f":"COUNTIFS(InputArea,\"=\"&List!$D$3,InputTopic,\"=\"&List!$W5,InputImportance,\"=\"&Input!$E$5)","v":0},{"$f":"COUNTIFS(InputArea,\"=\"&List!$D$3,InputTopic,\"=\"&List!$W5,InputImportance,\"=\"&Input!$E$4)","v":0},{"$f":"COUNTIFS(InputArea,\"=\"&List!$D$3,InputTopic,\"=\"&List!$W5,InputImportance,\"=\"&Input!$E$3)","v":0},{"$f":"COUNTIFS(InputArea,\"=\"&List!$D$3,InputTopic,\"=\"&List!$W5,InputImportance,\"=\"&Input!$E$2)","v":0},{"$f":"COUNTIFS(InputArea,\"=\"&List!$D$3,InputTopic,\"=\"&List!$W5,InputSkill,\"=\"&List!$D$14)","v":0},{"$f":"COUNTIFS(InputArea,\"=\"&List!$D$3,InputTopic,\"=\"&List!$W5,InputSkill,\"=\"&List!$D$15)","v":0},{"$f":"COUNTIFS(InputArea,\"=\"&List!$D$3,InputTopic,\"=\"&List!$W5,InputSkill,\"=\"&List!$D$16)","v":0},{"$f":"COUNTIFS(InputArea,\"=\"&List!$D$3,InputTopic,\"=\"&List!$W5,InputSkill,\"=\"&List!$D$17)","v":0},{"$f":"COUNTIFS(InputArea,\"=\"&List!$D$3,InputTopic,\"=\"&List!$W5,InputSkill,\"=\"&List!$D$18)","v":0},{"$f":"COUNTIFS(InputArea,\"=\"&List!$D$3,InputTopic,\"=\"&List!$W5,InputSkill,\"=\"&List!$D$19)","v":0},0,0,{"v":0,"d":"0.00"},{"v":0,"d":"0.0"}]
["S","T","Geo",null,"Programming","Others",{"$f":"COUNTIFS(InputArea,\"=\"&List!$D$3,InputTopic,\"=\"&List!$W6,InputMode,\"=\"&List!$A$14)","v":0},{"$f":"COUNTIFS(InputArea,\"=\"&List!$D$3,InputTopic,\"=\"&List!$W6,InputMode,\"=\"&List!$A$15)","v":0},{"$f":"COUNTIFS(InputArea,\"=\"&List!$D$3,InputTopic,\"=\"&List!$W6,InputMode,\"=\"&List!$A$16)","v":0},{"$f":"COUNTIFS(InputArea,\"=\"&List!$D$3,InputTopic,\"=\"&List!$W6,InputMode,\"=\"&List!$A$17)","v":0},{"$f":"COUNTIFS(InputArea,\"=\"&List!$D$3,InputTopic,\"=\"&List!$W6,InputMode,\"=\"&List!$A$18)","v":0},{"$f":"COUNTIFS(InputArea,\"=\"&List!$D$3,InputTopic,\"=\"&List!$W6,InputMode,\"=\"&List!$A$19)","v":0},{"$f":"SUMIFS(InputHours,InputArea,\"=\"&List!$D$3,InputTopic,\"=\"&List!$W6,InputMode,\"=\"&List!$A$14)","v":0},{"$f":"SUMIFS(InputHours,InputArea,\"=\"&List!$D$3,InputTopic,\"=\"&List!$W6,InputMode,\"=\"&List!$A$15)","v":0},{"$f":"SUMIFS(InputHours,InputArea,\"=\"&List!$D$3,InputTopic,\"=\"&List!$W6,InputMode,\"=\"&List!$A$16)","v":0},{"$f":"SUMIFS(InputHours,InputArea,\"=\"&List!$D$3,InputTopic,\"=\"&List!$W6,InputMode,\"=\"&List!$A$17)","v":0},{"$f":"SUMIFS(InputHours,InputArea,\"=\"&List!$D$3,InputTopic,\"=\"&List!$W6,InputMode,\"=\"&List!$A$18)","v":0},{"$f":"SUMIFS(InputHours,InputArea,\"=\"&List!$D$3,InputTopic,\"=\"&List!$W6,InputMode,\"=\"&List!$A$19)","v":0},{"$f":"COUNTIFS(InputArea,\"=\"&List!$D$3,InputTopic,\"=\"&List!$W6,InputLevel,\"=\"&Input!$A$5)","v":0},{"$f":"COUNTIFS(InputArea,\"=\"&List!$D$3,InputTopic,\"=\"&List!$W6,InputLevel,\"=\"&Input!$A$4)","v":0},{"$f":"COUNTIFS(InputArea,\"=\"&List!$D$3,InputTopic,\"=\"&List!$W6,InputLevel,\"=\"&Input!$A$3)","v":0},{"$f":"COUNTIFS(InputArea,\"=\"&List!$D$3,InputTopic,\"=\"&List!$W6,InputLevel,\"=\"&Input!$A$2)","v":0},{"$f":"COUNTIFS(InputArea,\"=\"&List!$D$3,InputTopic,\"=\"&List!$W6,InputImportance,\"=\"&Input!$E$5)","v":0},{"$f":"COUNTIFS(InputArea,\"=\"&List!$D$3,InputTopic,\"=\"&List!$W6,InputImportance,\"=\"&Input!$E$4)","v":0},{"$f":"COUNTIFS(InputArea,\"=\"&List!$D$3,InputTopic,\"=\"&List!$W6,InputImportance,\"=\"&Input!$E$3)","v":0},{"$f":"COUNTIFS(InputArea,\"=\"&List!$D$3,InputTopic,\"=\"&List!$W6,InputImportance,\"=\"&Input!$E$2)","v":0},{"$f":"COUNTIFS(InputArea,\"=\"&List!$D$3,InputTopic,\"=\"&List!$W6,InputSkill,\"=\"&List!$D$14)","v":0},{"$f":"COUNTIFS(InputArea,\"=\"&List!$D$3,InputTopic,\"=\"&List!$W6,InputSkill,\"=\"&List!$D$15)","v":0},{"$f":"COUNTIFS(InputArea,\"=\"&List!$D$3,InputTopic,\"=\"&List!$W6,InputSkill,\"=\"&List!$D$16)","v":0},{"$f":"COUNTIFS(InputArea,\"=\"&List!$D$3,InputTopic,\"=\"&List!$W6,InputSkill,\"=\"&List!$D$17)","v":0},{"$f":"COUNTIFS(InputArea,\"=\"&List!$D$3,InputTopic,\"=\"&List!$W6,InputSkill,\"=\"&List!$D$18)","v":0},{"$f":"COUNTIFS(InputArea,\"=\"&List!$D$3,InputTopic,\"=\"&List!$W6,InputSkill,\"=\"&List!$D$19)","v":0},0,0,{"v":0,"d":"0.00"},{"v":0,"d":"0.0"}]
["S","U","Gen","SPECIALIZED","ProjectManagement","Risk Management",{"$f":"COUNTIFS(InputArea,\"=\"&List!$D$4,InputTopic,\"=\"&List!$X2,InputMode,\"=\"&List!$A$14)","v":0},{"$f":"COUNTIFS(InputArea,\"=\"&List!$D$4,InputTopic,\"=\"&List!$X2,InputMode,\"=\"&List!$A$15)","v":0},{"$f":"COUNTIFS(InputArea,\"=\"&List!$D$4,InputTopic,\"=\"&List!$X2,InputMode,\"=\"&List!$A$16)","v":0},{"$f":"COUNTIFS(InputArea,\"=\"&List!$D$4,InputTopic,\"=\"&List!$X2,InputMode,\"=\"&List!$A$17)","v":0},{"$f":"COUNTIFS(InputArea,\"=\"&List!$D$4,InputTopic,\"=\"&List!$X2,InputMode,\"=\"&List!$A$18)","v":0},{"$f":"COUNTIFS(InputArea,\"=\"&List!$D$4,InputTopic,\"=\"&List!$X2,InputMode,\"=\"&List!$A$19)","v":0},{"$f":"SUMIFS(InputHours,InputArea,\"=\"&List!$D$4,InputTopic,\"=\"&List!$X2,InputMode,\"=\"&List!$A$14)","v":0},{"$f":"SUMIFS(InputHours,InputArea,\"=\"&List!$D$4,InputTopic,\"=\"&List!$X2,InputMode,\"=\"&List!$A$15)","v":0},{"$f":"SUMIFS(InputHours,InputArea,\"=\"&List!$D$4,InputTopic,\"=\"&List!$X2,InputMode,\"=\"&List!$A$16)","v":0},{"$f":"SUMIFS(InputHours,InputArea,\"=\"&List!$D$4,InputTopic,\"=\"&List!$X2,InputMode,\"=\"&List!$A$17)","v":0},{"$f":"SUMIFS(InputHours,InputArea,\"=\"&List!$D$4,InputTopic,\"=\"&List!$X2,InputMode,\"=\"&List!$A$18)","v":0},{"$f":"SUMIFS(InputHours,InputArea,\"=\"&List!$D$4,InputTopic,\"=\"&List!$X2,InputMode,\"=\"&List!$A$19)","v":0},{"$f":"COUNTIFS(InputArea,\"=\"&List!$D$4,InputTopic,\"=\"&List!$X2,InputLevel,\"=\"&Input!$A$5)","v":0},{"$f":"COUNTIFS(InputArea,\"=\"&List!$D$4,InputTopic,\"=\"&List!$X2,InputLevel,\"=\"&Input!$A$4)","v":0},{"$f":"COUNTIFS(InputArea,\"=\"&List!$D$4,InputTopic,\"=\"&List!$X2,InputLevel,\"=\"&Input!$A$3)","v":0},{"$f":"COUNTIFS(InputArea,\"=\"&List!$D$4,InputTopic,\"=\"&List!$X2,InputLevel,\"=\"&Input!$A$2)","v":0},{"$f":"COUNTIFS(InputArea,\"=\"&List!$D$4,InputTopic,\"=\"&List!$X2,InputImportance,\"=\"&Input!$E$5)","v":0},{"$f":"COUNTIFS(InputArea,\"=\"&List!$D$4,InputTopic,\"=\"&List!$X2,InputImportance,\"=\"&Input!$E$4)","v":0},{"$f":"COUNTIFS(InputArea,\"=\"&List!$D$4,InputTopic,\"=\"&List!$X2,InputImportance,\"=\"&Input!$E$3)","v":0},{"$f":"COUNTIFS(InputArea,\"=\"&List!$D$4,InputTopic,\"=\"&List!$X2,InputImportance,\"=\"&Input!$E$2)","v":0},{"$f":"COUNTIFS(InputArea,\"=\"&List!$D$4,InputTopic,\"=\"&List!$X2,InputSkill,\"=\"&List!$D$14)","v":0},{"$f":"COUNTIFS(InputArea,\"=\"&List!$D$4,InputTopic,\"=\"&List!$X2,InputSkill,\"=\"&List!$D$15)","v":0},{"$f":"COUNTIFS(InputArea,\"=\"&List!$D$4,InputTopic,\"=\"&List!$X2,InputSkill,\"=\"&List!$D$16)","v":0},{"$f":"COUNTIFS(InputArea,\"=\"&List!$D$4,InputTopic,\"=\"&List!$X2,InputSkill,\"=\"&List!$D$17)","v":0},{"$f":"COUNTIFS(InputArea,\"=\"&List!$D$4,InputTopic,\"=\"&List!$X2,InputSkill,\"=\"&List!$D$18)","v":0},{"$f":"COUNTIFS(InputArea,\"=\"&List!$D$4,InputTopic,\"=\"&List!$X2,InputSkill,\"=\"&List!$D$19)","v":0},0,0,{"v":0,"d":"0.00"},{"v":0,"d":"0.0"}]
["S","T U","Gen",null,"ProjectManagement","Programme Management",{"$f":"COUNTIFS(InputArea,\"=\"&List!$D$4,InputTopic,\"=\"&List!$X3,InputMode,\"=\"&List!$A$14)","v":0},{"$f":"COUNTIFS(InputArea,\"=\"&List!$D$4,InputTopic,\"=\"&List!$X3,InputMode,\"=\"&List!$A$15)","v":0},{"$f":"COUNTIFS(InputArea,\"=\"&List!$D$4,InputTopic,\"=\"&List!$X3,InputMode,\"=\"&List!$A$16)","v":0},{"$f":"COUNTIFS(InputArea,\"=\"&List!$D$4,InputTopic,\"=\"&List!$X3,InputMode,\"=\"&List!$A$17)","v":0},{"$f":"COUNTIFS(InputArea,\"=\"&List!$D$4,InputTopic,\"=\"&List!$X3,InputMode,\"=\"&List!$A$18)","v":0},{"$f":"COUNTIFS(InputArea,\"=\"&List!$D$4,InputTopic,\"=\"&List!$X3,InputMode,\"=\"&List!$A$19)","v":0},{"$f":"SUMIFS(InputHours,InputArea,\"=\"&List!$D$4,InputTopic,\"=\"&List!$X3,InputMode,\"=\"&List!$A$14)","v":0},{"$f":"SUMIFS(InputHours,InputArea,\"=\"&List!$D$4,InputTopic,\"=\"&List!$X3,InputMode,\"=\"&List!$A$15)","v":0},{"$f":"SUMIFS(InputHours,InputArea,\"=\"&List!$D$4,InputTopic,\"=\"&List!$X3,InputMode,\"=\"&List!$A$16)","v":0},{"$f":"SUMIFS(InputHours,InputArea,\"=\"&List!$D$4,InputTopic,\"=\"&List!$X3,InputMode,\"=\"&List!$A$17)","v":0},{"$f":"SUMIFS(InputHours,InputArea,\"=\"&List!$D$4,InputTopic,\"=\"&List!$X3,InputMode,\"=\"&List!$A$18)","v":0},{"$f":"SUMIFS(InputHours,InputArea,\"=\"&List!$D$4,InputTopic,\"=\"&List!$X3,InputMode,\"=\"&List!$A$19)","v":0},{"$f":"COUNTIFS(InputArea,\"=\"&List!$D$4,InputTopic,\"=\"&List!$X3,InputLevel,\"=\"&Input!$A$5)","v":0},{"$f":"COUNTIFS(InputArea,\"=\"&List!$D$4,InputTopic,\"=\"&List!$X3,InputLevel,\"=\"&Input!$A$4)","v":0},{"$f":"COUNTIFS(InputArea,\"=\"&List!$D$4,InputTopic,\"=\"&List!$X3,InputLevel,\"=\"&Input!$A$3)","v":0},{"$f":"COUNTIFS(InputArea,\"=\"&List!$D$4,InputTopic,\"=\"&List!$X3,InputLevel,\"=\"&Input!$A$2)","v":0},{"$f":"COUNTIFS(InputArea,\"=\"&List!$D$4,InputTopic,\"=\"&List!$X3,InputImportance,\"=\"&Input!$E$5)","v":0},{"$f":"COUNTIFS(InputArea,\"=\"&List!$D$4,InputTopic,\"=\"&List!$X3,InputImportance,\"=\"&Input!$E$4)","v":0},{"$f":"COUNTIFS(InputArea,\"=\"&List!$D$4,InputTopic,\"=\"&List!$X3,InputImportance,\"=\"&Input!$E$3)","v":0},{"$f":"COUNTIFS(InputArea,\"=\"&List!$D$4,InputTopic,\"=\"&List!$X3,InputImportance,\"=\"&Input!$E$2)","v":0},{"$f":"COUNTIFS(InputArea,\"=\"&List!$D$4,InputTopic,\"=\"&List!$X3,InputSkill,\"=\"&List!$D$14)","v":0},{"$f":"COUNTIFS(InputArea,\"=\"&List!$D$4,InputTopic,\"=\"&List!$X3,InputSkill,\"=\"&List!$D$15)","v":0},{"$f":"COUNTIFS(InputArea,\"=\"&List!$D$4,InputTopic,\"=\"&List!$X3,InputSkill,\"=\"&List!$D$16)","v":0},{"$f":"COUNTIFS(InputArea,\"=\"&List!$D$4,InputTopic,\"=\"&List!$X3,InputSkill,\"=\"&List!$D$17)","v":0},{"$f":"COUNTIFS(InputArea,\"=\"&List!$D$4,InputTopic,\"=\"&List!$X3,InputSkill,\"=\"&List!$D$18)","v":0},{"$f":"COUNTIFS(InputArea,\"=\"&List!$D$4,InputTopic,\"=\"&List!$X3,InputSkill,\"=\"&List!$D$19)","v":0},0,0,{"v":0,"d":"0.00"},{"v":0,"d":"0.0"}]
["S","U","Gen",null,"ProjectManagement","Business Management",{"$f":"COUNTIFS(InputArea,\"=\"&List!$D$4,InputTopic,\"=\"&List!$X4,InputMode,\"=\"&List!$A$14)","v":0},{"$f":"COUNTIFS(InputArea,\"=\"&List!$D$4,InputTopic,\"=\"&List!$X4,InputMode,\"=\"&List!$A$15)","v":0},{"$f":"COUNTIFS(InputArea,\"=\"&List!$D$4,InputTopic,\"=\"&List!$X4,InputMode,\"=\"&List!$A$16)","v":0},{"$f":"COUNTIFS(InputArea,\"=\"&List!$D$4,InputTopic,\"=\"&List!$X4,InputMode,\"=\"&List!$A$17)","v":0},{"$f":"COUNTIFS(InputArea,\"=\"&List!$D$4,InputTopic,\"=\"&List!$X4,InputMode,\"=\"&List!$A$18)","v":0},{"$f":"COUNTIFS(InputArea,\"=\"&List!$D$4,InputTopic,\"=\"&List!$X4,InputMode,\"=\"&List!$A$19)","v":0},{"$f":"SUMIFS(InputHours,InputArea,\"=\"&List!$D$4,InputTopic,\"=\"&List!$X4,InputMode,\"=\"&List!$A$14)","v":0},{"$f":"SUMIFS(InputHours,InputArea,\"=\"&List!$D$4,InputTopic,\"=\"&List!$X4,InputMode,\"=\"&List!$A$15)","v":0},{"$f":"SUMIFS(InputHours,InputArea,\"=\"&List!$D$4,InputTopic,\"=\"&List!$X4,InputMode,\"=\"&List!$A$16)","v":0},{"$f":"SUMIFS(InputHours,InputArea,\"=\"&List!$D$4,InputTopic,\"=\"&List!$X4,InputMode,\"=\"&List!$A$17)","v":0},{"$f":"SUMIFS(InputHours,InputArea,\"=\"&List!$D$4,InputTopic,\"=\"&List!$X4,InputMode,\"=\"&List!$A$18)","v":0},{"$f":"SUMIFS(InputHours,InputArea,\"=\"&List!$D$4,InputTopic,\"=\"&List!$X4,InputMode,\"=\"&List!$A$19)","v":0},{"$f":"COUNTIFS(InputArea,\"=\"&List!$D$4,InputTopic,\"=\"&List!$X4,InputLevel,\"=\"&Input!$A$5)","v":0},{"$f":"COUNTIFS(InputArea,\"=\"&List!$D$4,InputTopic,\"=\"&List!$X4,InputLevel,\"=\"&Input!$A$4)","v":0},{"$f":"COUNTIFS(InputArea,\"=\"&List!$D$4,InputTopic,\"=\"&List!$X4,InputLevel,\"=\"&Input!$A$3)","v":0},{"$f":"COUNTIFS(InputArea,\"=\"&List!$D$4,InputTopic,\"=\"&List!$X4,InputLevel,\"=\"&Input!$A$2)","v":0},{"$f":"COUNTIFS(InputArea,\"=\"&List!$D$4,InputTopic,\"=\"&List!$X4,InputImportance,\"=\"&Input!$E$5)","v":0},{"$f":"COUNTIFS(InputArea,\"=\"&List!$D$4,InputTopic,\"=\"&List!$X4,InputImportance,\"=\"&Input!$E$4)","v":0},{"$f":"COUNTIFS(InputArea,\"=\"&List!$D$4,InputTopic,\"=\"&List!$X4,InputImportance,\"=\"&Input!$E$3)","v":0},{"$f":"COUNTIFS(InputArea,\"=\"&List!$D$4,InputTopic,\"=\"&List!$X4,InputImportance,\"=\"&Input!$E$2)","v":0},{"$f":"COUNTIFS(InputArea,\"=\"&List!$D$4,InputTopic,\"=\"&List!$X4,InputSkill,\"=\"&List!$D$14)","v":0},{"$f":"COUNTIFS(InputArea,\"=\"&List!$D$4,InputTopic,\"=\"&List!$X4,InputSkill,\"=\"&List!$D$15)","v":0},{"$f":"COUNTIFS(InputArea,\"=\"&List!$D$4,InputTopic,\"=\"&List!$X4,InputSkill,\"=\"&List!$D$16)","v":0},{"$f":"COUNTIFS(InputArea,\"=\"&List!$D$4,InputTopic,\"=\"&List!$X4,InputSkill,\"=\"&List!$D$17)","v":0},{"$f":"COUNTIFS(InputArea,\"=\"&List!$D$4,InputTopic,\"=\"&List!$X4,InputSkill,\"=\"&List!$D$18)","v":0},{"$f":"COUNTIFS(InputArea,\"=\"&List!$D$4,InputTopic,\"=\"&List!$X4,InputSkill,\"=\"&List!$D$19)","v":0},0,0,{"v":0,"d":"0.00"},{"v":0,"d":"0.0"}]
["S","U","Gen",null,"ProjectManagement","Resource Management",{"$f":"COUNTIFS(InputArea,\"=\"&List!$D$4,InputTopic,\"=\"&List!$X5,InputMode,\"=\"&List!$A$14)","v":0},{"$f":"COUNTIFS(InputArea,\"=\"&List!$D$4,InputTopic,\"=\"&List!$X5,InputMode,\"=\"&List!$A$15)","v":0},{"$f":"COUNTIFS(InputArea,\"=\"&List!$D$4,InputTopic,\"=\"&List!$X5,InputMode,\"=\"&List!$A$16)","v":0},{"$f":"COUNTIFS(InputArea,\"=\"&List!$D$4,InputTopic,\"=\"&List!$X5,InputMode,\"=\"&List!$A$17)","v":0},{"$f":"COUNTIFS(InputArea,\"=\"&List!$D$4,InputTopic,\"=\"&List!$X5,InputMode,\"=\"&List!$A$18)","v":0},{"$f":"COUNTIFS(InputArea,\"=\"&List!$D$4,InputTopic,\"=\"&List!$X5,InputMode,\"=\"&List!$A$19)","v":0},{"$f":"SUMIFS(InputHours,InputArea,\"=\"&List!$D$4,InputTopic,\"=\"&List!$X5,InputMode,\"=\"&List!$A$14)","v":0},{"$f":"SUMIFS(InputHours,InputArea,\"=\"&List!$D$4,InputTopic,\"=\"&List!$X5,InputMode,\"=\"&List!$A$15)","v":0},{"$f":"SUMIFS(InputHours,InputArea,\"=\"&List!$D$4,InputTopic,\"=\"&List!$X5,InputMode,\"=\"&List!$A$16)","v":0},{"$f":"SUMIFS(InputHours,InputArea,\"=\"&List!$D$4,InputTopic,\"=\"&List!$X5,InputMode,\"=\"&List!$A$17)","v":0},{"$f":"SUMIFS(InputHours,InputArea,\"=\"&List!$D$4,InputTopic,\"=\"&List!$X5,InputMode,\"=\"&List!$A$18)","v":0},{"$f":"SUMIFS(InputHours,InputArea,\"=\"&List!$D$4,InputTopic,\"=\"&List!$X5,InputMode,\"=\"&List!$A$19)","v":0},{"$f":"COUNTIFS(InputArea,\"=\"&List!$D$4,InputTopic,\"=\"&List!$X5,InputLevel,\"=\"&Input!$A$5)","v":0},{"$f":"COUNTIFS(InputArea,\"=\"&List!$D$4,InputTopic,\"=\"&List!$X5,InputLevel,\"=\"&Input!$A$4)","v":0},{"$f":"COUNTIFS(InputArea,\"=\"&List!$D$4,InputTopic,\"=\"&List!$X5,InputLevel,\"=\"&Input!$A$3)","v":0},{"$f":"COUNTIFS(InputArea,\"=\"&List!$D$4,InputTopic,\"=\"&List!$X5,InputLevel,\"=\"&Input!$A$2)","v":0},{"$f":"COUNTIFS(InputArea,\"=\"&List!$D$4,InputTopic,\"=\"&List!$X5,InputImportance,\"=\"&Input!$E$5)","v":0},{"$f":"COUNTIFS(InputArea,\"=\"&List!$D$4,InputTopic,\"=\"&List!$X5,InputImportance,\"=\"&Input!$E$4)","v":0},{"$f":"COUNTIFS(InputArea,\"=\"&List!$D$4,InputTopic,\"=\"&List!$X5,InputImportance,\"=\"&Input!$E$3)","v":0},{"$f":"COUNTIFS(InputArea,\"=\"&List!$D$4,InputTopic,\"=\"&List!$X5,InputImportance,\"=\"&Input!$E$2)","v":0},{"$f":"COUNTIFS(InputArea,\"=\"&List!$D$4,InputTopic,\"=\"&List!$X5,InputSkill,\"=\"&List!$D$14)","v":0},{"$f":"COUNTIFS(InputArea,\"=\"&List!$D$4,InputTopic,\"=\"&List!$X5,InputSkill,\"=\"&List!$D$15)","v":0},{"$f":"COUNTIFS(InputArea,\"=\"&List!$D$4,InputTopic,\"=\"&List!$X5,InputSkill,\"=\"&List!$D$16)","v":0},{"$f":"COUNTIFS(InputArea,\"=\"&List!$D$4,InputTopic,\"=\"&List!$X5,InputSkill,\"=\"&List!$D$17)","v":0},{"$f":"COUNTIFS(InputArea,\"=\"&List!$D$4,InputTopic,\"=\"&List!$X5,InputSkill,\"=\"&List!$D$18)","v":0},{"$f":"COUNTIFS(InputArea,\"=\"&List!$D$4,InputTopic,\"=\"&List!$X5,InputSkill,\"=\"&List!$D$19)","v":0},0,0,{"v":0,"d":"0.00"},{"v":0,"d":"0.0"}]
["S","U","Gen",null,"ProjectManagement","Team Management",{"$f":"COUNTIFS(InputArea,\"=\"&List!$D$4,InputTopic,\"=\"&List!$X6,InputMode,\"=\"&List!$A$14)","v":0},{"$f":"COUNTIFS(InputArea,\"=\"&List!$D$4,InputTopic,\"=\"&List!$X6,InputMode,\"=\"&List!$A$15)","v":0},{"$f":"COUNTIFS(InputArea,\"=\"&List!$D$4,InputTopic,\"=\"&List!$X6,InputMode,\"=\"&List!$A$16)","v":0},{"$f":"COUNTIFS(InputArea,\"=\"&List!$D$4,InputTopic,\"=\"&List!$X6,InputMode,\"=\"&List!$A$17)","v":0},{"$f":"COUNTIFS(InputArea,\"=\"&List!$D$4,InputTopic,\"=\"&List!$X6,InputMode,\"=\"&List!$A$18)","v":0},{"$f":"COUNTIFS(InputArea,\"=\"&List!$D$4,InputTopic,\"=\"&List!$X6,InputMode,\"=\"&List!$A$19)","v":0},{"$f":"SUMIFS(InputHours,InputArea,\"=\"&List!$D$4,InputTopic,\"=\"&List!$X6,InputMode,\"=\"&List!$A$14)","v":0},{"$f":"SUMIFS(InputHours,InputArea,\"=\"&List!$D$4,InputTopic,\"=\"&List!$X6,InputMode,\"=\"&List!$A$15)","v":0},{"$f":"SUMIFS(InputHours,InputArea,\"=\"&List!$D$4,InputTopic,\"=\"&List!$X6,InputMode,\"=\"&List!$A$16)","v":0},{"$f":"SUMIFS(InputHours,InputArea,\"=\"&List!$D$4,InputTopic,\"=\"&List!$X6,InputMode,\"=\"&List!$A$17)","v":0},{"$f":"SUMIFS(InputHours,InputArea,\"=\"&List!$D$4,InputTopic,\"=\"&List!$X6,InputMode,\"=\"&List!$A$18)","v":0},{"$f":"SUMIFS(InputHours,InputArea,\"=\"&List!$D$4,InputTopic,\"=\"&List!$X6,InputMode,\"=\"&List!$A$19)","v":0},{"$f":"COUNTIFS(InputArea,\"=\"&List!$D$4,InputTopic,\"=\"&List!$X6,InputLevel,\"=\"&Input!$A$5)","v":0},{"$f":"COUNTIFS(InputArea,\"=\"&List!$D$4,InputTopic,\"=\"&List!$X6,InputLevel,\"=\"&Input!$A$4)","v":0},{"$f":"COUNTIFS(InputArea,\"=\"&List!$D$4,InputTopic,\"=\"&List!$X6,InputLevel,\"=\"&Input!$A$3)","v":0},{"$f":"COUNTIFS(InputArea,\"=\"&List!$D$4,InputTopic,\"=\"&List!$X6,InputLevel,\"=\"&Input!$A$2)","v":0},{"$f":"COUNTIFS(InputArea,\"=\"&List!$D$4,InputTopic,\"=\"&List!$X6,InputImportance,\"=\"&Input!$E$5)","v":0},{"$f":"COUNTIFS(InputArea,\"=\"&List!$D$4,InputTopic,\"=\"&List!$X6,InputImportance,\"=\"&Input!$E$4)","v":0},{"$f":"COUNTIFS(InputArea,\"=\"&List!$D$4,InputTopic,\"=\"&List!$X6,InputImportance,\"=\"&Input!$E$3)","v":0},{"$f":"COUNTIFS(InputArea,\"=\"&List!$D$4,InputTopic,\"=\"&List!$X6,InputImportance,\"=\"&Input!$E$2)","v":0},{"$f":"COUNTIFS(InputArea,\"=\"&List!$D$4,InputTopic,\"=\"&List!$X6,InputSkill,\"=\"&List!$D$14)","v":0},{"$f":"COUNTIFS(InputArea,\"=\"&List!$D$4,InputTopic,\"=\"&List!$X6,InputSkill,\"=\"&List!$D$15)","v":0},{"$f":"COUNTIFS(InputArea,\"=\"&List!$D$4,InputTopic,\"=\"&List!$X6,InputSkill,\"=\"&List!$D$16)","v":0},{"$f":"COUNTIFS(InputArea,\"=\"&List!$D$4,InputTopic,\"=\"&List!$X6,InputSkill,\"=\"&List!$D$17)","v":0},{"$f":"COUNTIFS(InputArea,\"=\"&List!$D$4,InputTopic,\"=\"&List!$X6,InputSkill,\"=\"&List!$D$18)","v":0},{"$f":"COUNTIFS(InputArea,\"=\"&List!$D$4,InputTopic,\"=\"&List!$X6,InputSkill,\"=\"&List!$D$19)","v":0},0,0,{"v":0,"d":"0.00"},{"v":0,"d":"0.0"}]
["S","U","Gen",null,"ProjectManagement","Change Management",{"$f":"COUNTIFS(InputArea,\"=\"&List!$D$4,InputTopic,\"=\"&List!$X7,InputMode,\"=\"&List!$A$14)","v":0},{"$f":"COUNTIFS(InputArea,\"=\"&List!$D$4,InputTopic,\"=\"&List!$X7,InputMode,\"=\"&List!$A$15)","v":0},{"$f":"COUNTIFS(InputArea,\"=\"&List!$D$4,InputTopic,\"=\"&List!$X7,InputMode,\"=\"&List!$A$16)","v":0},{"$f":"COUNTIFS(InputArea,\"=\"&List!$D$4,InputTopic,\"=\"&List!$X7,InputMode,\"=\"&List!$A$17)","v":0},{"$f":"COUNTIFS(InputArea,\"=\"&List!$D$4,InputTopic,\"=\"&List!$X7,InputMode,\"=\"&List!$A$18)","v":0},{"$f":"COUNTIFS(InputArea,\"=\"&List!$D$4,InputTopic,\"=\"&List!$X7,InputMode,\"=\"&List!$A$19)","v":0},{"$f":"SUMIFS(InputHours,InputArea,\"=\"&List!$D$4,InputTopic,\"=\"&List!$X7,InputMode,\"=\"&List!$A$14)","v":0},{"$f":"SUMIFS(InputHours,InputArea,\"=\"&List!$D$4,InputTopic,\"=\"&List!$X7,InputMode,\"=\"&List!$A$15)","v":0},{"$f":"SUMIFS(InputHours,InputArea,\"=\"&List!$D$4,InputTopic,\"=\"&List!$X7,InputMode,\"=\"&List!$A$16)","v":0},{"$f":"SUMIFS(InputHours,InputArea,\"=\"&List!$D$4,InputTopic,\"=\"&List!$X7,InputMode,\"=\"&List!$A$17)","v":0},{"$f":"SUMIFS(InputHours,InputArea,\"=\"&List!$D$4,InputTopic,\"=\"&List!$X7,InputMode,\"=\"&List!$A$18)","v":0},{"$f":"SUMIFS(InputHours,InputArea,\"=\"&List!$D$4,InputTopic,\"=\"&List!$X7,InputMode,\"=\"&List!$A$19)","v":0},{"$f":"COUNTIFS(InputArea,\"=\"&List!$D$4,InputTopic,\"=\"&List!$X7,InputLevel,\"=\"&Input!$A$5)","v":0},{"$f":"COUNTIFS(InputArea,\"=\"&List!$D$4,InputTopic,\"=\"&List!$X7,InputLevel,\"=\"&Input!$A$4)","v":0},{"$f":"COUNTIFS(InputArea,\"=\"&List!$D$4,InputTopic,\"=\"&List!$X7,InputLevel,\"=\"&Input!$A$3)","v":0},{"$f":"COUNTIFS(InputArea,\"=\"&List!$D$4,InputTopic,\"=\"&List!$X7,InputLevel,\"=\"&Input!$A$2)","v":0},{"$f":"COUNTIFS(InputArea,\"=\"&List!$D$4,InputTopic,\"=\"&List!$X7,InputImportance,\"=\"&Input!$E$5)","v":0},{"$f":"COUNTIFS(InputArea,\"=\"&List!$D$4,InputTopic,\"=\"&List!$X7,InputImportance,\"=\"&Input!$E$4)","v":0},{"$f":"COUNTIFS(InputArea,\"=\"&List!$D$4,InputTopic,\"=\"&List!$X7,InputImportance,\"=\"&Input!$E$3)","v":0},{"$f":"COUNTIFS(InputArea,\"=\"&List!$D$4,InputTopic,\"=\"&List!$X7,InputImportance,\"=\"&Input!$E$2)","v":0},{"$f":"COUNTIFS(InputArea,\"=\"&List!$D$4,InputTopic,\"=\"&List!$X7,InputSkill,\"=\"&List!$D$14)","v":0},{"$f":"COUNTIFS(InputArea,\"=\"&List!$D$4,InputTopic,\"=\"&List!$X7,InputSkill,\"=\"&List!$D$15)","v":0},{"$f":"COUNTIFS(InputArea,\"=\"&List!$D$4,InputTopic,\"=\"&List!$X7,InputSkill,\"=\"&List!$D$16)","v":0},{"$f":"COUNTIFS(InputArea,\"=\"&List!$D$4,InputTopic,\"=\"&List!$X7,InputSkill,\"=\"&List!$D$17)","v":0},{"$f":"COUNTIFS(InputArea,\"=\"&List!$D$4,InputTopic,\"=\"&List!$X7,InputSkill,\"=\"&List!$D$18)","v":0},{"$f":"COUNTIFS(InputArea,\"=\"&List!$D$4,InputTopic,\"=\"&List!$X7,InputSkill,\"=\"&List!$D$19)","v":0},0,0,{"v":0,"d":"0.00"},{"v":0,"d":"0.0"}]
["S","U","Gen",null,"ProjectManagement","Others",{"$f":"COUNTIFS(InputArea,\"=\"&List!$D$4,InputTopic,\"=\"&List!$X8,InputMode,\"=\"&List!$A$14)","v":0},{"$f":"COUNTIFS(InputArea,\"=\"&List!$D$4,InputTopic,\"=\"&List!$X8,InputMode,\"=\"&List!$A$15)","v":0},{"$f":"COUNTIFS(InputArea,\"=\"&List!$D$4,InputTopic,\"=\"&List!$X8,InputMode,\"=\"&List!$A$16)","v":0},{"$f":"COUNTIFS(InputArea,\"=\"&List!$D$4,InputTopic,\"=\"&List!$X8,InputMode,\"=\"&List!$A$17)","v":0},{"$f":"COUNTIFS(InputArea,\"=\"&List!$D$4,InputTopic,\"=\"&List!$X8,InputMode,\"=\"&List!$A$18)","v":0},{"$f":"COUNTIFS(InputArea,\"=\"&List!$D$4,InputTopic,\"=\"&List!$X8,InputMode,\"=\"&List!$A$19)","v":0},{"$f":"SUMIFS(InputHours,InputArea,\"=\"&List!$D$4,InputTopic,\"=\"&List!$X8,InputMode,\"=\"&List!$A$14)","v":0},{"$f":"SUMIFS(InputHours,InputArea,\"=\"&List!$D$4,InputTopic,\"=\"&List!$X8,InputMode,\"=\"&List!$A$15)","v":0},{"$f":"SUMIFS(InputHours,InputArea,\"=\"&List!$D$4,InputTopic,\"=\"&List!$X8,InputMode,\"=\"&List!$A$16)","v":0},{"$f":"SUMIFS(InputHours,InputArea,\"=\"&List!$D$4,InputTopic,\"=\"&List!$X8,InputMode,\"=\"&List!$A$17)","v":0},{"$f":"SUMIFS(InputHours,InputArea,\"=\"&List!$D$4,InputTopic,\"=\"&List!$X8,InputMode,\"=\"&List!$A$18)","v":0},{"$f":"SUMIFS(InputHours,InputArea,\"=\"&List!$D$4,InputTopic,\"=\"&List!$X8,InputMode,\"=\"&List!$A$19)","v":0},{"$f":"COUNTIFS(InputArea,\"=\"&List!$D$4,InputTopic,\"=\"&List!$X8,InputLevel,\"=\"&Input!$A$5)","v":0},{"$f":"COUNTIFS(InputArea,\"=\"&List!$D$4,InputTopic,\"=\"&List!$X8,InputLevel,\"=\"&Input!$A$4)","v":0},{"$f":"COUNTIFS(InputArea,\"=\"&List!$D$4,InputTopic,\"=\"&List!$X8,InputLevel,\"=\"&Input!$A$3)","v":0},{"$f":"COUNTIFS(InputArea,\"=\"&List!$D$4,InputTopic,\"=\"&List!$X8,InputLevel,\"=\"&Input!$A$2)","v":0},{"$f":"COUNTIFS(InputArea,\"=\"&List!$D$4,InputTopic,\"=\"&List!$X8,InputImportance,\"=\"&Input!$E$5)","v":0},{"$f":"COUNTIFS(InputArea,\"=\"&List!$D$4,InputTopic,\"=\"&List!$X8,InputImportance,\"=\"&Input!$E$4)","v":0},{"$f":"COUNTIFS(InputArea,\"=\"&List!$D$4,InputTopic,\"=\"&List!$X8,InputImportance,\"=\"&Input!$E$3)","v":0},{"$f":"COUNTIFS(InputArea,\"=\"&List!$D$4,InputTopic,\"=\"&List!$X8,InputImportance,\"=\"&Input!$E$2)","v":0},{"$f":"COUNTIFS(InputArea,\"=\"&List!$D$4,InputTopic,\"=\"&List!$X8,InputSkill,\"=\"&List!$D$14)","v":0},{"$f":"COUNTIFS(InputArea,\"=\"&List!$D$4,InputTopic,\"=\"&List!$X8,InputSkill,\"=\"&List!$D$15)","v":0},{"$f":"COUNTIFS(InputArea,\"=\"&List!$D$4,InputTopic,\"=\"&List!$X8,InputSkill,\"=\"&List!$D$16)","v":0},{"$f":"COUNTIFS(InputArea,\"=\"&List!$D$4,InputTopic,\"=\"&List!$X8,InputSkill,\"=\"&List!$D$17)","v":0},{"$f":"COUNTIFS(InputArea,\"=\"&List!$D$4,InputTopic,\"=\"&List!$X8,InputSkill,\"=\"&List!$D$18)","v":0},{"$f":"COUNTIFS(InputArea,\"=\"&List!$D$4,InputTopic,\"=\"&List!$X8,InputSkill,\"=\"&List!$D$19)","v":0},0,0,{"v":0,"d":"0.00"},{"v":0,"d":"0.0"}]
["S","U","Gen","SPECIALIZED","AdvancedApplications","Geography & Geographical Analysis",{"$f":"COUNTIFS(InputArea,\"=\"&List!$D$5,InputTopic,\"=\"&List!$Y2,InputMode,\"=\"&List!$A$14)","v":0},{"$f":"COUNTIFS(InputArea,\"=\"&List!$D$5,InputTopic,\"=\"&List!$Y2,InputMode,\"=\"&List!$A$15)","v":0},{"$f":"COUNTIFS(InputArea,\"=\"&List!$D$5,InputTopic,\"=\"&List!$Y2,InputMode,\"=\"&List!$A$16)","v":0},{"$f":"COUNTIFS(InputArea,\"=\"&List!$D$5,InputTopic,\"=\"&List!$Y2,InputMode,\"=\"&List!$A$17)","v":0},{"$f":"COUNTIFS(InputArea,\"=\"&List!$D$5,InputTopic,\"=\"&List!$Y2,InputMode,\"=\"&List!$A$18)","v":0},{"$f":"COUNTIFS(InputArea,\"=\"&List!$D$5,InputTopic,\"=\"&List!$Y2,InputMode,\"=\"&List!$A$19)","v":0},{"$f":"SUMIFS(InputHours,InputArea,\"=\"&List!$D$5,InputTopic,\"=\"&List!$Y2,InputMode,\"=\"&List!$A$14)","v":0},{"$f":"SUMIFS(InputHours,InputArea,\"=\"&List!$D$5,InputTopic,\"=\"&List!$Y2,InputMode,\"=\"&List!$A$15)","v":0},{"$f":"SUMIFS(InputHours,InputArea,\"=\"&List!$D$5,InputTopic,\"=\"&List!$Y2,InputMode,\"=\"&List!$A$16)","v":0},{"$f":"SUMIFS(InputHours,InputArea,\"=\"&List!$D$5,InputTopic,\"=\"&List!$Y2,InputMode,\"=\"&List!$A$17)","v":0},{"$f":"SUMIFS(InputHours,InputArea,\"=\"&List!$D$5,InputTopic,\"=\"&List!$Y2,InputMode,\"=\"&List!$A$18)","v":0},{"$f":"SUMIFS(InputHours,InputArea,\"=\"&List!$D$5,InputTopic,\"=\"&List!$Y2,InputMode,\"=\"&List!$A$19)","v":0},{"$f":"COUNTIFS(InputArea,\"=\"&List!$D$5,InputTopic,\"=\"&List!$Y2,InputLevel,\"=\"&Input!$A$5)","v":0},{"$f":"COUNTIFS(InputArea,\"=\"&List!$D$5,InputTopic,\"=\"&List!$Y2,InputLevel,\"=\"&Input!$A$4)","v":0},{"$f":"COUNTIFS(InputArea,\"=\"&List!$D$5,InputTopic,\"=\"&List!$Y2,InputLevel,\"=\"&Input!$A$3)","v":0},{"$f":"COUNTIFS(InputArea,\"=\"&List!$D$5,InputTopic,\"=\"&List!$Y2,InputLevel,\"=\"&Input!$A$2)","v":0},{"$f":"COUNTIFS(InputArea,\"=\"&List!$D$5,InputTopic,\"=\"&List!$Y2,InputImportance,\"=\"&Input!$E$5)","v":0},{"$f":"COUNTIFS(InputArea,\"=\"&List!$D$5,InputTopic,\"=\"&List!$Y2,InputImportance,\"=\"&Input!$E$4)","v":0},{"$f":"COUNTIFS(InputArea,\"=\"&List!$D$5,InputTopic,\"=\"&List!$Y2,InputImportance,\"=\"&Input!$E$3)","v":0},{"$f":"COUNTIFS(InputArea,\"=\"&List!$D$5,InputTopic,\"=\"&List!$Y2,InputImportance,\"=\"&Input!$E$2)","v":0},{"$f":"COUNTIFS(InputArea,\"=\"&List!$D$5,InputTopic,\"=\"&List!$Y2,InputSkill,\"=\"&List!$D$14)","v":0},{"$f":"COUNTIFS(InputArea,\"=\"&List!$D$5,InputTopic,\"=\"&List!$Y2,InputSkill,\"=\"&List!$D$15)","v":0},{"$f":"COUNTIFS(InputArea,\"=\"&List!$D$5,InputTopic,\"=\"&List!$Y2,InputSkill,\"=\"&List!$D$16)","v":0},{"$f":"COUNTIFS(InputArea,\"=\"&List!$D$5,InputTopic,\"=\"&List!$Y2,InputSkill,\"=\"&List!$D$17)","v":0},{"$f":"COUNTIFS(InputArea,\"=\"&List!$D$5,InputTopic,\"=\"&List!$Y2,InputSkill,\"=\"&List!$D$18)","v":0},{"$f":"COUNTIFS(InputArea,\"=\"&List!$D$5,InputTopic,\"=\"&List!$Y2,InputSkill,\"=\"&List!$D$19)","v":0},0,0,{"v":0,"d":"0.00"},{"v":0,"d":"0.0"}]
["S","U","Gen",null,"AdvancedApplications","Social Science & Demographical Analysis",{"$f":"COUNTIFS(InputArea,\"=\"&List!$D$5,InputTopic,\"=\"&List!$Y3,InputMode,\"=\"&List!$A$14)","v":0},{"$f":"COUNTIFS(InputArea,\"=\"&List!$D$5,InputTopic,\"=\"&List!$Y3,InputMode,\"=\"&List!$A$15)","v":0},{"$f":"COUNTIFS(InputArea,\"=\"&List!$D$5,InputTopic,\"=\"&List!$Y3,InputMode,\"=\"&List!$A$16)","v":0},{"$f":"COUNTIFS(InputArea,\"=\"&List!$D$5,InputTopic,\"=\"&List!$Y3,InputMode,\"=\"&List!$A$17)","v":0},{"$f":"COUNTIFS(InputArea,\"=\"&List!$D$5,InputTopic,\"=\"&List!$Y3,InputMode,\"=\"&List!$A$18)","v":0},{"$f":"COUNTIFS(InputArea,\"=\"&List!$D$5,InputTopic,\"=\"&List!$Y3,InputMode,\"=\"&List!$A$19)","v":0},{"$f":"SUMIFS(InputHours,InputArea,\"=\"&List!$D$5,InputTopic,\"=\"&List!$Y3,InputMode,\"=\"&List!$A$14)","v":0},{"$f":"SUMIFS(InputHours,InputArea,\"=\"&List!$D$5,InputTopic,\"=\"&List!$Y3,InputMode,\"=\"&List!$A$15)","v":0},{"$f":"SUMIFS(InputHours,InputArea,\"=\"&List!$D$5,InputTopic,\"=\"&List!$Y3,InputMode,\"=\"&List!$A$16)","v":0},{"$f":"SUMIFS(InputHours,InputArea,\"=\"&List!$D$5,InputTopic,\"=\"&List!$Y3,InputMode,\"=\"&List!$A$17)","v":0},{"$f":"SUMIFS(InputHours,InputArea,\"=\"&List!$D$5,InputTopic,\"=\"&List!$Y3,InputMode,\"=\"&List!$A$18)","v":0},{"$f":"SUMIFS(InputHours,InputArea,\"=\"&List!$D$5,InputTopic,\"=\"&List!$Y3,InputMode,\"=\"&List!$A$19)","v":0},{"$f":"COUNTIFS(InputArea,\"=\"&List!$D$5,InputTopic,\"=\"&List!$Y3,InputLevel,\"=\"&Input!$A$5)","v":0},{"$f":"COUNTIFS(InputArea,\"=\"&List!$D$5,InputTopic,\"=\"&List!$Y3,InputLevel,\"=\"&Input!$A$4)","v":0},{"$f":"COUNTIFS(InputArea,\"=\"&List!$D$5,InputTopic,\"=\"&List!$Y3,InputLevel,\"=\"&Input!$A$3)","v":0},{"$f":"COUNTIFS(InputArea,\"=\"&List!$D$5,InputTopic,\"=\"&List!$Y3,InputLevel,\"=\"&Input!$A$2)","v":0},{"$f":"COUNTIFS(InputArea,\"=\"&List!$D$5,InputTopic,\"=\"&List!$Y3,InputImportance,\"=\"&Input!$E$5)","v":0},{"$f":"COUNTIFS(InputArea,\"=\"&List!$D$5,InputTopic,\"=\"&List!$Y3,InputImportance,\"=\"&Input!$E$4)","v":0},{"$f":"COUNTIFS(InputArea,\"=\"&List!$D$5,InputTopic,\"=\"&List!$Y3,InputImportance,\"=\"&Input!$E$3)","v":0},{"$f":"COUNTIFS(InputArea,\"=\"&List!$D$5,InputTopic,\"=\"&List!$Y3,InputImportance,\"=\"&Input!$E$2)","v":0},{"$f":"COUNTIFS(InputArea,\"=\"&List!$D$5,InputTopic,\"=\"&List!$Y3,InputSkill,\"=\"&List!$D$14)","v":0},{"$f":"COUNTIFS(InputArea,\"=\"&List!$D$5,InputTopic,\"=\"&List!$Y3,InputSkill,\"=\"&List!$D$15)","v":0},{"$f":"COUNTIFS(InputArea,\"=\"&List!$D$5,InputTopic,\"=\"&List!$Y3,InputSkill,\"=\"&List!$D$16)","v":0},{"$f":"COUNTIFS(InputArea,\"=\"&List!$D$5,InputTopic,\"=\"&List!$Y3,InputSkill,\"=\"&List!$D$17)","v":0},{"$f":"COUNTIFS(InputArea,\"=\"&List!$D$5,InputTopic,\"=\"&List!$Y3,InputSkill,\"=\"&List!$D$18)","v":0},{"$f":"COUNTIFS(InputArea,\"=\"&List!$D$5,InputTopic,\"=\"&List!$Y3,InputSkill,\"=\"&List!$D$19)","v":0},0,0,{"v":0,"d":"0.00"},{"v":0,"d":"0.0"}]
["S","U","Gen",null,"AdvancedApplications","Humanities (Arts & History Visualization)",{"$f":"COUNTIFS(InputArea,\"=\"&List!$D$5,InputTopic,\"=\"&List!$Y4,InputMode,\"=\"&List!$A$14)","v":0},{"$f":"COUNTIFS(InputArea,\"=\"&List!$D$5,InputTopic,\"=\"&List!$Y4,InputMode,\"=\"&List!$A$15)","v":0},{"$f":"COUNTIFS(InputArea,\"=\"&List!$D$5,InputTopic,\"=\"&List!$Y4,InputMode,\"=\"&List!$A$16)","v":0},{"$f":"COUNTIFS(InputArea,\"=\"&List!$D$5,InputTopic,\"=\"&List!$Y4,InputMode,\"=\"&List!$A$17)","v":0},{"$f":"COUNTIFS(InputArea,\"=\"&List!$D$5,InputTopic,\"=\"&List!$Y4,InputMode,\"=\"&List!$A$18)","v":0},{"$f":"COUNTIFS(InputArea,\"=\"&List!$D$5,InputTopic,\"=\"&List!$Y4,InputMode,\"=\"&List!$A$19)","v":0},{"$f":"SUMIFS(InputHours,InputArea,\"=\"&List!$D$5,InputTopic,\"=\"&List!$Y4,InputMode,\"=\"&List!$A$14)","v":0},{"$f":"SUMIFS(InputHours,InputArea,\"=\"&List!$D$5,InputTopic,\"=\"&List!$Y4,InputMode,\"=\"&List!$A$15)","v":0},{"$f":"SUMIFS(InputHours,InputArea,\"=\"&List!$D$5,InputTopic,\"=\"&List!$Y4,InputMode,\"=\"&List!$A$16)","v":0},{"$f":"SUMIFS(InputHours,InputArea,\"=\"&List!$D$5,InputTopic,\"=\"&List!$Y4,InputMode,\"=\"&List!$A$17)","v":0},{"$f":"SUMIFS(InputHours,InputArea,\"=\"&List!$D$5,InputTopic,\"=\"&List!$Y4,InputMode,\"=\"&List!$A$18)","v":0},{"$f":"SUMIFS(InputHours,InputArea,\"=\"&List!$D$5,InputTopic,\"=\"&List!$Y4,InputMode,\"=\"&List!$A$19)","v":0},{"$f":"COUNTIFS(InputArea,\"=\"&List!$D$5,InputTopic,\"=\"&List!$Y4,InputLevel,\"=\"&Input!$A$5)","v":0},{"$f":"COUNTIFS(InputArea,\"=\"&List!$D$5,InputTopic,\"=\"&List!$Y4,InputLevel,\"=\"&Input!$A$4)","v":0},{"$f":"COUNTIFS(InputArea,\"=\"&List!$D$5,InputTopic,\"=\"&List!$Y4,InputLevel,\"=\"&Input!$A$3)","v":0},{"$f":"COUNTIFS(InputArea,\"=\"&List!$D$5,InputTopic,\"=\"&List!$Y4,InputLevel,\"=\"&Input!$A$2)","v":0},{"$f":"COUNTIFS(InputArea,\"=\"&List!$D$5,InputTopic,\"=\"&List!$Y4,InputImportance,\"=\"&Input!$E$5)","v":0},{"$f":"COUNTIFS(InputArea,\"=\"&List!$D$5,InputTopic,\"=\"&List!$Y4,InputImportance,\"=\"&Input!$E$4)","v":0},{"$f":"COUNTIFS(InputArea,\"=\"&List!$D$5,InputTopic,\"=\"&List!$Y4,InputImportance,\"=\"&Input!$E$3)","v":0},{"$f":"COUNTIFS(InputArea,\"=\"&List!$D$5,InputTopic,\"=\"&List!$Y4,InputImportance,\"=\"&Input!$E$2)","v":0},{"$f":"COUNTIFS(InputArea,\"=\"&List!$D$5,InputTopic,\"=\"&List!$Y4,InputSkill,\"=\"&List!$D$14)","v":0},{"$f":"COUNTIFS(InputArea,\"=\"&List!$D$5,InputTopic,\"=\"&List!$Y4,InputSkill,\"=\"&List!$D$15)","v":0},{"$f":"COUNTIFS(InputArea,\"=\"&List!$D$5,InputTopic,\"=\"&List!$Y4,InputSkill,\"=\"&List!$D$16)","v":0},{"$f":"COUNTIFS(InputArea,\"=\"&List!$D$5,InputTopic,\"=\"&List!$Y4,InputSkill,\"=\"&List!$D$17)","v":0},{"$f":"COUNTIFS(InputArea,\"=\"&List!$D$5,InputTopic,\"=\"&List!$Y4,InputSkill,\"=\"&List!$D$18)","v":0},{"$f":"COUNTIFS(InputArea,\"=\"&List!$D$5,InputTopic,\"=\"&List!$Y4,InputSkill,\"=\"&List!$D$19)","v":0},0,0,{"v":0,"d":"0.00"},{"v":0,"d":"0.0"}]
["S","U","Gen",null,"AdvancedApplications","Economics & Economical Modelling",{"$f":"COUNTIFS(InputArea,\"=\"&List!$D$5,InputTopic,\"=\"&List!$Y5,InputMode,\"=\"&List!$A$14)","v":0},{"$f":"COUNTIFS(InputArea,\"=\"&List!$D$5,InputTopic,\"=\"&List!$Y5,InputMode,\"=\"&List!$A$15)","v":0},{"$f":"COUNTIFS(InputArea,\"=\"&List!$D$5,InputTopic,\"=\"&List!$Y5,InputMode,\"=\"&List!$A$16)","v":0},{"$f":"COUNTIFS(InputArea,\"=\"&List!$D$5,InputTopic,\"=\"&List!$Y5,InputMode,\"=\"&List!$A$17)","v":0},{"$f":"COUNTIFS(InputArea,\"=\"&List!$D$5,InputTopic,\"=\"&List!$Y5,InputMode,\"=\"&List!$A$18)","v":0},{"$f":"COUNTIFS(InputArea,\"=\"&List!$D$5,InputTopic,\"=\"&List!$Y5,InputMode,\"=\"&List!$A$19)","v":0},{"$f":"SUMIFS(InputHours,InputArea,\"=\"&List!$D$5,InputTopic,\"=\"&List!$Y5,InputMode,\"=\"&List!$A$14)","v":0},{"$f":"SUMIFS(InputHours,InputArea,\"=\"&List!$D$5,InputTopic,\"=\"&List!$Y5,InputMode,\"=\"&List!$A$15)","v":0},{"$f":"SUMIFS(InputHours,InputArea,\"=\"&List!$D$5,InputTopic,\"=\"&List!$Y5,InputMode,\"=\"&List!$A$16)","v":0},{"$f":"SUMIFS(InputHours,InputArea,\"=\"&List!$D$5,InputTopic,\"=\"&List!$Y5,InputMode,\"=\"&List!$A$17)","v":0},{"$f":"SUMIFS(InputHours,InputArea,\"=\"&List!$D$5,InputTopic,\"=\"&List!$Y5,InputMode,\"=\"&List!$A$18)","v":0},{"$f":"SUMIFS(InputHours,InputArea,\"=\"&List!$D$5,InputTopic,\"=\"&List!$Y5,InputMode,\"=\"&List!$A$19)","v":0},{"$f":"COUNTIFS(InputArea,\"=\"&List!$D$5,InputTopic,\"=\"&List!$Y5,InputLevel,\"=\"&Input!$A$5)","v":0},{"$f":"COUNTIFS(InputArea,\"=\"&List!$D$5,InputTopic,\"=\"&List!$Y5,InputLevel,\"=\"&Input!$A$4)","v":0},{"$f":"COUNTIFS(InputArea,\"=\"&List!$D$5,InputTopic,\"=\"&List!$Y5,InputLevel,\"=\"&Input!$A$3)","v":0},{"$f":"COUNTIFS(InputArea,\"=\"&List!$D$5,InputTopic,\"=\"&List!$Y5,InputLevel,\"=\"&Input!$A$2)","v":0},{"$f":"COUNTIFS(InputArea,\"=\"&List!$D$5,InputTopic,\"=\"&List!$Y5,InputImportance,\"=\"&Input!$E$5)","v":0},{"$f":"COUNTIFS(InputArea,\"=\"&List!$D$5,InputTopic,\"=\"&List!$Y5,InputImportance,\"=\"&Input!$E$4)","v":0},{"$f":"COUNTIFS(InputArea,\"=\"&List!$D$5,InputTopic,\"=\"&List!$Y5,InputImportance,\"=\"&Input!$E$3)","v":0},{"$f":"COUNTIFS(InputArea,\"=\"&List!$D$5,InputTopic,\"=\"&List!$Y5,InputImportance,\"=\"&Input!$E$2)","v":0},{"$f":"COUNTIFS(InputArea,\"=\"&List!$D$5,InputTopic,\"=\"&List!$Y5,InputSkill,\"=\"&List!$D$14)","v":0},{"$f":"COUNTIFS(InputArea,\"=\"&List!$D$5,InputTopic,\"=\"&List!$Y5,InputSkill,\"=\"&List!$D$15)","v":0},{"$f":"COUNTIFS(InputArea,\"=\"&List!$D$5,InputTopic,\"=\"&List!$Y5,InputSkill,\"=\"&List!$D$16)","v":0},{"$f":"COUNTIFS(InputArea,\"=\"&List!$D$5,InputTopic,\"=\"&List!$Y5,InputSkill,\"=\"&List!$D$17)","v":0},{"$f":"COUNTIFS(InputArea,\"=\"&List!$D$5,InputTopic,\"=\"&List!$Y5,InputSkill,\"=\"&List!$D$18)","v":0},{"$f":"COUNTIFS(InputArea,\"=\"&List!$D$5,InputTopic,\"=\"&List!$Y5,InputSkill,\"=\"&List!$D$19)","v":0},0,0,{"v":0,"d":"0.00"},{"v":0,"d":"0.0"}]
["S","U","Gen",null,"AdvancedApplications","Earth Science & Geological Analysis",{"$f":"COUNTIFS(InputArea,\"=\"&List!$D$5,InputTopic,\"=\"&List!$Y6,InputMode,\"=\"&List!$A$14)","v":0},{"$f":"COUNTIFS(InputArea,\"=\"&List!$D$5,InputTopic,\"=\"&List!$Y6,InputMode,\"=\"&List!$A$15)","v":0},{"$f":"COUNTIFS(InputArea,\"=\"&List!$D$5,InputTopic,\"=\"&List!$Y6,InputMode,\"=\"&List!$A$16)","v":0},{"$f":"COUNTIFS(InputArea,\"=\"&List!$D$5,InputTopic,\"=\"&List!$Y6,InputMode,\"=\"&List!$A$17)","v":0},{"$f":"COUNTIFS(InputArea,\"=\"&List!$D$5,InputTopic,\"=\"&List!$Y6,InputMode,\"=\"&List!$A$18)","v":0},{"$f":"COUNTIFS(InputArea,\"=\"&List!$D$5,InputTopic,\"=\"&List!$Y6,InputMode,\"=\"&List!$A$19)","v":0},{"$f":"SUMIFS(InputHours,InputArea,\"=\"&List!$D$5,InputTopic,\"=\"&List!$Y6,InputMode,\"=\"&List!$A$14)","v":0},{"$f":"SUMIFS(InputHours,InputArea,\"=\"&List!$D$5,InputTopic,\"=\"&List!$Y6,InputMode,\"=\"&List!$A$15)","v":0},{"$f":"SUMIFS(InputHours,InputArea,\"=\"&List!$D$5,InputTopic,\"=\"&List!$Y6,InputMode,\"=\"&List!$A$16)","v":0},{"$f":"SUMIFS(InputHours,InputArea,\"=\"&List!$D$5,InputTopic,\"=\"&List!$Y6,InputMode,\"=\"&List!$A$17)","v":0},{"$f":"SUMIFS(InputHours,InputArea,\"=\"&List!$D$5,InputTopic,\"=\"&List!$Y6,InputMode,\"=\"&List!$A$18)","v":0},{"$f":"SUMIFS(InputHours,InputArea,\"=\"&List!$D$5,InputTopic,\"=\"&List!$Y6,InputMode,\"=\"&List!$A$19)","v":0},{"$f":"COUNTIFS(InputArea,\"=\"&List!$D$5,InputTopic,\"=\"&List!$Y6,InputLevel,\"=\"&Input!$A$5)","v":0},{"$f":"COUNTIFS(InputArea,\"=\"&List!$D$5,InputTopic,\"=\"&List!$Y6,InputLevel,\"=\"&Input!$A$4)","v":0},{"$f":"COUNTIFS(InputArea,\"=\"&List!$D$5,InputTopic,\"=\"&List!$Y6,InputLevel,\"=\"&Input!$A$3)","v":0},{"$f":"COUNTIFS(InputArea,\"=\"&List!$D$5,InputTopic,\"=\"&List!$Y6,InputLevel,\"=\"&Input!$A$2)","v":0},{"$f":"COUNTIFS(InputArea,\"=\"&List!$D$5,InputTopic,\"=\"&List!$Y6,InputImportance,\"=\"&Input!$E$5)","v":0},{"$f":"COUNTIFS(InputArea,\"=\"&List!$D$5,InputTopic,\"=\"&List!$Y6,InputImportance,\"=\"&Input!$E$4)","v":0},{"$f":"COUNTIFS(InputArea,\"=\"&List!$D$5,InputTopic,\"=\"&List!$Y6,InputImportance,\"=\"&Input!$E$3)","v":0},{"$f":"COUNTIFS(InputArea,\"=\"&List!$D$5,InputTopic,\"=\"&List!$Y6,InputImportance,\"=\"&Input!$E$2)","v":0},{"$f":"COUNTIFS(InputArea,\"=\"&List!$D$5,InputTopic,\"=\"&List!$Y6,InputSkill,\"=\"&List!$D$14)","v":0},{"$f":"COUNTIFS(InputArea,\"=\"&List!$D$5,InputTopic,\"=\"&List!$Y6,InputSkill,\"=\"&List!$D$15)","v":0},{"$f":"COUNTIFS(InputArea,\"=\"&List!$D$5,InputTopic,\"=\"&List!$Y6,InputSkill,\"=\"&List!$D$16)","v":0},{"$f":"COUNTIFS(InputArea,\"=\"&List!$D$5,InputTopic,\"=\"&List!$Y6,InputSkill,\"=\"&List!$D$17)","v":0},{"$f":"COUNTIFS(InputArea,\"=\"&List!$D$5,InputTopic,\"=\"&List!$Y6,InputSkill,\"=\"&List!$D$18)","v":0},{"$f":"COUNTIFS(InputArea,\"=\"&List!$D$5,InputTopic,\"=\"&List!$Y6,InputSkill,\"=\"&List!$D$19)","v":0},0,0,{"v":0,"d":"0.00"},{"v":0,"d":"0.0"}]
["S","U","Gen",null,"AdvancedApplications","Lesgislative & Policies Applications",{"$f":"COUNTIFS(InputArea,\"=\"&List!$D$5,InputTopic,\"=\"&List!$Y7,InputMode,\"=\"&List!$A$14)","v":0},{"$f":"COUNTIFS(InputArea,\"=\"&List!$D$5,InputTopic,\"=\"&List!$Y7,InputMode,\"=\"&List!$A$15)","v":0},{"$f":"COUNTIFS(InputArea,\"=\"&List!$D$5,InputTopic,\"=\"&List!$Y7,InputMode,\"=\"&List!$A$16)","v":0},{"$f":"COUNTIFS(InputArea,\"=\"&List!$D$5,InputTopic,\"=\"&List!$Y7,InputMode,\"=\"&List!$A$17)","v":0},{"$f":"COUNTIFS(InputArea,\"=\"&List!$D$5,InputTopic,\"=\"&List!$Y7,InputMode,\"=\"&List!$A$18)","v":0},{"$f":"COUNTIFS(InputArea,\"=\"&List!$D$5,InputTopic,\"=\"&List!$Y7,InputMode,\"=\"&List!$A$19)","v":0},{"$f":"SUMIFS(InputHours,InputArea,\"=\"&List!$D$5,InputTopic,\"=\"&List!$Y7,InputMode,\"=\"&List!$A$14)","v":0},{"$f":"SUMIFS(InputHours,InputArea,\"=\"&List!$D$5,InputTopic,\"=\"&List!$Y7,InputMode,\"=\"&List!$A$15)","v":0},{"$f":"SUMIFS(InputHours,InputArea,\"=\"&List!$D$5,InputTopic,\"=\"&List!$Y7,InputMode,\"=\"&List!$A$16)","v":0},{"$f":"SUMIFS(InputHours,InputArea,\"=\"&List!$D$5,InputTopic,\"=\"&List!$Y7,InputMode,\"=\"&List!$A$17)","v":0},{"$f":"SUMIFS(InputHours,InputArea,\"=\"&List!$D$5,InputTopic,\"=\"&List!$Y7,InputMode,\"=\"&List!$A$18)","v":0},{"$f":"SUMIFS(InputHours,InputArea,\"=\"&List!$D$5,InputTopic,\"=\"&List!$Y7,InputMode,\"=\"&List!$A$19)","v":0},{"$f":"COUNTIFS(InputArea,\"=\"&List!$D$5,InputTopic,\"=\"&List!$Y7,InputLevel,\"=\"&Input!$A$5)","v":0},{"$f":"COUNTIFS(InputArea,\"=\"&List!$D$5,InputTopic,\"=\"&List!$Y7,InputLevel,\"=\"&Input!$A$4)","v":0},{"$f":"COUNTIFS(InputArea,\"=\"&List!$D$5,InputTopic,\"=\"&List!$Y7,InputLevel,\"=\"&Input!$A$3)","v":0},{"$f":"COUNTIFS(InputArea,\"=\"&List!$D$5,InputTopic,\"=\"&List!$Y7,InputLevel,\"=\"&Input!$A$2)","v":0},{"$f":"COUNTIFS(InputArea,\"=\"&List!$D$5,InputTopic,\"=\"&List!$Y7,InputImportance,\"=\"&Input!$E$5)","v":0},{"$f":"COUNTIFS(InputArea,\"=\"&List!$D$5,InputTopic,\"=\"&List!$Y7,InputImportance,\"=\"&Input!$E$4)","v":0},{"$f":"COUNTIFS(InputArea,\"=\"&List!$D$5,InputTopic,\"=\"&List!$Y7,InputImportance,\"=\"&Input!$E$3)","v":0},{"$f":"COUNTIFS(InputArea,\"=\"&List!$D$5,InputTopic,\"=\"&List!$Y7,InputImportance,\"=\"&Input!$E$2)","v":0},{"$f":"COUNTIFS(InputArea,\"=\"&List!$D$5,InputTopic,\"=\"&List!$Y7,InputSkill,\"=\"&List!$D$14)","v":0},{"$f":"COUNTIFS(InputArea,\"=\"&List!$D$5,InputTopic,\"=\"&List!$Y7,InputSkill,\"=\"&List!$D$15)","v":0},{"$f":"COUNTIFS(InputArea,\"=\"&List!$D$5,InputTopic,\"=\"&List!$Y7,InputSkill,\"=\"&List!$D$16)","v":0},{"$f":"COUNTIFS(InputArea,\"=\"&List!$D$5,InputTopic,\"=\"&List!$Y7,InputSkill,\"=\"&List!$D$17)","v":0},{"$f":"COUNTIFS(InputArea,\"=\"&List!$D$5,InputTopic,\"=\"&List!$Y7,InputSkill,\"=\"&List!$D$18)","v":0},{"$f":"COUNTIFS(InputArea,\"=\"&List!$D$5,InputTopic,\"=\"&List!$Y7,InputSkill,\"=\"&List!$D$19)","v":0},0,0,{"v":0,"d":"0.00"},{"v":0,"d":"0.0"}]
["S","U","Gen",null,"AdvancedApplications","Construction & Infrastructure Development",{"$f":"COUNTIFS(InputArea,\"=\"&List!$D$5,InputTopic,\"=\"&List!$Y8,InputMode,\"=\"&List!$A$14)","v":0},{"$f":"COUNTIFS(InputArea,\"=\"&List!$D$5,InputTopic,\"=\"&List!$Y8,InputMode,\"=\"&List!$A$15)","v":0},{"$f":"COUNTIFS(InputArea,\"=\"&List!$D$5,InputTopic,\"=\"&List!$Y8,InputMode,\"=\"&List!$A$16)","v":0},{"$f":"COUNTIFS(InputArea,\"=\"&List!$D$5,InputTopic,\"=\"&List!$Y8,InputMode,\"=\"&List!$A$17)","v":0},{"$f":"COUNTIFS(InputArea,\"=\"&List!$D$5,InputTopic,\"=\"&List!$Y8,InputMode,\"=\"&List!$A$18)","v":0},{"$f":"COUNTIFS(InputArea,\"=\"&List!$D$5,InputTopic,\"=\"&List!$Y8,InputMode,\"=\"&List!$A$19)","v":0},{"$f":"SUMIFS(InputHours,InputArea,\"=\"&List!$D$5,InputTopic,\"=\"&List!$Y8,InputMode,\"=\"&List!$A$14)","v":0},{"$f":"SUMIFS(InputHours,InputArea,\"=\"&List!$D$5,InputTopic,\"=\"&List!$Y8,InputMode,\"=\"&List!$A$15)","v":0},{"$f":"SUMIFS(InputHours,InputArea,\"=\"&List!$D$5,InputTopic,\"=\"&List!$Y8,InputMode,\"=\"&List!$A$16)","v":0},{"$f":"SUMIFS(InputHours,InputArea,\"=\"&List!$D$5,InputTopic,\"=\"&List!$Y8,InputMode,\"=\"&List!$A$17)","v":0},{"$f":"SUMIFS(InputHours,InputArea,\"=\"&List!$D$5,InputTopic,\"=\"&List!$Y8,InputMode,\"=\"&List!$A$18)","v":0},{"$f":"SUMIFS(InputHours,InputArea,\"=\"&List!$D$5,InputTopic,\"=\"&List!$Y8,InputMode,\"=\"&List!$A$19)","v":0},{"$f":"COUNTIFS(InputArea,\"=\"&List!$D$5,InputTopic,\"=\"&List!$Y8,InputLevel,\"=\"&Input!$A$5)","v":0},{"$f":"COUNTIFS(InputArea,\"=\"&List!$D$5,InputTopic,\"=\"&List!$Y8,InputLevel,\"=\"&Input!$A$4)","v":0},{"$f":"COUNTIFS(InputArea,\"=\"&List!$D$5,InputTopic,\"=\"&List!$Y8,InputLevel,\"=\"&Input!$A$3)","v":0},{"$f":"COUNTIFS(InputArea,\"=\"&List!$D$5,InputTopic,\"=\"&List!$Y8,InputLevel,\"=\"&Input!$A$2)","v":0},{"$f":"COUNTIFS(InputArea,\"=\"&List!$D$5,InputTopic,\"=\"&List!$Y8,InputImportance,\"=\"&Input!$E$5)","v":0},{"$f":"COUNTIFS(InputArea,\"=\"&List!$D$5,InputTopic,\"=\"&List!$Y8,InputImportance,\"=\"&Input!$E$4)","v":0},{"$f":"COUNTIFS(InputArea,\"=\"&List!$D$5,InputTopic,\"=\"&List!$Y8,InputImportance,\"=\"&Input!$E$3)","v":0},{"$f":"COUNTIFS(InputArea,\"=\"&List!$D$5,InputTopic,\"=\"&List!$Y8,InputImportance,\"=\"&Input!$E$2)","v":0},{"$f":"COUNTIFS(InputArea,\"=\"&List!$D$5,InputTopic,\"=\"&List!$Y8,InputSkill,\"=\"&List!$D$14)","v":0},{"$f":"COUNTIFS(InputArea,\"=\"&List!$D$5,InputTopic,\"=\"&List!$Y8,InputSkill,\"=\"&List!$D$15)","v":0},{"$f":"COUNTIFS(InputArea,\"=\"&List!$D$5,InputTopic,\"=\"&List!$Y8,InputSkill,\"=\"&List!$D$16)","v":0},{"$f":"COUNTIFS(InputArea,\"=\"&List!$D$5,InputTopic,\"=\"&List!$Y8,InputSkill,\"=\"&List!$D$17)","v":0},{"$f":"COUNTIFS(InputArea,\"=\"&List!$D$5,InputTopic,\"=\"&List!$Y8,InputSkill,\"=\"&List!$D$18)","v":0},{"$f":"COUNTIFS(InputArea,\"=\"&List!$D$5,InputTopic,\"=\"&List!$Y8,InputSkill,\"=\"&List!$D$19)","v":0},0,0,{"v":0,"d":"0.00"},{"v":0,"d":"0.0"}]
["S","U","Gen",null,"AdvancedApplications","Others",{"$f":"COUNTIFS(InputArea,\"=\"&List!$D$5,InputTopic,\"=\"&List!$Y9,InputMode,\"=\"&List!$A$14)","v":0},{"$f":"COUNTIFS(InputArea,\"=\"&List!$D$5,InputTopic,\"=\"&List!$Y9,InputMode,\"=\"&List!$A$15)","v":0},{"$f":"COUNTIFS(InputArea,\"=\"&List!$D$5,InputTopic,\"=\"&List!$Y9,InputMode,\"=\"&List!$A$16)","v":0},{"$f":"COUNTIFS(InputArea,\"=\"&List!$D$5,InputTopic,\"=\"&List!$Y9,InputMode,\"=\"&List!$A$17)","v":0},{"$f":"COUNTIFS(InputArea,\"=\"&List!$D$5,InputTopic,\"=\"&List!$Y9,InputMode,\"=\"&List!$A$18)","v":0},{"$f":"COUNTIFS(InputArea,\"=\"&List!$D$5,InputTopic,\"=\"&List!$Y9,InputMode,\"=\"&List!$A$19)","v":0},{"$f":"SUMIFS(InputHours,InputArea,\"=\"&List!$D$5,InputTopic,\"=\"&List!$Y9,InputMode,\"=\"&List!$A$14)","v":0},{"$f":"SUMIFS(InputHours,InputArea,\"=\"&List!$D$5,InputTopic,\"=\"&List!$Y9,InputMode,\"=\"&List!$A$15)","v":0},{"$f":"SUMIFS(InputHours,InputArea,\"=\"&List!$D$5,InputTopic,\"=\"&List!$Y9,InputMode,\"=\"&List!$A$16)","v":0},{"$f":"SUMIFS(InputHours,InputArea,\"=\"&List!$D$5,InputTopic,\"=\"&List!$Y9,InputMode,\"=\"&List!$A$17)","v":0},{"$f":"SUMIFS(InputHours,InputArea,\"=\"&List!$D$5,InputTopic,\"=\"&List!$Y9,InputMode,\"=\"&List!$A$18)","v":0},{"$f":"SUMIFS(InputHours,InputArea,\"=\"&List!$D$5,InputTopic,\"=\"&List!$Y9,InputMode,\"=\"&List!$A$19)","v":0},{"$f":"COUNTIFS(InputArea,\"=\"&List!$D$5,InputTopic,\"=\"&List!$Y9,InputLevel,\"=\"&Input!$A$5)","v":0},{"$f":"COUNTIFS(InputArea,\"=\"&List!$D$5,InputTopic,\"=\"&List!$Y9,InputLevel,\"=\"&Input!$A$4)","v":0},{"$f":"COUNTIFS(InputArea,\"=\"&List!$D$5,InputTopic,\"=\"&List!$Y9,InputLevel,\"=\"&Input!$A$3)","v":0},{"$f":"COUNTIFS(InputArea,\"=\"&List!$D$5,InputTopic,\"=\"&List!$Y9,InputLevel,\"=\"&Input!$A$2)","v":0},{"$f":"COUNTIFS(InputArea,\"=\"&List!$D$5,InputTopic,\"=\"&List!$Y9,InputImportance,\"=\"&Input!$E$5)","v":0},{"$f":"COUNTIFS(InputArea,\"=\"&List!$D$5,InputTopic,\"=\"&List!$Y9,InputImportance,\"=\"&Input!$E$4)","v":0},{"$f":"COUNTIFS(InputArea,\"=\"&List!$D$5,InputTopic,\"=\"&List!$Y9,InputImportance,\"=\"&Input!$E$3)","v":0},{"$f":"COUNTIFS(InputArea,\"=\"&List!$D$5,InputTopic,\"=\"&List!$Y9,InputImportance,\"=\"&Input!$E$2)","v":0},{"$f":"COUNTIFS(InputArea,\"=\"&List!$D$5,InputTopic,\"=\"&List!$Y9,InputSkill,\"=\"&List!$D$14)","v":0},{"$f":"COUNTIFS(InputArea,\"=\"&List!$D$5,InputTopic,\"=\"&List!$Y9,InputSkill,\"=\"&List!$D$15)","v":0},{"$f":"COUNTIFS(InputArea,\"=\"&List!$D$5,InputTopic,\"=\"&List!$Y9,InputSkill,\"=\"&List!$D$16)","v":0},{"$f":"COUNTIFS(InputArea,\"=\"&List!$D$5,InputTopic,\"=\"&List!$Y9,InputSkill,\"=\"&List!$D$17)","v":0},{"$f":"COUNTIFS(InputArea,\"=\"&List!$D$5,InputTopic,\"=\"&List!$Y9,InputSkill,\"=\"&List!$D$18)","v":0},{"$f":"COUNTIFS(InputArea,\"=\"&List!$D$5,InputTopic,\"=\"&List!$Y9,InputSkill,\"=\"&List!$D$19)","v":0},0,0,{"v":0,"d":"0.00"},{"v":0,"d":"0.0"}]
[]
[{"$nulls":3},"TOTAL",null,null,{"$f":"SUM(G3:G112)","v":0},{"$f":"SUM(H3:H112)","v":0},0,0,0,0,0,0,0,0,0,0,0,0,0,0,0,0,0,0,0,0,0,0,0,0,0,0,null,null,0,0,0,0,0,0,0,{"$f":"SUM(AR3:AR112)","v":0},0,0,0,0,{"$f":"SUM(AW3:AW112)","v":0},0,0,0,0,0,{"$nulls":4},0,0]
[]
[{"$nulls":5},"Earth",{"$f":"SUM(G3:G5)","v":0},{"$f":"SUM(H3:H5)","v":0},0,0,0,0,0,0,0,0,0,0,{"$f":"SUM(S3:S5)","v":0},{"$f":"SUM(T3:T5)","v":0},0,0,0,0,0,0,{"$f":"SUM(AA3:AA5)","v":0},{"$f":"SUM(AB3:AB5)","v":0},0,0,0,0,{"$f":"SUM(G116:L116)","v":0},{"$f":"SUM(M116:R116)","v":0},{"$f":"IFERROR(ROUND(((W116*$W$2)+(X116*$X$2)+(Y116*$Y$2)+(Z116*$Z$2))/AG116,2),0)","v":{"v":0,"d":"0.00"}},{"$f":"IFERROR(AH116/AG116,0)","v":{"v":0,"d":"0.0"}}]
[{"$nulls":5},"CoordinateSystems",{"$f":"SUM(G6:G10)","v":0},{"$f":"SUM(H6:H10)","v":0},0,0,0,0,0,0,0,0,0,0,{"$f":"SUM(S6:S10)","v":0},{"$f":"SUM(T6:T10)","v":0},0,0,0,0,0,0,{"$f":"SUM(AA6:AA10)","v":0},{"$f":"SUM(AB6:AB10)","v":0},0,0,0,0,{"$f":"SUM(G117:L117)","v":0},{"$f":"SUM(M117:R117)","v":0},{"$f":"IFERROR(ROUND(((W117*$W$2)+(X117*$X$2)+(Y117*$Y$2)+(Z117*$Z$2))/AG117,2),0)","v":{"v":0,"d":"0.00"}},{"v":0,"d":"0.0"}]
[{"$nulls":5},"OurPlace",{"$f":"SUM(G11:G14)","v":0},{"$f":"SUM(H11:H14)","v":0},0,0,0,0,0,0,0,0,0,0,{"$f":"SUM(S11:S14)","v":0},{"$f":"SUM(T11:T14)","v":0},0,0,0,0,0,0,{"$f":"SUM(AA11:AA14)","v":0},{"$f":"SUM(AB11:AB14)","v":0},0,0,0,0,0,0,{"v":0,"d":"0.00"},{"v":0,"d":"0.0"}]
[{"$nulls":5},"MapReading",{"$f":"SUM(G15:G17)","v":0},{"$f":"SUM(H15:H17)","v":0},0,0,0,0,0,0,0,0,0,0,{"$f":"SUM(S15:S17)","v":0},{"$f":"SUM(T15:T17)","v":0},0,0,0,0,0,0,{"$f":"SUM(AA15:AA17)","v":0},{"$f":"SUM(AB15:AB17)","v":0},0,0,0,0,0,0,{"v":0,"d":"0.00"},{"v":0,"d":"0.0"}]
[{"$nulls":5},"Database",{"$f":"SUM(G18:G21)","v":0},{"$f":"SUM(H18:H21)","v":0},0,0,0,0,0,0,0,0,0,0,{"$f":"SUM(S18:S21)","v":0},{"$f":"SUM(T18:T21)","v":0},0,0,0,0,0,0,{"$f":"SUM(AA18:AA21)","v":0},{"$f":"SUM(AB18:AB21)","v":0},0,0,0,0,0,0,{"v":0,"d":"0.00"},{"v":0,"d":"0.0"}]
[{"$nulls":5},"Math",{"$f":"SUM(G22:G29)","v":0},{"$f":"SUM(H22:H29)","v":0},0,0,0,0,0,0,0,0,0,0,{"$f":"SUM(S22:S29)","v":0},{"$f":"SUM(T22:T29)","v":0},0,0,0,0,0,0,{"$f":"SUM(AA22:AA29)","v":0},{"$f":"SUM(AB22:AB29)","v":0},0,0,0,0,0,0,{"v":0,"d":"0.00"},{"v":0,"d":"0.0"}]
[{"$nulls":5},"Physics",{"$f":"SUM(G30:G37)","v":0},{"$f":"SUM(H30:H37)","v":0},0,0,0,0,0,0,0,0,0,0,{"$f":"SUM(S30:S37)","v":0},{"$f":"SUM(T30:T37)","v":0},0,0,0,0,0,0,{"$f":"SUM(AA30:AA37)","v":0},{"$f":"SUM(AB30:AB37)","v":0},0,0,0,0,0,0,{"v":0,"d":"0.00"},{"v":0,"d":"0.0"}]
[{"$nulls":5},"Geography",{"$f":"SUM(G38:G42)","v":0},{"$f":"SUM(H38:H42)","v":0},0,0,0,0,0,0,0,0,0,0,{"$f":"SUM(S38:S42)","v":0},{"$f":"SUM(T38:T42)","v":0},0,0,0,0,0,0,{"$f":"SUM(AA38:AA42)","v":0},{"$f":"SUM(AB38:AB42)","v":0},0,0,0,0,0,0,{"v":0,"d":"0.00"},{"v":0,"d":"0.0"}]
[{"$nulls":5},"DataAcquisitionConcepts",{"$f":"SUM(G43:G47)","v":0},{"$f":"SUM(H43:H47)","v":0},0,0,0,0,0,0,0,0,0,0,{"$f":"SUM(S43:S47)","v":0},{"$f":"SUM(T43:T47)","v":0},0,0,0,0,0,0,{"$f":"SUM(AA43:AA47)","v":0},{"$f":"SUM(AB43:AB47)","v":0},0,0,0,0,0,0,{"v":0,"d":"0.00"},{"v":0,"d":"0.0"}]
[{"$nulls":5},"DataUse",{"$f":"SUM(G48:G51)","v":0},{"$f":"SUM(H48:H51)","v":0},0,0,0,0,0,0,0,0,0,0,{"$f":"SUM(S48:S51)","v":0},{"$f":"SUM(T48:T51)","v":0},0,0,0,0,0,0,{"$f":"SUM(AA48:AA51)","v":0},{"$f":"SUM(AB48:AB51)","v":0},0,0,0,0,0,0,{"v":0,"d":"0.00"},{"v":0,"d":"0.0"}]
[{"$nulls":5},"GeographicalDataStructure",{"$f":"SUM(G52:G55)","v":0},{"$f":"SUM(H52:H55)","v":0},0,0,0,0,0,0,0,0,0,0,{"$f":"SUM(S52:S55)","v":0},{"$f":"SUM(T52:T55)","v":0},0,0,0,0,0,0,{"$f":"SUM(AA52:AA55)","v":0},{"$f":"SUM(AB52:AB55)","v":0},0,0,0,0,0,0,{"v":0,"d":"0.00"},{"v":0,"d":"0.0"}]
[{"$nulls":5},"SpatialAnalysis",{"$f":"SUM(G56:G60)","v":0},{"$f":"SUM(H56:H60)","v":0},0,0,0,0,0,0,0,0,0,0,{"$f":"SUM(S56:S60)","v":0},{"$f":"SUM(T56:T60)","v":0},0,0,0,0,0,0,{"$f":"SUM(AA56:AA60)","v":0},{"$f":"SUM(AB56:AB60)","v":0},0,0,0,0,0,0,{"v":0,"d":"0.00"},{"v":0,"d":"0.0"}]
[{"$nulls":5},"GeospatialToolbox",{"$f":"SUM(G61:G65)","v":0},{"$f":"SUM(H61:H65)","v":0},0,0,0,0,0,0,0,0,0,0,{"$f":"SUM(S61:S65)","v":0},{"$f":"SUM(T61:T65)","v":0},0,0,0,0,0,0,{"$f":"SUM(AA61:AA65)","v":0},{"$f":"SUM(AB61:AB65)","v":0},0,0,0,0,0,0,{"v":0,"d":"0.00"},{"v":0,"d":"0.0"}]
[{"$nulls":5},"DataVisualization",{"$f":"SUM(G66:G68)","v":0},{"$f":"SUM(H66:H68)","v":0},0,0,0,0,0,0,0,0,0,0,{"$f":"SUM(S66:S68)","v":0},{"$f":"SUM(T66:T68)","v":0},0,0,0,0,0,0,{"$f":"SUM(AA66:AA68)","v":0},{"$f":"SUM(AB66:AB68)","v":0},0,0,0,0,0,0,{"v":0,"d":"0.00"},{"v":0,"d":"0.0"}]
[{"$nulls":5},"MapMaking",{"$f":"SUM(G69:G72)","v":0},{"$f":"SUM(H69:H72)","v":0},0,0,0,0,0,0,0,0,0,0,{"$f":"SUM(S69:S72)","v":0},{"$f":"SUM(T69:T72)","v":0},0,0,0,0,0,0,{"$f":"SUM(AA69:AA72)","v":0},{"$f":"SUM(AB69:AB72)","v":0},0,0,0,0,0,0,{"v":0,"d":"0.00"},{"v":0,"d":"0.0"}]
[{"$nulls":5},"GeneralApplications",{"$f":"SUM(G73:G76)","v":0},{"$f":"SUM(H73:H76)","v":0},0,0,0,0,0,0,0,0,0,0,{"$f":"SUM(S73:S76)","v":0},{"$f":"SUM(T73:T76)","v":0},0,0,0,0,0,0,{"$f":"SUM(AA73:AA76)","v":0},{"$f":"SUM(AB73:AB76)","v":0},0,0,0,0,0,0,{"v":0,"d":"0.00"},{"v":0,"d":"0.0"}]
[{"$nulls":5},"Professionalism",{"$f":"SUM(G77:G85)","v":0},{"$f":"SUM(H77:H85)","v":0},0,0,0,0,0,0,0,0,0,0,{"$f":"SUM(S77:S85)","v":0},{"$f":"SUM(T77:T85)","v":0},0,0,0,0,0,0,{"$f":"SUM(AA77:AA85)","v":0},{"$f":"SUM(AB77:AB85)","v":0},0,0,0,0,0,0,{"v":0,"d":"0.00"},{"v":0,"d":"0.0"}]
[{"$nulls":5},"DataAcquisitionMethods",{"$f":"SUM(G86:G92)","v":0},{"$f":"SUM(H86:H92)","v":0},0,0,0,0,0,0,0,0,0,0,{"$f":"SUM(S86:S92)","v":0},{"$f":"SUM(T86:T92)","v":0},0,0,0,0,0,0,{"$f":"SUM(AA86:AA92)","v":0},{"$f":"SUM(AB86:AB92)","v":0},0,0,0,0,0,0,{"v":0,"d":"0.00"},{"v":0,"d":"0.0"}]
[{"$nulls":5},"Programming",{"$f":"SUM(G93:G97)","v":0},{"$f":"SUM(H93:H97)","v":0},0,0,0,0,0,0,0,0,0,0,{"$f":"SUM(S93:S97)","v":0},{"$f":"SUM(T93:T97)","v":0},0,0,0,0,0,0,{"$f":"SUM(AA93:AA97)","v":0},{"$f":"SUM(AB93:AB97)","v":0},0,0,0,0,0,0,{"v":0,"d":"0.00"},{"v":0,"d":"0.0"}]
[{"$nulls":5},"ProjectManagement",{"$f":"SUM(G98:G104)","v":0},{"$f":"SUM(H98:H104)","v":0},0,0,0,0,0,0,0,0,0,0,{"$f":"SUM(S98:S104)","v":0},{"$f":"SUM(T98:T104)","v":0},0,0,0,0,0,0,{"$f":"SUM(AA98:AA104)","v":0},{"$f":"SUM(AB98:AB104)","v":0},0,0,0,0,0,0,{"v":0,"d":"0.00"},{"v":0,"d":"0.0"}]
[{"$nulls":5},"AdvancedApplications",{"$f":"SUM(G105:G112)","v":0},{"$f":"SUM(H105:H112)","v":0},0,0,0,0,0,0,0,0,0,0,{"$f":"SUM(S105:S112)","v":0},{"$f":"SUM(T105:T112)","v":0},0,0,0,0,0,0,{"$f":"SUM(AA105:AA112)","v":0},{"$f":"SUM(AB105:AB112)","v":0},0,0,0,0,0,0,{"v":0,"d":"0.00"},{"v":0,"d":"0.0"}]

{"sheet":"ICalc02","index":3,"n_rows":22,"n_cols":12,"rows_kept":22,"hidden":true}
[null,"Geospatial","Generic","Geo-Gen","SUM",null,"Technical","User"]
["Foundation",{"$f":"COUNTIFS(CalcRank,\"=F\",CalcGeo, \"=Geo\",ICalc01!AG3:AG112,\"<>0\")","v":0},{"$f":"COUNTIFS(CalcRank,\"=F\",CalcGeo, \"=Gen\",ICalc01!AG3:AG112,\"<>0\")","v":0},{"$f":"B2-C2","v":0},{"$f":"SUM(B2:C2)","v":0},null,{"$f":"COUNTIFS(CalcRank,\"=F\",CalcTech, \"=T\",ICalc01!AG3:AG112,\"<>0\")","v":0},{"$f":"COUNTIFS(CalcRank,\"=F\",CalcTech, \"=U\",ICalc01!AG3:AG112,\"<>0\")","v":0}]
["Core",{"$f":"COUNTIFS(CalcRank,\"=C\",CalcGeo, \"=Geo\",ICalc01!AG3:AG112,\"<>0\")","v":0},{"$f":"COUNTIFS(CalcRank,\"=C\",CalcGeo, \"=Gen\",ICalc01!AG3:AG112,\"<>0\")","v":0},{"$f":"B3-C3","v":0},{"$f":"SUM(B3:C3)","v":0},null,{"$f":"COUNTIFS(CalcRank,\"=C\",CalcTech, \"=T\",ICalc01!AG3:AG112,\"<>0\")","v":0},{"$f":"COUNTIFS(CalcRank,\"=C\",CalcTech, \"=U\",ICalc01!AG3:AG112,\"<>0\")","v":0}]
["Specialized",{"$f":"COUNTIFS(CalcRank,\"=S\",CalcGeo, \"=Geo\",ICalc01!AG3:AG112,\"<>0\")","v":0},{"$f":"COUNTIFS(CalcRank,\"=S\",CalcGeo, \"=Gen\",ICalc01!AG3:AG112,\"<>0\")","v":0},0,0,null,{"$f":"COUNTIFS(CalcRank,\"=S\",CalcTech, \"=T\",ICalc01!AG3:AG112,\"<>0\")","v":0},{"$f":"COUNTIFS(CalcRank,\"=S\",CalcTech, \"=U\",ICalc01!AG3:AG112,\"<>0\")","v":0}]
["Overall",{"$f":"COUNTIFS(CalcGeo, \"=Geo\",ICalc01!AG3:AG112,\"<>0\")","v":0},{"$f":"COUNTIFS(CalcGeo, \"=Gen\",ICalc01!AG3:AG112,\"<>0\")","v":0},0,0,null,{"$f":"COUNTIFS(CalcTech, \"=T\",ICalc01!AG3:AG112,\"<>0\")","v":0},{"$f":"COUNTIFS(CalcTech, \"=U\",ICalc01!AG3:AG112,\"<>0\")","v":0},{"$f":"G5-H5","v":0}]
[{"$nulls":7},"SUM",{"$f":"SUM(G5:H5)","v":0}]
[]
["Geo-Gen"]
[null,"%Pos","%Spec+ve","%Spec-ve","%slider fill","%slider size","Standard","Slider Position","Spectrum","Slider Fill","Slider Size"]
["Overall",{"$f":"IFERROR(H10/I10,0)","v":0},1,-1,{"$f":"IFERROR(IF(J10/I10>1,1-G10,IF(J10/I10<-1,-1+G10,J10/I10)),0)","v":0},{"$f":"IF(E10<0,-G10,G10)","v":0.015},0.015,{"$f":"D5","v":0},{"$f":"E5","v":0},{"$f":"IF(H10=0,0,H10-K10)","v":0},{"$f":"I10*G10","v":0}]
["Foundation",{"$f":"IFERROR(H11/I11,0)","v":0},1,-1,{"$f":"IFERROR(IF(J11/I11>1,1-G11,IF(J11/I11<-1,-1+G11,J11/I11)),0)","v":0},{"$f":"IF(E11<0,-G11,G11)","v":0.015},0.015,{"$f":"D2","v":0},0,{"$f":"IF(H11=0,0,H11-K11)","v":0},{"$f":"I11*G11","v":0}]
["Core",0,1,-1,0,0.015,0.015,0,0,0,0]
["Specialized",0,1,-1,0,0.015,0.015,0,0,{"$f":"IF(H13=0,0,H13-K13)","v":0},0]
[]
["Tech-User"]
[null,"%Pos","%Spec+ve","%Spec-ve","%slider fill","%slider size","Standard","Slider Position","Spectrum","Slider Fill","Slider Size"]
[null,{"$f":"IFERROR(H17/I17,0)","v":0},1,-1,{"$f":"IFERROR(IF(J17/I17>1,1-G17,IF(J17/I17<-1,-1+G17,J17/I17)),0)","v":0},{"$f":"IF(E17<0,-G17,G17)","v":0.015},0.015,{"$f":"I5","v":0},{"$f":"I6","v":0},{"$f":"IF(H17=0,0,H17-K17)","v":0},{"$f":"I17*G17","v":0}]
[]
[null,"L1","L2","L3","L4","Knowledge Distribution","Independent Learning/ Research","Interactive Learning/ Social Interaction","Instructive Teaching","Field/ Hands-on Experience","Online Learning/ Case Studies","Others"]
["Foundation",{"$f":"ICalc01!BC3","v":0},{"$f":"ICalc01!BD3","v":0},{"$f":"ICalc01!BE3","v":0},{"$f":"ICalc01!BF3","v":0},{"$f":"ICalc01!BG3","v":0},{"$f":"ICalc01!AK3","v":0},{"$f":"ICalc01!AL3","v":0},{"$f":"ICalc01!AM3","v":0},{"$f":"ICalc01!AN3","v":0},{"$f":"ICalc01!AO3","v":0},{"$f":"ICalc01!AP3","v":0}]
["Core",{"$f":"ICalc01!BC43","v":0},{"$f":"ICalc01!BD43","v":0},{"$f":"ICalc01!BE43","v":0},{"$f":"ICalc01!BF43","v":0},{"$f":"ICalc01!BG43","v":0},{"$f":"ICalc01!AK43","v":0},{"$f":"ICalc01!AL43","v":0},{"$f":"ICalc01!AM43","v":0},{"$f":"ICalc01!AN43","v":0},{"$f":"ICalc01!AO43","v":0},{"$f":"ICalc01!AP43","v":0}]
["Specialised",{"$f":"ICalc01!BC86","v":0},{"$f":"ICalc01!BD86","v":0},{"$f":"ICalc01!BE86","v":0},{"$f":"ICalc01!BF86","v":0},{"$f":"ICalc01!BG86","v":0},{"$f":"ICalc01!AK86","v":0},{"$f":"ICalc01!AL86","v":0},{"$f":"ICalc01!AM86","v":0},{"$f":"ICalc01!AN86","v":0},{"$f":"ICalc01!AO86","v":0},{"$f":"ICalc01!AP86","v":0}]

{"sheet":"OutputDiagnosis","index":4,"n_rows":67,"n_cols":12,"rows_kept":67,"merged":[[1,4,1,11],[2,1,2,2],[28,1,28,11],[42,1,42,11],[54,2,54,3],[54,6,54,9],[54,10,54,11],[55,2,55,3],[55,6,55,9],[55,10,55,11]]}
[]
[null,"Subject/Course",null,null,"Taught Knowledge"]
[null,{"$f":"IF(ISBLANK(SubjectCourse), \"-\", SubjectCourse)","v":"-"}]
[]
[null,"Average Level of Understanding"]
[null,{"$f":"IF(SUM(ICalc01!S114:V114)=0, \"-\", IF(AND((SUM(ICalc01!U114:V114)>SUM(ICalc01!T114:U114)),(SUM(ICalc01!U114:V114)>=SUM(ICalc01!S114:T114))),\"Advanced\",IF(AND((SUM(ICalc01!T114:U114)>=SUM(ICalc01!U114:V114)),SUM(ICalc01!T114:U114)>=SUM(ICalc01!S114:T114)),\"Intermediate\",\"Introductory\")))","v":"-"}]
[]
[null,"Important Topics","Average Importance"]
[null,{"$f":"IF(ISNUMBER(C9),INDEX(ICalc01!$F$116:$F$136,SMALL(IF(ICalc01!$AI$116:$AI$136=C9,ROW(ICalc01!$F$116:$F$136)-ROW(ICalc01!$F$116)+1),COUNTIF(C$9:C9,C9))),\"\")","v":"Earth"},{"$f":"LARGE(ICalc01!AI116:AI136,ROW(INDIRECT(\"1:\"&ROWS(ICalc01!AI116:AI136))))","v":{"v":0,"d":"0.00"}}]
[null,{"$f":"IF(ISNUMBER(C10),INDEX(ICalc01!$F$116:$F$136,SMALL(IF(ICalc01!$AI$116:$AI$136=C10,ROW(ICalc01!$F$116:$F$136)-ROW(ICalc01!$F$116)+1),COUNTIF(C$9:C10,C10))),\"\")","v":"CoordinateSystems"},{"v":0,"d":"0.00"}]
[null,{"$f":"IF(ISNUMBER(C11),INDEX(ICalc01!$F$116:$F$136,SMALL(IF(ICalc01!$AI$116:$AI$136=C11,ROW(ICalc01!$F$116:$F$136)-ROW(ICalc01!$F$116)+1),COUNTIF(C$9:C11,C11))),\"\")","v":"OurPlace"},{"v":0,"d":"0.00"}]
[null,{"$f":"IF(ISNUMBER(C12),INDEX(ICalc01!$F$116:$F$136,SMALL(IF(ICalc01!$AI$116:$AI$136=C12,ROW(ICalc01!$F$116:$F$136)-ROW(ICalc01!$F$116)+1),COUNTIF(C$9:C12,C12))),\"\")","v":"MapReading"},{"v":0,"d":"0.00"}]
[null,{"$f":"IF(ISNUMBER(C13),INDEX(ICalc01!$F$116:$F$136,SMALL(IF(ICalc01!$AI$116:$AI$136=C13,ROW(ICalc01!$F$116:$F$136)-ROW(ICalc01!$F$116)+1),COUNTIF(C$9:C13,C13))),\"\")","v":"Database"},{"v":0,"d":"0.00"}]
[null,{"$f":"IF(ISNUMBER(C14),INDEX(ICalc01!$F$116:$F$136,SMALL(IF(ICalc01!$AI$116:$AI$136=C14,ROW(ICalc01!$F$116:$F$136)-ROW(ICalc01!$F$116)+1),COUNTIF(C$9:C14,C14))),\"\")","v":"Math"},{"v":0,"d":"0.00"}]
[null,{"$f":"IF(ISNUMBER(C15),INDEX(ICalc01!$F$116:$F$136,SMALL(IF(ICalc01!$AI$116:$AI$136=C15,ROW(ICalc01!$F$116:$F$136)-ROW(ICalc01!$F$116)+1),COUNTIF(C$9:C15,C15))),\"\")","v":"Physics"},{"v":0,"d":"0.00"}]
[null,{"$f":"IF(ISNUMBER(C16),INDEX(ICalc01!$F$116:$F$136,SMALL(IF(ICalc01!$AI$116:$AI$136=C16,ROW(ICalc01!$F$116:$F$136)-ROW(ICalc01!$F$116)+1),COUNTIF(C$9:C16,C16))),\"\")","v":"Geography"},{"v":0,"d":"0.00"}]
[null,{"$f":"IF(ISNUMBER(C17),INDEX(ICalc01!$F$116:$F$136,SMALL(IF(ICalc01!$AI$116:$AI$136=C17,ROW(ICalc01!$F$116:$F$136)-ROW(ICalc01!$F$116)+1),COUNTIF(C$9:C17,C17))),\"\")","v":"DataAcquisitionConcepts"},{"v":0,"d":"0.00"}]
[null,{"$f":"IF(ISNUMBER(C18),INDEX(ICalc01!$F$116:$F$136,SMALL(IF(ICalc01!$AI$116:$AI$136=C18,ROW(ICalc01!$F$116:$F$136)-ROW(ICalc01!$F$116)+1),COUNTIF(C$9:C18,C18))),\"\")","v":"DataUse"},{"v":0,"d":"0.00"}]
[null,{"$f":"IF(ISNUMBER(C19),INDEX(ICalc01!$F$116:$F$136,SMALL(IF(ICalc01!$AI$116:$AI$136=C19,ROW(ICalc01!$F$116:$F$136)-ROW(ICalc01!$F$116)+1),COUNTIF(C$9:C19,C19))),\"\")","v":"GeographicalDataStructure"},{"v":0,"d":"0.00"}]
[]
[null,"Skills Ranking","Taught Frequency"]
[null,{"$f":"IF(ISNUMBER(C22),INDEX(ICalc01!$AA$2:$AF$2,SMALL(IF(ICalc01!$AA$114:$AF$114=C22,COLUMN(ICalc01!$AA$2:$AF$2)-COLUMN(ICalc01!$AA$2)+1),COUNTIF(C$22:C22,C22))),\"\")","v":"Data Gathering & Manipulation Skills"},{"$f":"LARGE(ICalc01!AA114:AF114,ROW(INDIRECT(\"1:\"&COLUMNS(ICalc01!AA114:AF114))))","v":0}]
[null,{"$f":"IF(ISNUMBER(C23),INDEX(ICalc01!$AA$2:$AF$2,SMALL(IF(ICalc01!$AA$114:$AF$114=C23,COLUMN(ICalc01!$AA$2:$AF$2)-COLUMN(ICalc01!$AA$2)+1),COUNTIF(C$22:C23,C23))),\"\")","v":"Imaging, Mapping & Visualization Skills"},0]
[null,{"$f":"IF(ISNUMBER(C24),INDEX(ICalc01!$AA$2:$AF$2,SMALL(IF(ICalc01!$AA$114:$AF$114=C24,COLUMN(ICalc01!$AA$2:$AF$2)-COLUMN(ICalc01!$AA$2)+1),COUNTIF(C$22:C24,C24))),\"\")","v":"Professional, Collaboration & Cooperation Skills"},0]
[null,{"$f":"IF(ISNUMBER(C25),INDEX(ICalc01!$AA$2:$AF$2,SMALL(IF(ICalc01!$AA$114:$AF$114=C25,COLUMN(ICalc01!$AA$2:$AF$2)-COLUMN(ICalc01!$AA$2)+1),COUNTIF(C$22:C25,C25))),\"\")","v":"Spatial Skills"},0]
[null,{"$f":"IF(ISNUMBER(C26),INDEX(ICalc01!$AA$2:$AF$2,SMALL(IF(ICalc01!$AA$114:$AF$114=C26,COLUMN(ICalc01!$AA$2:$AF$2)-COLUMN(ICalc01!$AA$2)+1),COUNTIF(C$22:C26,C26))),\"\")","v":"Technical & Practical (Hands-on) Skills"},0]
[null,{"$f":"IF(ISNUMBER(C27),INDEX(ICalc01!$AA$2:$AF$2,SMALL(IF(ICalc01!$AA$114:$AF$114=C27,COLUMN(ICalc01!$AA$2:$AF$2)-COLUMN(ICalc01!$AA$2)+1),COUNTIF(C$22:C27,C27))),\"\")","v":"Others"},0]
[]
[null,"Degree of Geospatialism"]
{"$rows_empty":13}
[null,"Degree of Technicality"]
{"$rows_empty":8}
[{"$nulls":7},"L1","L2","L3","L4","AVG"]
[{"$nulls":7},{"$f":"IFERROR(INDEX(ICalc01!S116:S136,MATCH(E56,ICalc01!F116:F136,0)),0)","v":0},{"$f":"IFERROR(INDEX(ICalc01!T116:T136,MATCH(E56,ICalc01!F116:F136,0)),0)","v":0},{"$f":"IFERROR(INDEX(ICalc01!U116:U136,MATCH(E56,ICalc01!F116:F136,0)),0)","v":0},{"$f":"IFERROR(INDEX(ICalc01!V116:V136,MATCH(E56,ICalc01!F116:F136,0)),0)","v":0},{"$f":"IFERROR(ROUND(((H53*1)+(I53*2)+(J53*3)+(K53*4))/SUM(H53:K53),0),0)","v":0}]
[null,"Detailed Information"]
[null,null,"Rank: ",null,"Foundation",null,"Average Level of Expected Understanding",{"$nulls":3},"Number of Sub-Topics"]
[null,null,"Topic:",{"$nulls":3},{"$f":"IF(L53=0, \"N/A\", CONCATENATE(\"L\", L53, \": \", IF(L53=1,Input!B5, IF(L53=2, Input!B4, IF(L53=3, Input!B3, Input!B2)))))","v":"N/A"},{"$nulls":3},{"$f":"IF(L53=0,CONCATENATE(\"0 of \", COUNTIF(ICalc01!E3:E112,\"=\"&E56), \" topics.\"),CONCATENATE(COUNTIFS(ICalc01!E3:E112,\"=\"&E56,ICalc01!AG3:AG112,\">0\"),\" of \",COUNTIF(ICalc01!E3:E112,\"=\"&E56),\" topics.\"))","v":"0 of 0 topics."}]
[]
[{"$nulls":6},{"$f":"List!A14","v":"Independent Learning/ Research"},{"$f":"List!A15","v":"Interactive Learning/ Social Interaction"},{"$f":"List!A16","v":"Instructive Teaching"},{"$f":"List!A17","v":"Field/ Hands-on Experience"},{"$f":"List!A18","v":"Online Learning/ Case Studies"},{"$f":"List!A19","v":"Others"}]
[{"$nulls":5},{"$f":"IFERROR(IF(OFFSET(ICalc01!E2,MATCH(E56,ICalc01!E3:E112,0),0)=E56,OFFSET(ICalc01!E2,MATCH(E56,ICalc01!E3:E112,0),1,1,7),\"\"),\"\")","v":""},"","","","","",""]
[{"$nulls":5},{"$f":"IFERROR(IF(OFFSET(ICalc01!E2,MATCH(E56,ICalc01!E3:E112,0)+1,0)=E56,OFFSET(ICalc01!E2,MATCH(E56,ICalc01!E3:E112,0)+1,1,1,7),\"\"),\"\")","v":""},"","","","","",""]
[{"$nulls":5},{"$f":"IFERROR(IF(OFFSET(ICalc01!E2,MATCH(E56,ICalc01!E3:E112,0)+2,0)=E56,OFFSET(ICalc01!E2,MATCH(E56,ICalc01!E3:E112,0)+2,1,1,7),\"\"),\"\")","v":""},"","","","","",""]
[{"$nulls":5},{"$f":"IFERROR(IF(OFFSET(ICalc01!E2,MATCH(E56,ICalc01!E3:E112,0)+3,0)=E56,OFFSET(ICalc01!E2,MATCH(E56,ICalc01!E3:E112,0)+3,1,1,7),\"\"),\"\")","v":""},"","","","","",""]
[{"$nulls":5},{"$f":"IFERROR(IF(OFFSET(ICalc01!E2,MATCH(E56,ICalc01!E3:E112,0)+4,0)=E56,OFFSET(ICalc01!E2,MATCH(E56,ICalc01!E3:E112,0)+4,1,1,7),\"\"),\"\")","v":""},"","","","","",""]
[{"$nulls":5},{"$f":"IFERROR(IF(OFFSET(ICalc01!E2,MATCH(E56,ICalc01!E3:E112,0)+5,0)=E56,OFFSET(ICalc01!E2,MATCH(E56,ICalc01!E3:E112,0)+5,1,1,7),\"\"),\"\")","v":""},"","","","","",""]
[{"$nulls":5},{"$f":"IFERROR(IF(OFFSET(ICalc01!E2,MATCH(E56,ICalc01!E3:E112,0)+6,0)=E56,OFFSET(ICalc01!E2,MATCH(E56,ICalc01!E3:E112,0)+6,1,1,7),\"\"),\"\")","v":""},"","","","","",""]
[{"$nulls":5},{"$f":"IFERROR(IF(OFFSET(ICalc01!E2,MATCH(E56,ICalc01!E3:E112,0)+7,0)=E56,OFFSET(ICalc01!E2,MATCH(E56,ICalc01!E3:E112,0)+7,1,1,7),\"\"),\"\")","v":""},"","","","","",""]
[{"$nulls":5},{"$f":"IFERROR(IF(OFFSET(ICalc01!E2,MATCH(E56,ICalc01!E3:E112,0)+8,0)=E56,OFFSET(ICalc01!E2,MATCH(E56,ICalc01!E3:E112,0)+8,1,1,7),\"\"),\"\")","v":""},"","","","","",""]